Workbook

Sheet Hypothetical Summary
B2: NOTE: Rate and bill calculations are illustrative and may not tie to other filed sources.
B3: Inputs: | J3: Assumptions:
J4: Current Effective Rates | L4: 2024-03-01
C5: Baseline Region - (Residential bill) | D5: X - Warm | F5: 1) For residential, select climate zone (baseline region) | J5: Sales Forecast | L5: 2024
F6: 2) Input revenue, truncating by 000 i.e. input 1,000,000 for one billion | J6: Summer season | L6: 4 | M6: months
D7: Revenue Change (000s) | F7: 3) See highlighted rate and bill output boxes for most common results | J7: Winter Season | L7: 8 | M7: months
C8: Generation | F8: A) Compare "Proposed" to "Current Effective Rates" columns | J8: Residential bill calculated using | L8: Schedule E-1, Single Family
C9: NSGC | J9: Residential Bi-annual Climate Credit | L9: -55.17206486
C10: Distribution | P10: Essential Use - Basic | Q10: Essential Use - All Electric
C11: GHG Revenue | N11: Basic | O11: All Electric
C12: CTC | J12: Non-CARE bill impact calculated with average summer usage of | N12: =IF($D$5="ALL",SUMPRODUCT('Hypothetical Res Bill Impact'!Q$22:Q$31,'Hypothetical Res Bill Impact'!$U$22:$U$31),VLOOKUP(D$5,'Hypothetical Res Bill Impact'!$P$22:$T$31,2,FALSE)) -> 406.5 | O12: =IF($D$5="ALL",SUMPRODUCT('Hypothetical Res Bill Impact'!Y$22:Y$31,'Hypothetical Res Bill Impact'!$AC$22:$AC$31),VLOOKUP($D$5,'Hypothetical Res Bill Impact'!$X$22:$AB$31,2,FALSE)) -> 316.25 | P12: =VLOOKUP($D$5,'Hypothetical Res Bill Impact'!$H$22:$J$31,2,FALSE) -> 298.2875 | Q12: =VLOOKUP($D$5,'Hypothetical Res Bill Impact'!$L$22:$N$31,2,FALSE) -> 258.71875 | R12: kWh per month
C13: NDC | J13: Non-CARE bill impact calculated with average winter usage of | N13: =IF($D$5="ALL",SUMPRODUCT('Hypothetical Res Bill Impact'!R$22:R$31,'Hypothetical Res Bill Impact'!$U$22:$U$31),VLOOKUP(D$5,'Hypothetical Res Bill Impact'!$P$22:$T$31,3,FALSE)) -> 388.625 | O13: =IF($D$5="ALL",SUMPRODUCT('Hypothetical Res Bill Impact'!Y$22:Y$31,'Hypothetical Res Bill Impact'!$AC$22:$AC$31),VLOOKUP($D$5,'Hypothetical Res Bill Impact'!$X$22:$AB$31,3,FALSE)) -> 367.625 | P13: =VLOOKUP($D$5,'Hypothetical Res Bill Impact'!$H$22:$J$31,3,FALSE) -> 295.24375 | Q13: =VLOOKUP($D$5,'Hypothetical Res Bill Impact'!$L$22:$N$31,3,FALSE) -> 444.3875 | R13: kWh per month
C14: Public Purpose Program | J14: Non-CARE bill impact calculated with average annual usage of | N14: =(N12*4)+(N13*8) -> 4735 | O14: =(O12*4)+(O13*8) -> 4206 | P14: 3555.1 | Q14: 4589.975 | R14: kWh per year
C15: DWR BC | J15: CARE bill impact calculated with average summer usage of | N15: =IF(D$5="ALL",SUMPRODUCT('Hypothetical Res Bill Impact'!S$22:S$31,'Hypothetical Res Bill Impact'!$V$22:$V$31),VLOOKUP(D$5,'Hypothetical Res Bill Impact'!$P$22:$T$31,4,FALSE)) -> 379.75 | O15: =IF($D$5="ALL",SUMPRODUCT('Hypothetical Res Bill Impact'!Y$22:Y$31,'Hypothetical Res Bill Impact'!$AD$22:$AD$31),VLOOKUP($D$5,'Hypothetical Res Bill Impact'!$X$22:$AB$31,4,FALSE)) -> 319.75 | P15: =P12 -> 298.2875 | Q15: =Q12 -> 258.71875 | R15: kWh per month
C16: ECRA | J16: CARE bill impact calculated with average winter usage of | N16: =IF($D$5="ALL",SUMPRODUCT('Hypothetical Res Bill Impact'!T$22:T$31,'Hypothetical Res Bill Impact'!$V$22:$V$31),VLOOKUP(D$5,'Hypothetical Res Bill Impact'!$P$22:$T$31,5,FALSE)) -> 381.375 | O16: =IF($D$5="ALL",SUMPRODUCT('Hypothetical Res Bill Impact'!Y$22:Y$31,'Hypothetical Res Bill Impact'!$AD$22:$AD$31),VLOOKUP($D$5,'Hypothetical Res Bill Impact'!$X$22:$AB$31,5,FALSE)) -> 394.5 | P16: =P13 -> 295.24375 | Q16: 444.3875 | R16: kWh per month
C17: Transmission | J17: CARE bill impact calculated with average annual usage of | N17: =(N15*4)+(N16*8) -> 4570 | O17: =(O15*4)+(O16*8) -> 4435 | P17: 3555.1 | Q17: 4589.975 | R17: kWh per year
C18: FERC BAs | J18: Average monthly usage is for all customers (Non-CARE and CARE) based on seasonal usage in | P18: =LEFT('Res Bill Impact'!P19,4) -> 2023
C19: PCIA
C20: WHC
C21: Distribution (Wildfire)
C22: Total | D22: =SUM(D8:D21) -> 0
B23: Outputs: | D23: `
D24: (A) | E24: (B) | F24: (C) | G24: (C)/(A) | H24: (C)/(B) | L24: (A) | M24: (B) | N24: (C) | O24: (C)/(A) | P24: (C)/(B)
B25: Bundled Average Rates - ¢/kWh (includes California Climate Credit)
B26: Customer Group | D26: 2024-01-01 | E26: =L4 -> 2024-03-01 | F26: Proposed | G26: ="% Change over "&TEXT(D26,"mm/d/yyyy") -> % Change over 01/1/2024 | H26: ="% Change over "&TEXT(E26,"mm/d/yyyy") -> % Change over 03/1/2024
B27: Residential | D27: 37.78368471 | E27: 37.88846517 | F27: ='Hypothetical SAR and RAR'!G29 -> 37.88846517 | G27: =$F27/D27-1 -> 0.002773166999 | H27: 0
C28: B-1 | D28: 44.16546008 | E28: 44.28059623 | F28: ='Hypothetical SAR and RAR (B-1)'!G29 -> 44.28059623 | G28: 0.002606927461 | H28: 0
B29: System | D29: 36.56790439 | E29: 36.61409129 | F29: ='Hypothetical SAR and RAR'!G30 -> 36.61409129 | G29: 0.001263044896 | H29: 0
B32: Basic Bundled Residential Monthly Average Bills | J32: All-Electric Bundled Residential Monthly Average Bills
D33: =$D$26 -> 2024-01-01 | E33: =$E$26 -> 2024-03-01 | F33: Proposed | G33: =$G$26 -> % Change over 01/1/2024 | H33: =$H$26 -> % Change over 03/1/2024 | L33: =$D$26 -> 2024-01-01 | M33: =$E$26 -> 2024-03-01 | N33: Proposed | O33: =$G$26 -> % Change over 01/1/2024 | P33: =$H$26 -> % Change over 03/1/2024
B34: Non-CARE | D34: =((D41*4)+(D48*8)+($L$9*2))/12 -> 166.9453386 | E34: =((E41*4)+(E48*8)+($L$9*2))/12 -> 167.3576048 | F34: 167.3576048 | G34: =$F34/D34-1 -> 0.002469468326 | H34: 0 | J34: Non-CARE | L34: =((L41*4)+(L48*8)+($L$9*2))/12 -> 140.0707255 | M34: =((M41*4)+(M48*8)+($L$9*2))/12 -> 140.4029868 | N34: 140.4029868 | O34: =$N34/L34-1 -> 0.002372096267 | P34: =$N34/M34-1 -> 0
B35: CARE | D35: =((D42*4)+(D49*8)+($L$9*2))/12 -> 100.6222381 | E35: 100.8786937 | F35: 100.8786937 | G35: 0.002548696916 | H35: 0 | J35: CARE | L35: =((L42*4)+(L49*8)+($L$9*2))/12 -> 93.14144742 | M35: 93.36994831 | N35: 93.36994831 | O35: =$N35/L35-1 -> 0.002453267569 | P35: =$N35/M35-1 -> 0
B36: Total | D36: 147.4108209 | E36: 147.7771954 | F36: 147.7771954 | G36: 0.002485397175 | H36: 0 | J36: Total | L36: 126.24838 | M36: 126.5500801 | N36: 126.5500801 | O36: =$N36/L36-1 -> 0.002389734601 | P36: 0
D38: 2 | E38: 4 | F38: 6 | L38: 2 | M38: 4 | N38: 6
B39: Basic Bundled Residential Monthly Average Bills - Summer | J39: All-Electric Bundled Residential Monthly Average Bills - Summer
D40: =$D$26 -> 2024-01-01 | E40: =$E$26 -> 2024-03-01 | F40: Proposed | G40: =$G$26 -> % Change over 01/1/2024 | H40: =$H$26 -> % Change over 03/1/2024 | L40: =$D$26 -> 2024-01-01 | M40: =$E$26 -> 2024-03-01 | N40: Proposed | O40: =$G$26 -> % Change over 01/1/2024 | P40: =$H$26 -> % Change over 03/1/2024
B41: Non-CARE | D41: =VLOOKUP($D$5,'Hypothetical Res Bill Impact'!$B$37:$H$47,D38,FALSE) -> 182.1905786 | E41: =VLOOKUP($D$5,'Hypothetical Res Bill Impact'!$B$37:$H$47,E38,FALSE) -> 182.6187408 | F41: =VLOOKUP($D$5,'Hypothetical Res Bill Impact'!$B$37:$H$47,F38,FALSE) -> 182.6187408 | G41: =$F41/D41-1 -> 0.002350078706 | H41: 0 | J41: Non-CARE | L41: =VLOOKUP($D$5,'Hypothetical Res Bill Impact'!$J$37:$P$47,L38,FALSE) -> 138.9270366 | M41: =VLOOKUP($D$5,'Hypothetical Res Bill Impact'!$J$37:$P$47,M38,FALSE) -> 139.2468642 | N41: =VLOOKUP($D$5,'Hypothetical Res Bill Impact'!$J$37:$P$47,N38,FALSE) -> 139.2468642 | O41: =$N41/L41-1 -> 0.002302126779 | P41: =$N41/M41-1 -> 0
B42: CARE | D42: =VLOOKUP($D$5,'Hypothetical Res Bill Impact'!$B$53:$H$63,D38,FALSE) -> 109.3080914 | E42: =VLOOKUP($D$5,'Hypothetical Res Bill Impact'!$B$53:$H$63,E38,FALSE) -> 109.5628694 | F42: =VLOOKUP($D$5,'Hypothetical Res Bill Impact'!$B$53:$H$63,F38,FALSE) -> 109.5628694 | G42: 0.002330824758 | H42: 0 | J42: CARE | L42: =VLOOKUP($D$5,'Hypothetical Res Bill Impact'!$J$53:$P$63,L38,FALSE) -> 91.51869469 | M42: =VLOOKUP($D$5,'Hypothetical Res Bill Impact'!$J$53:$P$63,M38,FALSE) -> 91.73072235 | N42: =VLOOKUP($D$5,'Hypothetical Res Bill Impact'!$J$53:$P$63,N38,FALSE) -> 91.73072235 | O42: =$N42/L42-1 -> 0.002316768862 | P42: =$N42/M42-1 -> 0
B43: Total | D43: =D41*(1-'Hypothetical SAR and RAR'!$Y$16)+D42*'Hypothetical SAR and RAR'!$Y$16 -> 160.7240877 | E43: =E41*(1-'Hypothetical SAR and RAR'!$Y$16)+E42*'Hypothetical SAR and RAR'!$Y$16 -> 161.101182 | F43: =F41*(1-'Hypothetical SAR and RAR'!$Y$16)+F42*'Hypothetical SAR and RAR'!$Y$16 -> 161.101182 | G43: 0.002346221889 | H43: 0 | J43: Total | L43: =L41*(1-'Hypothetical SAR and RAR'!$Y$16)+L42*'Hypothetical SAR and RAR'!$Y$16 -> 124.9635896 | M43: =M41*(1-'Hypothetical SAR and RAR'!$Y$16)+M42*'Hypothetical SAR and RAR'!$Y$16 -> 125.2516664 | N43: =N41*(1-'Hypothetical SAR and RAR'!$Y$16)+N42*'Hypothetical SAR and RAR'!$Y$16 -> 125.2516664 | O43: =$N43/L43-1 -> 0.002305285178 | P43: 0
D45: 3 | E45: 5 | F45: 7 | L45: 3 | M45: 5 | N45: 7
B46: Basic Bundled Residential Monthly Average Bills - Winter | J46: All-Electric Bundled Residential Monthly Average Bills - Winter
D47: =$D$26 -> 2024-01-01 | E47: =$E$26 -> 2024-03-01 | F47: Proposed | G47: =$G$26 -> % Change over 01/1/2024 | H47: =$H$26 -> % Change over 03/1/2024 | L47: =$D$26 -> 2024-01-01 | M47: =$E$26 -> 2024-03-01 | N47: Proposed | O47: =$G$26 -> % Change over 01/1/2024 | P47: =$H$26 -> % Change over 03/1/2024
B48: Non-CARE | D48: =VLOOKUP($D$5,'Hypothetical Res Bill Impact'!$B$37:$H$47,D45,FALSE) -> 173.1157348 | E48: =VLOOKUP($D$5,'Hypothetical Res Bill Impact'!$B$37:$H$47,E45,FALSE) -> 173.5200531 | F48: =VLOOKUP($D$5,'Hypothetical Res Bill Impact'!$B$37:$H$47,F45,FALSE) -> 173.5200531 | G48: =$F48/D48-1 -> 0.002335537203 | H48: 0 | J48: Non-CARE | L48: =VLOOKUP($D$5,'Hypothetical Res Bill Impact'!$J$37:$P$47,L45,FALSE) -> 154.4355863 | M48: =VLOOKUP($D$5,'Hypothetical Res Bill Impact'!$J$37:$P$47,M45,FALSE) -> 154.7740643 | N48: =VLOOKUP($D$5,'Hypothetical Res Bill Impact'!$J$37:$P$47,N45,FALSE) -> 154.7740643 | O48: =$N48/L48-1 -> 0.002191710152 | P48: =$N48/M48-1 -> 0
B49: CARE | D49: =VLOOKUP($D$5,'Hypothetical Res Bill Impact'!$B$53:$H$63,D45,FALSE) -> 110.0723277 | E49: =VLOOKUP($D$5,'Hypothetical Res Bill Impact'!$B$53:$H$63,E45,FALSE) -> 110.3296221 | F49: =VLOOKUP($D$5,'Hypothetical Res Bill Impact'!$B$53:$H$63,F45,FALSE) -> 110.3296221 | G49: 0.002337502846 | H49: 0 | J49: CARE | L49: =VLOOKUP($D$5,'Hypothetical Res Bill Impact'!$J$53:$P$63,L45,FALSE) -> 107.74584 | M49: =VLOOKUP($D$5,'Hypothetical Res Bill Impact'!$J$53:$P$63,M45,FALSE) -> 107.9825775 | N49: =VLOOKUP($D$5,'Hypothetical Res Bill Impact'!$J$53:$P$63,N45,FALSE) -> 107.9825775 | O49: =$N49/L49-1 -> 0.002197184665 | P49: =$N49/M49-1 -> 0
B50: Total | D50: =D48*(1-'Hypothetical SAR and RAR'!$Y$16)+D49*'Hypothetical SAR and RAR'!$Y$16 -> 154.5472037 | E50: =E48*(1-'Hypothetical SAR and RAR'!$Y$16)+E49*'Hypothetical SAR and RAR'!$Y$16 -> 154.9082182 | F50: =F48*(1-'Hypothetical SAR and RAR'!$Y$16)+F49*'Hypothetical SAR and RAR'!$Y$16 -> 154.9082182 | G50: 0.002335949547 | H50: 0 | J50: Total | L50: =L48*(1-'Hypothetical SAR and RAR'!$Y$16)+L49*'Hypothetical SAR and RAR'!$Y$16 -> 140.6837914 | M50: =M48*(1-'Hypothetical SAR and RAR'!$Y$16)+M49*'Hypothetical SAR and RAR'!$Y$16 -> 140.9923032 | N50: =N48*(1-'Hypothetical SAR and RAR'!$Y$16)+N49*'Hypothetical SAR and RAR'!$Y$16 -> 140.9923032 | O50: =$N50/L50-1 -> 0.002192945075 | P50: 0
B53: Essential Use Basic Bundled Residential Monthly Average Bills | J53: Essential Use All-Electric Bundled Residential Monthly Average Bills
D54: =$D$26 -> 2024-01-01 | E54: =$E$26 -> 2024-03-01 | F54: Proposed | G54: =$G$26 -> % Change over 01/1/2024 | H54: =$H$26 -> % Change over 03/1/2024 | L54: =$D$26 -> 2024-01-01 | M54: =$E$26 -> 2024-03-01 | N54: Proposed | O54: =$G$26 -> % Change over 01/1/2024 | P54: =$H$26 -> % Change over 03/1/2024
B55: Non-CARE | D55: =((D62*4)+(D69*8)+($L$9*2))/12 -> 115.2598191 | E55: =((E62*4)+(E69*8)+($L$9*2))/12 -> 115.5325888 | F55: 115.5325888 | G55: =$F55/D55-1 -> 0.002366563186 | H55: =$F55/E55-1 -> 0 | J55: Non-CARE | L55: =((L62*4)+(L69*8)+($L$9*2))/12 -> 151.4882057 | M55: =((M62*4)+(M69*8)+($L$9*2))/12 -> 151.8403774 | N55: 151.8403774 | O55: =$N55/L55-1 -> 0.002324747104 | P55: =$N55/M55-1 -> 0
B56: CARE | D56: =((D63*4)+(D70*8)+($L$9*2))/12 -> 71.71873186 | E56: 71.89651502 | F56: 71.89651502 | G56: 0.002478894458 | H56: 0 | J56: CARE | L56: =((L63*4)+(L70*8)+($L$9*2))/12 -> 95.27248686 | M56: 95.50202197 | N56: 95.50202197 | O56: =$N56/L56-1 -> 0.002409248712 | P56: =$N56/M56-1 -> 0
B57: Total | D57: 102.4354166 | E57: 102.6802093 | F57: 102.6802093 | G57: 0.002389727584 | H57: 0 | J57: Total | L57: 134.9306722 | M57: 135.2467231 | N57: 135.2467231 | O57: =$N57/L57-1 -> 0.00234232066 | P57: 0
D59: 2 | E59: 4 | F59: 6 | L59: 2 | M59: 4 | N59: 6
B60: Essential Use Basic Bundled Residential Monthly Average Bills - Summer | J60: Essential Use All-Electric Bundled Residential Monthly Average Bills - Summer
D61: =$D$26 -> 2024-01-01 | E61: =$E$26 -> 2024-03-01 | F61: Proposed | G61: =$G$26 -> % Change over 01/1/2024 | H61: =$H$26 -> % Change over 03/1/2024 | L61: =$D$26 -> 2024-01-01 | M61: =$E$26 -> 2024-03-01 | N61: Proposed | O61: =$G$26 -> % Change over 01/1/2024 | P61: =$H$26 -> % Change over 03/1/2024
B62: Non-CARE | D62: =VLOOKUP($D$5,'Hypothetical Res Bill Impact'!$B$69:$H$79,D59,FALSE) -> 125.3075959 | E62: =VLOOKUP($D$5,'Hypothetical Res Bill Impact'!$B$69:$H$79,E59,FALSE) -> 125.5822338 | F62: =VLOOKUP($D$5,'Hypothetical Res Bill Impact'!$B$69:$H$79,F59,FALSE) -> 125.5822338 | G62: =$F62/D62-1 -> 0.002191710152 | H62: =$F62/E62-1 -> 0 | J62: Non-CARE | L62: =VLOOKUP($D$5,'Hypothetical Res Bill Impact'!$J$69:$P$79,L59,FALSE) -> 108.6851597 | M62: =VLOOKUP($D$5,'Hypothetical Res Bill Impact'!$J$69:$P$79,M59,FALSE) -> 108.9233661 | N62: =VLOOKUP($D$5,'Hypothetical Res Bill Impact'!$J$69:$P$79,N59,FALSE) -> 108.9233661 | O62: =$N62/L62-1 -> 0.002191710152 | P62: =$N62/M62-1 -> 0
B63: CARE | D63: =VLOOKUP($D$5,'Hypothetical Res Bill Impact'!$B$85:$H$95,D59,FALSE) -> 81.468282 | E63: =VLOOKUP($D$5,'Hypothetical Res Bill Impact'!$B$85:$H$95,E59,FALSE) -> 81.64728286 | F63: =VLOOKUP($D$5,'Hypothetical Res Bill Impact'!$B$85:$H$95,F59,FALSE) -> 81.64728286 | G63: 0.002197184665 | H63: 0 | J63: CARE | L63: =VLOOKUP($D$5,'Hypothetical Res Bill Impact'!$J$85:$P$95,L59,FALSE) -> 70.661265 | M63: =VLOOKUP($D$5,'Hypothetical Res Bill Impact'!$J$85:$P$95,M59,FALSE) -> 70.81652085 | N63: =VLOOKUP($D$5,'Hypothetical Res Bill Impact'!$J$85:$P$95,N59,FALSE) -> 70.81652085 | O63: =$N63/L63-1 -> 0.002197184665 | P63: =$N63/M63-1 -> 0
B64: Total | D64: =D62*(1-'Hypothetical SAR and RAR'!$Y$16)+D63*'Hypothetical SAR and RAR'!$Y$16 -> 112.395355 | E64: =E62*(1-'Hypothetical SAR and RAR'!$Y$16)+E63*'Hypothetical SAR and RAR'!$Y$16 -> 112.6418244 | F64: =F62*(1-'Hypothetical SAR and RAR'!$Y$16)+F63*'Hypothetical SAR and RAR'!$Y$16 -> 112.6418244 | G64: 0.002192878907 | H64: 0 | J64: Total | L64: =L62*(1-'Hypothetical SAR and RAR'!$Y$16)+L63*'Hypothetical SAR and RAR'!$Y$16 -> 97.48576705 | M64: =M62*(1-'Hypothetical SAR and RAR'!$Y$16)+M63*'Hypothetical SAR and RAR'!$Y$16 -> 97.69954153 | N64: =N62*(1-'Hypothetical SAR and RAR'!$Y$16)+N63*'Hypothetical SAR and RAR'!$Y$16 -> 97.69954153 | O64: =$N64/L64-1 -> 0.002192878907 | P64: 0
D66: 3 | E66: 5 | F66: 7 | L66: 3 | M66: 5 | N66: 7
B67: Essential Use Basic Bundled Residential Monthly Average Bills - Winter | J67: Essential Use All-Electric Bundled Residential Monthly Average Bills - Winter
D68: =$D$26 -> 2024-01-01 | E68: =$E$26 -> 2024-03-01 | F68: Proposed | G68: =$G$26 -> % Change over 01/1/2024 | H68: =$H$26 -> % Change over 03/1/2024 | L68: =$D$26 -> 2024-01-01 | M68: =$E$26 -> 2024-03-01 | N68: Proposed | O68: =$G$26 -> % Change over 01/1/2024 | P68: =$H$26 -> % Change over 03/1/2024
B69: Non-CARE | D69: =VLOOKUP($D$5,'Hypothetical Res Bill Impact'!$B$69:$H$79,D66,FALSE) -> 124.0289469 | E69: =VLOOKUP($D$5,'Hypothetical Res Bill Impact'!$B$69:$H$79,E66,FALSE) -> 124.3007824 | F69: =VLOOKUP($D$5,'Hypothetical Res Bill Impact'!$B$69:$H$79,F66,FALSE) -> 124.3007824 | G69: =$F69/D69-1 -> 0.002191710152 | H69: =$F69/E69-1 -> 0 | J69: Non-CARE | L69: =VLOOKUP($D$5,'Hypothetical Res Bill Impact'!$J$69:$P$79,L66,FALSE) -> 186.6827449 | M69: =VLOOKUP($D$5,'Hypothetical Res Bill Impact'!$J$69:$P$79,M66,FALSE) -> 187.0918993 | N69: =VLOOKUP($D$5,'Hypothetical Res Bill Impact'!$J$69:$P$79,N66,FALSE) -> 187.0918993 | O69: =$N69/L69-1 -> 0.002191710152 | P69: =$N69/M69-1 -> 0
B70: CARE | D70: =VLOOKUP($D$5,'Hypothetical Res Bill Impact'!$B$85:$H$95,D66,FALSE) -> 80.636973 | E70: =VLOOKUP($D$5,'Hypothetical Res Bill Impact'!$B$85:$H$95,E66,FALSE) -> 80.81414732 | F70: =VLOOKUP($D$5,'Hypothetical Res Bill Impact'!$B$85:$H$95,F66,FALSE) -> 80.81414732 | G70: 0.002197184665 | H70: 0 | J70: CARE | L70: =VLOOKUP($D$5,'Hypothetical Res Bill Impact'!$J$85:$P$95,L66,FALSE) -> 121.371114 | M70: =VLOOKUP($D$5,'Hypothetical Res Bill Impact'!$J$85:$P$95,M66,FALSE) -> 121.6377888 | N70: =VLOOKUP($D$5,'Hypothetical Res Bill Impact'!$J$85:$P$95,N66,FALSE) -> 121.6377888 | O70: =$N70/L70-1 -> 0.002197184665 | P70: =$N70/M70-1 -> 0
B71: Total | D71: =D69*(1-'Hypothetical SAR and RAR'!$Y$16)+D70*'Hypothetical SAR and RAR'!$Y$16 -> 111.2484636 | E71: =E69*(1-'Hypothetical SAR and RAR'!$Y$16)+E70*'Hypothetical SAR and RAR'!$Y$16 -> 111.492418 | F71: =F69*(1-'Hypothetical SAR and RAR'!$Y$16)+F70*'Hypothetical SAR and RAR'!$Y$16 -> 111.492418 | G71: 0.002192878907 | H71: 0 | J71: Total | L71: =L69*(1-'Hypothetical SAR and RAR'!$Y$16)+L70*'Hypothetical SAR and RAR'!$Y$16 -> 167.446141 | M71: =M69*(1-'Hypothetical SAR and RAR'!$Y$16)+M70*'Hypothetical SAR and RAR'!$Y$16 -> 167.8133302 | N71: =N69*(1-'Hypothetical SAR and RAR'!$Y$16)+N70*'Hypothetical SAR and RAR'!$Y$16 -> 167.8133302 | O71: =$N71/L71-1 -> 0.002192878907 | P71: 0
B74: Typical Customer Basic Bundled Residential Monthly Average Bills - Annualized (500 kWh/month) | J74: Typical Customer All-Electric Bundled Residential Monthly Average Bills
D75: =$D$26 -> 2024-01-01 | E75: =$E$26 -> 2024-03-01 | F75: Proposed | G75: =$G$26 -> % Change over 01/1/2024 | H75: =$H$26 -> % Change over 03/1/2024 | L75: =$D$26 -> 2024-01-01 | M75: =$E$26 -> 2024-03-01 | N75: Proposed | O75: =$G$26 -> % Change over 01/1/2024 | P75: =$H$26 -> % Change over 03/1/2024
B76: Non-CARE | D76: =((D83*4)+(D90*8)+($L$9*2))/12 -> 222.3586636 | E76: =((E83*4)+(E90*8)+($L$9*2))/12 -> 222.9204876 | F76: 222.9204876 | G76: =$F76/D76-1 -> 0.002526656505 | H76: =$F76/E76-1 -> 0 | J76: Non-CARE | L76: =((L83*4)+(L90*8)+($L$9*2))/12 -> 213.2543508 | M76: =((M83*4)+(M90*8)+($L$9*2))/12 -> 213.7732262 | N76: 213.7732262 | O76: =$N76/L76-1 -> 0.002433129458 | P76: =$N76/M76-1 -> 0
B77: CARE | D77: =((D84*4)+(D91*8)+($L$9*2))/12 -> 141.3474464 | E77: 141.7147519 | F77: 141.7147519 | G77: 0.002598600087 | H77: =$F77/E77-1 -> 0 | J77: CARE | L77: =((L84*4)+(L91*8)+($L$9*2))/12 -> 135.4288238 | M77: 135.7676604 | N77: 135.7676604 | O77: =$N77/L77-1 -> 0.002501953387 | P77: =$N77/M77-1 -> 0
B78: Total | D78: 198.4979719 | E78: 199.0025032 | F78: 199.0025032 | G78: 0.002541745552 | H78: 0 | J78: Total | L78: 190.3319584 | M78: 190.797806 | N78: 190.797806 | O78: =$N78/L78-1 -> 0.002447553159 | P78: 0
D80: 2 | E80: 4 | F80: 6 | L80: 2 | M80: 4 | N80: 6
B81: Typical Customer Basic Bundled Residential Monthly Average Bills - Summer | J81: Typical Customer All-Electric Bundled Residential Monthly Average Bills - Summer
D82: =$D$26 -> 2024-01-01 | E82: =$E$26 -> 2024-03-01 | F82: Proposed | G82: =$G$26 -> % Change over 01/1/2024 | H82: =$H$26 -> % Change over 03/1/2024 | L82: =$D$26 -> 2024-01-01 | M82: =$E$26 -> 2024-03-01 | N82: Proposed | O82: =$G$26 -> % Change over 01/1/2024 | P82: =$H$26 -> % Change over 03/1/2024
B83: Non-CARE | D83: =VLOOKUP($D$5,'Hypothetical Res Bill Impact'!$B$101:$H$111,D80,FALSE) -> 231.3397886 | E83: =VLOOKUP($D$5,'Hypothetical Res Bill Impact'!$B$101:$H$111,E80,FALSE) -> 231.900602 | F83: =VLOOKUP($D$5,'Hypothetical Res Bill Impact'!$B$101:$H$111,F80,FALSE) -> 231.900602 | G83: =$F83/D83-1 -> 0.002424197816 | H83: =$F83/E83-1 -> 0 | J83: Non-CARE | L83: =VLOOKUP($D$5,'Hypothetical Res Bill Impact'!$J$101:$P$111,L80,FALSE) -> 235.5170616 | M83: =VLOOKUP($D$5,'Hypothetical Res Bill Impact'!$J$101:$P$111,M80,FALSE) -> 236.0975808 | N83: =VLOOKUP($D$5,'Hypothetical Res Bill Impact'!$J$101:$P$111,N80,FALSE) -> 236.0975808 | O83: =$N83/L83-1 -> 0.002464871116 | P83: =$N83/M83-1 -> 0
B84: CARE | D84: =VLOOKUP($D$5,'Hypothetical Res Bill Impact'!$B$116:$H$126,D80,FALSE) -> 150.4035289 | E84: =VLOOKUP($D$5,'Hypothetical Res Bill Impact'!$B$116:$H$126,E80,FALSE) -> 150.7701645 | F84: =VLOOKUP($D$5,'Hypothetical Res Bill Impact'!$B$116:$H$126,F80,FALSE) -> 150.7701645 | G84: 0.002437679709 | H84: 0 | J84: CARE | L84: =VLOOKUP($D$5,'Hypothetical Res Bill Impact'!$J$116:$P$126,L80,FALSE) -> 153.1191322 | M84: =VLOOKUP($D$5,'Hypothetical Res Bill Impact'!$J$116:$P$126,M80,FALSE) -> 153.49883 | N84: =VLOOKUP($D$5,'Hypothetical Res Bill Impact'!$J$116:$P$126,N80,FALSE) -> 153.49883 | O84: =$N84/L84-1 -> 0.002479754281 | P84: =$N84/M84-1 -> 0
B85: Total | D85: =D83*(1-'Hypothetical SAR and RAR'!$Y$16)+D84*'Hypothetical SAR and RAR'!$Y$16 -> 207.5011745 | E85: =E83*(1-'Hypothetical SAR and RAR'!$Y$16)+E84*'Hypothetical SAR and RAR'!$Y$16 -> 208.0047957 | F85: =F83*(1-'Hypothetical SAR and RAR'!$Y$16)+F84*'Hypothetical SAR and RAR'!$Y$16 -> 208.0047957 | G85: 0.002427076051 | H85: 0 | J85: Total | L85: =L83*(1-'Hypothetical SAR and RAR'!$Y$16)+L84*'Hypothetical SAR and RAR'!$Y$16 -> 211.2479337 | M85: =M83*(1-'Hypothetical SAR and RAR'!$Y$16)+M84*'Hypothetical SAR and RAR'!$Y$16 -> 211.7693038 | N85: =N83*(1-'Hypothetical SAR and RAR'!$Y$16)+N84*'Hypothetical SAR and RAR'!$Y$16 -> 211.7693038 | O85: =$N85/L85-1 -> 0.002468048503 | P85: 0
D87: 3 | E87: 5 | F87: 7 | L87: 3 | M87: 5 | N87: 7
B88: Typical Customer Basic Bundled Residential Monthly Average Bills - Winter | J88: Typical Customer All-Electric Bundled Residential Monthly Average Bills - Winter
D89: =$D$26 -> 2024-01-01 | E89: =$E$26 -> 2024-03-01 | F89: Proposed | G89: =$G$26 -> % Change over 01/1/2024 | H89: =$H$26 -> % Change over 03/1/2024 | L89: =$D$26 -> 2024-01-01 | M89: =$E$26 -> 2024-03-01 | N89: Proposed | O89: =$G$26 -> % Change over 01/1/2024 | P89: =$H$26 -> % Change over 03/1/2024
B90: Non-CARE | D90: =VLOOKUP($D$5,'Hypothetical Res Bill Impact'!$B$101:$H$111,D87,FALSE) -> 231.6611173 | E90: =VLOOKUP($D$5,'Hypothetical Res Bill Impact'!$B$101:$H$111,E87,FALSE) -> 232.2234466 | F90: =VLOOKUP($D$5,'Hypothetical Res Bill Impact'!$B$101:$H$111,F87,FALSE) -> 232.2234466 | G90: =$F90/D90-1 -> 0.002427378608 | H90: =$F90/E90-1 -> 0 | J90: Non-CARE | L90: =VLOOKUP($D$5,'Hypothetical Res Bill Impact'!$J$101:$P$111,L87,FALSE) -> 215.9160116 | M90: =VLOOKUP($D$5,'Hypothetical Res Bill Impact'!$J$101:$P$111,M87,FALSE) -> 216.4040652 | N90: =VLOOKUP($D$5,'Hypothetical Res Bill Impact'!$J$101:$P$111,N87,FALSE) -> 216.4040652 | O90: =$N90/L90-1 -> 0.002260386154 | P90: =$N90/M90-1 -> 0
B91: CARE | D91: =VLOOKUP($D$5,'Hypothetical Res Bill Impact'!$B$116:$H$126,D87,FALSE) -> 150.6124214 | E91: =VLOOKUP($D$5,'Hypothetical Res Bill Impact'!$B$116:$H$126,E87,FALSE) -> 150.9800619 | F91: =VLOOKUP($D$5,'Hypothetical Res Bill Impact'!$B$116:$H$126,F87,FALSE) -> 150.9800619 | G91: 0.002440970081 | H91: 0 | J91: CARE | L91: =VLOOKUP($D$5,'Hypothetical Res Bill Impact'!$J$116:$P$126,L87,FALSE) -> 140.3766859 | M91: =VLOOKUP($D$5,'Hypothetical Res Bill Impact'!$J$116:$P$126,M87,FALSE) -> 140.6950919 | N91: =VLOOKUP($D$5,'Hypothetical Res Bill Impact'!$J$116:$P$126,N87,FALSE) -> 140.6950919 | O91: =$N91/L91-1 -> 0.002268225618 | P91: =$N91/M91-1 -> 0
B92: Total | D92: =D90*(1-'Hypothetical SAR and RAR'!$Y$16)+D91*'Hypothetical SAR and RAR'!$Y$16 -> 207.7893868 | E92: =E90*(1-'Hypothetical SAR and RAR'!$Y$16)+E91*'Hypothetical SAR and RAR'!$Y$16 -> 208.2943732 | F92: =F90*(1-'Hypothetical SAR and RAR'!$Y$16)+F91*'Hypothetical SAR and RAR'!$Y$16 -> 208.2943732 | G92: 0.002430280237 | H92: 0 | J92: Total | L92: =L90*(1-'Hypothetical SAR and RAR'!$Y$16)+L91*'Hypothetical SAR and RAR'!$Y$16 -> 193.666987 | M92: =M90*(1-'Hypothetical SAR and RAR'!$Y$16)+M91*'Hypothetical SAR and RAR'!$Y$16 -> 194.1050733 | N92: =N90*(1-'Hypothetical SAR and RAR'!$Y$16)+N91*'Hypothetical SAR and RAR'!$Y$16 -> 194.1050733 | O92: =$N92/L92-1 -> 0.0022620598 | P92: 0
B94: Small Commercial Monthly Average Bills
D95: 2023-01-01 | E95: 2023-09-01 | F95: Proposed | G95: =$G$26 -> % Change over 01/1/2024 | H95: =$H$26 -> % Change over 03/1/2024
B96: NAICS 531 | D96: =('Hypo. Bill Impact (B-1)'!C33*4+'Hypo. Bill Impact (B-1)'!D33*8)/12 -> 443.3100146 | E96: =('Hypo. Bill Impact (B-1)'!E33*4+'Hypo. Bill Impact (B-1)'!F33*8)/12 -> 444.4598148 | F96: =('Hypo. Bill Impact (B-1)'!G33*4+'Hypo. Bill Impact (B-1)'!H33*8)/12 -> 444.4598148 | G96: =$F96/D96-1 -> 0.002593670679 | H96: =$F96/E96-1 -> 0
B97: NAICS 621 | D97: =('Hypo. Bill Impact (B-1)'!C34*4+'Hypo. Bill Impact (B-1)'!D34*8)/12 -> 529.5192953 | E97: =('Hypo. Bill Impact (B-1)'!E34*4+'Hypo. Bill Impact (B-1)'!F34*8)/12 -> 530.8961987 | F97: =('Hypo. Bill Impact (B-1)'!G34*4+'Hypo. Bill Impact (B-1)'!H34*8)/12 -> 530.8961987 | G97: 0.002600289456 | H97: 0
B98: NAICS 722 | D98: =('Hypo. Bill Impact (B-1)'!C35*4+'Hypo. Bill Impact (B-1)'!D35*8)/12 -> 1327.63767 | E98: =('Hypo. Bill Impact (B-1)'!E35*4+'Hypo. Bill Impact (B-1)'!F35*8)/12 -> 1331.109581 | F98: =('Hypo. Bill Impact (B-1)'!G35*4+'Hypo. Bill Impact (B-1)'!H35*8)/12 -> 1331.109581 | G98: 0.002615104432 | H98: 0
B100: Small Commercial Monthly Average Bills - Summer
D101: 2023-01-01 | E101: 2023-09-01 | F101: Proposed | G101: =$G$26 -> % Change over 01/1/2024 | H101: =$H$26 -> % Change over 03/1/2024
B102: NAICS 531 | D102: ='Hypo. Bill Impact (B-1)'!C33 -> 491.8738884 | E102: ='Hypo. Bill Impact (B-1)'!E33 -> 493.0889378 | F102: ='Hypo. Bill Impact (B-1)'!G33 -> 493.0889378 | G102: =$F102/D102-1 -> 0.002470245619 | H102: =$F102/E102-1 -> 0
B103: NAICS 621 | D103: ='Hypo. Bill Impact (B-1)'!C34 -> 637.9684803 | E103: ='Hypo. Bill Impact (B-1)'!E34 -> 639.5526295 | F103: ='Hypo. Bill Impact (B-1)'!G34 -> 639.5526295 | G103: 0.002483115209 | H103: 0
B104: NAICS 722 | D104: ='Hypo. Bill Impact (B-1)'!C35 -> 1626.605326 | E104: ='Hypo. Bill Impact (B-1)'!E35 -> 1630.649337 | F104: ='Hypo. Bill Impact (B-1)'!G35 -> 1630.649337 | G104: 0.0024861657 | H104: 0
B106: Small Commercial Monthly Average Bills - Winter
D107: 2023-01-01 | E107: 2023-09-01 | F107: Proposed | G107: =$G$26 -> % Change over 01/1/2024 | H107: =$H$26 -> % Change over 03/1/2024
B108: NAICS 531 | D108: ='Hypo. Bill Impact (B-1)'!D33 -> 419.0280777 | E108: ='Hypo. Bill Impact (B-1)'!F33 -> 420.1452533 | F108: ='Hypo. Bill Impact (B-1)'!H33 -> 420.1452533 | G108: =$F108/D108-1 -> 0.002666111606 | H108: =$F108/E108-1 -> 0
B109: NAICS 621 | D109: ='Hypo. Bill Impact (B-1)'!D34 -> 475.2947028 | E109: ='Hypo. Bill Impact (B-1)'!F34 -> 476.5679833 | F109: ='Hypo. Bill Impact (B-1)'!H34 -> 476.5679833 | G109: 0.002678928536 | H109: 0
B110: NAICS 722 | D110: ='Hypo. Bill Impact (B-1)'!D35 -> 1178.153842 | E110: ='Hypo. Bill Impact (B-1)'!F35 -> 1181.339704 | F110: ='Hypo. Bill Impact (B-1)'!H35 -> 1181.339704 | G110: 0.002704113363 | H110: 0

Sheet Hypothetical SAR and RAR (hidden)
C3: Revenue Change
B4: Generation | C4: ='Hypothetical Summary'!D8 -> 0 | F4: Allocation
B5: NSGC | C5: ='Hypothetical Summary'!D9 -> 0 | F5: Generation | G5: Distribution | H5: NDC | I5: PPPC | J5: NSGC | K5: Transmission | L5: CTC | M5: ECRA | N5: FERC BAs | O5: GHG Rev | P5: DWRBC | Q5: WHC | R5: PCIA | S5: Distribution (Wildfire)
B6: Distribution | C6: ='Hypothetical Summary'!D10 -> 0 | E6: Residential | F6: ='SAR and RAR'!G6 -> 0.4196355755 | G6: ='SAR and RAR'!H6 -> 0.4124864534 | H6: ='SAR and RAR'!I6 -> 0.3437458405 | I6: ='SAR and RAR'!J6 -> 0.3274444937 | J6: ='SAR and RAR'!K6 -> 0.4726899375 | K6: ='SAR and RAR'!L6 -> 0.4677839446 | L6: ='SAR and RAR'!M6 -> 0.3697107556 | M6: ='SAR and RAR'!N6 -> 0.3512795981 | N6: ='SAR and RAR'!O6 -> 0.3477778154 | O6: ='SAR and RAR'!P6 -> 0.8631862685 | P6: ='SAR and RAR'!Q6 -> 0.2663107175 | Q6: ='SAR and RAR'!R6 -> 0.3339427026 | R6: ='SAR and RAR'!S6 -> 0.3819272913 | S6: ='SAR and RAR'!T6 -> 0.4154888557
B7: GHG Revenue | C7: ='Hypothetical Summary'!D11 -> 0
B8: CTC | C8: ='Hypothetical Summary'!D12 -> 0 | F8: Revenue Change ($000) - System
B9: NDC | C9: ='Hypothetical Summary'!D13 -> 0 | F9: Generation | G9: Distribution | H9: NDC | I9: Public Purpose Program | J9: NSGC | K9: Transmission | L9: CTC | M9: ECRA | N9: FERC BAs | O9: GHG Revenue | P9: DWR BC | Q9: WHC | R9: PCIA | S9: Distribution (Wildfire) | T9: Total
B10: Public Purpose Program | C10: ='Hypothetical Summary'!D14 -> 0 | E10: Residential | F10: =F6*F11 -> 0 | G10: 0 | H10: 0 | I10: 0 | J10: 0 | K10: 0 | L10: 0 | M10: 0 | N10: 0 | O10: 0 | P10: 0 | Q10: =Q6*Q11 -> 0 | R10: =R6*R11 -> 0 | S10: =S6*S11 -> 0 | T10: =SUM(F10:S10) -> 0
B11: DWR BC | C11: ='Hypothetical Summary'!D15 -> 0 | E11: Total System | F11: =VLOOKUP(F9,$B$4:$C$17,2,FALSE) -> 0 | G11: =VLOOKUP(G9,$B$4:$C$17,2,FALSE) -> 0 | H11: 0 | I11: 0 | J11: 0 | K11: 0 | L11: 0 | M11: 0 | N11: 0 | O11: 0 | P11: 0 | Q11: 0 | R11: 0 | S11: 0 | T11: =SUM(F11:S11) -> 0
B12: ECRA | C12: ='Hypothetical Summary'!D16 -> 0
B13: Transmission | C13: ='Hypothetical Summary'!D17 -> 0
B14: FERC BAs | C14: ='Hypothetical Summary'!D18 -> 0
B15: PCIA | C15: ='Hypothetical Summary'!D19 -> 0
B16: WHC | C16: ='Hypothetical Summary'!D20 -> 0 | X16: % of CARE Sales | Y16: 0.2945356527
B17: Distribution (Wildfire) | C17: ='Hypothetical Summary'!D21 -> 0
B18: Total | C18: =SUM(C4:C17) -> 0 | F18: Revenue Split - Bundled | T18: Bundled Revenue Change | X18: CARE Line Item Discount | Y18: 0.2933034269
F19: Generation | G19: Distribution | H19: NDC | I19: PPPC | J19: NSGC | K19: Transmission | L19: CTC | M19: ECRA | N19: FERC BAs | O19: GHG Rev | P19: DWRBC | Q19: WHC | R19: PCIA | S19: Distribution (Wildfire) | T19: Total | U19: CARE Adj | X19: CARE Discount | Y19: =SUM(G10:N10,R10:S10,F10/G20)*Y16*Y18 -> 0
E20: Residential | F20: 1 | G20: =$E29/$O29 -> 0.4232312814 | H20: =$E29/$O29 -> 0.4232312814 | I20: 0.4232312814 | J20: 0.4232312814 | K20: 0.4232312814 | L20: 0.4232312814 | M20: 0.4232312814 | N20: 0.4232312814 | O20: 0.4232312814 | P20: 0.4232312814 | Q20: =$E29/$O29 -> 0.4232312814 | R20: 0.4232312814 | S20: 0.4232312814 | T20: =SUMPRODUCT(F10:S10,F20:S20) -> 0 | U20: =T20-((Y19+Y22)*G20) -> 0 | X20: non-CARE Sales | Y20: 19517886.53
E21: Total System | F21: 1 | G21: =$E30/$O30 -> 0.374635273 | H21: =$E30/$O30 -> 0.374635273 | I21: 0.374635273 | J21: 0.374635273 | K21: 0.374635273 | L21: 0.374635273 | M21: 0.374635273 | N21: 0.374635273 | O21: 0.374635273 | P21: 0.374635273 | Q21: =$E30/$O30 -> 0.374635273 | R21: 0.374635273 | S21: 0.374635273 | T21: =SUMPRODUCT(F11:S11,F21:S21) -> 0 | U21: =T21 -> 0 | X21: non-exempt Sales | Y21: 69915155.68
X22: Res CARE Surcharge | Y22: =Y19*Y20/Y21 -> 0
E23: ="Notes: Allocation and bundled/unbundled split based on "&'Hypothetical Summary'!L5&" sales forecast" -> Notes: Allocation and bundled/unbundled split based on 2024 sales forecast
E27: Bundled | O27: System (Bundled and Unbundled)
E28: ='Hypothetical Summary'!L5&" Sales" -> 2024 Sales | F28: =TEXT(Summary!L3,"mm/dd/yyyy")&" Avg Rates" -> 03/01/2024 Avg Rates | G28: Proposed Avg Rates | H28: % Change | O28: ='Hypothetical Summary'!L5&" Sales" -> 2024 Sales | P28: =F28 -> 03/01/2024 Avg Rates | Q28: Proposed Avg Rates | R28: % Change
D29: Residential | E29: 11709422.54 | F29: 37.88846517 | G29: =U20/E29*100+F29 -> 37.88846517 | H29: =G29/F29-1 -> 0 | N29: Residential | O29: 27666722.78 | P29: 29.75450935 | Q29: =T10/O29*100+P29 -> 29.75450935 | R29: =Q29/P29-1 -> 0
D30: Total System | E30: 29392636.88 | F30: 36.61409129 | G30: =U21/E30*100+F30 -> 36.61409129 | H30: =G30/F30-1 -> 0 | N30: Total System | O30: 78456672.41 | P30: 26.42580918 | Q30: =T11/O30*100+P30 -> 26.42580918 | R30: =Q30/P30-1 -> 0

Sheet Hypothetical Res Bill Impact (hidden)
E3: Schedule E-1 | P3: Schedule EL-1
E4: ='Hypothetical Summary'!$L$5 -> 2024 | F4: ='Hypothetical Summary'!$L$4 -> 2024-03-01 | G4: ='Hypothetical Summary'!$L$4 -> 2024-03-01 | H4: Proposed | I4: Proposed | P4: ='Hypothetical Summary'!$L$5 -> 2024 | Q4: ='Hypothetical Summary'!$L$4 -> 2024-03-01 | R4: ='Hypothetical Summary'!$L$4 -> 2024-03-01 | S4: Proposed | T4: Proposed
E5: Sales Forecast | F5: Rates | G5: Revenue | H5: Rates | I5: Revenue | P5: Sales Forecast | Q5: Rates | R5: Revenue | S5: Rates | T5: Revenue
D7: Baseline - Summer | E7: ='Res Bill Impact'!Y39 -> 1534680927 | F7: 0.4210107155 | G7: =F7*E7 -> 646117115.3 | H7: =(Y10/SUM(SUM(E7:E8),F9/F7*SUM(E9:E10),F11/F7*SUM(E11:E12),SUM(P7:P8)*(1+(Q7/F7-1)),SUM(P9:P10)*(1+(Q9/F9-1))*F9/F7,SUM(P11:P12)*(1+(Q11/F11-1))*F11/F7)) -> 0.4210107155 | I7: =E7*H7 -> 646117115.3 | O7: Baseline - Summer | P7: ='Res Bill Impact'!Y50 -> 1302723574 | Q7: 0.2737200951 | R7: =Q7*P7 -> 356581620.6 | S7: =H7*(1+(Q7/F7-1)) -> 0.2737200951 | T7: =P7*S7 -> 356581620.6 | X7: Bundled Residential Rev Req
D8: - Winter | E8: ='Res Bill Impact'!Y40 -> 2163342895 | F8: 0.4210107155 | G8: 910790540 | H8: =H7 -> 0.4210107155 | I8: =E8*H8 -> 910790540 | O8: - Winter | P8: ='Res Bill Impact'!Y51 -> 1671858632 | Q8: 0.2737200951 | R8: =Q8*P8 -> 457621303.6 | S8: =H8*(1+(Q8/F8-1)) -> 0.2737200951 | T8: =P8*S8 -> 457621303.6 | X8: Current | Y8: =SUM(G7:G12)+SUM(R7:R12) -> 4665898290
D9: 101% - 400% of Baseline - Summer | E9: ='Res Bill Impact'!Y41 -> 1444163839 | F9: 0.5270787295 | G9: 761188041.5 | H9: =F9/F$7*H$7 -> 0.5270787295 | I9: 761188041.5 | O9: 101% - 400% of Baseline - Summer | P9: ='Res Bill Impact'!Y52 -> 1052520222 | Q9: 0.3426802089 | R9: 360677849.6 | S9: 0.3426802089 | T9: 360677849.6 | X9: Change | Y9: =('Hypothetical SAR and RAR'!U20-('Hypothetical SAR and RAR'!O10*'Hypothetical SAR and RAR'!O20))*1000 -> 0
D10: - Winter | E10: ='Res Bill Impact'!Y42 -> 1640323344 | F10: 0.5270787295 | G10: 864579544.2 | H10: =H9 -> 0.5270787295 | I10: 864579544.2 | O10: - Winter | P10: ='Res Bill Impact'!Y53 -> 899795983.8 | Q10: 0.3426802089 | R10: 308342275.7 | S10: 0.3426802089 | T10: 308342275.7 | X10: Proposed | Y10: =Y8+Y9 -> 4665898290
D11: 401% of Baseline - Summer | E11: ='Res Bill Impact'!Y43 -> 0 | F11: 0.5270787295 | G11: 0 | H11: =F11/F$7*H$7 -> 0.5270787295 | I11: 0 | O11: 401% of Baseline - Summer | P11: 0 | Q11: 0.3426802089 | R11: 0 | S11: 0.3426802089 | T11: 0
D12: - Winter | E12: ='Res Bill Impact'!Y44 -> 0 | F12: 0.5270787295 | G12: 0 | H12: =H11 -> 0.5270787295 | I12: 0 | O12: - Winter | P12: 0 | Q12: 0.3426802089 | R12: 0 | S12: 0.3426802089 | T12: 0
P19: ='Res Bill Impact'!P19 -> 2023 Recorded Average Monthly Usage (kWh) - Bundled/Basic/non-medical/non-FERA | X19: 2023 Recorded Average Monthly Usage (kWh) - Bundled/All Electric/non-medical/non-FERA
B20: SCHEDULE E-1 RATES ($/kWh) | H20: MONTHLY BASELINE QUANTITIES -BASIC (kWh) | L20: MONTHLY BASELINE QUANTITIES -ALL-ELECTRIC (kWh) | P20: Climate Zone | Q20: Summer | R20: Winter | S20: Summer | T20: Winter | U20: Sample Population Weight | X20: Climate Zone | Y20: Summer | Z20: Winter | AA20: Summer | AB20: Winter | AC20: Sample Population Weight
B21: Rates | C21: 2024-01-01 | D21: =F4 -> 2024-03-01 | E21: Proposed | H21: Climate Zone | I21: Summer 2023 | J21: Winter 2023 | L21: Climate Zone | M21: Summer 2023 | N21: Winter 2023 | Q21: Non-CARE | S21: CARE | U21: Non-CARE | V21: CARE | Y21: Non-CARE | AA21: CARE | AC21: Non-CARE | AD21: CARE
B22: Tier 1 | C22: 0.42009 | D22: =F7 -> 0.4210107155 | E22: =H7 -> 0.4210107155 | H22: P - Hot | I22: =13.5*$R$33 -> 410.90625 | J22: =11*$R$33 -> 334.8125 | L22: P - Hot | M22: =15.2*$R$33 -> 462.65 | N22: =26*$R$33 -> 791.375 | P22: P - Hot | Q22: ='Res Bill Impact'!Q22 -> 515.75 | R22: ='Res Bill Impact'!R22 -> 438 | S22: ='Res Bill Impact'!S22 -> 555.75 | T22: ='Res Bill Impact'!T22 -> 522 | U22: ='Res Bill Impact'!U22 -> 0.04962349349 | V22: ='Res Bill Impact'!V22 -> 0.02696833647 | X22: P - Hot | Y22: ='Res Bill Impact'!Y22 -> 603.25 | Z22: ='Res Bill Impact'!Z22 -> 622.25 | AA22: ='Res Bill Impact'!AA22 -> 662.25 | AB22: ='Res Bill Impact'!AB22 -> 778.625 | AC22: ='Res Bill Impact'!AC22 -> 0.2176560094 | AD22: ='Res Bill Impact'!AD22 -> 0.2082056568
B23: Tier 2 | C23: 0.52566 | D23: =F9 -> 0.5270787295 | E23: =H9 -> 0.5270787295 | H23: Q - Warm | I23: =9.8*$R$33 -> 298.2875 | J23: =11*$R$33 -> 334.8125 | L23: Q - Warm | M23: =8.5*$R$33 -> 258.71875 | N23: =26*$R$33 -> 791.375 | P23: Q - Warm | Q23: ='Res Bill Impact'!Q23 -> 391 | R23: ='Res Bill Impact'!R23 -> 463.25 | S23: ='Res Bill Impact'!S23 -> 378.25 | T23: ='Res Bill Impact'!T23 -> 484.5 | U23: ='Res Bill Impact'!U23 -> 0.0002951672071 | V23: ='Res Bill Impact'!V23 -> 9.34075787e-05 | X23: Q - Warm | Y23: ='Res Bill Impact'!Y23 -> 506.75 | Z23: ='Res Bill Impact'!Z23 -> 641.125 | AA23: ='Res Bill Impact'!AA23 -> 504.5 | AB23: ='Res Bill Impact'!AB23 -> 698.375 | AC23: ='Res Bill Impact'!AC23 -> 0.001402434553 | AD23: ='Res Bill Impact'!AD23 -> 0.0005826883013
B24: HUS | C24: 0.52566 | D24: =F11 -> 0.5270787295 | E24: =H11 -> 0.5270787295 | H24: R - Hot | I24: =17.7*$R$33 -> 538.74375 | J24: =10.4*$R$33 -> 316.55 | L24: R - Hot | M24: =19.9*$R$33 -> 605.70625 | N24: =26.7*$R$33 -> 812.68125 | P24: R - Hot | Q24: ='Res Bill Impact'!Q24 -> 755.5 | R24: ='Res Bill Impact'!R24 -> 425.875 | S24: ='Res Bill Impact'!S24 -> 813.75 | T24: ='Res Bill Impact'!T24 -> 453 | U24: ='Res Bill Impact'!U24 -> 0.2834304554 | V24: ='Res Bill Impact'!V24 -> 0.3761012847 | X24: R - Hot | Y24: ='Res Bill Impact'!Y24 -> 758 | Z24: ='Res Bill Impact'!Z24 -> 587.25 | AA24: ='Res Bill Impact'!AA24 -> 831.5 | AB24: ='Res Bill Impact'!AB24 -> 671.125 | AC24: ='Res Bill Impact'!AC24 -> 0.2492025372 | AD24: ='Res Bill Impact'!AD24 -> 0.3246042331
H25: S - Hot | I25: =15*$R$33 -> 456.5625 | J25: =10.2*$R$33 -> 310.4625 | L25: S - Hot | M25: =17.8*$R$33 -> 541.7875 | N25: =23.7*$R$33 -> 721.36875 | P25: S - Hot | Q25: ='Res Bill Impact'!Q25 -> 631 | R25: ='Res Bill Impact'!R25 -> 416.125 | S25: ='Res Bill Impact'!S25 -> 676.5 | T25: ='Res Bill Impact'!T25 -> 444.375 | U25: ='Res Bill Impact'!U25 -> 0.363231375 | V25: ='Res Bill Impact'!V25 -> 0.3087773627 | X25: S - Hot | Y25: ='Res Bill Impact'!Y25 -> 657 | Z25: ='Res Bill Impact'!Z25 -> 569 | AA25: ='Res Bill Impact'!AA25 -> 674.5 | AB25: ='Res Bill Impact'!AB25 -> 605.875 | AC25: ='Res Bill Impact'!AC25 -> 0.2447789103 | AD25: ='Res Bill Impact'!AD25 -> 0.2485619458
B26: SCHEDULE EL-1 ($/kWh) | H26: T - Cool | I26: =6.5*$R$33 -> 197.84375 | J26: =7.5*$R$33 -> 228.28125 | L26: T - Cool | M26: =7.1*$R$33 -> 216.10625 | N26: =12.9*$R$33 -> 392.64375 | P26: T - Cool | Q26: ='Res Bill Impact'!Q26 -> 244.5 | R26: ='Res Bill Impact'!R26 -> 293.625 | S26: ='Res Bill Impact'!S26 -> 257 | T26: ='Res Bill Impact'!T26 -> 310.875 | U26: ='Res Bill Impact'!U26 -> 0.04795066212 | V26: ='Res Bill Impact'!V26 -> 0.01989300501 | X26: T - Cool | Y26: ='Res Bill Impact'!Y26 -> 232 | Z26: ='Res Bill Impact'!Z26 -> 314.5 | AA26: ='Res Bill Impact'!AA26 -> 247 | AB26: ='Res Bill Impact'!AB26 -> 337.375 | AC26: ='Res Bill Impact'!AC26 -> 0.03956148713 | AD26: ='Res Bill Impact'!AD26 -> 0.02584325099
B27: Rates | C27: =$C$21 -> 2024-01-01 | D27: =D21 -> 2024-03-01 | E27: Proposed | H27: V - Cool | I27: =7.1*$R$33 -> 216.10625 | J27: =8.1*$R$33 -> 246.54375 | L27: V - Cool | M27: =10.4*$R$33 -> 316.55 | N27: =19.1*$R$33 -> 581.35625 | P27: V - Cool | Q27: ='Res Bill Impact'!Q27 -> 270.75 | R27: ='Res Bill Impact'!R27 -> 333.625 | S27: ='Res Bill Impact'!S27 -> 284 | T27: ='Res Bill Impact'!T27 -> 355.25 | U27: ='Res Bill Impact'!U27 -> 0.001594858574 | V27: ='Res Bill Impact'!V27 -> 0.0009270526608 | X27: V - Cool | Y27: ='Res Bill Impact'!Y27 -> 370.75 | Z27: ='Res Bill Impact'!Z27 -> 495.125 | AA27: ='Res Bill Impact'!AA27 -> 404.25 | AB27: ='Res Bill Impact'!AB27 -> 570 | AC27: ='Res Bill Impact'!AC27 -> 0.001800249322 | AD27: ='Res Bill Impact'!AD27 -> 0.001073142022
B28: Tier 1 | C28: 0.27312 | D28: =Q7 -> 0.2737200951 | E28: =S7 -> 0.2737200951 | H28: W - Hot | I28: =19.2*$R$33 -> 584.4 | J28: =9.8*$R$33 -> 298.2875 | L28: W - Hot | M28: =22.4*$R$33 -> 681.8 | N28: =19*$R$33 -> 578.3125 | P28: W - Hot | Q28: ='Res Bill Impact'!Q28 -> 808.75 | R28: ='Res Bill Impact'!R28 -> 385.75 | S28: ='Res Bill Impact'!S28 -> 875 | T28: ='Res Bill Impact'!T28 -> 423.25 | U28: ='Res Bill Impact'!U28 -> 0.130063399 | V28: ='Res Bill Impact'!V28 -> 0.2350968091 | X28: W - Hot | Y28: ='Res Bill Impact'!Y28 -> 830.25 | Z28: ='Res Bill Impact'!Z28 -> 473.75 | AA28: ='Res Bill Impact'!AA28 -> 892.5 | AB28: ='Res Bill Impact'!AB28 -> 508.5 | AC28: ='Res Bill Impact'!AC28 -> 0.0648328078 | AD28: ='Res Bill Impact'!AD28 -> 0.1240965037
B29: Tier 2 | C29: 0.34175 | D29: =Q9 -> 0.3426802089 | E29: =S9 -> 0.3426802089 | H29: X - Warm | I29: =9.8*$R$33 -> 298.2875 | J29: =9.7*$R$33 -> 295.24375 | L29: X - Warm | M29: =8.5*$R$33 -> 258.71875 | N29: =14.6*$R$33 -> 444.3875 | P29: X - Warm | Q29: ='Res Bill Impact'!Q29 -> 406.5 | R29: ='Res Bill Impact'!R29 -> 388.625 | S29: ='Res Bill Impact'!S29 -> 379.75 | T29: ='Res Bill Impact'!T29 -> 381.375 | U29: ='Res Bill Impact'!U29 -> 0.1041273454 | V29: ='Res Bill Impact'!V29 -> 0.02848018144 | X29: X - Warm | Y29: ='Res Bill Impact'!Y29 -> 316.25 | Z29: ='Res Bill Impact'!Z29 -> 367.625 | AA29: ='Res Bill Impact'!AA29 -> 319.75 | AB29: ='Res Bill Impact'!AB29 -> 394.5 | AC29: ='Res Bill Impact'!AC29 -> 0.06214434993 | AD29: ='Res Bill Impact'!AD29 -> 0.03583240245
B30: HUS | C30: 0.34175 | D30: =Q11 -> 0.3426802089 | E30: =S12 -> 0.3426802089 | H30: Y - Warm | I30: =10.5*$R$33 -> 319.59375 | J30: =11.1*$R$33 -> 337.85625 | L30: Y - Warm | M30: =12*$R$33 -> 365.25 | N30: =24*$R$33 -> 730.5 | P30: Y - Warm | Q30: ='Res Bill Impact'!Q30 -> 356.25 | R30: ='Res Bill Impact'!R30 -> 354 | S30: ='Res Bill Impact'!S30 -> 481.5 | T30: ='Res Bill Impact'!T30 -> 538.375 | U30: ='Res Bill Impact'!U30 -> 0.01814594161 | V30: ='Res Bill Impact'!V30 -> 0.003625337754 | X30: Y - Warm | Y30: ='Res Bill Impact'!Y30 -> 377.5 | Z30: ='Res Bill Impact'!Z30 -> 416.5 | AA30: ='Res Bill Impact'!AA30 -> 564.5 | AB30: ='Res Bill Impact'!AB30 -> 725.375 | AC30: ='Res Bill Impact'!AC30 -> 0.106307289 | AD30: ='Res Bill Impact'!AD30 -> 0.030740468
H31: Z - Cool | I31: =5.9*$R$33 -> 179.58125 | J31: =7.8*$R$33 -> 237.4125 | L31: Z - Cool | M31: =6.7*$R$33 -> 203.93125 | N31: =15.7*$R$33 -> 477.86875 | P31: Z - Cool | Q31: ='Res Bill Impact'!Q31 -> 214.25 | R31: ='Res Bill Impact'!R31 -> 225 | S31: ='Res Bill Impact'!S31 -> 293.5 | T31: ='Res Bill Impact'!T31 -> 344.375 | U31: ='Res Bill Impact'!U31 -> 0.001537302054 | V31: ='Res Bill Impact'!V31 -> 3.722256896e-05 | X31: Z - Cool | Y31: ='Res Bill Impact'!Y31 -> 210 | Z31: ='Res Bill Impact'!Z31 -> 203.625 | AA31: ='Res Bill Impact'!AA31 -> 375.5 | AB31: ='Res Bill Impact'!AB31 -> 441.625 | AC31: ='Res Bill Impact'!AC31 -> 0.01231392535 | AD31: ='Res Bill Impact'!AD31 -> 0.0004597088608
Q33: Daily to Monthly Conversion Factor | R33: =365.25/12 -> 30.4375
C34: Basic NON-CARE | K34: All-Electric NON-CARE
C35: =$C$21 -> 2024-01-01 | E35: =D27 -> 2024-03-01 | G35: =E21 -> Proposed | K35: =$C$21 -> 2024-01-01 | M35: =$D$21 -> 2024-03-01 | O35: =$E$21 -> Proposed
C36: Summer | D36: Winter | E36: Summer | F36: Winter | G36: Summer | H36: Winter | K36: Summer | L36: Winter | M36: Summer | N36: Winter | O36: Summer | P36: Winter
B37: P - Hot | C37: =IF(I22<Q22,$C$22*I22+$C$23*(Q22-I22),$C$22*Q22) -> 227.7297722 | D37: =IF(J22<R22,$C$22*J22+$C$23*(R22-J22),$C$22*R22) -> 194.8929244 | E37: =IF(I22<Q22,$D$22*I22+$D$23*(Q22-I22),$D$22*Q22) -> 228.2568449 | F37: =IF(J22<R22,$D$22*J22+$D$23*(R22-J22),$D$22*R22) -> 195.3475866 | G37: =IF(I22<Q22,$E$22*I22+$E$23*(Q22-I22),$E$22*Q22) -> 228.2568449 | H37: =IF(J22<R22,$E$22*J22+$E$23*(R22-J22),$E$22*R22) -> 195.3475866 | J37: P - Hot | K37: =IF(M22<Y22,$C$22*M22+$C$23*(Y22-M22),$C$22*Y22) -> 268.2624345 | L37: =IF(N22<Z22,$C$22*N22+$C$23*(Z22-N22),$C$22*Z22) -> 261.4010025 | M37: =IF(M22<Y22,$D$22*M22+$D$23*(Y22-M22),$D$22*Y22) -> 268.8878769 | N37: =IF(N22<Z22,$D$22*N22+$D$23*(Z22-N22),$D$22*Z22) -> 261.9739177 | O37: =IF(M22<Y22,$E$22*M22+$E$23*(Y22-M22),$E$22*Y22) -> 268.8878769 | P37: =IF(N22<Z22,$E$22*N22+$E$23*(Z22-N22),$E$22*Z22) -> 261.9739177
B38: Q - Warm | C38: =IF(I23<Q23,$C$22*I23+$C$23*(Q23-I23),$C$22*Q23) -> 174.0428486 | D38: =IF(J23<R23,$C$22*J23+$C$23*(R23-J23),$C$22*R23) -> 208.1658394 | E38: =IF(I23<Q23,$D$22*I23+$D$23*(Q23-I23),$D$22*Q23) -> 174.4490205 | F38: =IF(J23<R23,$D$22*J23+$D$23*(R23-J23),$D$22*R23) -> 208.6563245 | G38: =IF(I23<Q23,$E$22*I23+$E$23*(Q23-I23),$E$22*Q23) -> 174.4490205 | H38: =IF(J23<R23,$E$22*J23+$E$23*(R23-J23),$E$22*R23) -> 208.6563245 | J38: Q - Warm | K38: =IF(M23<Y23,$C$22*M23+$C$23*(Y23-M23),$C$22*Y23) -> 239.0652666 | L38: =IF(N23<Z23,$C$22*N23+$C$23*(Z23-N23),$C$22*Z23) -> 269.3302013 | M38: =IF(M23<Y23,$D$22*M23+$D$23*(Y23-M23),$D$22*Y23) -> 239.6553622 | N38: =IF(N23<Z23,$D$22*N23+$D$23*(Z23-N23),$D$22*Z23) -> 269.920495 | O38: =IF(M23<Y23,$E$22*M23+$E$23*(Y23-M23),$E$22*Y23) -> 239.6553622 | P38: =IF(N23<Z23,$E$22*N23+$E$23*(Z23-N23),$E$22*Z23) -> 269.920495
B39: R - Hot | C39: 340.2609523 | D39: 190.447269 | E39: 341.0645005 | F39: 190.8938241 | G39: 341.0645005 | H39: 190.8938241 | J39: R - Hot | K39: 334.5058712 | L39: 246.6978525 | M39: 335.279618 | N39: 247.2385427 | O39: 335.279618 | P39: 247.2385427
B40: S - Hot | C40: 283.4921569 | D40: 185.9647414 | E40: 284.1600007 | F40: 186.4004955 | G40: 284.1600007 | H40: 186.4004955 | J40: S - Hot | K40: 288.1621136 | L40: 239.03121 | M40: 288.8244012 | N40: 239.5550971 | O40: 288.8244012 | P40: 239.5550971
B41: T - Cool | C41: 107.6375053 | D41: 130.2472659 | E41: 107.8858557 | F41: 130.5501531 | G41: 107.8858557 | H41: 130.5501531 | J41: T - Cool | K41: 99.13878319 | L41: 132.118305 | M41: 99.3603045 | N41: 132.40787 | O41: 99.3603045 | P41: 132.40787
B42: V - Cool | C42: 119.5081082 | D42: 149.3456938 | E42: 119.7846053 | F42: 149.6962352 | G42: 119.7846053 | H42: 149.6962352 | J42: V - Cool | K42: 161.4702615 | L42: 207.9970613 | M42: 161.8386091 | N42: 208.4529305 | O42: 161.8386091 | P42: 208.4529305
B43: W - Hot | C43: 363.432417 | D43: 171.2831336 | E43: 364.2887751 | F43: 171.6818572 | G43: 364.2887751 | H43: 171.6818572 | J43: W - Hot | K43: 364.451589 | L43: 199.0176375 | M43: 365.2899432 | N43: 199.4538265 | O43: 365.2899432 | P43: 199.4538265
B44: X - Warm | C44: 182.1905786 | D44: 173.1157348 | E44: 182.6187408 | F44: 173.5200531 | G44: 182.6187408 | H44: 173.5200531 | J44: X - Warm | K44: 138.9270366 | L44: 154.4355863 | M44: 139.2468642 | N44: 154.7740643 | O44: 139.2468642 | P44: 154.7740643
B45: Y - Warm | C45: 153.5268628 | D45: 150.4161557 | E45: 153.873123 | F45: 150.7501288 | G45: 153.873123 | H45: 150.7501288 | J45: Y - Warm | K45: 159.8772075 | L45: 174.967485 | M45: 160.2308783 | N45: 175.350963 | O45: 160.2308783 | P45: 175.350963
B46: Z - Cool | C46: 93.66426244 | D46: 94.52025 | E46: 93.87879126 | F46: 94.72741099 | G46: 93.87879126 | H46: 94.72741099 | J46: Z - Cool | K46: 88.85957794 | L46: 85.54082625 | M46: 89.05595052 | N46: 85.72830695 | O46: 89.05595052 | P46: 85.72830695
B47: ALL | C47: =SUMPRODUCT(C37:C46,$U$22:$U$31) -> 285.287726 | D47: =SUMPRODUCT(D37:D46,$U$22:$U$31) -> 180.9216217 | E47: =SUMPRODUCT(E37:E46,$U$22:$U$31) -> 285.9592597 | F47: =SUMPRODUCT(F37:F46,$U$22:$U$31) -> 181.3445967 | G47: =SUMPRODUCT(G37:G46,$U$22:$U$31) -> 285.9592597 | H47: 181.3445967 | J47: ALL | K47: =SUMPRODUCT(K37:K46,$AC$22:$AC$31) -> 267.1849617 | L47: =SUMPRODUCT(L37:L46,$AC$22:$AC$31) -> 225.0158238 | M47: 267.8005253 | N47: 225.5089933 | O47: 267.8005253 | P47: 225.5089933
C50: Basic CARE | K50: All-Electric CARE
C51: =$C$21 -> 2024-01-01 | E51: =D27 -> 2024-03-01 | G51: =E27 -> Proposed | K51: =$C$21 -> 2024-01-01 | M51: =$D$21 -> 2024-03-01 | O51: =$E$21 -> Proposed
C52: Summer | D52: Winter | E52: Summer | F52: Winter | G52: Summer | H52: Winter | K52: Summer | L52: Winter | M52: Summer | N52: Winter | O52: Summer | P52: Winter
B53: P - Hot | C53: =IF(I22<S22,$C$28*I22+$C$29*(S22-I22),$C$28*S22) -> 161.7270666 | D53: =IF(J22<T22,$C$28*J22+$C$29*(T22-J22),$C$28*T22) -> 155.4153181 | E53: =IF(I22<S22,$D$28*I22+$D$29*(S22-I22),$D$28*S22) -> 162.1083843 | F53: =IF(J22<T22,$D$28*J22+$D$29*(T22-J22),$D$28*T22) -> 155.7903609 | G53: =IF(I22<S22,$E$28*I22+$E$29*(S22-I22),$E$28*S22) -> 162.1083843 | H53: =IF(J22<T22,$E$28*J22+$E$29*(T22-J22),$E$28*T22) -> 155.7903609 | J53: P - Hot | K53: =IF(M22<AA22,$C$28*M22+$C$29*(AA22-M22),$C$28*AA22) -> 194.572268 | L53: =IF(N22<AB22,$C$28*N22+$C$29*(AB22-N22),$C$28*AB22) -> 212.65806 | M53: =IF(M22<AA22,$D$28*M22+$D$29*(AA22-M22),$D$28*AA22) -> 195.0355717 | N53: =IF(N22<AB22,$D$28*N22+$D$29*(AB22-N22),$D$28*AB22) -> 213.125309 | O53: =IF(M22<AA22,$E$28*M22+$E$29*(AA22-M22),$E$28*AA22) -> 195.0355717 | P53: =IF(N22<AB22,$E$28*N22+$E$29*(AB22-N22),$E$28*AB22) -> 213.125309
B54: Q - Warm | C54: =IF(I23<S23,$C$28*I23+$C$29*(S23-I23),$C$28*S23) -> 108.7954664 | D54: =IF(J23<T23,$C$28*J23+$C$29*(T23-J23),$C$28*T23) -> 142.5996931 | E54: =IF(I23<S23,$D$28*I23+$D$29*(S23-I23),$D$28*S23) -> 109.0488491 | F54: =IF(J23<T23,$D$28*J23+$D$29*(T23-J23),$D$28*T23) -> 142.9398531 | G54: =IF(I23<S23,$E$28*I23+$E$29*(S23-I23),$E$28*S23) -> 109.0488491 | H54: =IF(J23<T23,$E$28*J23+$E$29*(T23-J23),$E$28*T23) -> 142.9398531 | J54: Q - Warm | K54: =IF(M23<AA23,$C$28*M23+$C$29*(AA23-M23),$C$28*AA23) -> 154.6570072 | L54: =IF(N23<AB23,$C$28*N23+$C$29*(AB23-N23),$C$28*AB23) -> 190.74018 | M54: =IF(M23<AA23,$D$28*M23+$D$29*(AA23-M23),$D$28*AA23) -> 155.040891 | N54: =IF(N23<AB23,$D$28*N23+$D$29*(AB23-N23),$D$28*AB23) -> 191.1592714 | O54: =IF(M23<AA23,$E$28*M23+$E$29*(AA23-M23),$E$28*AA23) -> 155.040891 | P54: =IF(N23<AB23,$E$28*N23+$E$29*(AB23-N23),$E$28*AB23) -> 191.1592714
B55: R - Hot | C55: 241.1250789 | D55: 133.0879235 | E55: 241.7041897 | F55: 133.4048106 | G55: 241.7041897 | H55: 133.4048106 | J55: R - Hot | K55: 242.5955051 | L55: 183.29766 | M55: 243.1690218 | N55: 183.7003988 | O55: 243.1690218 | P55: 183.7003988
B56: S - Hot | C56: 199.8599906 | D56: 130.5581149 | E56: 200.3385594 | F56: 130.8689885 | G56: 200.3385594 | H56: 130.8689885 | J56: S - Hot | K56: 193.3274989 | L56: 165.47658 | M56: 193.7760732 | N56: 165.8401626 | O56: 193.7760732 | P56: 165.8401626
B57: T - Cool | C57: 74.25173344 | D57: 90.57458906 | E57: 74.42548617 | F57: 90.78840896 | G57: 74.42548617 | H57: 90.78840896 | J57: T - Cool | K57: 69.58087806 | L57: 92.14386 | M57: 69.7393 | N57: 92.34631708 | O57: 69.7393 | P57: 92.34631708
B58: V - Cool | C58: 82.22562806 | D58: 104.4863899 | E58: 82.41846773 | F58: 104.7354592 | G58: 82.41846773 | H58: 104.7354592 | J58: V - Cool | K58: 116.427611 | L58: 155.6784 | M58: 116.6991504 | N58: 156.0204542 | O58: 116.6991504 | P58: 156.0204542
B59: W - Hot | C59: 258.923878 | D59: 124.1742164 | E59: 259.5448923 | F59: 124.4694585 | G59: 259.5448923 | H59: 124.4694585 | J59: W - Hot | K59: 258.219941 | L59: 138.88152 | M59: 258.8250808 | N59: 139.1866683 | O59: 258.8250808 | P59: 139.1866683
B60: X - Warm | C60: 109.3080914 | D60: 110.0723277 | E60: 109.5628694 | F60: 110.3296221 | G60: 109.5628694 | H60: 110.3296221 | J60: X - Warm | K60: 91.51869469 | L60: 107.74584 | M60: 91.73072235 | N60: 107.9825775 | O60: 91.73072235 | P60: 107.9825775
B61: Y - Warm | C61: 142.6189059 | D61: 160.8025818 | E61: 142.9612992 | F61: 161.191852 | G61: 142.9612992 | H61: 161.191852 | J61: Y - Warm | K61: 167.8507675 | L61: 198.11442 | M61: 168.2552964 | N61: 198.549714 | O61: 168.2552964 | P61: 198.549714
B62: Z - Cool | C62: 87.97896381 | D62: 101.3965364 | E62: 88.19269788 | F62: 101.6385039 | G62: 88.19269788 | H62: 101.6385039 | J62: Z - Cool | K62: 114.3313233 | L62: 120.61662 | M62: 114.6132962 | N62: 120.881637 | O62: 114.6132962 | P62: 120.881637
B63: ALL | C63: =SUMPRODUCT(C53:C62,$V$22:$V$31) -> 222.8302909 | D63: =SUMPRODUCT(D53:D62,$V$22:$V$31) -> 129.3857868 | E63: 223.3643127 | F63: 129.6937482 | G63: 223.3643127 | H63: 129.6937482 | J63: ALL | K63: =SUMPRODUCT(K53:K62,$AD$22:$AD$31) -> 209.8615871 | L63: =SUMPRODUCT(L53:L62,$AD$22:$AD$31) -> 174.807574 | M63: 210.3555815 | N63: =SUMPRODUCT(N53:N62,$AD$22:$AD$31) -> 175.1916585 | O63: 210.3555815 | P63: 175.1916585
C66: Basic Essential Usage NON-CARE | K66: All-Electric Essential Usage NON-CARE
C67: =$C$27 -> 2024-01-01 | E67: =$D$27 -> 2024-03-01 | G67: =$E$21 -> Proposed | K67: =$C$27 -> 2024-01-01 | M67: =$D$21 -> 2024-03-01 | O67: =$E$21 -> Proposed
C68: Summer | D68: Winter | E68: Summer | F68: Winter | G68: Summer | H68: Winter | K68: Summer | L68: Winter | M68: Summer | N68: Winter | O68: Summer | P68: Winter
B69: P - Hot | C69: =C$22*I22 -> 172.6176066 | D69: =C$22*J22 -> 140.6513831 | E69: =D$22*I22 -> 172.9959343 | F69: =D$22*J22 -> 140.9596502 | G69: =E$22*I22 -> 172.9959343 | H69: =E$22*J22 -> 140.9596502 | J69: P - Hot | K69: =$C$22*M22 -> 194.3546385 | L69: =$C$22*N22 -> 332.4487237 | M69: =$D$22*M22 -> 194.7806075 | N69: =$D$22*N22 -> 333.177355 | O69: =$E$22*M22 -> 194.7806075 | P69: =$E$22*N22 -> 333.177355
B70: Q - Warm | C70: =C$22*I23 -> 125.3075959 | D70: =C$22*J23 -> 140.6513831 | E70: =D$22*I23 -> 125.5822338 | F70: =D$22*J23 -> 140.9596502 | G70: =E$22*I23 -> 125.5822338 | H70: =E$22*J23 -> 140.9596502 | J70: Q - Warm | K70: =$C$22*M23 -> 108.6851597 | L70: 332.4487237 | M70: =$D$22*M23 -> 108.9233661 | N70: 333.177355 | O70: =$E$22*M23 -> 108.9233661 | P70: 333.177355
B71: R - Hot | C71: 226.3208619 | D71: 132.9794895 | E71: 226.8168917 | F71: 133.270942 | G71: 226.8168917 | H71: 133.270942 | J71: R - Hot | K71: 254.4511386 | L71: 341.3992663 | M71: 255.0088217 | N71: 342.1475146 | O71: 255.0088217 | P71: 342.1475146
B72: S - Hot | C72: 191.7973406 | D72: 130.4221916 | E72: 192.2177048 | F72: 130.7080393 | G72: 192.2177048 | H72: 130.7080393 | J72: S - Hot | K72: 227.5995109 | L72: 303.0397982 | M72: 228.098343 | N72: 303.7039736 | O72: 228.098343 | P72: 303.7039736
B73: T - Cool | C73: 83.11218094 | D73: 95.89867031 | E73: 83.29433875 | F73: 96.1088524 | G73: 83.29433875 | H73: 96.1088524 | J73: T - Cool | K73: 90.78407456 | L73: 164.9457129 | M73: 90.98304694 | N73: 165.3072261 | O73: 90.98304694 | P73: 165.3072261
B74: V - Cool | C74: 90.78407456 | D74: 103.5705639 | E74: 90.98304694 | F74: 103.7975606 | G74: 90.98304694 | H74: 103.7975606 | J74: V - Cool | K74: 132.9794895 | L74: 244.2219471 | M74: 133.270942 | N74: 244.7572108 | O74: 133.270942 | P74: 244.7572108
B75: W - Hot | C75: 245.500596 | D75: 125.3075959 | E75: 246.0386621 | F75: 125.5822338 | G75: 246.0386621 | H75: 125.5822338 | J75: W - Hot | K75: 286.417362 | L75: 242.9432981 | M75: 287.0451058 | N75: 243.4757594 | O75: 287.0451058 | P75: 243.4757594
B76: X - Warm | C76: 125.3075959 | D76: 124.0289469 | E76: 125.5822338 | F76: 124.3007824 | G76: 125.5822338 | H76: 124.3007824 | J76: X - Warm | K76: 108.6851597 | L76: 186.6827449 | M76: 108.9233661 | N76: 187.0918993 | O76: 108.9233661 | P76: 187.0918993
B77: Y - Warm | C77: 134.2581384 | D77: 141.9300321 | E77: 134.5523934 | F77: 142.2411016 | G77: 134.5523934 | H77: 142.2411016 | J77: Y - Warm | K77: 153.4378725 | L77: 306.875745 | M77: 153.7741638 | N77: 307.5483277 | O77: 153.7741638 | P77: 307.5483277
B78: Z - Cool | C78: 75.44028731 | D78: 99.73461712 | E78: 75.60563056 | F78: 99.9532065 | G78: 75.60563056 | H78: 99.9532065 | J78: Z - Cool | K78: 85.66947881 | L78: 200.7478832 | M78: 85.85724148 | N78: 201.1878644 | O78: 85.85724148 | P78: 201.1878644
B79: ALL | C79: =SUMPRODUCT(C69:C78,$U$22:$U$31) -> 194.0767881 | D79: =SUMPRODUCT(D69:D78,$U$22:$U$31) -> 128.7900962 | E79: =SUMPRODUCT(E69:E78,$U$22:$U$31) -> 194.5021482 | F79: =SUMPRODUCT(F69:F78,$U$22:$U$31) -> 129.0723668 | G79: =SUMPRODUCT(G69:G78,$U$22:$U$31) -> 194.5021482 | H79: 129.0723668 | J79: ALL | K79: =SUMPRODUCT(K69:K78,$AC$22:$AC$31) -> 208.0971599 | L79: =SUMPRODUCT(L69:L78,$AC$22:$AC$31) -> 301.4932701 | M79: 208.5532485 | N79: =SUMPRODUCT(N69:N78,$AC$22:$AC$31) -> 302.154056 | O79: =SUMPRODUCT(O69:O78,$AC$22:$AC$31) -> 208.5532485 | P79: 302.154056
C82: Basic Essential Usage CARE | K82: All-Electric Essential Usage CARE
C83: =$C$27 -> 2024-01-01 | E83: =$D$27 -> 2024-03-01 | G83: =$E$21 -> Proposed | K83: =$C$27 -> 2024-01-01 | M83: =$D$21 -> 2024-03-01 | O83: =$E$21 -> Proposed
C84: Summer | D84: Winter | E84: Summer | F84: Winter | G84: Summer | H84: Winter | K84: Summer | L84: Winter | M84: Summer | N84: Winter | O84: Summer | P84: Winter
B85: P - Hot | C85: =C$28*I22 -> 112.226715 | D85: =C$28*J22 -> 91.44399 | E85: =D$28*I22 -> 112.4732978 | F85: =D$28*J22 -> 91.64490933 | G85: =E$28*I22 -> 112.4732978 | H85: =E$28*J22 -> 91.64490933 | J85: P - Hot | K85: =$C$28*M22 -> 126.358968 | L85: =$C$28*N22 -> 216.14034 | M85: =$D$28*M22 -> 126.636602 | N85: =$D$28*N22 -> 216.6152402 | O85: =$E$28*M22 -> 126.636602 | P85: =$E$28*N22 -> 216.6152402
B86: Q - Warm | C86: =C$28*I23 -> 81.468282 | D86: =C$28*J23 -> 91.44399 | E86: =D$28*I23 -> 81.64728286 | F86: =D$28*J23 -> 91.64490933 | G86: =E$28*I23 -> 81.64728286 | H86: =E$28*J23 -> 91.64490933 | J86: Q - Warm | K86: =$C$28*M23 -> 70.661265 | L86: 216.14034 | M86: =$D$28*M23 -> 70.81652085 | N86: 216.6152402 | O86: =$E$28*M23 -> 70.81652085 | P86: 216.6152402
B87: R - Hot | C87: 147.141693 | D87: 86.456136 | E87: 147.4649905 | F87: 86.6460961 | G87: 147.4649905 | H87: 86.6460961 | J87: R - Hot | K87: 165.430491 | L87: 221.959503 | M87: 165.7939723 | N87: 222.447189 | O87: 165.7939723 | P87: 222.447189
B88: S - Hot | C88: 124.69635 | D88: 84.793518 | E88: 124.9703309 | F88: 84.97982502 | G88: 124.9703309 | H88: 84.97982502 | J88: S - Hot | K88: 147.973002 | L88: 197.020233 | M88: 148.298126 | N88: 197.4531228 | O88: 148.298126 | P88: 197.4531228
B89: T - Cool | C89: 54.035085 | D89: 62.348175 | E89: 54.15381006 | F89: 62.48516545 | G89: 54.15381006 | H89: 62.48516545 | J89: T - Cool | K89: 59.022939 | L89: 107.238861 | M89: 59.1526233 | N89: 107.4744846 | O89: 59.1526233 | P89: 107.4744846
B90: V - Cool | C90: 59.022939 | D90: 67.336029 | E90: 59.1526233 | F90: 67.48397869 | G90: 59.1526233 | H90: 67.48397869 | J90: V - Cool | K90: 86.456136 | L90: 158.780019 | M90: 86.6460961 | N90: 159.128888 | O90: 86.6460961 | P90: 159.128888
B91: W - Hot | C91: 159.611328 | D91: 81.468282 | E91: 159.9620236 | F91: 81.64728286 | G91: 159.9620236 | H91: 81.64728286 | J91: W - Hot | K91: 186.213216 | L91: 157.94871 | M91: 186.6223608 | N91: 158.2957525 | O91: 186.6223608 | P91: 158.2957525
B92: X - Warm | C92: 81.468282 | D92: 80.636973 | E92: 81.64728286 | F92: 80.81414732 | G92: 81.64728286 | H92: 80.81414732 | J92: X - Warm | K92: 70.661265 | L92: 121.371114 | M92: 70.81652085 | N92: 121.6377888 | O92: 70.81652085 | P92: 121.6377888
B93: Y - Warm | C93: 87.287445 | D93: 92.275299 | E93: 87.47923164 | F93: 92.47804487 | G93: 87.47923164 | H93: 92.47804487 | J93: Y - Warm | K93: 99.75708 | L93: 199.51416 | M93: 99.97626473 | N93: 199.9525295 | O93: 99.97626473 | P93: 199.9525295
B94: Z - Cool | C94: 49.047231 | D94: 64.842102 | E94: 49.15499682 | F94: 64.98457207 | G94: 49.15499682 | H94: 64.98457207 | J94: Z - Cool | K94: 55.697703 | L94: 130.515513 | M94: 55.82008114 | N94: 130.8022797 | O94: 55.82008114 | P94: 130.8022797
B95: ALL | C95: =SUMPRODUCT(C85:C94,$V$22:$V$31) -> 138.1700225 | D95: =SUMPRODUCT(D85:D94,$V$22:$V$31) -> 84.26236462 | E95: 138.4736076 | F95: 84.44750459 | G95: 138.4736076 | H95: 84.44750459 | J95: ALL | K95: =SUMPRODUCT(K85:K94,$AD$22:$AD$31) -> 147.1804007 | L95: =SUMPRODUCT(L85:L94,$AD$22:$AD$31) -> 199.233164 | M95: =SUMPRODUCT(M85:M94,$AD$22:$AD$31) -> 147.5037832 | N95: 199.6709161 | O95: 147.5037832 | P95: 199.6709161
B98: 500 | C98: Basic Typical Non-CARE | J98: 500 | K98: All-Electric Typical Non-CARE
C99: =$C$27 -> 2024-01-01 | E99: =$D$27 -> 2024-03-01 | G99: =$E$21 -> Proposed | K99: =$C$27 -> 2024-01-01 | M99: =$D$21 -> 2024-03-01 | O99: =$E$21 -> Proposed
C100: Summer | D100: Winter | E100: Summer | F100: Winter | G100: Summer | H100: Winter | K100: Summer | L100: Winter | M100: Summer | N100: Winter | O100: Summer | P100: Winter
B101: P - Hot | C101: =$C$22*MIN(I22,$B$98)+IF($B$98-I22>0,$C$23*($B$98-I22)) -> 219.4506272 | D101: =$C$22*MIN(J22,$B$98)+IF($B$98-J22>0,$C$23*($B$98-J22)) -> 227.4838444 | E101: =$D$22*MIN(I22,$B$98)+IF($B$98-I22>0,$D$23*($B$98-I22)) -> 219.9553549 | F101: =$D$22*MIN(J22,$B$98)+IF($B$98-J22>0,$D$23*($B$98-J22)) -> 228.0264678 | G101: =$E$22*MIN(I22,$B$98)+IF($B$98-I22>0,$E$23*($B$98-I22)) -> 219.9553549 | H101: =$E$22*MIN(J22,$B$98)+IF($B$98-J22>0,$E$23*($B$98-J22)) -> 228.0264678 | J101: P - Hot | K101: =$C$22*MIN(M22,$B$98)+IF($B$98-M22>0,$C$23*($B$98-M22)) -> 213.9880395 | L101: =$C$22*MIN(N22,$B$98)+IF($B$98-N22>0,$C$23*($B$98-N22)) -> 210.045 | M101: =$D$22*MIN(M22,$B$98)+IF($B$98-M22>0,$D$23*($B$98-M22)) -> 214.4669981 | N101: =$D$22*MIN(N22,$B$98)+IF($B$98-N22>0,$D$23*($B$98-N22)) -> 210.5053578 | O101: =$E$22*MIN(M22,$B$98)+IF($B$98-M22>0,$E$23*($B$98-M22)) -> 214.4669981 | P101: =$E$22*MIN(N22,$B$98)+IF($B$98-N22>0,$E$23*($B$98-N22)) -> 210.5053578
B102: Q - Warm | C102: =$C$22*MIN(I23,$B$98)+IF($B$98-I23>0,$C$23*($B$98-I23)) -> 231.3397886 | D102: 227.4838444 | E102: =$D$22*MIN(I23,$B$98)+IF($B$98-I23>0,$D$23*($B$98-I23)) -> 231.900602 | F102: 228.0264678 | G102: =$E$22*MIN(I23,$B$98)+IF($B$98-I23>0,$E$23*($B$98-I23)) -> 231.900602 | H102: 228.0264678 | J102: Q - Warm | K102: =$C$22*MIN(M23,$B$98)+IF($B$98-M23>0,$C$23*($B$98-M23)) -> 235.5170616 | L102: 210.045 | M102: =$D$22*MIN(M23,$B$98)+IF($B$98-M23>0,$D$23*($B$98-M23)) -> 236.0975808 | N102: 210.5053578 | O102: =$E$22*MIN(M23,$B$98)+IF($B$98-M23>0,$E$23*($B$98-M23)) -> 236.0975808 | P102: 210.5053578
B103: R - Hot | C103: 210.045 | D103: 229.4118165 | E103: 210.5053578 | F103: 229.9635349 | G103: 210.5053578 | H103: 229.9635349 | J103: R - Hot | K103: =$C$22*MIN(M24,$B$98)+IF($B$98-M24>0,$C$23*($B$98-M24)) -> 210.045 | L103: 210.045 | M103: 210.5053578 | N103: 210.5053578 | O103: 210.5053578 | P103: 210.5053578
B104: S - Hot | C104: 214.6306969 | D104: 230.0544739 | E104: 215.1126871 | F104: 230.609224 | G104: 215.1126871 | H104: 230.609224 | J104: S - Hot | K104: =$C$22*MIN(M25,$B$98)+IF($B$98-M25>0,$C$23*($B$98-M25)) -> 210.045 | L104: 210.045 | M104: 210.5053578 | N104: 210.5053578 | O104: 210.5053578 | P104: 210.5053578
B105: T - Cool | C105: 241.9436353 | D105: 238.7303484 | E105: 242.5544711 | F105: 239.3260259 | G105: 242.5544711 | H105: 239.3260259 | J105: T - Cool | K105: 240.0156632 | L105: 221.3785993 | M105: 240.617404 | N105: 221.892422 | O105: 240.617404 | P105: 221.892422
B106: V - Cool | C106: 240.0156632 | D106: 236.8023763 | E106: 240.617404 | F106: 237.3889588 | G106: 240.617404 | H106: 237.3889588 | J106: V - Cool | K106: 229.4118165 | L106: 210.045 | M106: 229.9635349 | N106: 210.5053578 | O106: 229.9635349 | P106: 210.5053578
B107: W - Hot | C107: 210.045 | D107: 231.3397886 | E107: 210.5053578 | F107: 231.900602 | G107: 210.5053578 | H107: 231.900602 | J107: W - Hot | K107: 210.045 | L107: 210.045 | M107: 210.5053578 | N107: 210.5053578 | O107: 210.5053578 | P107: 210.5053578
B108: X - Warm | C108: 231.3397886 | D108: 231.6611173 | E108: 231.900602 | F108: 232.2234466 | G108: 231.900602 | H108: 232.2234466 | J108: X - Warm | K108: 235.5170616 | L108: 215.9160116 | M108: 236.0975808 | N108: 216.4040652 | O108: 236.0975808 | P108: 216.4040652
B109: Y - Warm | C109: 229.0904878 | D109: 227.1625157 | E109: 229.6406904 | F109: 227.7036233 | G109: 229.6406904 | H109: 227.7036233 | J109: Y - Warm | K109: 224.2705575 | L109: 210.045 | M109: 224.7980226 | N109: 210.5053578 | O109: 224.7980226 | P109: 210.5053578
B110: Z - Cool | C110: 243.8716074 | D110: 237.7663624 | E110: 244.4915382 | F110: 238.3574924 | G110: 244.4915382 | H110: 238.3574924 | J110: Z - Cool | K110: 241.3009779 | L110: 212.3813961 | M110: 241.9087821 | N110: 212.8527755 | O110: 241.9087821 | P110: 212.8527755
B111: ALL | C111: =SUMPRODUCT(C101:C110,$U$22:$U$31) -> 216.3760241 | D111: 230.4646248 | E111: 216.8662477 | F111: 231.0213097 | G111: 216.8662477 | H111: 231.0213097 | J111: ALL | K111: =SUMPRODUCT(K101:K110,$AC$22:$AC$31) -> 215.6396072 | L111: =SUMPRODUCT(L101:L110,$AC$22:$AC$31) -> 210.8869945 | M111: 216.1263568 | N111: 211.3513242 | O111: 216.1263568 | P111: 211.3513242
B113: 500 | C113: Basic Typical CARE | J113: 500 | K113: All-Electric Typical CARE
C114: =$C$27 -> 2024-01-01 | E114: =$D$27 -> 2024-03-01 | G114: =$E$21 -> Proposed | K114: =$C$27 -> 2024-01-01 | M114: =$D$21 -> 2024-03-01 | O114: =$E$21 -> Proposed
C115: Summer | D115: Winter | E115: Summer | F115: Winter | G115: Summer | H115: Winter | K115: Summer | L115: Winter | M115: Summer | N115: Winter | O115: Summer | P115: Winter
B116: P - Hot | C116: =$C$28*MIN(I22,$B$113)+IF($B$113-I22>0,$C$29*($B$113-I22)) -> 142.6745041 | D116: =$C$28*MIN(J22,$B$113)+IF($B$113-J22>0,$C$29*($B$113-J22)) -> 147.8968181 | E116: =$D$28*MIN(I22,$B$113)+IF($B$113-I22>0,$D$29*($B$113-I22)) -> 143.0039627 | F116: =$D$28*MIN(J22,$B$113)+IF($B$113-J22>0,$D$29*($B$113-J22)) -> 148.2513963 | G116: =$E$28*MIN(I22,$B$113)+IF($B$113-I22>0,$E$29*($B$113-I22)) -> 143.0039627 | H116: =$E$28*MIN(J22,$B$113)+IF($B$113-J22>0,$E$29*($B$113-J22)) -> 148.2513963 | J116: P - Hot | K116: =$C$28*MIN(M22,$B$113)+IF($B$113-M22>0,$C$29*($B$113-M22)) -> 139.1233305 | L116: =$C$28*MIN(N22,$B$113)+IF($B$113-N22>0,$C$29*($B$113-N22)) -> 136.56 | M116: =$D$28*MIN(M22,$B$113)+IF($B$113-M22>0,$D$29*($B$113-M22)) -> 139.4357078 | N116: =$D$28*MIN(N22,$B$113)+IF($B$113-N22>0,$D$29*($B$113-N22)) -> 136.8600475 | O116: =$E$28*MIN(M22,$B$113)+IF($B$113-M22>0,$E$29*($B$113-M22)) -> 139.4357078 | P116: =$E$28*MIN(N22,$B$113)+IF($B$113-N22>0,$E$29*($B$113-N22)) -> 136.8600475
B117: Q - Warm | C117: =$C$28*MIN(I23,$B$113)+IF($B$113-I23>0,$C$29*($B$113-I23)) -> 150.4035289 | D117: 147.8968181 | E117: =$D$28*MIN(I23,$B$113)+IF($B$113-I23>0,$D$29*($B$113-I23)) -> 150.7701645 | F117: 148.2513963 | G117: =$E$28*MIN(I23,$B$113)+IF($B$113-I23>0,$E$29*($B$113-I23)) -> 150.7701645 | H117: 148.2513963 | J117: Q - Warm | K117: =$C$28*MIN(M23,$B$113)+IF($B$113-M23>0,$C$29*($B$113-M23)) -> 153.1191322 | L117: 136.56 | M117: =$D$28*MIN(M23,$B$113)+IF($B$113-M23>0,$D$29*($B$113-M23)) -> 153.49883 | N117: 136.8600475 | O117: =$E$28*MIN(M23,$B$113)+IF($B$113-M23>0,$E$29*($B$113-M23)) -> 153.49883 | P117: 136.8600475
B118: R - Hot | C118: 136.56 | D118: 149.1501735 | E118: 136.8600475 | F118: 149.5107804 | G118: 136.8600475 | H118: 149.5107804 | J118: R - Hot | K118: 136.56 | L118: 136.56 | M118: 136.8600475 | N118: 136.8600475 | O118: 136.8600475 | P118: 136.8600475
B119: S - Hot | C119: 139.5411156 | D119: 149.5679586 | E119: 139.8555025 | F119: 149.9305751 | G119: 139.8555025 | H119: 149.9305751 | J119: S - Hot | K119: 136.56 | L119: 136.56 | M119: 136.8600475 | N119: 136.8600475 | O119: 136.8600475 | P119: 136.8600475
B120: T - Cool | C120: 157.2969834 | D120: 155.2080578 | E120: 157.6967769 | F120: 155.5978035 | G120: 157.6967769 | H120: 155.5978035 | J120: T - Cool | K120: 156.0436281 | L120: 143.9278594 | M120: 156.4373929 | N120: 144.2633468 | O120: 156.4373929 | P120: 144.2633468
B121: V - Cool | C121: 156.0436281 | D121: 153.9547024 | E121: 156.4373929 | F121: 154.3384194 | G121: 156.4373929 | H121: 154.3384194 | J121: V - Cool | K121: 149.1501735 | L121: 136.56 | M121: 149.5107804 | N121: 136.8600475 | O121: 149.5107804 | P121: 136.8600475
B122: W - Hot | C122: 136.56 | D122: 150.4035289 | E122: 136.8600475 | F122: 150.7701645 | G122: 136.8600475 | H122: 150.7701645 | J122: W - Hot | K122: 136.56 | L122: 136.56 | M122: 136.8600475 | N122: 136.8600475 | O122: 136.8600475 | P122: 136.8600475
B123: X - Warm | C123: 150.4035289 | D123: 150.6124214 | E123: 150.7701645 | F123: 150.9800619 | G123: 150.7701645 | H123: 150.9800619 | J123: X - Warm | K123: 153.1191322 | L123: 140.3766859 | M123: 153.49883 | N123: 140.6950919 | O123: 153.49883 | P123: 140.6950919
B124: Y - Warm | C124: 148.9412809 | D124: 147.6879256 | E124: 149.3008831 | F124: 148.041499 | G124: 149.3008831 | H124: 148.041499 | J124: Y - Warm | K124: 145.8078925 | L124: 136.56 | M124: 146.1524229 | N124: 136.8600475 | O124: 146.1524229 | P124: 136.8600475
B125: Z - Cool | C125: 158.5503388 | D125: 154.5813801 | E125: 158.956161 | F125: 154.9681114 | G125: 158.956161 | H125: 154.9681114 | J125: Z - Cool | K125: 156.8791983 | L125: 138.0788677 | M125: 157.2769822 | N125: 138.3862211 | O125: 157.2769822 | P125: 138.3862211
B126: ALL | C126: =SUMPRODUCT(C116:C125,$V$22:$V$31) -> 138.5172465 | D126: =SUMPRODUCT(D116:D125,$V$22:$V$31) -> 149.7014276 | E126: 138.8267084 | F126: 150.0646861 | G126: 138.8267084 | H126: 150.0646861 | J126: ALL | K126: =SUMPRODUCT(K116:K125,$AD$22:$AD$31) -> 138.507359 | L126: =SUMPRODUCT(L116:L125,$AD$22:$AD$31) -> 136.8878687 | M126: 138.8167734 | N126: 137.1894933 | O126: =SUMPRODUCT(O116:O125,$AD$22:$AD$31) -> 138.8167734 | P126: =SUMPRODUCT(P116:P125,$AD$22:$AD$31) -> 137.1894933

Sheet Hypothetical SAR and RAR (B-1) (hidden)
C3: Revenue Change
B4: Generation | C4: ='Hypothetical Summary'!D8 -> 0 | F4: Allocation
B5: NSGC | C5: ='Hypothetical Summary'!D9 -> 0 | F5: Generation | G5: Distribution | H5: NDC | I5: PPPC | J5: NSGC | K5: Transmission | L5: CTC | M5: ECRA | N5: FERC BAs | O5: GHG Rev | P5: DWRBC | Q5: WHC | R5: PCIA | S5: Distribution (Wildfire)
B6: Distribution | C6: ='Hypothetical Summary'!D10 -> 0 | E6: B-1 | F6: ='SAR and AR (B-1)'!G35 -> 0.08003843517 | G6: ='SAR and AR (B-1)'!H35 -> 0.1168026855 | H6: ='SAR and AR (B-1)'!I35 -> 0.0797727216 | I6: ='SAR and AR (B-1)'!J35 -> 0.08979660681 | J6: ='SAR and AR (B-1)'!K35 -> 0.07724977447 | K6: ='SAR and AR (B-1)'!L35 -> 0.07584760601 | L6: ='SAR and AR (B-1)'!M35 -> 0.08219843279 | M6: ='SAR and AR (B-1)'!N35 -> 0.0815194307 | N6: ='SAR and AR (B-1)'!O35 -> 0.08253270963 | O6: ='SAR and AR (B-1)'!P35 -> 0.05903240428 | P6: ='SAR and AR (B-1)'!Q35 -> 0.091733663 | Q6: ='SAR and AR (B-1)'!R35 -> 0.1137553595 | R6: ='SAR and AR (B-1)'!S35 -> 0.09044753236 | S6: ='SAR and AR (B-1)'!T35 -> 0.1003263649
B7: GHG Revenue | C7: ='Hypothetical Summary'!D11 -> 0
B8: CTC | C8: ='Hypothetical Summary'!D12 -> 0 | F8: Revenue Change ($000) - System
B9: NDC | C9: ='Hypothetical Summary'!D13 -> 0 | F9: Generation | G9: Distribution | H9: NDC | I9: Public Purpose Program | J9: NSGC | K9: Transmission | L9: CTC | M9: ECRA | N9: FERC BAs | O9: GHG Revenue | P9: DWR BC | Q9: WHC | R9: PCIA | S9: Distribution (Wildfire) | T9: Total
B10: Public Purpose Program | C10: ='Hypothetical Summary'!D14 -> 0 | E10: B-1 | F10: =F6*F11 -> 0 | G10: 0 | H10: 0 | I10: 0 | J10: 0 | K10: 0 | L10: 0 | M10: 0 | N10: 0 | O10: 0 | P10: 0 | Q10: =Q6*Q11 -> 0 | R10: =R6*R11 -> 0 | S10: =S6*S11 -> 0 | T10: =SUM(F10:S10) -> 0
B11: DWR BC | C11: ='Hypothetical Summary'!D15 -> 0 | E11: Total System | F11: =VLOOKUP(F9,$B$4:$C$17,2,FALSE) -> 0 | G11: =VLOOKUP(G9,$B$4:$C$17,2,FALSE) -> 0 | H11: 0 | I11: 0 | J11: 0 | K11: 0 | L11: 0 | M11: 0 | N11: 0 | O11: 0 | P11: 0 | Q11: 0 | R11: 0 | S11: 0 | T11: =SUM(F11:S11) -> 0
B12: ECRA | C12: ='Hypothetical Summary'!D16 -> 0
B13: Transmission | C13: ='Hypothetical Summary'!D17 -> 0
B14: FERC BAs | C14: ='Hypothetical Summary'!D18 -> 0
B15: PCIA | C15: ='Hypothetical Summary'!D19 -> 0
B16: WHC | C16: ='Hypothetical Summary'!D20 -> 0 | X16: % of CARE Sales | Y16: 0.2945356527
B17: Distribution (Wildfire) | C17: ='Hypothetical Summary'!D21 -> 0
B18: Total | C18: =SUM(C4:C17) -> 0 | F18: Revenue Split - Bundled | T18: Bundled Revenue Change | X18: CARE Line Item Discount | Y18: 0.2933034269
F19: Generation | G19: Distribution | H19: NDC | I19: PPPC | J19: NSGC | K19: Transmission | L19: CTC | M19: ECRA | N19: FERC BAs | O19: GHG Rev | P19: DWRBC | Q19: WHC | R19: PCIA | S19: Distribution (Wildfire) | T19: Total | U19: CARE Adj | X19: CARE Discount | Y19: ='Hypothetical SAR and RAR'!Y19 -> 0
E20: B-1 | F20: 1 | G20: =$E29/$O29 -> 0.3636898573 | H20: =$E29/$O29 -> 0.3636898573 | I20: 0.3636898573 | J20: 0.3636898573 | K20: 0.3636898573 | L20: 0.3636898573 | M20: 0.3636898573 | N20: 0.3636898573 | O20: 0.3636898573 | P20: 0.3636898573 | Q20: 0.3636898573 | R20: 0.3636898573 | S20: 0.3636898573 | T20: =SUMPRODUCT(F10:S10,F20:S20) -> 0 | U20: =T20+Y22*G20 -> 0 | X20: non-CARE Sales | Y20: 0
E21: Total System | F21: 1 | G21: =$E30/$O30 -> 0.374635273 | H21: 0.374635273 | I21: 0.374635273 | J21: 0.374635273 | K21: 0.374635273 | L21: 0.374635273 | M21: 0.374635273 | N21: 0.374635273 | O21: 0.374635273 | P21: 0.374635273 | Q21: 0.374635273 | R21: 0.374635273 | S21: 0.374635273 | T21: =SUMPRODUCT(F11:S11,F21:S21) -> 0 | U21: =T21 -> 0 | X21: non-exempt Sales | Y21: 69915155.68
X22: B-1 CARE Surcharge | Y22: =Y19*Y20/Y21 -> 0
E23: ="Notes: Allocation and bundled/unbundled split based on "&'Hypothetical Summary'!L5&" sales forecast" -> Notes: Allocation and bundled/unbundled split based on 2024 sales forecast
E27: Bundled | O27: System (Bundled and Unbundled)
E28: ='Hypothetical Summary'!L5&" Sales" -> 2024 Sales | F28: =TEXT(Summary!L3,"mm/dd/yyyy")&" Avg Rates" -> 03/01/2024 Avg Rates | G28: Proposed Avg Rates | H28: % Change | O28: ='Hypothetical Summary'!L5&" Sales" -> 2024 Sales | P28: =F28 -> 03/01/2024 Avg Rates | Q28: Proposed Avg Rates | R28: % Change
D29: B-1 | E29: 2332908.568 | F29: 44.28059623 | G29: =U20/E29*100+F29 -> 44.28059623 | H29: =G29/F29-1 -> 0 | N29: B-1 | O29: 6414554.933 | P29: 34.10205516 | Q29: =T10/O29*100+P29 -> 34.10205516 | R29: =Q29/P29-1 -> 0
D30: Total System | E30: ='SAR and RAR'!K55 -> 29392636.88 | F30: 36.61409129 | G30: =U21/E30*100+F30 -> 36.61409129 | H30: =G30/F30-1 -> 0 | N30: Total System | O30: ='SAR and RAR'!O55 -> 78456672.41 | P30: 26.42580918 | Q30: =T11/O30*100+P30 -> 26.42580918 | R30: =Q30/P30-1 -> 0

Sheet Hypo. Bill Impact (B-1) (hidden)
E3: Schedule B-1
E4: =Summary!D3 -> 2024 | F4: =Summary!L3 -> 2024-03-01 | G4: =Summary!L3 -> 2024-03-01 | H4: Proposed | I4: Proposed
E5: Sales Forecast | F5: Rates | G5: Revenue | H5: Rates | I5: Revenue
D7: Peak Summer | E7: =HLOOKUP($E$4,$Y$33:$AB$41,2,FALSE) -> 226712.6167 | F7: 0.51125 | G7: =F7*E7 -> 115906.8253 | H7: =F7+I$15/SUM($E$7:$E$12) -> 0.51125 | I7: =H7*E7 -> 115906.8253
D8: Part-Peak Summer | E8: =HLOOKUP($E$4,$Y$33:$AB$41,3,FALSE) -> 162948.6981 | F8: 0.46202 | G8: 75285.55748 | H8: =F8+I$15/SUM($E$7:$E$12) -> 0.46202 | I8: 75285.55748
D9: Off-Peak Summer | E9: =HLOOKUP($E$4,$Y$33:$AB$41,4,FALSE) -> 522831.3751 | F9: 0.44121 | G9: 230678.431 | H9: 0.44121 | I9: 230678.431
D10: Part-Peak Winter | E10: =HLOOKUP($E$4,$Y$33:$AB$41,5,FALSE) -> 322300.8931 | F10: 0.43582 | G10: 140465.1753 | H10: 0.43582 | I10: 140465.1753
D11: Off-Peak Winter | E11: =HLOOKUP($E$4,$Y$33:$AB$41,6,FALSE) -> 957339.4835 | F11: 0.4197 | G11: 401795.3812 | H11: 0.4197 | I11: 401795.3812
D12: Super Off-Peak Winter | E12: =HLOOKUP($E$4,$Y$33:$AB$41,7,FALSE) -> 135593.1847 | F12: 0.40328 | G12: 54682.01953 | H12: 0.40328 | I12: 54682.01953
D14: Customers (Single-phase) | E14: =HLOOKUP($E$4,$Y$33:$AB$41,9,FALSE) -> 1033.640782 | F14: 0.32854 | G14: =F14*E14*365/12 -> 10329.26709 | H14: =F14 -> 0.32854 | I14: =H14*E14*365/12 -> 10329.26709
D15: Total Revenues | G15: =SUM(G7:G14) -> 1029142.657 | I15: ='Hypothetical SAR and RAR (B-1)'!U20 -> 0
P19: 2023 Recorded Data
B20: SCHEDULE B-1 ($/kWh) | E20: Proposed | P20: NAICS | Q20: Summer | T20: Winter
B21: Rates | C21: 2024-01-01 | D21: =Summary!L3 -> 2024-03-01 | E21: Authorized | P21: kWh | Q21: Peak | R21: Part-Peak | S21: Off-Peak | T21: Part-Peak | U21: Off-Peak | V21: Super Off-Peak | W21: Total
B22: Peak Summer | C22: 0.51009 | D22: =F7 -> 0.51125 | E22: =H7 -> 0.51125 | P22: NAICS 531 | Q22: 240.6217419 | R22: 196.4275246 | S22: 610.4070422 | T22: 213.4427764 | U22: 679.1543724 | V22: 79.55166669 | W22: =SUM(Q22:V22) -> 2019.605124
B23: Part-Peak Summer | C23: 0.46086 | D23: 0.46202 | E23: 0.46202 | P23: NAICS 621 | Q23: 305.4424614 | R23: 270.2007963 | S23: 790.0026358 | T23: 219.5586319 | U23: 758.5301209 | V23: 130.2442779 | W23: =SUM(Q23:V23) -> 2473.978924
B24: Off-Peak Summer | C24: 0.44005 | D24: 0.44121 | E24: 0.44121 | P24: NAICS 722 | Q24: 980.9712657 | R24: 662.608539 | S24: 1842.636032 | T24: 753.6542377 | U24: 1744.189729 | V24: 274.8605149 | W24: 6258.920318
B25: Part-Peak Winter | C25: 0.43467 | D25: 0.43582 | E25: 0.43582
B26: Off-Peak Winter | C26: 0.41855 | D26: 0.4197 | E26: 0.4197
B27: Super Off-Peak Winter | C27: 0.40214 | D27: 0.40328 | E27: 0.40328
B28: Customers (Single-phase) | C28: 0.32854 | D28: =F14 -> 0.32854 | E28: =H14 -> 0.32854
C30: B-1
C31: =C21 -> 2024-01-01 | E31: =D21 -> 2024-03-01 | G31: Proposed
C32: Summer | D32: Winter | E32: Summer | F32: Winter | G32: Summer | H32: Winter
B33: NAICS 531 | C33: =SUM(SUM($C$22*$Q22,$C$23*$R22,$C$24*$S22),($C$28*365.25/12)) -> 491.8738884 | D33: =SUM(SUM($C$25*$T22,$C$26*$U22,$C$27*$V22),($C$28*365.25/12)) -> 419.0280777 | E33: =SUM(SUM($D$22*$Q22,$D$23*$R22,$D$24*$S22),($D$28*365.25/12)) -> 493.0889378 | F33: =SUM(SUM($D$25*$T22,$D$26*$U22,$D$27*$V22),($D$28*365.25/12)) -> 420.1452533 | G33: =SUM(SUM($E$22*$Q22,$E$23*$R22,$E$24*$S22),($E$28*365.25/12)) -> 493.0889378 | H33: =SUM(SUM($E$25*$T22,$E$26*$U22,$E$27*$V22),($E$28*365.25/12)) -> 420.1452533 | W33: Non-CARE Sales | X33: B-1 | Y33: ='Bill Impact (B-1)'!Y33 -> 2024 | Z33: ='Bill Impact (B-1)'!Z33 -> 2025 | AA33: ='Bill Impact (B-1)'!AA33 -> 2026 | AB33: ='Bill Impact (B-1)'!AB33 -> 2027
B34: NAICS 621 | C34: =SUM(SUM($C$22*$Q23,$C$23*$R23,$C$24*$S23),($C$28*365.25/12)) -> 637.9684803 | D34: =SUM(SUM($C$25*$T23,$C$26*$U23,$C$27*$V23),($C$28*365.25/12)) -> 475.2947028 | E34: =SUM(SUM($D$22*$Q23,$D$23*$R23,$D$24*$S23),($D$28*365.25/12)) -> 639.5526295 | F34: =SUM(SUM($D$25*$T23,$D$26*$U23,$D$27*$V23),($D$28*365.25/12)) -> 476.5679833 | G34: =SUM(SUM($E$22*$Q23,$E$23*$R23,$E$24*$S23),($E$28*365.25/12)) -> 639.5526295 | H34: =SUM(SUM($E$25*$T23,$E$26*$U23,$E$27*$V23),($E$28*365.25/12)) -> 476.5679833 | V34: Summer | W34: Peak | X34: Peak | Y34: 226712.6167 | Z34: =Y34 -> 226712.6167 | AA34: =$Z34 -> 226712.6167 | AB34: =$Z34 -> 226712.6167
B35: NAICS 722 | C35: =SUM(SUM($C$22*$Q24,$C$23*$R24,$C$24*$S24),($C$28*365.25/12)) -> 1626.605326 | D35: =SUM(SUM($C$25*$T24,$C$26*$U24,$C$27*$V24),($C$28*365.25/12)) -> 1178.153842 | E35: =SUM(SUM($D$22*$Q24,$D$23*$R24,$D$24*$S24),($D$28*365.25/12)) -> 1630.649337 | F35: =SUM(SUM($D$25*$T24,$D$26*$U24,$D$27*$V24),($D$28*365.25/12)) -> 1181.339704 | G35: =SUM(SUM($E$22*$Q24,$E$23*$R24,$E$24*$S24),($E$28*365.25/12)) -> 1630.649337 | H35: =SUM(SUM($E$25*$T24,$E$26*$U24,$E$27*$V24),($E$28*365.25/12)) -> 1181.339704 | V35: Summer | W35: Part Peak | X35: Part Peak | Y35: 162948.6981 | Z35: =Y35 -> 162948.6981 | AA35: =$Z35 -> 162948.6981 | AB35: 162948.6981
V36: Summer | W36: Off Peak | X36: Off Peak | Y36: 522831.3751 | Z36: 522831.3751 | AA36: 522831.3751 | AB36: 522831.3751
V37: Winter | W37: Peak | X37: Part Peak | Y37: 322300.8931 | Z37: 322300.8931 | AA37: 322300.8931 | AB37: 322300.8931
V38: Winter | W38: Off Peak | X38: Off Peak | Y38: 957339.4835 | Z38: 957339.4835 | AA38: 957339.4835 | AB38: 957339.4835
V39: Winter | W39: Super Off Peak | X39: Super Off | Y39: 135593.1847 | Z39: 135593.1847 | AA39: 135593.1847 | AB39: 135593.1847
V41: Customer | W41: Single-Phase | Y41: 1033.640782 | Z41: 1033.640782 | AA41: =$Z41 -> 1033.640782 | AB41: =$Z41 -> 1033.640782

Sheet Selected Data (hidden)
A1: Summary of Selected Data
Q2: Revenue
Q3: Requirement
Q4: $000
A5: 1 | B5: Current total system-level revenue requirement that is used for defining the reporting threshold: | Q5: ='Incremental Rev Req'!B5 -> 20734135.47
B6: A | C6: One-percent reporting threshold | Q6: =Q5*0.01 -> 207341.3547
A8: 2 | B8: List of currently open proceedings that exceed the threshold for use of the affordability metrics (proceedings shaded gray filed prior to D.22-08-023):
B9: A | C9: ='Incremental Rev Req'!B114 -> A.22-12-009 | D9: ='Incremental Rev Req'!A114 -> 2022 WMCE | Q9: ='Incremental Rev Req'!D51+'Incremental Rev Req'!D52 -> 1104107
B10: B | C10: ='Incremental Rev Req'!B116 -> A.23-06-008 | D10: ='Incremental Rev Req'!A116 -> Wildfire Gas and Safety Costs | Q10: ='Incremental Rev Req'!F116 -> 433390.9763
B11: C | C11: ='Incremental Rev Req'!B121 -> A.21-09-008 | D11: ='Incremental Rev Req'!A121 -> 2021 WMCE (VMBA) | Q11: ='Incremental Rev Req'!F120+'Incremental Rev Req'!F121 -> 295765
B12: D | C12: ='Incremental Rev Req'!B119 -> A.23-12-001 | D12: ='Incremental Rev Req'!A119 -> 2023 WMCE | Q12: ='Incremental Rev Req'!F118 -> 719374.8707
A14: 3 | B14: List of currently open proceedings for which affordability metrics have been filed:
B15: A | C15: =C9 -> A.22-12-009 | D15: =D9 -> 2022 WMCE | Q15: =Q9 -> 1104107
B16: B | C16: =C10 -> A.23-06-008 | D16: =D10 -> Wildfire Gas and Safety Costs | Q16: =Q10 -> 433390.9763
B17: C | C17: =C12 -> A.23-12-001 | D17: =D12 -> 2023 WMCE | Q17: =Q12 -> 719374.8707
A19: 4 | B19: List of currently open proceedings that do not exceed the threshold for use of the affordability metrics (proceedings shaded gray filed prior to D.22-08-023):
B20: A
B21: B
B22: C
B23: D
B24: E
A26: 5 | B26: Total system-level revenue requirement if all pending revenue were granted in full: requests were granted in full
B27: A | C27: YE 2024 | Q27: ='Incremental Rev Req'!R127 -> 20846351.06
B28: B | C28: YE 2025 | Q28: ='Incremental Rev Req'!S127 -> 18887408.98
B29: C | C29: YE 2026 | Q29: ='Incremental Rev Req'!T127 -> 16196163.3
B30: D | C30: YE 2027 | Q30: ='Incremental Rev Req'!U127 -> 16186006.79
A32: 6 | B32: Bundled residential average rate (RAR) if all pending revenue were granted in full (from Cost and Rate Tracker (CRT) as submitted by utility): | R32: cents/kWh
B33: A | C33: =C27 -> YE 2024 | R33: 36.91041884
B34: B | C34: =C28 -> YE 2025 | R34: 34.19233833
B35: C | C35: YE 2026 | R35: 30.50384652
B36: D | C36: YE 2027 | R36: 30.48658231
A38: 7 | B38: Bundled residential average monthly bill corresponding to RAR above for typical customer in climate zone X using 500 kWh (from CRT as submitted by utility): | S38: Non-CARE | T38: CARE
B39: A | C39: =C27 -> YE 2024 | S39: 218.3400803 | T39: 138.7368004
B40: B | C40: =C28 -> YE 2025 | S40: 202.5069316 | T40: 128.4428796
B41: C | C41: YE 2026 | S41: 181.0210195 | T41: 114.4738149
B42: D | C42: YE 2027 | S42: 180.9204533 | T42: 114.4084318
A44: 8 | B44: Bundled small commercial average rate (B-1) if all pending revenue were granted in full (from Cost and Rate Tracker (CRT) as submitted by utility): | R44: cents/kWh
B45: A | C45: =C27 -> YE 2024 | R45: 43.74361241
B46: B | C46: =C28 -> YE 2025 | R46: 40.49077505
B47: C | C47: YE 2026 | R47: 36.14115716
B48: D | C48: YE 2027 | R48: 36.13041978
A50: 9 | B50: Bundled small commercial average monthly bill corresponding to B-1 rate above for typical customer by NAICS (from CRT as submitted by utility): | S50: NAICS 531 | T50: NAICS 621 | U50: NAICS 722
B51: A | C51: =C27 -> YE 2024 | S51: 440.7564519 | T51: 526.4618096 | U51: 1319.929724
B52: B | C52: =C28 -> YE 2025 | S52: 408.2452684 | T52: 487.5330729 | U52: 1221.78368
B53: C | C53: YE 2026 | S53: 364.7720757 | T53: 435.4784784 | U53: 1090.545091
B54: D | C54: YE 2027 | S54: 364.6647586 | T54: 435.3499775 | U54: 1090.221119

Sheet Summary (hidden)
B2: Inputs: | J2: Assumptions:
C3: ="Rate Impact for Year ("&'Incremental Rev Req'!$F$9&" - "&'Incremental Rev Req'!$I$9&")" -> Rate Impact for Year (2024 - 2027) | D3: 2024 | J3: Current Effective Rates | L3: 2024-03-01
C4: Baseline Region - (Residential bill) | D4: X - Warm | J4: Sales Forecast | L4: =D3 -> 2024
J5: Summer season | L5: 4 | M5: months
J6: Winter Season | L6: 8 | M6: months
B7: Pending Proceedings | D7: Include in Impact (Y) | E7: Applicable Year(s) | J7: Residential bill calculated using | L7: Schedule E-1, Single Family
B8: 2022 WMCE | D8: Y | E8: 2024 - 2025 | J8: Residential Bi-annual Climate Credit | L8: -55.17206486 | P8: Essential Use - | Q8: Essential Use -
B9: Wildfire Gas and Safety Costs | D9: Y | E9: 2024-2025 | N9: Basic | O9: All Electric | P9: Basic | Q9: All Electric
B10: 2023 WMCE | D10: Y | E10: 2024-2026 | J10: Non-CARE bill impact calculated with average summer usage of | N10: =IF($D$4="ALL",SUMPRODUCT('Res Bill Impact'!Q$22:Q$31,'Res Bill Impact'!$U$22:$U$31),VLOOKUP(D$4,'Res Bill Impact'!$P$22:$T$31,2,FALSE)) -> 406.5 | O10: =IF($D$4="ALL",SUMPRODUCT('Res Bill Impact'!Y$22:Y$31,'Res Bill Impact'!$AC$22:$AC$31),VLOOKUP($D$4,'Res Bill Impact'!$X$22:$AB$31,2,FALSE)) -> 316.25 | P10: =VLOOKUP($D$4,'Res Bill Impact'!$H$22:$J$31,2,FALSE) -> 298.2875 | Q10: =VLOOKUP($D$4,'Res Bill Impact'!$L$22:$N$31,2,FALSE) -> 258.71875 | R10: kWh per month
B11: 2021 WMCE (VMBA) | D11: Y | E11: 2024-2025 | J11: Non-CARE bill impact calculated with average winter usage of | N11: =IF($D$4="ALL",SUMPRODUCT('Res Bill Impact'!R$22:R$31,'Res Bill Impact'!$U$22:$U$31),VLOOKUP(D$4,'Res Bill Impact'!$P$22:$T$31,3,FALSE)) -> 388.625 | O11: =IF($D$4="ALL",SUMPRODUCT('Res Bill Impact'!Y$22:Y$31,'Res Bill Impact'!$AC$22:$AC$31),VLOOKUP($D$4,'Res Bill Impact'!$X$22:$AB$31,3,FALSE)) -> 367.625 | P11: =VLOOKUP($D$4,'Res Bill Impact'!$H$22:$J$31,3,FALSE) -> 295.24375 | Q11: =VLOOKUP($D$4,'Res Bill Impact'!$L$22:$N$31,3,FALSE) -> 444.3875 | R11: kWh per month
B12: FERC TO21 TY24 Refund | D12: Y | E12: 2024 | J12: Non-CARE bill impact calculated with average annual usage of | N12: =(N10*4)+(N11*8) -> 4735 | O12: =(O10*4)+(O11*8) -> 4206 | P12: =(P10*4)+(P11*8) -> 3555.1 | Q12: =(Q10*4)+(Q11*8) -> 4589.975 | R12: kWh per year
J13: CARE bill impact calculated with average summer usage of | N13: =IF(D$4="ALL",SUMPRODUCT('Res Bill Impact'!S$22:S$31,'Res Bill Impact'!$V$22:$V$31),VLOOKUP(D$4,'Res Bill Impact'!$P$22:$T$31,4,FALSE)) -> 379.75 | O13: =IF($D$4="ALL",SUMPRODUCT('Res Bill Impact'!Y$22:Y$31,'Res Bill Impact'!$AD$22:$AD$31),VLOOKUP($D$4,'Res Bill Impact'!$X$22:$AB$31,4,FALSE)) -> 319.75 | P13: =P10 -> 298.2875 | Q13: 258.71875 | R13: kWh per month
J14: CARE bill impact calculated with average winter usage of | N14: =IF($D$4="ALL",SUMPRODUCT('Res Bill Impact'!T$22:T$31,'Res Bill Impact'!$V$22:$V$31),VLOOKUP(D$4,'Res Bill Impact'!$P$22:$T$31,5,FALSE)) -> 381.375 | O14: =IF($D$4="ALL",SUMPRODUCT('Res Bill Impact'!Y$22:Y$31,'Res Bill Impact'!$AD$22:$AD$31),VLOOKUP($D$4,'Res Bill Impact'!$X$22:$AB$31,5,FALSE)) -> 394.5 | P14: 295.24375 | Q14: 444.3875 | R14: kWh per month
J15: CARE bill impact calculated with average annual usage of | N15: =(N13*4)+(N14*8) -> 4570 | O15: =(O13*4)+(O14*8) -> 4435 | P15: 3555.1 | Q15: 4589.975 | R15: kWh per year
J16: Average monthly usage is for all customers (Non-CARE and CARE) based on seasonal usage in | P16: =LEFT('Res Bill Impact'!P19,4) -> 2023
B29: Outputs:
D30: (A) | E30: (B) | F30: (C) | G30: (D) | H30: (D)/(A) | I30: (D)/(B) | J30: (D)/(C) | N30: (A) | O30: (B) | P30: (C) | Q30: (D) | R30: (D)/(A) | S30: (D)/(B) | T30: (D)/(C)
B31: Bundled Average Rates - ¢/kWh | L31: Total System (Bundled and Unbundled) Average Rates - ¢/kWh
B32: Customer Group | D32: 2024-01-01 | E32: =L3 -> 2024-03-01 | F32: =$D$3&" Authorized" -> 2024 Authorized | G32: =$D$3&" w/Pending" -> 2024 w/Pending | H32: ="% Change over "&TEXT(D32,"mm/d/yyy") -> % Change over 01/1/2024 | I32: ="% Change over "&TEXT(L3,"mm/d/yyy") -> % Change over 03/1/2024 | J32: % Change over Authorized | L32: Customer Group | N32: =$D$32 -> 2024-01-01 | O32: =$E$32 -> 2024-03-01 | P32: =$D$3&" Authorized" -> 2024 Authorized | Q32: =$D$3&" w/Pending" -> 2024 w/Pending | R32: =$H$32 -> % Change over 01/1/2024 | S32: =$I$32 -> % Change over 03/1/2024 | T32: % Change over Authorized
B33: Residential | D33: 37.78368471 | E33: 37.88846517 | F33: ='SAR and RAR'!$H$28 -> 34.63038802 | G33: ='SAR and RAR'!$I$28 -> 36.91041884 | H33: =$G33/D33-1 -> -0.02311224729 | I33: =$G33/E33-1 -> -0.02581382823 | J33: 0.06583902042 | L33: Total Residential (RAR) | N33: 29.64929515 | O33: 29.75450935 | P33: ='SAR and RAR'!$R$28 -> 27.88755949 | Q33: ='SAR and RAR'!$S$28 -> 30.31900025 | R33: =$Q33/N33-1 -> 0.02258755549 | S33: 0.01897160852 | T33: 0.08718729085
C34: Small Commercial (B-1) | D34: 44.16546008 | E34: 44.28059623 | F34: ='SAR and AR (B-1)'!H28 -> 41.12808819 | G34: ='SAR and AR (B-1)'!I28 -> 43.74361241 | H34: -0.009551529009 | I34: -0.01212684267 | J34: 0.06359459759 | M34: Small Commercial (B-1) | N34: 33.98941174 | O34: 34.10205516 | P34: ='SAR and AR (B-1)'!R28 -> 31.4681207 | Q34: ='SAR and AR (B-1)'!S28 -> 34.08364492 | R34: 0.002772427376 | S34: -0.0005398572602 | T34: 0.08311663232
B35: System | D35: 36.56790439 | E35: 36.61409129 | F35: ='SAR and RAR'!$H$29 -> 33.92277703 | G35: ='SAR and RAR'!$I$29 -> 35.98510297 | H35: =$G35/D35-1 -> -0.01593751202 | I35: -0.01717885924 | J35: 0.06079472634 | L35: Total System (SAR) | N35: 26.39576459 | O35: 26.42580918 | P35: ='SAR and RAR'!$R$29 -> 24.50820071 | Q35: ='SAR and RAR'!$S$29 -> 26.57052666 | R35: =$Q35/N35-1 -> 0.006620837662 | S35: 0.005476368895 | T35: 0.08414840283
B38: Basic Bundled Residential Monthly Average Bills | L38: All-Electric Bundled Residential Monthly Average Bills
D39: =$D$32 -> 2024-01-01 | E39: =$E$32 -> 2024-03-01 | F39: =$D$3&" Authorized" -> 2024 Authorized | G39: =$D$3&" w/Pending" -> 2024 w/Pending | H39: =$H$32 -> % Change over 01/1/2024 | I39: =$I$32 -> % Change over 03/1/2024 | J39: % Change over Authorized | N39: =$D$32 -> 2024-01-01 | O39: =$E$32 -> 2024-03-01 | P39: =$D$3&" Authorized" -> 2024 Authorized | Q39: =$D$3&" w/Pending" -> 2024 w/Pending | R39: =$H$32 -> % Change over 01/1/2024 | S39: =$I$32 -> % Change over 03/1/2024 | T39: % Change over Authorized
B40: Non-CARE | D40: =((D47*4)+(D54*8)+($L$8*2))/12 -> 166.9453386 | E40: 167.3576048 | F40: 153.771437 | G40: 163.8736356 | H40: =$G40/D40-1 -> -0.0183994533 | I40: -0.02081751343 | J40: 0.06569619726 | L40: Non-CARE | N40: =((N47*4)+(N54*8)+($L$8*2))/12 -> 140.0707255 | O40: 140.4029868 | P40: 128.8910407 | Q40: 137.4509207 | R40: =$Q40/N40-1 -> -0.01870344316 | S40: =$Q40/O40-1 -> -0.02102566453 | T40: =$Q40/P40-1 -> 0.06641175337
B41: CARE | D41: 100.6222381 | E41: 100.8786937 | F41: 92.40823561 | G41: 98.70657163 | H41: -0.01903820182 | I41: -0.02153202014 | J41: 0.0681577348 | L41: CARE | N41: 93.14144742 | O41: 93.36994831 | P41: 85.47730598 | Q41: 91.34599844 | R41: =$Q41/N41-1 -> -0.01927658448 | S41: =$Q41/O41-1 -> -0.02167667337 | T41: =$Q41/P41-1 -> 0.06865790152
B42: Total | D42: =((D49*4)+(D56*8)+($L$8*2))/12 -> 147.4108209 | E42: 147.7771954 | F42: 135.6977864 | G42: 144.6796119 | H42: -0.01852787321 | I42: -0.02096117355 | J42: 0.066189919 | L42: Total | N42: =((N49*4)+(N56*8)+($L$8*2))/12 -> 126.24838 | O42: 126.5500801 | P42: 116.104148 | Q42: 123.8713773 | R42: -0.01882798543 | S42: -0.02116713619 | T42: 0.06689880989
D44: 2 | E44: 4 | F44: 6 | G44: 8 | N44: 2 | O44: 4 | P44: 6 | Q44: 8
B45: Basic Bundled Residential Monthly Average Bills - Summer | L45: All-Electric Bundled Residential Monthly Average Bills - Summer
D46: =$D$32 -> 2024-01-01 | E46: =$E$32 -> 2024-03-01 | F46: =$D$3&" Authorized" -> 2024 Authorized | G46: =$D$3&" w/Pending" -> 2024 w/Pending | H46: =$H$32 -> % Change over 01/1/2024 | I46: =$I$32 -> % Change over 03/1/2024 | J46: % Change over Authorized | N46: =$D$32 -> 2024-01-01 | O46: =$E$32 -> 2024-03-01 | P46: =$D$3&" Authorized" -> 2024 Authorized | Q46: =$D$3&" w/Pending" -> 2024 w/Pending | R46: =$H$32 -> % Change over 01/1/2024 | S46: =$I$32 -> % Change over 03/1/2024 | T46: % Change over Authorized
B47: Non-CARE | D47: =VLOOKUP($D$4,'Res Bill Impact'!$B$38:$J$48,D44,FALSE) -> 182.1905786 | E47: =VLOOKUP($D$4,'Res Bill Impact'!$B$38:$J$48,E44,FALSE) -> 182.6187408 | F47: =VLOOKUP($D$4,'Res Bill Impact'!$B$38:$J$48,F44,FALSE) -> 168.5657959 | G47: =VLOOKUP($D$4,'Res Bill Impact'!$B$38:$J$48,G44,FALSE) -> 179.0150737 | H47: =$G47/D47-1 -> -0.01742957838 | I47: =$G47/E47-1 -> -0.01973328232 | J47: 0.0619893121 | L47: Non-CARE | N47: =VLOOKUP($D$4,'Res Bill Impact'!$L$38:$T$48,N44,FALSE) -> 138.9270366 | O47: =VLOOKUP($D$4,'Res Bill Impact'!$L$38:$T$48,O44,FALSE) -> 139.2468642 | P47: =VLOOKUP($D$4,'Res Bill Impact'!$L$38:$T$48,P44,FALSE) -> 128.531488 | Q47: =VLOOKUP($D$4,'Res Bill Impact'!$L$38:$T$48,Q44,FALSE) -> 136.4990665 | R47: =$Q47/N47-1 -> -0.01747658406 | S47: =$Q47/O47-1 -> -0.01973328232 | T47: =$Q47/P47-1 -> 0.0619893121
B48: CARE | D48: =VLOOKUP($D$4,'Res Bill Impact'!$B$54:$J$64,D44,FALSE) -> 109.3080914 | E48: =VLOOKUP($D$4,'Res Bill Impact'!$B$54:$J$64,E44,FALSE) -> 109.5628694 | F48: =VLOOKUP($D$4,'Res Bill Impact'!$B$54:$J$64,F44,FALSE) -> 101.1317469 | G48: =VLOOKUP($D$4,'Res Bill Impact'!$B$54:$J$64,G44,FALSE) -> 107.4008343 | H48: -0.01744845239 | I48: -0.01973328232 | J48: 0.0619893121 | L48: CARE | N48: =VLOOKUP($D$4,'Res Bill Impact'!$L$54:$T$64,N44,FALSE) -> 91.51869469 | O48: =VLOOKUP($D$4,'Res Bill Impact'!$L$54:$T$64,O44,FALSE) -> 91.73072235 | P48: =VLOOKUP($D$4,'Res Bill Impact'!$L$54:$T$64,P44,FALSE) -> 84.67182587 | Q48: =VLOOKUP($D$4,'Res Bill Impact'!$L$54:$T$64,Q44,FALSE) -> 89.92057411 | R48: =$Q48/N48-1 -> -0.01746223091 | S48: =$Q48/O48-1 -> -0.01973328232 | T48: =$Q48/P48-1 -> 0.0619893121
B49: Total | D49: =D47*(1-'SAR and RAR'!$AB$16)+D48*'SAR and RAR'!$AB$16 -> 160.7240877 | E49: =E47*(1-'SAR and RAR'!$AB$16)+E48*'SAR and RAR'!$AB$16 -> 161.101182 | F49: =F47*(1-'SAR and RAR'!$AB$16)+F48*'SAR and RAR'!$AB$16 -> 148.7040643 | G49: =G47*(1-'SAR and RAR'!$AB$16)+G48*'SAR and RAR'!$AB$16 -> 157.9221269 | H49: -0.01743335909 | I49: -0.01973328232 | J49: 0.0619893121 | L49: Total | N49: =N47*(1-'SAR and RAR'!$AB$16)+N48*'SAR and RAR'!$AB$16 -> 124.9635896 | O49: =O47*(1-'SAR and RAR'!$AB$16)+O48*'SAR and RAR'!$AB$16 -> 125.2516664 | P49: =P47*(1-'SAR and RAR'!$AB$16)+P48*'SAR and RAR'!$AB$16 -> 115.6132538 | Q49: =Q47*(1-'SAR and RAR'!$AB$16)+Q48*'SAR and RAR'!$AB$16 -> 122.7800399 | R49: -0.01747348798 | S49: -0.01973328232 | T49: 0.0619893121
D51: 3 | E51: 5 | F51: 7 | G51: 9 | N51: 3 | O51: 5 | P51: 7 | Q51: 9
B52: Basic Bundled Residential Monthly Average Bills - Winter | L52: All-Electric Bundled Residential Monthly Average Bills - Winter
D53: =$D$32 -> 2024-01-01 | E53: =$E$32 -> 2024-03-01 | F53: =$D$3&" Authorized" -> 2024 Authorized | G53: =$D$3&" w/Pending" -> 2024 w/Pending | H53: =$H$32 -> % Change over 01/1/2024 | I53: =$I$32 -> % Change over 03/1/2024 | J53: % Change over Authorized | N53: =$D$32 -> 2024-01-01 | O53: =$E$32 -> 2024-03-01 | P53: =$D$3&" Authorized" -> 2024 Authorized | Q53: =$D$3&" w/Pending" -> 2024 w/Pending | R53: =$H$32 -> % Change over 01/1/2024 | S53: =$I$32 -> % Change over 03/1/2024 | T53: % Change over Authorized
B54: Non-CARE | D54: =VLOOKUP($D$4,'Res Bill Impact'!$B$38:$J$48,D51,FALSE) -> 173.1157348 | E54: =VLOOKUP($D$4,'Res Bill Impact'!$B$38:$J$48,E51,FALSE) -> 173.5200531 | F54: =VLOOKUP($D$4,'Res Bill Impact'!$B$38:$J$48,F51,FALSE) -> 160.1672737 | G54: =VLOOKUP($D$4,'Res Bill Impact'!$B$38:$J$48,G51,FALSE) -> 170.0959329 | H54: =$G54/D54-1 -> -0.01744383293 | I54: -0.01973328232 | J54: 0.0619893121 | L54: Non-CARE | N54: =VLOOKUP($D$4,'Res Bill Impact'!$L$38:$T$48,N51,FALSE) -> 154.4355863 | O54: =VLOOKUP($D$4,'Res Bill Impact'!$L$38:$T$48,O51,FALSE) -> 154.7740643 | P54: =VLOOKUP($D$4,'Res Bill Impact'!$L$38:$T$48,P51,FALSE) -> 142.8638332 | Q54: =VLOOKUP($D$4,'Res Bill Impact'!$L$38:$T$48,Q51,FALSE) -> 151.719864 | R54: =$Q54/N54-1 -> -0.0175848218 | S54: =$Q54/O54-1 -> -0.01973328232 | T54: =$Q54/P54-1 -> 0.0619893121
B55: CARE | D55: =VLOOKUP($D$4,'Res Bill Impact'!$B$54:$J$64,D51,FALSE) -> 110.0723277 | E55: =VLOOKUP($D$4,'Res Bill Impact'!$B$54:$J$64,E51,FALSE) -> 110.3296221 | F55: =VLOOKUP($D$4,'Res Bill Impact'!$B$54:$J$64,F51,FALSE) -> 101.8394962 | G55: =VLOOKUP($D$4,'Res Bill Impact'!$B$54:$J$64,G51,FALSE) -> 108.1524565 | H55: -0.01744190608 | I55: -0.01973328232 | J55: 0.0619893121 | L55: CARE | N55: =VLOOKUP($D$4,'Res Bill Impact'!$L$54:$T$64,N51,FALSE) -> 107.74584 | O55: =VLOOKUP($D$4,'Res Bill Impact'!$L$54:$T$64,O51,FALSE) -> 107.9825775 | P55: =VLOOKUP($D$4,'Res Bill Impact'!$L$54:$T$64,P51,FALSE) -> 99.67306226 | Q55: =VLOOKUP($D$4,'Res Bill Impact'!$L$54:$T$64,Q51,FALSE) -> 105.8517268 | R55: =$Q55/N55-1 -> -0.01757945532 | S55: =$Q55/O55-1 -> -0.01973328232 | T55: =$Q55/P55-1 -> 0.0619893121
B56: Total | D56: =D54*(1-'SAR and RAR'!$AB$16)+D55*'SAR and RAR'!$AB$16 -> 154.5472037 | E56: =E54*(1-'SAR and RAR'!$AB$16)+E55*'SAR and RAR'!$AB$16 -> 154.9082182 | F56: =F54*(1-'SAR and RAR'!$AB$16)+F55*'SAR and RAR'!$AB$16 -> 142.9876637 | G56: =G54*(1-'SAR and RAR'!$AB$16)+G55*'SAR and RAR'!$AB$16 -> 151.8513706 | H56: -0.01744342872 | I56: -0.01973328232 | J56: 0.0619893121 | L56: Total | N56: =N54*(1-'SAR and RAR'!$AB$16)+N55*'SAR and RAR'!$AB$16 -> 140.6837914 | O56: =O54*(1-'SAR and RAR'!$AB$16)+O55*'SAR and RAR'!$AB$16 -> 140.9923032 | P56: =P54*(1-'SAR and RAR'!$AB$16)+P55*'SAR and RAR'!$AB$16 -> 130.1426113 | Q56: =Q54*(1-'SAR and RAR'!$AB$16)+Q55*'SAR and RAR'!$AB$16 -> 138.2100623 | R56: -0.01758361125 | S56: -0.01973328232 | T56: 0.0619893121
B59: Essential Use Basic Bundled Residential Monthly Average Bills | L59: Essential Use All-Electric Bundled Residential Monthly Average Bills
D60: =$D$32 -> 2024-01-01 | E60: =$E$32 -> 2024-03-01 | F60: =$D$3&" Authorized" -> 2024 Authorized | G60: =$D$3&" w/Pending" -> 2024 w/Pending | H60: =$H$32 -> % Change over 01/1/2024 | I60: =$I$32 -> % Change over 03/1/2024 | J60: % Change over Authorized | N60: =$D$32 -> 2024-01-01 | O60: =$E$32 -> 2024-03-01 | P60: =$D$3&" Authorized" -> 2024 Authorized | Q60: =$D$3&" w/Pending" -> 2024 w/Pending | R60: =$H$32 -> % Change over 01/1/2024 | S60: =$I$32 -> % Change over 03/1/2024 | T60: % Change over Authorized
B61: Basic Essential Use - Non-CARE | D61: =((D68*4)+(D75*8)+($L$8*2))/12 -> 115.2598191 | E61: 115.5325888 | F61: 105.9344787 | G61: 113.0712972 | H61: =$G61/D61-1 -> -0.01898772604 | I61: -0.02130387226 | J61: 0.06737011979 | L61: All-Electric Essential Use - Non-CARE | N61: =((N68*4)+(N75*8)+($L$8*2))/12 -> 151.4882057 | O61: 151.8403774 | P61: 139.448297 | Q61: 148.6626141 | R61: =$Q61/N61-1 -> -0.01865222165 | S61: =$Q61/O61-1 -> -0.02092831572 | T61: =$Q61/P61-1 -> 0.06607694221
B62: Basic Essential Use - CARE | D62: 71.71873186 | E62: 71.89651502 | F62: 65.65630428 | G62: 70.29630647 | H62: =$G62/D62-1 -> -0.01983338728 | I62: =$G62/E62-1 -> -0.02225710871 | J62: =$G62/F62-1 -> 0.07067108401 | L62: All-Electric Essential Use - CARE | N62: 95.27248686 | O62: 95.50202197 | P62: 87.44531152 | Q62: 93.43599929 | R62: =$Q62/N62-1 -> -0.01927615861 | S62: =$Q62/O62-1 -> -0.02163328735 | T62: =$Q62/P62-1 -> 0.06850782119
B63: Total | D63: =((D70*4)+(D77*8)+($L$8*2))/12 -> 102.4354166 | E63: 102.6802093 | F63: 94.07112032 | G63: 100.4725374 | H63: -0.0191621141 | I63: -0.02150046144 | J63: 0.06804869628 | L63: Total | N63: =((N70*4)+(N77*8)+($L$8*2))/12 -> 134.9306722 | O63: 135.2467231 | P63: 124.1315637 | Q63: 132.396407 | R63: -0.01878198003 | S63: -0.02107493643 | T63: 0.06658131949
D65: 2 | E65: 4 | F65: 6 | G65: 8 | N65: 2 | O65: 4 | P65: 6 | Q65: 8
B66: Essential Use Basic Bundled Residential Monthly Average Bills - Summer | L66: Essential Use All-Electric Bundled Residential Monthly Average Bills - Summer
D67: =$D$32 -> 2024-01-01 | E67: =$E$32 -> 2024-03-01 | F67: =$D$3&" Authorized" -> 2024 Authorized | G67: =$D$3&" w/Pending" -> 2024 w/Pending | H67: =$H$32 -> % Change over 01/1/2024 | I67: =$I$32 -> % Change over 03/1/2024 | J67: % Change over Authorized | N67: =$D$32 -> 2024-01-01 | O67: =$E$32 -> 2024-03-01 | P67: =$D$3&" Authorized" -> 2024 Authorized | Q67: =$D$3&" w/Pending" -> 2024 w/Pending | R67: =$H$32 -> % Change over 01/1/2024 | S67: =$I$32 -> % Change over 03/1/2024 | T67: % Change over Authorized
B68: Basic Essential Use - Non-CARE | D68: =VLOOKUP($D$4,'Res Bill Impact'!$B$70:$J$80,D65,FALSE) -> 125.3075959 | E68: =VLOOKUP($D$4,'Res Bill Impact'!$B$70:$J$80,E65,FALSE) -> 125.5822338 | F68: =VLOOKUP($D$4,'Res Bill Impact'!$B$70:$J$80,F65,FALSE) -> 115.9183833 | G68: =VLOOKUP($D$4,'Res Bill Impact'!$B$70:$J$80,G65,FALSE) -> 123.1040841 | H68: =$G68/D68-1 -> -0.0175848218 | I68: -0.01973328232 | J68: 0.0619893121 | L68: All-Electric Essential Use - Non-CARE | N68: =VLOOKUP($D$4,'Res Bill Impact'!$L$70:$T$80,N65,FALSE) -> 108.6851597 | O68: =VLOOKUP($D$4,'Res Bill Impact'!$L$70:$T$80,O65,FALSE) -> 108.9233661 | P68: =VLOOKUP($D$4,'Res Bill Impact'!$L$70:$T$80,P65,FALSE) -> 100.5414549 | Q68: =VLOOKUP($D$4,'Res Bill Impact'!$L$70:$T$80,Q65,FALSE) -> 106.7739505 | R68: =$Q68/N68-1 -> -0.0175848218 | S68: =$Q68/O68-1 -> -0.01973328232 | T68: =$Q68/P68-1 -> 0.0619893121
B69: Basic Essential Use - CARE | D69: =VLOOKUP($D$4,'Res Bill Impact'!$B$86:$J$96,D65,FALSE) -> 81.468282 | E69: =VLOOKUP($D$4,'Res Bill Impact'!$B$86:$J$96,E65,FALSE) -> 81.64728286 | F69: =VLOOKUP($D$4,'Res Bill Impact'!$B$86:$J$96,F65,FALSE) -> 75.36433094 | G69: =VLOOKUP($D$4,'Res Bill Impact'!$B$86:$J$96,G65,FALSE) -> 80.03611398 | H69: -0.01757945532 | I69: -0.01973328232 | J69: 0.0619893121 | L69: All-Electric Essential Use - CARE | N69: =VLOOKUP($D$4,'Res Bill Impact'!$L$86:$T$96,N65,FALSE) -> 70.661265 | O69: =VLOOKUP($D$4,'Res Bill Impact'!$L$86:$T$96,O65,FALSE) -> 70.81652085 | P69: =VLOOKUP($D$4,'Res Bill Impact'!$L$86:$T$96,P65,FALSE) -> 65.36702174 | Q69: =VLOOKUP($D$4,'Res Bill Impact'!$L$86:$T$96,Q65,FALSE) -> 69.41907845 | R69: =$Q69/N69-1 -> -0.01757945532 | S69: =$Q69/O69-1 -> -0.01973328232 | T69: =$Q69/P69-1 -> 0.0619893121
B70: Total | D70: =D68*(1-'SAR and RAR'!$AB$16)+D69*'SAR and RAR'!$AB$16 -> 112.395355 | E70: =E68*(1-'SAR and RAR'!$AB$16)+E69*'SAR and RAR'!$AB$16 -> 112.6418244 | F70: =F68*(1-'SAR and RAR'!$AB$16)+F69*'SAR and RAR'!$AB$16 -> 103.973769 | G70: =G68*(1-'SAR and RAR'!$AB$16)+G69*'SAR and RAR'!$AB$16 -> 110.4190314 | H70: -0.01758367611 | I70: -0.01973328232 | J70: 0.0619893121 | L70: Total | N70: =N68*(1-'SAR and RAR'!$AB$16)+N69*'SAR and RAR'!$AB$16 -> 97.48576705 | O70: =O68*(1-'SAR and RAR'!$AB$16)+O69*'SAR and RAR'!$AB$16 -> 97.69954153 | P70: =P68*(1-'SAR and RAR'!$AB$16)+P69*'SAR and RAR'!$AB$16 -> 90.18133027 | Q70: =Q68*(1-'SAR and RAR'!$AB$16)+Q69*'SAR and RAR'!$AB$16 -> 95.7716089 | R70: -0.01758367611 | S70: -0.01973328232 | T70: 0.0619893121
D72: 3 | E72: 5 | F72: 7 | G72: 9 | N72: 3 | O72: 5 | P72: 7 | Q72: 9
B73: Essential Use Basic Bundled Residential Monthly Average Bills - Winter | L73: Essential Use All-Electric Bundled Residential Monthly Average Bills - Winter
D74: =$D$32 -> 2024-01-01 | E74: =$E$32 -> 2024-03-01 | F74: =$D$3&" Authorized" -> 2024 Authorized | G74: =$D$3&" w/Pending" -> 2024 w/Pending | H74: =$H$32 -> % Change over 01/1/2024 | I74: =$I$32 -> % Change over 03/1/2024 | J74: % Change over Authorized | N74: =$D$32 -> 2024-01-01 | O74: =$E$32 -> 2024-03-01 | P74: =$D$3&" Authorized" -> 2024 Authorized | Q74: =$D$3&" w/Pending" -> 2024 w/Pending | R74: =$H$32 -> % Change over 01/1/2024 | S74: =$I$32 -> % Change over 03/1/2024 | T74: % Change over Authorized
B75: Basic Essential Use - Non-CARE | D75: =VLOOKUP($D$4,'Res Bill Impact'!$B$70:$J$80,D72,FALSE) -> 124.0289469 | E75: =VLOOKUP($D$4,'Res Bill Impact'!$B$70:$J$80,E72,FALSE) -> 124.3007824 | F75: =VLOOKUP($D$4,'Res Bill Impact'!$B$70:$J$80,F72,FALSE) -> 114.7355426 | G75: =VLOOKUP($D$4,'Res Bill Impact'!$B$70:$J$80,G72,FALSE) -> 121.84792 | H75: =$G75/D75-1 -> -0.0175848218 | I75: -0.01973328232 | J75: 0.0619893121 | L75: All-Electric Essential Use - Non-CARE | N75: =VLOOKUP($D$4,'Res Bill Impact'!$L$70:$T$80,N72,FALSE) -> 186.6827449 | O75: =VLOOKUP($D$4,'Res Bill Impact'!$L$70:$T$80,O72,FALSE) -> 187.0918993 | P75: =VLOOKUP($D$4,'Res Bill Impact'!$L$70:$T$80,P72,FALSE) -> 172.6947343 | Q75: =VLOOKUP($D$4,'Res Bill Impact'!$L$70:$T$80,Q72,FALSE) -> 183.3999621 | R75: =$Q75/N75-1 -> -0.0175848218 | S75: =$Q75/O75-1 -> -0.01973328232 | T75: =$Q75/P75-1 -> 0.0619893121
B76: Basic Essential Use - CARE | D76: =VLOOKUP($D$4,'Res Bill Impact'!$B$86:$J$96,D72,FALSE) -> 80.636973 | E76: =VLOOKUP($D$4,'Res Bill Impact'!$B$86:$J$96,E72,FALSE) -> 80.81414732 | F76: =VLOOKUP($D$4,'Res Bill Impact'!$B$86:$J$96,F72,FALSE) -> 74.59530716 | G76: =VLOOKUP($D$4,'Res Bill Impact'!$B$86:$J$96,G72,FALSE) -> 79.21941894 | H76: -0.01757945532 | I76: -0.01973328232 | J76: 0.0619893121 | L76: All-Electric Essential Use - CARE | N76: =VLOOKUP($D$4,'Res Bill Impact'!$L$86:$T$96,N72,FALSE) -> 121.371114 | O76: =VLOOKUP($D$4,'Res Bill Impact'!$L$86:$T$96,O72,FALSE) -> 121.6377888 | P76: =VLOOKUP($D$4,'Res Bill Impact'!$L$86:$T$96,P72,FALSE) -> 112.2774726 | Q76: =VLOOKUP($D$4,'Res Bill Impact'!$L$86:$T$96,Q72,FALSE) -> 119.2374759 | R76: =$Q76/N76-1 -> -0.01757945532 | S76: =$Q76/O76-1 -> -0.01973328232 | T76: =$Q76/P76-1 -> 0.0619893121
B77: Total | D77: =D75*(1-'SAR and RAR'!$AB$16)+D76*'SAR and RAR'!$AB$16 -> 111.2484636 | E77: =E75*(1-'SAR and RAR'!$AB$16)+E76*'SAR and RAR'!$AB$16 -> 111.492418 | F77: =F75*(1-'SAR and RAR'!$AB$16)+F76*'SAR and RAR'!$AB$16 -> 102.9128122 | G77: =G75*(1-'SAR and RAR'!$AB$16)+G76*'SAR and RAR'!$AB$16 -> 109.2923066 | H77: -0.01758367611 | I77: -0.01973328232 | J77: 0.0619893121 | L77: Total | N77: =N75*(1-'SAR and RAR'!$AB$16)+N76*'SAR and RAR'!$AB$16 -> 167.446141 | O77: =O75*(1-'SAR and RAR'!$AB$16)+O76*'SAR and RAR'!$AB$16 -> 167.8133302 | P77: =P75*(1-'SAR and RAR'!$AB$16)+P76*'SAR and RAR'!$AB$16 -> 154.8996967 | Q77: =Q75*(1-'SAR and RAR'!$AB$16)+Q76*'SAR and RAR'!$AB$16 -> 164.5018223 | R77: -0.01758367611 | S77: -0.01973328232 | T77: 0.0619893121
B80: Typical Customer Basic Bundled Residential Monthly Average Bills | L80: Typical Customer All-Electric Bundled Residential Monthly Average Bills
D81: =$D$32 -> 2024-01-01 | E81: =$E$32 -> 2024-03-01 | F81: =$D$3&" Authorized" -> 2024 Authorized | G81: =$D$3&" w/Pending" -> 2024 w/Pending | H81: =$H$32 -> % Change over 01/1/2024 | I81: =$I$32 -> % Change over 03/1/2024 | J81: % Change over Authorized | N81: =$D$32 -> 2024-01-01 | O81: =$E$32 -> 2024-03-01 | P81: =$D$3&" Authorized" -> 2024 Authorized | Q81: =$D$3&" w/Pending" -> 2024 w/Pending | R81: =$H$32 -> % Change over 01/1/2024 | S81: =$I$32 -> % Change over 03/1/2024 | T81: % Change over Authorized
B82: 500kWh Monthly Usage - Non-CARE | D82: =((D89*4)+(D96*8)+($L$8*2))/12 -> 222.3586636 | E82: 222.9204876 | F82: 205.0586242 | G82: 218.3400803 | H82: =$G82/D82-1 -> -0.01807252845 | I82: =$G82/E82-1 -> -0.02054726906 | J82: =$G82/F82-1 -> 0.06476906867 | L82: 500kWh Monthly Usage - Non-CARE | N82: =((N89*4)+(N96*8)+($L$8*2))/12 -> 213.4300809 | O82: 213.9497853 | P82: 196.7782387 | Q82: 209.5463994 | R82: =$Q82/N82-1 -> -0.01819650442 | S82: =$Q82/O82-1 -> -0.02058139872 | T82: =$Q82/P82-1 -> 0.06488604022
B83: 500kWh Monthly Usage - CARE | D83: 141.3474464 | E83: 141.7147519 | F83: 130.1018624 | G83: 138.7368004 | H83: =$G83/D83-1 -> -0.01846970787 | I83: -0.02101370175 | J83: 0.06637059495 | L83: 500kWh Monthly Usage - CARE | N83: 135.5430642 | O83: 135.8824503 | P83: 124.7183702 | Q83: 133.0195892 | R83: =$Q83/N83-1 -> -0.01861751455 | S83: =$Q83/O83-1 -> -0.02106865949 | T83: =$Q83/P83-1 -> 0.06655971386
B84: Total | D84: =((D91*4)+(D98*8)+($L$8*2))/12 -> 198.4979719 | E84: 199.0025032 | F84: 182.9811855 | G84: 194.8940763 | H84: -0.01815583066 | I84: -0.02064510161 | J84: 0.06510445783 | L84: Total | N84: =((N91*4)+(N98*8)+($L$8*2))/12 -> 190.4895776 | O84: 190.9561718 | P84: 175.5540383 | Q84: 187.0065255 | R84: -0.01828473852 | S84: -0.020683523 | T84: 0.06523624999
D86: 2 | E86: 4 | F86: 6 | G86: 8 | N86: 2 | O86: 4 | P86: 6 | Q86: 8
B87: Typical Customer Basic Bundled Residential Monthly Average Bills - Summer | L87: Typical Customer All-Electric Bundled Residential Monthly Average Bills - Summer
D88: =$D$32 -> 2024-01-01 | E88: =$E$32 -> 2024-03-01 | F88: =$D$3&" Authorized" -> 2024 Authorized | G88: =$D$3&" w/Pending" -> 2024 w/Pending | H88: =$H$32 -> % Change over 01/1/2024 | I88: =$I$32 -> % Change over 03/1/2024 | J88: % Change over Authorized | N88: =$D$32 -> 2024-01-01 | O88: =$E$32 -> 2024-03-01 | P88: =$D$3&" Authorized" -> 2024 Authorized | Q88: =$D$3&" w/Pending" -> 2024 w/Pending | R88: =$H$32 -> % Change over 01/1/2024 | S88: =$I$32 -> % Change over 03/1/2024 | T88: % Change over Authorized
B89: 500kWh Monthly Usage - Non-CARE | D89: =VLOOKUP($D$4,'Res Bill Impact'!$B$102:$J$112,D86,FALSE) -> 231.3397886 | E89: =VLOOKUP($D$4,'Res Bill Impact'!$B$102:$J$112,E86,FALSE) -> 231.900602 | F89: =VLOOKUP($D$4,'Res Bill Impact'!$B$102:$J$112,F86,FALSE) -> 214.0553011 | G89: =VLOOKUP($D$4,'Res Bill Impact'!$B$102:$J$112,G86,FALSE) -> 227.324442 | H89: =$G89/D89-1 -> -0.01735692188 | I89: -0.01973328232 | J89: 0.0619893121 | L89: 500kWh Monthly Usage - Non-CARE | N89: =VLOOKUP($D$4,'Res Bill Impact'!$L$102:$T$112,N86,FALSE) -> 222.7397925 | O89: =VLOOKUP($D$4,'Res Bill Impact'!$L$102:$T$112,O86,FALSE) -> 223.2600364 | P89: =VLOOKUP($D$4,'Res Bill Impact'!$L$102:$T$112,P86,FALSE) -> 206.0796475 | Q89: =VLOOKUP($D$4,'Res Bill Impact'!$L$102:$T$112,Q86,FALSE) -> 218.8543831 | R89: =$Q89/N89-1 -> -0.01744371467 | S89: =$Q89/O89-1 -> -0.01973328232 | T89: =$Q89/P89-1 -> 0.0619893121
B90: 500kWh Monthly Usage - CARE | D90: =VLOOKUP($D$4,'Res Bill Impact'!$B$117:$J$127,D86,FALSE) -> 150.4035289 | E90: =VLOOKUP($D$4,'Res Bill Impact'!$B$117:$J$127,E86,FALSE) -> 150.7701645 | F90: =VLOOKUP($D$4,'Res Bill Impact'!$B$117:$J$127,F86,FALSE) -> 139.168043 | G90: =VLOOKUP($D$4,'Res Bill Impact'!$B$117:$J$127,G86,FALSE) -> 147.7949743 | H90: -0.01734370603 | I90: -0.01973328232 | J90: 0.0619893121 | L90: 500kWh Monthly Usage - CARE | N90: =VLOOKUP($D$4,'Res Bill Impact'!$L$117:$T$127,N86,FALSE) -> 144.8127575 | O90: =VLOOKUP($D$4,'Res Bill Impact'!$L$117:$T$127,O86,FALSE) -> 145.1525012 | P90: =VLOOKUP($D$4,'Res Bill Impact'!$L$117:$T$127,P86,FALSE) -> 133.9826723 | Q90: =VLOOKUP($D$4,'Res Bill Impact'!$L$117:$T$127,Q86,FALSE) -> 142.2881659 | R90: =$Q90/N90-1 -> -0.0174334886 | S90: =$Q90/O90-1 -> -0.01973328232 | T90: =$Q90/P90-1 -> 0.0619893121
B91: Total | D91: =D89*(1-'SAR and RAR'!$AB$16)+D90*'SAR and RAR'!$AB$16 -> 207.5011745 | E91: =E89*(1-'SAR and RAR'!$AB$16)+E90*'SAR and RAR'!$AB$16 -> 208.0047957 | F91: =F89*(1-'SAR and RAR'!$AB$16)+F90*'SAR and RAR'!$AB$16 -> 191.9983337 | G91: =G89*(1-'SAR and RAR'!$AB$16)+G90*'SAR and RAR'!$AB$16 -> 203.9001783 | H91: -0.01735410045 | I91: -0.01973328232 | J91: 0.0619893121 | L91: Total | N91: =N89*(1-'SAR and RAR'!$AB$16)+N90*'SAR and RAR'!$AB$16 -> 199.7875024 | O91: =O89*(1-'SAR and RAR'!$AB$16)+O90*'SAR and RAR'!$AB$16 -> 200.2545826 | P91: =P89*(1-'SAR and RAR'!$AB$16)+P90*'SAR and RAR'!$AB$16 -> 184.8445179 | Q91: =Q89*(1-'SAR and RAR'!$AB$16)+Q90*'SAR and RAR'!$AB$16 -> 196.3029024 | R91: -0.01744153151 | S91: -0.01973328232 | T91: 0.0619893121
D93: 3 | E93: 5 | F93: 7 | G93: 9 | N93: 3 | O93: 5 | P93: 7 | Q93: 9
B94: Typical Customer Basic Bundled Residential Monthly Average Bills - Winter | L94: Typical Customer All-Electric Bundled Residential Monthly Average Bills - Winter
D95: =$D$32 -> 2024-01-01 | E95: =$E$32 -> 2024-03-01 | F95: =$D$3&" Authorized" -> 2024 Authorized | G95: =$D$3&" w/Pending" -> 2024 w/Pending | H95: =$H$32 -> % Change over 01/1/2024 | I95: =$I$32 -> % Change over 03/1/2024 | J95: % Change over Authorized | N95: =$D$32 -> 2024-01-01 | O95: =$E$32 -> 2024-03-01 | P95: =$D$3&" Authorized" -> 2024 Authorized | Q95: =$D$3&" w/Pending" -> 2024 w/Pending | R95: =$H$32 -> % Change over 01/1/2024 | S95: =$I$32 -> % Change over 03/1/2024 | T95: % Change over Authorized
B96: 500kWh Monthly Usage - Non-CARE | D96: =VLOOKUP($D$4,'Res Bill Impact'!$B$102:$J$112,D93,FALSE) -> 231.6611173 | E96: =VLOOKUP($D$4,'Res Bill Impact'!$B$102:$J$112,E93,FALSE) -> 232.2234466 | F96: =VLOOKUP($D$4,'Res Bill Impact'!$B$102:$J$112,F93,FALSE) -> 214.353302 | G96: =VLOOKUP($D$4,'Res Bill Impact'!$B$102:$J$112,G93,FALSE) -> 227.6409157 | H96: =$G96/D96-1 -> -0.01735380386 | I96: -0.01973328232 | J96: 0.0619893121 | L96: 500kWh Monthly Usage - Non-CARE | N96: =VLOOKUP($D$4,'Res Bill Impact'!$L$102:$T$112,N93,FALSE) -> 222.5682412 | O96: =VLOOKUP($D$4,'Res Bill Impact'!$L$102:$T$112,O93,FALSE) -> 223.0876759 | P96: =VLOOKUP($D$4,'Res Bill Impact'!$L$102:$T$112,P93,FALSE) -> 205.9205506 | Q96: =VLOOKUP($D$4,'Res Bill Impact'!$L$102:$T$112,Q93,FALSE) -> 218.6854238 | R96: =$Q96/N96-1 -> -0.01744551423 | S96: =$Q96/O96-1 -> -0.01973328232 | T96: =$Q96/P96-1 -> 0.0619893121
B97: 500kWh Monthly Usage - CARE | D97: =VLOOKUP($D$4,'Res Bill Impact'!$B$117:$J$127,D93,FALSE) -> 150.6124214 | E97: =VLOOKUP($D$4,'Res Bill Impact'!$B$117:$J$127,E93,FALSE) -> 150.9800619 | F97: =VLOOKUP($D$4,'Res Bill Impact'!$B$117:$J$127,F93,FALSE) -> 139.3617883 | G97: =VLOOKUP($D$4,'Res Bill Impact'!$B$117:$J$127,G93,FALSE) -> 148.0007297 | H97: -0.01734048059 | I97: -0.01973328232 | J97: 0.0619893121 | L97: 500kWh Monthly Usage - CARE | N97: =VLOOKUP($D$4,'Res Bill Impact'!$L$117:$T$127,N93,FALSE) -> 144.7012337 | O97: =VLOOKUP($D$4,'Res Bill Impact'!$L$117:$T$127,O93,FALSE) -> 145.040441 | P97: =VLOOKUP($D$4,'Res Bill Impact'!$L$117:$T$127,P93,FALSE) -> 133.8792354 | Q97: =VLOOKUP($D$4,'Res Bill Impact'!$L$117:$T$127,Q93,FALSE) -> 142.1783171 | R97: =$Q97/N97-1 -> -0.01743535014 | S97: =$Q97/O97-1 -> -0.01973328232 | T97: =$Q97/P97-1 -> 0.0619893121
B98: Total | D98: =D96*(1-'SAR and RAR'!$AB$16)+D97*'SAR and RAR'!$AB$16 -> 207.7893868 | E98: =E96*(1-'SAR and RAR'!$AB$16)+E97*'SAR and RAR'!$AB$16 -> 208.2943732 | F98: =F96*(1-'SAR and RAR'!$AB$16)+F97*'SAR and RAR'!$AB$16 -> 192.2656276 | G98: =G96*(1-'SAR and RAR'!$AB$16)+G97*'SAR and RAR'!$AB$16 -> 204.1840415 | H98: -0.01735095949 | I98: -0.01973328232 | J98: 0.0619893121 | L98: Total | N98: =N96*(1-'SAR and RAR'!$AB$16)+N97*'SAR and RAR'!$AB$16 -> 199.6336314 | O98: =O96*(1-'SAR and RAR'!$AB$16)+O97*'SAR and RAR'!$AB$16 -> 200.0999827 | P98: =P96*(1-'SAR and RAR'!$AB$16)+P97*'SAR and RAR'!$AB$16 -> 184.7018148 | Q98: =Q96*(1-'SAR and RAR'!$AB$16)+Q97*'SAR and RAR'!$AB$16 -> 196.1513532 | R98: -0.0174433443 | S98: -0.01973328232 | T98: 0.0619893121
B100: Small Commercial Monthly Average Bills
D101: 2023-01-01 | E101: 2023-09-01 | F101: =$D$3&" Authorized" -> 2024 Authorized | G101: =$D$3&" w/Pending" -> 2024 w/Pending | H101: % Change over 01/1/2023 | I101: % Change over 09/1/2023 | J101: % Change over Authorized
B102: NAICS 531 | D102: =('Bill Impact (B-1)'!C33*4+'Bill Impact (B-1)'!D33*8)/12 -> 443.3100146 | E102: =('Bill Impact (B-1)'!E33*4+'Bill Impact (B-1)'!F33*8)/12 -> 444.4598148 | F102: =('Bill Impact (B-1)'!G33*4+'Bill Impact (B-1)'!H33*8)/12 -> 414.6150318 | G102: =('Bill Impact (B-1)'!I33*4+'Bill Impact (B-1)'!J33*8)/12 -> 440.7564519 | H102: =$G102/D102-1 -> -0.005760218738 | I102: =$G102/E102-1 -> -0.008332278231 | J102: =$G102/F102-1 -> 0.06304986092
B103: NAICS 621 | D103: =('Bill Impact (B-1)'!C34*4+'Bill Impact (B-1)'!D34*8)/12 -> 529.5192953 | E103: =('Bill Impact (B-1)'!E34*4+'Bill Impact (B-1)'!F34*8)/12 -> 530.8961987 | F103: =('Bill Impact (B-1)'!G34*4+'Bill Impact (B-1)'!H34*8)/12 -> 495.1601974 | G103: =('Bill Impact (B-1)'!I34*4+'Bill Impact (B-1)'!J34*8)/12 -> 526.4618096 | H103: -0.005774077844 | I103: -0.008352647998 | J103: 0.06321512189
B104: NAICS 722 | D104: =('Bill Impact (B-1)'!C35*4+'Bill Impact (B-1)'!D35*8)/12 -> 1327.63767 | E104: =('Bill Impact (B-1)'!E35*4+'Bill Impact (B-1)'!F35*8)/12 -> 1331.109581 | F104: =('Bill Impact (B-1)'!G35*4+'Bill Impact (B-1)'!H35*8)/12 -> 1241.012974 | G104: =('Bill Impact (B-1)'!I35*4+'Bill Impact (B-1)'!J35*8)/12 -> 1319.929724 | H104: -0.005805760737 | I104: -0.008398901166 | J104: 0.06359059235
B106: Small Commercial Monthly Average Bills - Summer
D107: 2023-01-01 | E107: 2023-09-01 | F107: =$D$3&" Authorized" -> 2024 Authorized | G107: =$D$3&" w/Pending" -> 2024 w/Pending | H107: % Change over 01/1/2023 | I107: % Change over 09/1/2023 | J107: % Change over Authorized
B108: NAICS 531 | D108: ='Bill Impact (B-1)'!C33 -> 491.8738884 | E108: ='Bill Impact (B-1)'!E33 -> 493.0889378 | F108: ='Bill Impact (B-1)'!G33 -> 461.7416678 | G108: ='Bill Impact (B-1)'!I33 -> 489.1991351 | H108: =$G108/D108-1 -> -0.00543788431 | I108: =$G108/E108-1 -> -0.007888643043 | J108: =$G108/F108-1 -> 0.05946499804
B109: NAICS 621 | D109: ='Bill Impact (B-1)'!C34 -> 637.9684803 | E109: ='Bill Impact (B-1)'!E34 -> 639.5526295 | F109: ='Bill Impact (B-1)'!G34 -> 598.6828861 | G109: ='Bill Impact (B-1)'!I34 -> 634.4812075 | H109: -0.005466214831 | I109: -0.007929639831 | J109: 0.05979513062
B110: NAICS 722 | D110: ='Bill Impact (B-1)'!C35 -> 1626.605326 | E110: ='Bill Impact (B-1)'!E35 -> 1630.649337 | F110: ='Bill Impact (B-1)'!G35 -> 1526.317206 | G110: ='Bill Impact (B-1)'!I35 -> 1617.703029 | H110: -0.00547293004 | I110: -0.007939357183 | J110: 0.05987341517
B112: Small Commercial Monthly Average Bills - Winter
D113: 2023-01-01 | E113: 2023-09-01 | F113: =$D$3&" Authorized" -> 2024 Authorized | G113: =$D$3&" w/Pending" -> 2024 w/Pending | H113: % Change over 01/1/2023 | I113: % Change over 09/1/2023 | J113: % Change over Authorized
B114: NAICS 531 | D114: ='Bill Impact (B-1)'!D33 -> 419.0280777 | E114: ='Bill Impact (B-1)'!F33 -> 420.1452533 | F114: ='Bill Impact (B-1)'!H33 -> 391.0517139 | G114: ='Bill Impact (B-1)'!J33 -> 416.5351103 | H114: =$G114/D114-1 -> -0.005949404018 | I114: =$G114/E114-1 -> -0.008592606775 | J114: =$G114/F114-1 -> 0.06516630806
B115: NAICS 621 | D115: ='Bill Impact (B-1)'!D34 -> 475.2947028 | E115: ='Bill Impact (B-1)'!F34 -> 476.5679833 | F115: ='Bill Impact (B-1)'!H34 -> 443.3988531 | G115: ='Bill Impact (B-1)'!J34 -> 472.4521107 | H115: -0.005980693757 | I115: -0.008636485766 | J115: 0.06552398019
B116: NAICS 722 | D116: ='Bill Impact (B-1)'!D35 -> 1178.153842 | E116: ='Bill Impact (B-1)'!F35 -> 1181.339704 | F116: ='Bill Impact (B-1)'!H35 -> 1098.360858 | G116: ='Bill Impact (B-1)'!J35 -> 1171.043071 | H116: -0.006035520284 | I116: -0.008716064421 | J116: 0.06617334621

Sheet Authorized Rev Req (hidden)
A2: Annual Period 2024
A3: Reporting Date: March 1, 2024
B5: January 1, 2023 | C5: March 1 | D5: June 1 | E5: July 1 | F5: September 1 | G5: January 1, 2024 | H5: March 1, 2024 | I5: January 1, 2023 | J5: March 1 | K5: June 1 | L5: July 1 | M5: September 1 | N5: January 1, 2024 | O5: March 1, 2024
B6: 6805-E | C6: 6863-E-A | D6: 6946-E | E6: 6968-E | F6: 7009-E | G6: 7116-E | H6: 7191-E | I6: =B6 -> 6805-E | J6: 6863-E-A | K6: 6946-E | L6: 6968-E | M6: 7009-E | N6: 7116-E | O6: 7191-E
A7: Filing Description | B7: Authority for Revenue Requirement | I7: Authorized Revenue Requirement | P7: Revenue Recovery Mechanism | Q7: Balancing Account
A8: Safety Affordability Reliability Proceedings
A9: General Rate Case | B9: D.20-12-005, AL 6389-E | C9: =B9 -> D.20-12-005, AL 6389-E | D9: =C9 -> D.20-12-005, AL 6389-E | E9: =D9 -> D.20-12-005, AL 6389-E | F9: =E9 -> D.20-12-005, AL 6389-E | G9: D.23-11-069 | H9: =G9 -> D.23-11-069 | I9: 4813601.942 | J9: =I9 -> 4813601.942 | K9: =J9 -> 4813601.942 | L9: =K9 -> 4813601.942 | M9: =L9 -> 4813601.942 | N9: 6515126.952 | O9: =N9 -> 6515126.952 | P9: Distribution | Q9: =IF(RIGHT(A9,1)="*","Y","N") -> N
A10: General Rate Case (Distribution - Wildfire) | B10: D.20-12-005, AL 6389-E | C10: D.20-12-005, AL 6389-E | D10: =C10 -> D.20-12-005, AL 6389-E | E10: D.20-12-005, AL 6389-E | F10: =E10 -> D.20-12-005, AL 6389-E | G10: D.23-11-069 | H10: =G10 -> D.23-11-069 | I10: 473620.7536 | J10: =I10 -> 473620.7536 | K10: =J10 -> 473620.7536 | L10: 473620.7536 | M10: =L10 -> 473620.7536 | N10: 817618.5323 | O10: =N10 -> 817618.5323 | P10: Distribution (Wildfire) | Q10: N
A11: General Rate Case - DRAM* | B11: Preliminary Statement CZ | C11: Preliminary Statement CZ | D11: Preliminary Statement CZ | E11: Preliminary Statement CZ | F11: Preliminary Statement CZ | G11: Preliminary Statement CZ | H11: Preliminary Statement CZ | I11: 332625.7393 | J11: =I11 -> 332625.7393 | K11: 332625.7393 | L11: 332625.7393 | M11: 332625.7393 | N11: 882975.7077 | O11: 882975.7077 | P11: Distribution | Q11: Y
A12: 2023 GRC Late Implementation | G12: D.23-11-069 | H12: D.23-11-069 | N12: 872096.7104 | O12: 872096.7104 | P12: Distribution | Q12: N | U12: AET Table 2
A13: 2023 GRC Track II | G13: D.23-01-005 | H13: D.23-01-005 | N13: 8928.685025 | O13: 8928.685025 | P13: Distribution | Q13: N | S13: Generation | T13: =SUMIF(P:P,S13,N:N) -> 4739384.554
A14: 2023 GRC Self-Insurance | C14: D.23-01-005 | D14: D.23-01-005 | E14: =D14 -> D.23-01-005 | F14: D.23-01-005 | G14: D.23-01-005 | H14: D.23-01-005 | J14: 404324.4 | K14: 404324.4 | L14: 404324.4 | M14: 404324.4 | N14: 404008.1263 | O14: 404008.1263 | P14: Distribution | Q14: N | S14: NSGC | T14: 442796.6414 | U14: 442796.6414 | V14: =U14-T14 -> 0
A15: General Rate Case | B15: D.20-12-005, AL 6389-E | C15: D.20-12-005, AL 6389-E | D15: D.20-12-005, AL 6389-E | E15: D.20-12-005, AL 6389-E | F15: D.20-12-005, AL 6389-E | G15: D.23-11-069 | H15: D.23-11-069 | I15: 2286604.199 | J15: =I15 -> 2286604.199 | K15: 2286604.199 | L15: 2286604.199 | M15: 2286604.199 | N15: 2264591.366 | O15: 2264591.366 | P15: PCIA | Q15: N | S15: Distribution | T15: 9460858.876 | U15: 11741234.54 | V15: =U15-T15-T26 -> 8.847564459e-09
A16: 2023 GRC Late Implementation | B16: D.20-12-005 | C16: D.20-12-005 | D16: D.20-12-005 | E16: D.20-12-005 | F16: D.20-12-005 | G16: D.23-11-069 | H16: D.23-11-069 | N16: -993.7272372 | O16: -993.7272372 | P16: PCIA | Q16: N | S16: GHG Revenue | T16: -689321.0839 | U16: -689321.0839 | V16: 0
A17: Pension Contribution | B17: AL 6492-E-B | C17: AL 6492-E-B | D17: AL 6492-E-B | E17: AL 6492-E-B | F17: AL 6492-E-B | G17: AL 4568-G-B/6492-E-B | H17: AL 4568-G-B/6492-E-B | I17: 54524.9293 | J17: =I17 -> 54524.9293 | K17: 54524.9293 | L17: 54524.9293 | M17: 54524.9293 | N17: 66013.95167 | O17: 66013.95167 | P17: Distribution | Q17: N | S17: CTC | T17: 75596.53371 | U17: 75596.53371 | V17: 0
A18: Pension Contribution * | B18: AL 6492-E-B | G18: AL 4568-G-B/6492-E-B | H18: AL 4568-G-B/6492-E-B | I18: -10.1430133 | J18: -10.1430133 | K18: -10.1430133 | L18: -10.1430133 | M18: -10.1430133 | N18: -0.0594814309 | O18: -0.0594814309 | P18: Distribution | Q18: Y | S18: NDC | T18: -209072.9218 | U18: -209072.9218 | V18: 0
A19: Pension Contribution | B19: AL 6492-E-B | C19: AL 6492-E-B | D19: AL 6492-E-B | E19: AL 6492-E-B | F19: AL 6492-E-B | G19: AL 4568-G-B/6492-E-B | H19: AL 4568-G-B/6492-E-B | I19: 35519.5992 | J19: 35519.5992 | K19: 35519.5992 | L19: 35519.5992 | M19: 35519.5992 | N19: 40840.81063 | O19: 40840.81063 | P19: PCIA | Q19: N | S19: Public Purpose Program | T19: 663440.3251 | U19: 663440.3251 | V19: =U19-T19 -> 0
A20: Department of Energy Litigation Proceeds | B20: D. 17-05-013 | C20: D. 17-05-013 | D20: D. 17-05-013 | E20: D. 17-05-013 | F20: D. 17-05-013 | G20: n/a | H20: n/a | I20: -5740 | J20: -5740 | K20: -5740 | L20: -5740 | M20: -5740 | O20: 0 | P20: NDC | Q20: N | S20: DWR BC | T20: 393053.029 | U20: 393053.0286 | V20: =U20-T20 -> -0.0004221504787
A21: Department of Energy Litigation Proceeds | B21: D. 17-05-013 | C21: D. 17-05-013 | D21: D. 17-05-013 | E21: D. 17-05-013 | F21: D. 17-05-013 | G21: D.23-11-069 | H21: D.23-11-069 | I21: -14760 | J21: -14760 | K21: -14760 | L21: -14760 | M21: -14760 | N21: -1828 | O21: -1828 | P21: PCIA | Q21: N | S21: ECRA | T21: -2005.964495 | U21: -2005.964495 | V21: 0
A22: ERRA | B22: D.22-12-044 | C22: D.22-12-044 | D22: D.22-12-044 | E22: D.22-12-044 | F22: D.22-12-044 | G22: D.23-12-022 | H22: D.23-12-022 | I22: 4012293.089 | J22: 4012293.089 | K22: 4012293.089 | L22: 4012293.089 | M22: 4012293.089 | N22: 4421013.272 | O22: 4421013.272 | P22: Generation | Q22: N | S22: Transmission | T22: 2830225.687 | U22: 2830225.687 | V22: 0.0003389883786
A23: ERRA | B23: D.22-12-044 | C23: D.22-12-044 | D23: D.22-12-044 | E23: D.22-12-044 | F23: D.22-12-044 | G23: D.23-12-022 | H23: D.23-12-022 | I23: -2229130.64 | J23: -2229130.64 | K23: -2229130.64 | L23: -2229130.64 | M23: -2229130.64 | N23: -1895054.417 | O23: -1895054.417 | P23: PCIA | Q23: N | S23: FERC BAs | T23: -5499.360107 | U23: -5499.36 | V23: 0.000107074161
A24: ERRA * | B24: D.22-12-044 | C24: =B24 -> D.22-12-044 | D24: D.22-12-044 | E24: D.22-12-044 | F24: D.22-12-044 | G24: D.23-12-022 | H24: D.23-12-022 | I24: 533519.2642 | J24: 533519.2642 | K24: 533519.2642 | L24: 533519.2642 | M24: 533519.2642 | N24: 0 | O24: 0 | P24: Generation | Q24: Y | S24: PCIA | T24: 584527.6468
A25: ERRA Trigger Adjustment | G25: D.23-12-022 | H25: D.23-12-022 | N25: 315549.5541 | O25: 315549.5541 | P25: Generation | Q25: N | S25: WHC | T25: 146253.7317 | U25: 146253.7317 | V25: =U25-T25 -> 0
A26: PABA/PUBA * | B26: Preliminary Statement CP | C26: Preliminary Statement CP | D26: Preliminary Statement CP | E26: Preliminary Statement CP | F26: Preliminary Statement CP | G26: D.23-12-022 | H26: D.23-12-022 | I26: -89483.16806 | J26: =I26 -> -89483.16806 | K26: -89483.16806 | L26: -89483.16806 | M26: -89483.16806 | N26: 11483.85946 | O26: 11483.85946 | P26: PCIA | Q26: Y | S26: Distribution (Wildfire) | T26: 2280375.662
A27: VAMOMA * | B27: D.22-12-044 | G27: D.23-12-022 | H27: D.23-12-022 | I27: 450.6240318 | J27: 450.6240318 | K27: 450.6240318 | L27: 450.6240318 | M27: 450.6240318 | N27: 904.6838228 | O27: 904.6838228 | P27: PCIA | Q27: Y
A28: ERBBA * | B28: Preliminary Statement DT | C28: Preliminary Statement DT | D28: Preliminary Statement DT | E28: Preliminary Statement DT | F28: Preliminary Statement DT | G28: Preliminary Statement DT | H28: Preliminary Statement DT | I28: -56973.32181 | J28: -56973.32181 | K28: -56973.32181 | L28: -56973.32181 | M28: -56973.32181 | N28: -2005.964495 | O28: -2005.964495 | P28: ECRA | Q28: Y | S28: Gen + PCIA | T28: =T24+T13 -> 5323912.201 | U28: 5323912.201 | V28: =U28-T28 -> 0
A29: CTC | B29: D.22-12-044 | C29: =B29 -> D.22-12-044 | D29: D.22-12-044 | E29: D.22-12-044 | F29: D.22-12-044 | G29: D.23-12-022 | H29: D.23-12-022 | I29: 27165.21432 | J29: 27165.21432 | K29: 27165.21432 | L29: 27165.21432 | M29: 27165.21432 | N29: 14630.40303 | O29: 14630.40303 | P29: CTC | Q29: N
A30: CTC/MTCBA * | B30: Preliminary Statement CQ | C30: Preliminary Statement CQ | D30: Preliminary Statement CQ | E30: Preliminary Statement CQ | F30: Preliminary Statement CQ | G30: D.23-12-022 | H30: D.23-12-022 | I30: -3963.86805 | J30: -3963.86805 | K30: -3963.86805 | L30: -3963.86805 | M30: -3963.86805 | N30: 60966.13068 | O30: 60966.13068 | P30: CTC | Q30: Y
A31: Cost Allocation Mechanism | B31: D.22-12-044 | C31: D.22-12-044 | D31: D.22-12-044 | E31: D.22-12-044 | F31: D.22-12-044 | G31: D.23-12-022 | H31: D.23-12-022 | I31: 188334.6609 | J31: 188334.6609 | K31: 188334.6609 | L31: 188334.6609 | M31: 188334.6609 | N31: 378526.5176 | O31: 378526.5176 | P31: NSGC | Q31: N
A32: Cost Allocation Mechanism/NSGBA * | B32: Preliminary Statement FS | C32: Preliminary Statement FS | D32: Preliminary Statement FS | E32: Preliminary Statement FS | F32: Preliminary Statement FS | G32: D.23-12-022 | H32: D.23-12-022 | I32: 18382.06985 | J32: 18382.06985 | K32: 18382.06985 | L32: 18382.06985 | M32: 18382.06985 | N32: 64270.12386 | O32: 64270.12386 | P32: NSGC | Q32: Y
A33: 2020 WMCE | C33: D.23-02-017 | D33: D.23-02-017 | E33: D.23-02-017 | F33: D.23-02-017 | G33: D.23-02-017 | H33: D.23-02-017 | J33: 319848.3977 | K33: 319848.3977 | L33: 319848.3977 | M33: 319848.3977 | N33: 319987.2119 | O33: 319987.2119 | P33: Distribution (Wildfire) | Q33: N
A34: Cost of Capital | B34: D.22-12-031 | C34: D.22-12-031 | D34: D.22-12-031 | E34: D.22-12-031 | F34: D.22-12-031 | G34: n/a | H34: AL 4813-G/7046-E | I34: -95934.18282 | J34: =I34 -> -95934.18282 | K34: -95934.18282 | L34: -95934.18282 | M34: -95934.18282 | N34: 0 | O34: 168344.3826 | P34: Distribution | Q34: N
A35: Cost of Capital | B35: D.22-12-031 | C35: =B35 -> D.22-12-031 | D35: =C35 -> D.22-12-031 | E35: =D35 -> D.22-12-031 | F35: =E35 -> D.22-12-031 | G35: n/a | H35: AL 4813-G/7046-E | I35: -17976.23622 | J35: =I35 -> -17976.23622 | K35: =J35 -> -17976.23622 | L35: =K35 -> -17976.23622 | M35: =L35 -> -17976.23622 | N35: 0 | O35: 31649.30943 | P35: PCIA | Q35: =IF(RIGHT(A35,1)="*","Y","N") -> N
A36: Cost of Capital | B36: D.22-12-031 | C36: D.22-12-031 | D36: D.22-12-031 | E36: D.22-12-031 | F36: D.22-12-031 | G36: n/a | H36: AL 4813-G/7046-E | I36: -17976.23622 | J36: =I36 -> -17976.23622 | K36: -17976.23622 | L36: -17976.23622 | M36: -17976.23622 | N36: 0 | O36: 1090.344478 | P36: Generation | Q36: N
A37: Cost of Capital | G37: n/a | H37: AL 4813-G/7046-E | K37: 0 | L37: 0 | M37: 0 | N37: 0 | O37: 1553.656516 | P37: NSGC | Q37: N
A38: Risk Transfer Balancing Account* | B38: D.20-12-005, AL 6423-E | C38: D.20-12-005, AL 6423-E | D38: D.20-12-005, AL 6423-E, AL 6867-E | E38: D.20-12-005, AL 6423-E, AL 6867-E, D.23-01-005 | F38: D.20-12-005, AL 6423-E, AL 6867-E, D.23-01-005 | G38: D.23-01-005 , D.23-11-069 | H38: =G38 -> D.23-01-005 , D.23-11-069 | I38: 250186.8394 | J38: =I38 -> 250186.8394 | K38: 289942.4668 | L38: 376995.3843 | M38: 376995.3843 | N38: 75377.01356 | O38: 75377.01356 | P38: Distribution | Q38: Y
A39: Diablo Canyon Retirement | B39: D.18-01-022 | C39: D.18-01-022 | D39: D.18-01-022 | E39: D.18-01-022 | F39: D.18-01-022 | G39: D.18-01-022 | H39: D.18-01-022 | I39: 11767.51102 | J39: 11767.51102 | K39: 11767.51102 | L39: 11767.51102 | M39: 11767.51102 | N39: 11760.78598 | O39: 11760.78598 | P39: NDC | Q39: N
A40: Diablo Canyon Retirement | B40: D.18-01-022 | C40: D.18-01-022 | D40: D.18-01-022 | E40: D.18-01-022 | F40: D.18-01-022 | G40: D.18-01-022 | H40: D.18-01-022 | I40: 53191.92678 | J40: 53191.92678 | K40: 53191.92678 | L40: 53191.92678 | M40: 53191.92678 | N40: 53191.92678 | O40: 53191.92678 | P40: PCIA | Q40: N
A41: Nuclear Decommissioning (NDCTP) | B41: D.21-09-003 | C41: D.21-09-003 | D41: D.21-09-003 | E41: D.21-09-003 | F41: D.21-09-003 | G41: AL 7056-E/ D.23-09-004 | H41: AL 7056-E/ D.23-09-004 | I41: 112500 | J41: 112500 | K41: 112500 | L41: 112500 | M41: 112500 | N41: 0 | O41: 0 | P41: NDC | Q41: =IF(RIGHT(A41,1)="*","Y","N") -> N
A42: Nuclear Decommissioning (NDCTP) * | B42: Preliminary Statement DB | C42: Preliminary Statement DB | D42: Preliminary Statement DB | E42: Preliminary Statement DB | F42: Preliminary Statement DB | G42: Preliminary Statement DB | H42: Preliminary Statement DB | I42: -7078.684977 | J42: -7078.684977 | K42: -7078.684977 | L42: -7078.684977 | M42: -7078.684977 | N42: -220833.7078 | O42: -220833.7078 | P42: NDC | Q42: Y
A43: Hazardous Substance Materials (HSM) * | B43: Preliminary Statement S | C43: Preliminary Statement S | D43: Preliminary Statement S | E43: Preliminary Statement S | F43: Preliminary Statement S | G43: Preliminary Statement S | H43: Preliminary Statement S | I43: 33349.34615 | J43: 33349.34615 | K43: 33349.34615 | L43: 33349.34615 | M43: 33349.34615 | N43: 45960.39236 | O43: 45960.39236 | P43: Distribution (Wildfire) | Q43: Y
A44: NTBA * | B44: Preliminary Statement ET | C44: Preliminary Statement ET | D44: Preliminary Statement ET | E44: Preliminary Statement ET | F44: Preliminary Statement ET | G44: Preliminary Statement ET | H44: Preliminary Statement ET | I44: -415.8151112 | J44: -415.8151112 | K44: -415.8151112 | L44: -415.8151112 | M44: -415.8151112 | N44: -486.583276 | O44: -486.583276 | P44: Distribution | Q44: Y
A45: Wildfire Fund Charge (formerly known as DWR Bond) | B45: D.21-12-006 | C45: D.21-12-006 | D45: D.21-12-006 | E45: D.21-12-006 | F45: D.21-12-006 | G45: D.23-11-090 | H45: D.23-11-090 | I45: 378335.5864 | J45: 378335.5864 | K45: 378335.5864 | L45: 378335.5864 | M45: 378335.5864 | N45: 393053.029 | O45: 393053.029 | P45: DWR BC | Q45: N
A46: DWR Franchise Fees | B46: CPUC Code 6350-6354 | C46: CPUC Code 6350-6354 | D46: CPUC Code 6350-6354 | E46: CPUC Code 6350-6354 | F46: CPUC Code 6350-6354 | G46: CPUC Code 6350-6354 | H46: CPUC Code 6350-6354 | I46: 2717.584517 | J46: =I46 -> 2717.584517 | K46: 2717.584517 | L46: 2717.584517 | M46: 2717.584517 | N46: 2821.728 | O46: 2821.728 | P46: Generation | Q46: N
A47: IRPCMA* | B47: Electric Preliminary Statement Part HJ | C47: Electric Preliminary Statement Part HJ | D47: Electric Preliminary Statement Part HJ | E47: Electric Preliminary Statement Part HJ | F47: Electric Preliminary Statement Part HJ | G47: Electric Preliminary Statement Part HJ | H47: Electric Preliminary Statement Part HJ | I47: 695.5898929 | J47: =I47 -> 695.5898929 | K47: 695.5898929 | L47: 695.5898929 | M47: 695.5898929 | N47: 864.7709247 | O47: 864.7709247 | P47: Distribution | Q47: Y
G51: n/a | H51: n/a | K51: 0 | L51: 0 | M51: 0 | O51: 0
A52: VMBA | B52: D. 20-12-005, AL 6661-E | C52: D. 20-12-005, AL 6661-E | D52: D. 20-12-005, AL 6661-E | E52: D. 20-12-005, AL 6661-E | F52: D. 20-12-005, AL 6661-E | G52: n/a | H52: n/a | I52: 67866.09382 | J52: =I52 -> 67866.09382 | K52: 67866.09382 | L52: 67866.09382 | M52: 67866.09382 | N52: 0 | O52: 0 | P52: Distribution | Q52: N
A53: VMBA (Distribution - Wildfire) | B53: D. 20-12-005, AL 6661-E | C53: D. 20-12-005, AL 6661-E | D53: D. 20-12-005, AL 6661-E | E53: D. 20-12-005, AL 6661-E | F53: D. 20-12-005, AL 6661-E | G53: n/a | H53: n/a | I53: 70852.36971 | J53: =I53 -> 70852.36971 | K53: 70852.36971 | L53: 70852.36971 | M53: 70852.36971 | N53: 0 | O53: 0 | P53: Distribution (Wildfire) | Q53: N
A54: WMBA | B54: D. 20-12-005, D.21-06-030, D.22-08-004 | C54: D. 20-12-005, D.21-06-030, D.22-08-004 | D54: D. 20-12-005, D.21-06-030, D.22-08-004 | E54: D. 20-12-005, D.21-06-030, D.22-08-004 | F54: D. 20-12-005, D.21-06-030, D.22-08-004 | G54: n/a | H54: n/a | I54: 423.7084639 | J54: =I54 -> 423.7084639 | K54: 423.7084639 | L54: 423.7084639 | M54: 423.7084639 | N54: 0 | O54: 0 | P54: Distribution (Wildfire) | Q54: N
A57: AB 1054 Securitization - FO 1 | B57: D.21-06-030, D.21-05-015 | C57: D.21-06-030, D.21-05-015, AL 6819-E | D57: D.21-06-030, D.21-05-015, AL 6819-E | E57: D.21-06-030, D.21-05-015, AL 6819-E | F57: D.21-06-030, D.21-05-015, AL 6819-E | G57: D.21-06-030, AL 6390-E | H57: D.21-06-030, AL 7106-E | I57: 82550.52946 | J57: 22864.15422 | K57: 22864.15422 | L57: 22864.15422 | M57: 22864.15422 | N57: 22478.5984 | O57: 65887.47887 | P57: WHC | Q57: N
A58: AB 1054 Securitization - FO 1 | B58: D.21-06-030, D.21-05-015 | C58: D.21-06-030, D.21-05-015, AL 6819-E | D58: D.21-06-030, D.21-05-015, AL 6819-E | E58: D.21-06-030, D.21-05-015, AL 6819-E | F58: D.21-06-030, D.21-05-015, AL 6819-E | G58: D.21-06-030, AL 6390-E | H58: =G58 -> D.21-06-030, AL 6390-E | I58: -3565.7571 | J58: =I58 -> -3565.7571 | K58: -3565.7571 | L58: -3565.7571 | M58: -3565.7571 | N58: -277.6121614 | O58: -277.6121614 | P58: Distribution (Wildfire) | Q58: N
A59: AB 1054 Securitization - FO 2 | B59: D.22-08-004, D.21-05-015 | C59: D.22-08-004, D.21-05-015, AL 6820-E | D59: D.22-08-004, D.21-05-015, AL 6820-E | E59: D.22-08-004, D.21-05-015, AL 6820-E | F59: D.22-08-004, D.21-05-015, AL 6820-E | G59: D.22-08-004, AL 6769-E | H59: D.22-08-004, AL 7126-E | I59: 125944.5506 | J59: =I59 -> 125944.5506 | K59: 125944.5506 | L59: 125944.5506 | M59: 125944.5506 | N59: 123775.1333 | O59: 55096.69204 | P59: WHC | Q59: N
A60: AB 1054 Securitization - FO 2 | B60: D.22-08-004, D.21-05-015 | C60: D.22-08-004, D.21-05-015, AL 6820-E | D60: D.22-08-004, D.21-05-015, AL 6820-E | E60: D.22-08-004, D.21-05-015, AL 6820-E | F60: D.22-08-004, D.21-05-015, AL 6820-E | G60: D.22-08-004, AL 6769-E | H60: =G60 -> D.22-08-004, AL 6769-E | I60: -59014.27695 | J60: =I60 -> -59014.27695 | K60: -59014.27695 | L60: -59014.27695 | M60: -59014.27695 | N60: -13674.58297 | O60: -13674.58297 | P60: Distribution (Wildfire) | Q60: N
A63: Emergency Reliability OIR | B63: D.21-03-056, D.21-12-015 | C63: D.21-03-056, D.21-12-015 | D63: D.21-03-056, D.21-12-015 | E63: D.21-03-056, D.21-12-015 | F63: D.21-03-056, D.21-12-015 | G63: D.21-03-056, D.21-12-015 | H63: =G63 -> D.21-03-056, D.21-12-015 | I63: 141927.9725 | J63: =I63 -> 141927.9725 | K63: 141927.9725 | L63: 141927.9725 | M63: 141927.9725 | N63: 1324.73095 | O63: 1324.73095 | P63: Distribution | Q63: N
A64: Section 851 Application to Sell The SF General Office Complex | B64: D.21-08-027 | C64: D.21-08-027 | D64: D.21-08-027 | E64: D.21-08-027 | F64: D.21-08-027 | G64: D.21-08-027 | H64: D.21-08-027 | I64: -56428.24282 | J64: -56428.24282 | K64: -56428.24282 | L64: -56428.24282 | M64: -56428.24282 | N64: -38657.65875 | O64: -38657.65875 | P64: Distribution | Q64: N
A65: Section 851 Application to Sell The SF General Office Complex | B65: D.21-08-027 | C65: D.21-08-027 | D65: D.21-08-027 | E65: D.21-08-027 | F65: D.21-08-027 | G65: D.21-08-027 | H65: D.21-08-027 | I65: -39231.71961 | J65: -39231.71961 | K65: -39231.71961 | L65: -39231.71961 | M65: -39231.71961 | N65: -6566.064593 | O65: -6566.064593 | P65: PCIA | Q65: N
A66: Risk Transfer Balancing Account | B66: D.20-12-005, AL 6423-E | C66: D.20-12-005, AL 6423-E | D66: D.20-12-005, AL 6423-E | E66: D.20-12-005, AL 6423-E | F66: D.20-12-005, AL 6423-E | G66: n/a | H66: n/a | I66: 161818.6805 | J66: 161818.6805 | K66: 161818.6805 | L66: 161818.6805 | M66: 161818.6805 | N66: 76163.62436 | O66: 76163.62436 | P66: PCIA | Q66: N
A67: Residential Uncollectibles Balancing Account (RUBA) | B67: D.20-06-003, AL 6001-E | C67: D.20-06-003, AL 6001-E | D67: D.20-06-003, AL 6001-E | E67: D.20-06-003, AL 6001-E | F67: D.20-06-003, AL 6001-E | G67: n/a | H67: n/a | I67: 9826.547458 | J67: 9826.547458 | K67: 9826.547458 | L67: 9826.547458 | M67: 9826.547458 | N67: 41793.58471 | O67: 41793.58471 | P67: PCIA | Q67: N
A68: 2018 CEMA | B68: D.22-03-011 | C68: D.22-03-011 | D68: D.22-03-011 | E68: D.22-03-011 | F68: D.22-03-011 | G68: n/a | H68: n/a | I68: 332441.1976 | J68: 332441.1976 | O68: 0 | P68: Distribution (Wildfire) | Q68: N
A69: Excess Tax | B69: AL 4579-G/6513-E | C69: =B69 -> AL 4579-G/6513-E | G69: n/a | H69: n/a | I69: 130447.42 | J69: 130447.42 | O69: 0 | P69: Distribution | Q69: N
A70: 2022 WMCE IRR | E70: D.23-06-004 | F70: D.23-06-004 | G70: D.23-06-004 | H70: D.23-06-004 | L70: 1104107 | M70: 1104107 | N70: 761676.9891 | O70: 761676.9891 | P70: Distribution (Wildfire) | Q70: N
A71: 2022 WMCE IRR | G71: D.23-06-004 | H71: D.23-06-004 | N71: 342430.0109 | O71: 342430.0109 | P71: Distribution | Q71: N
A72: 2021 WMCE | F72: D.23-08-027 | G72: D.23-08-027 | H72: D.23-08-027 | M72: 363477.4797 | N72: 347680.9452 | O72: 347680.9452 | P72: Distribution (Wildfire) | Q72: N
A73: 2021 WMCE | G73: D.23-08-027 | H73: D.23-08-027 | N73: 15954.28372 | O73: 15954.28372 | P73: Distribution | Q73: N
A75: Subtotal Safety Affordability Reliability | I75: =SUM(I9:I69) -> 12045803.25 | J75: =SUM(J9:J69) -> 12710289.67 | K75: =SUM(K9:K69) -> 12287156.68 | L75: =SUM(L9:L70) -> 13478316.6 | M75: =SUM(M9:M73) -> 13841794.07 | N75: =SUM(N9:N73) -> 17595461.77 | O75: =SUM(O9:O73) -> 17772829.9
A77: Public Policy Proceedings
A78: AB 32: Cap & Trade/GHG (Electric Procurement) | B78: D.22-12-044 | C78: =B78 -> D.22-12-044 | D78: D.22-12-044 | E78: D.22-12-044 | F78: =E78 -> D.22-12-044 | G78: D.23-12-022 | H78: D.23-12-022 | I78: -491405.3156 | J78: =I78 -> -491405.3156 | K78: -490991.3 | L78: -490991.3 | M78: =L78 -> -490991.3 | N78: -689321.0839 | O78: =N78 -> -689321.0839 | P78: GHG Revenue | Q78: N
A79: SGIP | B79: D.20-01-021, AL 5857-E | C79: D.20-01-021, AL 5857-E | D79: =C79 -> D.20-01-021, AL 5857-E | E79: D.20-01-021, AL 5857-E | F79: D.20-01-021, AL 5857-E | G79: D.20-01-021, AL 5857-E | H79: D.20-01-021, AL 5857-E | I79: 59895.44408 | J79: =I79 -> 59895.44408 | K79: =J79 -> 59895.44408 | L79: 59895.44408 | M79: 59895.44408 | N79: 59877.17638 | O79: 59877.17638 | P79: Public Purpose Program | Q79: =IF(RIGHT(A79,1)="*","Y","N") -> N
A80: California Hub for Energy Efficiency Financing (CHEEF) | B80: D.21-08-006, AL 5857-E | C80: D.21-08-006, AL 5857-E | D80: D.21-08-006, AL 5857-E | E80: D.21-08-006, AL 5857-E | F80: D.21-08-006, AL 5857-E | G80: n/a | H80: n/a | I80: 17692.87949 | J80: =I80 -> 17692.87949 | K80: 17692.87949 | L80: 17692.87949 | M80: 17692.87949 | N80: 0 | O80: 0 | P80: Public Purpose Program | Q80: N
A81: CPUC Fee | B81: Res. M-4841 | C81: Res. M-4841 | D81: Res. M-4841 | E81: Res. M-4841 | F81: Res. M-4841 | G81: Res. M-4870 | H81: Res. M-4870 | I81: 104841.7858 | J81: =I81 -> 104841.7858 | K81: 104841.7858 | L81: 104841.7858 | M81: 104841.7858 | N81: 79240.989 | O81: 79240.989 | P81: Distribution | Q81: N
A82: EV Infrastructure Program/TEBA * | B82: Preliminary Statement HH | C82: Preliminary Statement HH | D82: Preliminary Statement HH | E82: =D82 -> Preliminary Statement HH | F82: Preliminary Statement HH | G82: Electric Preliminary Statement Part HH | H82: Electric Preliminary Statement Part HH | I82: -26964.00913 | J82: =I82 -> -26964.00913 | K82: -26964.00913 | L82: -26964.00913 | M82: -26964.00913 | N82: -29079.79772 | O82: -29079.79772 | P82: Distribution | Q82: Y
A83: Alternative Fuel Vehicle - SB 350 Application | B83: D.18-01-024, AL 5222-E | C83: D.18-01-024, AL 5222-E | D83: D.18-01-024, AL 5222-E | E83: D.18-01-024, AL 5222-E | F83: D.18-01-024, AL 5222-E | G83: D.18-05-040, D.19-11-017, D.19-09-006, D.20-12-029, D.22-08-024 | H83: D.18-05-040, D.19-11-017, D.19-09-006, D.20-12-029, D.22-08-024 | I83: 41150.12289 | J83: 41150.12289 | K83: 41150.12289 | L83: 41150.12289 | M83: 41150.12289 | N83: 47917.91 | O83: 47917.91 | P83: Distribution | Q83: N
A84: CEEIA* | B84: Preliminary Statement P | C84: Preliminary Statement P | D84: Preliminary Statement P | E84: Preliminary Statement P | F84: Preliminary Statement P | G84: Electric Preliminary Statement Part P | H84: Electric Preliminary Statement Part P | I84: 697.8480601 | J84: 697.8480601 | K84: 697.8480601 | L84: 697.8480601 | M84: 697.8480601 | N84: -46.21830949 | O84: -46.21830949 | P84: Public Purpose Program | Q84: Y
A85: Residential Rate Reform Memorandum Account (RRRMA) | B85: D.20-12-005 | C85: D.20-12-005 | D85: D.20-12-005 | E85: D.20-12-005 | F85: D.20-12-005 | G85: n/a | H85: n/a | I85: 10896 | J85: 10896 | K85: 10896 | L85: 10896 | M85: 10896 | N85: 0 | O85: 0 | P85: Distribution | Q85: N
A86: Demand Response | B86: D.22-12-009 | C86: D.22-12-009 | D86: D.22-12-009 | E86: D.22-12-009 | F86: D.22-12-009 | G86: D.23-12-005 | H86: D.23-12-005 | I86: 68692.21684 | J86: 68692.21684 | K86: 68692.21684 | L86: 68692.21684 | M86: 68692.21684 | N86: 197658.9589 | O86: 197658.9589 | P86: Distribution | Q86: N
A87: Integrated Demand Side Management (IDSM) | B87: AL 6385-E-A | C87: AL 6385-E-A | D87: AL 6385-E-A | E87: AL 6385-E-A | F87: AL 6385-E-A | G87: n/a | H87: n/a | I87: 8086.488 | J87: 8086.488 | K87: 8086.488 | L87: 8086.488 | M87: 8086.488 | O87: 0 | P87: Distribution | Q87: N
A88: FERABA * | B88: Preliminary Statement DX | C88: Preliminary Statement DX | D88: Preliminary Statement DX | E88: Preliminary Statement DX | F88: Preliminary Statement DX | G88: Preliminary Statement DX | H88: Preliminary Statement DX | I88: 20108.41037 | J88: 20108.41037 | K88: 20108.41037 | L88: 20108.41037 | M88: 20108.41037 | N88: 21093.03038 | O88: 21093.03038 | P88: Distribution | Q88: Y
A89: DREBA (Incentives and Operations subaccounts) * | B89: Preliminary Statement EC | C89: Preliminary Statement EC | D89: Preliminary Statement EC | E89: Preliminary Statement EC | F89: Preliminary Statement EC | G89: Preliminary Statement EC | H89: Preliminary Statement EC | I89: -15945.06047 | J89: -15945.06047 | K89: -15945.06047 | L89: -15945.06047 | M89: -15945.06047 | N89: -24482.49375 | O89: -24482.49375 | P89: Distribution | Q89: Y
A90: MHPBA * | B90: Preliminary Statement GH | C90: Preliminary Statement GH | D90: Preliminary Statement GH | E90: Preliminary Statement GH | F90: Preliminary Statement GH | G90: Preliminary Statement GH | H90: Preliminary Statement GH | I90: 24624.90173 | J90: 24624.90173 | K90: 24624.90173 | L90: 24624.90173 | M90: 24624.90173 | N90: 17475.57843 | O90: 17475.57843 | P90: Distribution | Q90: Y
A91: MEBA * | B91: Preliminary Statement GJ | C91: Preliminary Statement GJ | D91: Preliminary Statement GJ | E91: Preliminary Statement GJ | F91: Preliminary Statement GJ | G91: Preliminary Statement GJ | H91: Preliminary Statement GJ | I91: -10376.57795 | J91: -10376.57795 | K91: -10376.57795 | L91: -10376.57795 | M91: -10376.57795 | N91: 4352.281192 | O91: 4352.281192 | P91: Distribution | Q91: Y
A92: MGBA * | B92: Preliminary Statement IT | C92: Preliminary Statement IT | D92: Preliminary Statement IT | E92: Preliminary Statement IT | F92: Preliminary Statement IT | G92: Preliminary Statement IT | H92: Preliminary Statement IT | I92: 97.81043906 | J92: 97.81043906 | K92: 97.81043906 | L92: 97.81043906 | M92: 97.81043906 | N92: 1403.786522 | O92: 1403.786522 | P92: Distribution (Wildfire) | Q92: Y
A93: SGMA (Compressed Air Energy Storage) * | B93: Preliminary Statement FD | C93: Preliminary Statement FD | D93: Preliminary Statement FD | E93: Preliminary Statement FD | F93: Preliminary Statement FD | G93: Preliminary Statement FD | H93: Preliminary Statement FD | I93: 882.4685594 | J93: 882.4685594 | K93: 882.4685594 | L93: 882.4685594 | M93: 882.4685594 | N93: 725.7780283 | O93: 725.7780283 | P93: Distribution | Q93: Y
A94: PPPRAM * | B94: Preliminary Statement DA | C94: Preliminary Statement DA | D94: Preliminary Statement DA | E94: Preliminary Statement DA | F94: Preliminary Statement DA | G94: Preliminary Statement DA | H94: Preliminary Statement DA | I94: -127119.093 | J94: =I94 -> -127119.093 | K94: -127119.093 | L94: -127119.093 | M94: -127119.093 | N94: -72626.59756 | O94: -72626.59756 | P94: Public Purpose Program | Q94: Y
A95: CARE Administration | B95: D.21-06-015 | C95: D.21-06-015 | D95: D.21-06-015 | E95: D.21-06-015 | F95: D.21-06-015 | G95: D.21-06-015 | H95: D.21-06-015 | I95: 11290.03109 | J95: 11290.03109 | K95: 11290.03109 | L95: 11290.03109 | M95: 11290.03109 | N95: 11256.48 | O95: 11256.48 | P95: Public Purpose Program | Q95: N
A96: CARE Administration * | B96: Preliminary Statement M | C96: Preliminary Statement M | D96: Preliminary Statement M | E96: Preliminary Statement M | F96: Preliminary Statement M | G96: Preliminary Statement M | H96: Preliminary Statement M | I96: 178378.4148 | J96: 178378.4148 | K96: 178378.4148 | L96: 178378.4148 | M96: 178378.4148 | N96: -23400.68992 | O96: -23400.68992 | P96: Public Purpose Program | Q96: Y
A97: EPIC (Electric Program Investment Charge) | B97: D.20-08-042 | C97: D.20-08-042 | D97: D.20-08-042 | E97: D.20-08-042 | F97: D.20-08-042 | G97: D.20-08-042 | H97: D.20-08-042 | I97: 93692.07159 | J97: 93692.07159 | K97: 93692.07159 | L97: 93692.07159 | M97: 93692.07159 | N97: 93732.73395 | O97: 93732.73395 | P97: Public Purpose Program | Q97: N
A98: EPIC (Electric Program Investment Charge) * | B98: Preliminary Statement FY | C98: =B98 -> Preliminary Statement FY | D98: Preliminary Statement FY | E98: Preliminary Statement FY | F98: Preliminary Statement FY | G98: Preliminary Statement FY | H98: Preliminary Statement FY | I98: 3023.899213 | J98: 3023.899213 | K98: 3023.899213 | L98: 3023.899213 | M98: 3023.899213 | N98: 5947.954227 | O98: 5947.954227 | P98: Public Purpose Program | Q98: Y
A99: ESA (Energy Savings Assistance) | B99: D.21-06-015 | C99: D.21-06-015 | D99: D.21-06-015 | E99: D.21-06-015 | F99: D.21-06-015 | G99: D.21-06-015 | H99: D.21-06-015 | I99: 92269.47775 | J99: 92269.47775 | K99: 92269.47775 | L99: 92269.47775 | M99: 92269.47775 | N99: 91031.31 | O99: 91031.31 | P99: Public Purpose Program | Q99: N
A100: ESA Unspent Funds | G100: D.21-06-015 | H100: D.21-06-015 | N100: -26000 | O100: -26000 | P100: Public Purpose Program | Q100: N
A101: Energy Efficiency/PPPRAM | B101: D.18-05-041, D.21-05-031, AL 6385-E-A | C101: D.18-05-041, D.21-05-031, AL 6385-E-A | D101: D.18-05-041, D.21-05-031, AL 6385-E-A | E101: D.18-05-041, D.21-05-031, AL 6385-E-A | F101: D.18-05-041, D.21-05-031, AL 6385-E-A | G101: D.23-06-055/ AL 7047-E | H101: D.23-06-055/ AL 7047-E | I101: 120736.8739 | J101: =I101 -> 120736.8739 | K101: 120736.8739 | L101: 120736.8739 | M101: 120736.8739 | N101: 120736.8739 | O101: 120736.8739 | P101: Public Purpose Program | Q101: N
A102: Energy Efficiency/PEERAM | B102: AL 6385-E-A | C102: AL 6385-E-A | D102: AL 6385-E-A | E102: AL 6385-E-A | F102: AL 6385-E-A | G102: D.23-06-055/ AL 7047-E | H102: D.23-06-055/ AL 7047-E | I102: 146819.3192 | J102: =I102 -> 146819.3192 | K102: 146819.3192 | L102: 146819.3192 | M102: 146819.3192 | N102: 101774.1433 | O102: 101774.1433 | P102: Public Purpose Program | Q102: N
A103: PEERAM * | B103: Preliminary Statement EF | C103: Preliminary Statement EF | D103: Preliminary Statement EF | E103: Preliminary Statement EF | F103: Preliminary Statement EF | G103: Preliminary Statement EF | H103: Preliminary Statement EF | I103: 69935.85752 | J103: =I103 -> 69935.85752 | K103: 69935.85752 | L103: 69935.85752 | M103: 69935.85752 | N103: 23844.55857 | O103: 23844.55857 | P103: Public Purpose Program | Q103: Y
A104: Market Transformation Administrator | B104: D.21-12-021, AL 6747-E | C104: D.21-12-021, AL 6747-E | D104: D.21-12-021, AL 6747-E | E104: D.21-12-021, AL 6747-E | F104: D.21-12-021, AL 6747-E | G104: D.19-12-021, AL 4674-G/6747-E /AL RI-CalMTA-2 | H104: D.19-12-021, AL 4674-G/6747-E /AL RI-CalMTA-2 | I104: 7971.929757 | J104: =I104 -> 7971.929757 | K104: 7971.929757 | L104: 7971.929757 | M104: 7971.929757 | N104: 0 | O104: 0 | P104: Public Purpose Program | Q104: N
A105: Demand Response Auction Mechanism | C105: D.23-01-006 | D105: D.23-01-006 | E105: D.23-01-006 | F105: D.23-01-006 | G105: n/a | H105: n/a | J105: 6368.1093 | K105: 6368.1093 | L105: 6368.1093 | M105: 6368.1093 | O105: 0 | P105: Distribution | Q105: N
A106: EV Pilot for Schools and Parks | B106: D.19-11-017, AL 5698-E | C106: D.19-11-017, AL 5698-E | D106: D.19-11-017, AL 5698-E | E106: D.19-11-017, AL 5698-E | F106: D.19-11-017, AL 5698-E | G106: n/a | H106: n/a | I106: 1553.616507 | J106: =I106 -> 1553.616507 | K106: 1553.616507 | L106: 1553.616507 | M106: 1553.616507 | O106: 0 | P106: Distribution | Q106: N
A107: AB 841 School Energy Efficiency Stimulus Program | B107: AL 6385-E-A | C107: AL 6385-E-A | D107: AL 6385-E-A | E107: AL 6385-E-A | F107: AL 6385-E-A | G107: n/a | H107: n/a | I107: 56079.59616 | J107: =I107 -> 56079.59616 | K107: 56079.59616 | L107: 56079.59616 | M107: 56079.59616 | N107: 0 | O107: 0 | P107: Public Purpose Program | Q107: N
A108: Tree Mortality | B108: D.22-12-044 | C108: D.22-12-044 | D108: D.22-12-044 | E108: D.22-12-044 | F108: D.22-12-044 | G108: D.23-12-022 | H108: D.23-12-022 | I108: 20005.23124 | J108: =I108 -> 20005.23124 | K108: 20005.23124 | L108: 20005.23124 | M108: 20005.23124 | N108: 23165.27158 | O108: 23165.27158 | P108: Public Purpose Program | Q108: N
A109: Tree Mortality* | B109: D.22-12-044 | C109: D.22-12-044 | D109: D.22-12-044 | E109: D.22-12-044 | F109: D.22-12-044 | G109: D.23-12-022 | H109: D.23-12-022 | I109: -15953.56909 | J109: =I109 -> -15953.56909 | K109: -15953.56909 | L109: -15953.56909 | M109: -15953.56909 | N109: -2834.545641 | O109: -2834.545641 | P109: Public Purpose Program | Q109: Y
A110: CSIBA* | G110: AL 7028-E | H110: AL 7028-E | N110: -54219.76837 | O110: -54219.76837 | P110: Public Purpose Program | Q110: Y
A111: PIPP* | G111: Electric Preliminary Statement Part JM | H111: Electric Preliminary Statement Part JM | N111: 2856.617215 | O111: 2856.617215 | P111: Public Purpose Program | Q111: =IF(RIGHT(A111,1)="*","Y","N") -> Y
A112: Residential Uncollectibles Balancing Account (RUBA)* | B112: 20-06-003, AL 6001-E | C112: 20-06-003, AL 6001-E | D112: 20-06-003, AL 6001-E | E112: 20-06-003, AL 6001-E | F112: 20-06-003, AL 6001-E | G112: Electric Preliminary Statement Part IM | H112: Electric Preliminary Statement Part IM | I112: 82938.36175 | J112: =I112 -> 82938.36175 | K112: 82938.36175 | L112: 82938.36175 | M112: 82938.36175 | N112: 282433.5969 | O112: 282433.5969 | P112: Public Purpose Program | Q112: Y
A113: BioMat | B113: D.22-12-044 | C113: D.22-12-044 | D113: D.22-12-044 | E113: D.22-12-044 | F113: D.22-12-044 | G113: D.23-12-022 | H113: D.23-12-022 | I113: 13317.60473 | J113: 13317.60473 | K113: 13317.60473 | L113: 13317.60473 | M113: 13317.60473 | N113: 14061.23071 | O113: 14061.23071 | P113: Public Purpose Program | Q113: N
A114: BioMat* | B114: D.22-12-044 | C114: D.22-12-044 | D114: D.22-12-044 | E114: D.22-12-044 | F114: D.22-12-044 | G114: Electric Preliminary Statement Part IJ | H114: Electric Preliminary Statement Part IJ | I114: -8662.604201 | J114: -8662.604201 | K114: -8662.604201 | L114: -8662.604201 | M114: -8662.604201 | N114: -7066.937468 | O114: -7066.937468 | P114: Public Purpose Program | Q114: Y
A115: Non-Vintaged PCIA | B115: D.22-12-044 | C115: D.22-12-044 | D115: D.22-12-044 | E115: D.22-12-044 | F115: D.22-12-044 | G115: D.23-12-022 | H115: D.23-12-022 | I115: -2058.139379 | J115: -2058.139379 | K115: -2058.139379 | L115: -2058.139379 | M115: -2058.139379 | N115: -475.8328155 | O115: -475.8328155 | P115: Public Purpose Program | Q115: N
A116: Non-Vintaged PCIA * | B116: D.22-12-044 | C116: =B116 -> D.22-12-044 | D116: D.22-12-044 | E116: D.22-12-044 | F116: D.22-12-044 | G116: Electric Preliminary Statement Part HM | H116: Electric Preliminary Statement Part HM | I116: -2763.540587 | J116: -2763.540587 | K116: -2763.540587 | L116: -2763.540587 | M116: -2763.540587 | N116: 2664.833914 | O116: 2664.833914 | P116: Public Purpose Program | Q116: Y
A117: DAC-GT | B117: D.22-12-044 | C117: D.22-12-044 | D117: D.22-12-044 | E117: D.22-12-044 | F117: D.22-12-044 | G117: D.23-12-022 | H117: D.23-12-022 | I117: 14111.99906 | J117: 14111.99906 | K117: 14111.99906 | L117: 14111.99906 | M117: 14111.99906 | N117: 13908.018 | O117: 13908.018 | P117: Public Purpose Program | Q117: N
A118: WNDRR * | B118: Preliminary Statement JH | C118: Preliminary Statement JH | D118: Preliminary Statement JH | E118: Preliminary Statement JH | F118: Preliminary Statement JH | G118: Preliminary Statement JH | H118: Preliminary Statement JH | I118: 1142.668342 | J118: 1142.668342 | K118: 1142.668342 | L118: 1142.668342 | M118: 1142.668342 | N118: 2820.116494 | O118: 2820.116494 | P118: Public Purpose Program | Q118: Y
A119: DWR Refund | B119: D.21-12-001 | C119: D.21-12-001 | D119: D.21-12-001 | E119: D.21-12-001 | F119: D.21-12-001 | G119: n/a | H119: n/a | I119: -135562.328 | N119: 0 | O119: 0 | P119: DWR BC | Q119: N
A120: Summer Reliability OIR | B120: D.21-12-011 | C120: D.21-12-011 | D120: D.21-12-011, AL 6762-E | E120: D.21-12-011, AL 6934-E | F120: D.21-12-011, AL 6934-E | G120: n/a | H120: n/a | I120: 13221.40788 | J120: =I120 -> 13221.40788 | K120: 31416.00588 | L120: 49357.90113 | M120: 49357.90113 | N120: 0 | O120: 0 | P120: Public Purpose Program | Q120: N
A122: Subtotal Public Policy | I122: =SUM(I78:I120) -> 447344.4993 | J122: 589274.9366 | K122: 607883.5503 | L122: 625825.4455 | M122: 625825.4455 | N122: 290425.2622 | O122: 290425.2622
A124: Non-CPUC Jurisdictional Proceedings
A125: TO | B125: ER22-2986-000 | C125: =B125 -> ER22-2986-000 | D125: ER22-2986-000 | E125: ER22-2986-000 | F125: ER22-2986-000 | G125: ER24-96-000 | H125: ER24-96-000 | I125: 3183965.255 | J125: =I125 -> 3183965.255 | K125: 3183965.255 | L125: 3183965.255 | M125: 3183965.255 | N125: 2830225.687 | O125: 2788799.641 | P125: Transmission | Q125: =IF(RIGHT(A125,1)="*","Y","N") -> N
A126: TACBAA | B126: ER23-595-000 | C126: =B126 -> ER23-595-000 | D126: ER23-595-000 | E126: ER23-595-000 | F126: ER23-595-000 | G126: ER23-595-000 | H126: ER24-599-000 | I126: 325747.631 | J126: 492205.4669 | K126: 492205.4669 | L126: 492205.4669 | M126: 492205.4669 | N126: 482469.045 | O126: 370049.0735 | P126: FERC BAs | Q126: =IF(RIGHT(A126,1)="*","Y","N") -> N
A127: TRBAA | B127: ER22-2986-000 | C127: =B127 -> ER22-2986-000 | D127: ER22-2986-000 | E127: ER22-2986-000 | F127: ER22-2986-000 | G127: ER23-2968-000 | H127: =G127 -> ER23-2968-000 | I127: -445214.9773 | J127: =I127 -> -445214.9773 | K127: -445214.9773 | L127: -445214.9773 | M127: -445214.9773 | N127: -494836.599 | O127: =N127 -> -494836.599 | P127: FERC BAs | Q127: =IF(RIGHT(A127,1)="*","Y","N") -> N
A128: RSBA | B128: ER22-2986-000 | C128: =B128 -> ER22-2986-000 | D128: ER22-2986-000 | E128: ER22-2986-000 | F128: ER22-2986-000 | G128: ER23-2968-000 | H128: =G128 -> ER23-2968-000 | I128: 41539.8 | J128: =I128 -> 41539.8 | K128: 41539.8 | L128: 41539.8 | M128: 41539.8 | N128: 6868.193893 | O128: 6868.193893 | P128: FERC BAs | Q128: =IF(RIGHT(A128,1)="*","Y","N") -> N
A129: EUCRA | B129: ER22-2986-000 | C129: =B129 -> ER22-2986-000 | D129: ER22-2986-000 | E129: ER22-2986-000 | F129: ER22-2986-000 | G129: ER23-2968-000 | H129: ER23-2968-000 | I129: 0 | J129: =I129 -> 0 | K129: 0 | L129: 0 | M129: 0 | N129: 0 | O129: 0 | P129: FERC BAs | Q129: =IF(RIGHT(A129,1)="*","Y","N") -> N
A130: Subtotal Non-CPUC Jurisidictional | I130: =SUM(I125:I129) -> 3106037.709 | J130: 3272495.545 | K130: 3272495.545 | L130: 3272495.545 | M130: 3272495.545 | N130: =SUM(N125:N129) -> 2824726.327 | O130: =SUM(O125:O129) -> 2670880.31
A132: Total Authorized Revenue | I132: =I75+I122+I130 -> 15599185.45 | J132: 16572060.15 | K132: 16167535.77 | L132: 17376637.59 | M132: 17740115.07 | N132: 20710613.36 | O132: 20734135.47
I133: 15619060.13 | J133: 16591934.83 | K133: 16187410.45 | L133: 17396512.26 | M133: 17759989.74 | N133: 20710613.36 | O133: 20734135.47
I134: =I132-I133 -> -19874.67846 | J134: -19874.67846 | K134: -19874.67846 | L134: -19874.67846 | M134: -19874.67846 | N134: =N132-N133 -> 0.0009084157646 | O134: 0.0009084157646
A138: Notes:
A139: January 1, 2023 Rate Change (AL 6805-E) trued up the balancing accounts in the AET and implemented various authorized RRQs.
A140: March 1, 2023 Rate Change (AL 6863-E-A) implemented the TACBAA, 2020 WMCE, 2023 GRC Wildfire Insurance, and Demand Response Auction Mechanism decisions.
A141: June 1, 2023 Rate Change (AL 6946-E) implemented revenue requirements related to Summer Reliability and RTBA and removed 2018 CEMA and the Tax Adjustment.
A142: July 1, 2023 Rate Change (AL 6968-E) implemented the 2022 WMCE Interim Rate Relief decision.
A143: January 1, 2024 Rate Change (AL 7116-E) trued up the balancing accounts in the AET and implemented various authorized RRQs.
A144: March 1, 2024 Rate Change (AL 7191-E) implemented the TACBAA, Securitzation True-ups, TO21 correction Cost of Capital Adjustment Mechanism.

Sheet Incremental Rev Req (hidden)
A2: ='Authorized Rev Req'!A2 -> Annual Period 2024
A3: ='Authorized Rev Req'!A3 -> Reporting Date: March 1, 2024
A5: Current Revenue Requirement ($000): | B5: ='Authorized Rev Req'!O132 -> 20734135.47
A6: Current Revenue Requirement Effective: | B6: ='Authorized Rev Req'!O5 -> March 1, 2024
A7: Approved Application(s), Implemented Since Jan 1 or To Be Implemented
A8: Filing Description | B8: Proceeding | C8: Authority for Revenue Requirement | D8: 2024 Authorized Revenue Requirement ($000) | E8: Revenue Recovery Mechanism | J8: Existing or New Item (if existing, use delta from prior for rate impact) | Q8: Authorized
A9: Safety Affordability Reliability Proceedings | F9: 2024 | G9: =F9+1 -> 2025 | H9: =G9+1 -> 2026 | I9: =H9+1 -> 2027 | R9: =F9 -> 2024 | S9: =G9 -> 2025 | T9: =H9 -> 2026 | U9: =I9 -> 2027
A10: General Rate Case | C10: D.23-11-069 | D10: ='Authorized Rev Req'!O9 -> 6515126.952 | E10: Distribution | F10: =D10 -> 6515126.952 | G10: 7048270.183 | H10: 7626238.3 | I10: =H10 -> 7626238.3 | J10: Existing | Q10: Generation | R10: =SUMIF($E$10:$E$106,$Q10,F$10:F$106) -> 4424925.344 | S10: =SUMIF($E$10:$E$106,$Q10,G$10:G$106) -> 4424925.344 | T10: =SUMIF($E$10:$E$106,$Q10,H$10:H$106) -> 4424925.344 | U10: =SUMIF($E$10:$E$106,$Q10,I$10:I$106) -> 4424925.344
A11: General Rate Case (Distribution - Wildfire) | C11: D.23-11-069 | D11: ='Authorized Rev Req'!O10 -> 817618.5323 | E11: Distribution (Wildfire) | F11: 817618.5323 | G11: =F11 -> 817618.5323 | H11: 817618.5323 | I11: =H11 -> 817618.5323 | J11: Existing | Q11: NSGC | R11: 444350.2979 | S11: 380080.1741 | T11: 380080.1741 | U11: 380080.1741
A12: General Rate Case | C12: D.23-11-069 | D12: ='Authorized Rev Req'!O15 -> 2264591.366 | E12: PCIA | F12: 2264591.366 | G12: 1848595.099 | H12: 1205677.183 | I12: =H12 -> 1205677.183 | J12: Existing | Q12: Distribution | R12: 9286773.247 | S12: 8631269.431 | T12: 8125235.449 | U12: 8161396.582
A13: 2023 General Rate Case Late Implementation | C13: D.23-11-069 | D13: ='Authorized Rev Req'!O12 -> 872096.7104 | E13: Distribution | F13: 872096.7104 | G13: =F13 -> 872096.7104 | H13: 0 | I13: 0 | J13: New | Q13: GHG Revenue | R13: -689321.0839 | S13: -689321.0839 | T13: -689321.0839 | U13: -689321.0839
A14: 2023 General Rate Case Late Implementation | C14: D.23-11-069 | D14: ='Authorized Rev Req'!O16 -> -993.7272372 | E14: PCIA | F14: -993.7272372 | G14: =F14 -> -993.7272372 | H14: 0 | I14: 0 | J14: New | Q14: CTC | R14: 75596.53371 | S14: 14630.40303 | T14: 14630.40303 | U14: 14630.40303
A15: 2023 GRC Self-Insurance | C15: ='Authorized Rev Req'!H14 -> D.23-01-005 | D15: ='Authorized Rev Req'!O14 -> 404008.1263 | E15: Distribution | F15: 404008.1263 | G15: 203863.2291 | H15: 1696.525738 | I15: 0 | J15: New | Q15: NDC | R15: -209072.9218 | S15: 11760.78598 | T15: 0 | U15: 0
A16: Pension Contribution | C16: ='Authorized Rev Req'!H17 -> AL 4568-G-B/6492-E-B | D16: ='Authorized Rev Req'!O17 -> 66013.95167 | E16: Distribution | F16: 66013.95167 | G16: =F16 -> 66013.95167 | H16: 66013.95167 | I16: =H16 -> 66013.95167 | J16: Existing | Q16: Public Purpose Program | R16: 600254.8445 | S16: 447760.7437 | T16: 421832.8538 | U16: 421832.8538
A17: Pension Contribution | C17: ='Authorized Rev Req'!H19 -> AL 4568-G-B/6492-E-B | D17: ='Authorized Rev Req'!O19 -> 40840.81063 | E17: PCIA | F17: 40840.81063 | G17: 40840.81063 | H17: 40840.81063 | I17: 40840.81063 | J17: Existing | Q17: DWR BC | R17: 393053.029 | S17: 393053.029 | T17: 393053.029 | U17: 393053.029
A18: 2023 General Rate Case Track 2 | C18: D.23-11-069 | D18: ='Authorized Rev Req'!O13 -> 8928.685025 | E18: Distribution | F18: 8928.685025 | G18: 8928.685025 | H18: 0 | I18: 0 | J18: New | Q18: ECRA | R18: -2005.964495 | S18: 0 | T18: 0 | U18: 0
A19: Department of Energy Litigation Proceeds | C19: D.23-11-069 | D19: ='Authorized Rev Req'!O21 -> -1828 | E19: PCIA | F19: -1828 | G19: -1828 | H19: -1828 | I19: =H19 -> -1828 | J19: Existing | Q19: Transmission | R19: 2788799.641 | S19: 2788799.641 | T19: 2788799.641 | U19: 2788799.641
A20: ERRA Forecast | C20: D.23-12-022 | D20: ='Authorized Rev Req'!O22 -> 4421013.272 | E20: Generation | F20: 4421013.272 | G20: 4421013.272 | H20: 4421013.272 | I20: =H20 -> 4421013.272 | J20: Existing | Q20: FERC BAs | R20: -117919.3316 | S20: -117919.3316 | T20: -117919.3316 | U20: -117919.3316
A21: ERRA Forecast | C21: D.23-12-022 | D21: ='Authorized Rev Req'!O23 -> -1895054.417 | E21: PCIA | F21: -1895054.417 | G21: -1895054.417 | H21: -1895054.417 | I21: =H21 -> -1895054.417 | J21: Existing | Q21: PCIA | R21: 616176.9563 | S21: 64012.21652 | T21: -641538.501 | U21: -618715.114
A22: Competition Transition Charge | C22: D.23-12-022 | D22: ='Authorized Rev Req'!O29 -> 14630.40303 | E22: CTC | F22: 14630.40303 | G22: =F22 -> 14630.40303 | H22: 14630.40303 | I22: =H22 -> 14630.40303 | J22: Existing | Q22: WHC | R22: 173932.3285 | S22: 225476.9815 | T22: 225476.9815 | U22: 225476.9815
A23: Cost Allocation Mechanism | C23: D.23-12-022 | D23: ='Authorized Rev Req'!O31 -> 378526.5176 | E23: NSGC | F23: 378526.5176 | G23: 378526.5176 | H23: 378526.5176 | I23: 378526.5176 | J23: Existing | Q23: Distribution (Wildfire) | R23: 1442775.824 | S23: 803111.5925 | T23: 802397.098 | U23: 801767.314
A24: ERRA Trigger Adjustment | C24: D.23-12-022 | D24: ='Authorized Rev Req'!O25 -> 315549.5541 | E24: PCIA | F24: 0 | G24: 0 | H24: 0 | I24: 0 | J24: Existing | Q24: Total | R24: =SUM(R10:R23) -> 19228318.75 | S24: =SUM(S10:S23) -> 17377639.93 | T24: =SUM(T10:T23) -> 16127652.06 | U24: =SUM(U10:U23) -> 16186006.79
A25: Diablo Canyon Retirement | C25: ='Authorized Rev Req'!H39 -> D.18-01-022 | D25: ='Authorized Rev Req'!O39 -> 11760.78598 | E25: NDC | F25: 11760.78598 | G25: 11760.78598 | H25: 0 | I25: 0 | J25: Existing
A26: Diablo Canyon Retirement | C26: ='Authorized Rev Req'!H40 -> D.18-01-022 | D26: ='Authorized Rev Req'!O40 -> 53191.92678 | E26: PCIA | F26: 53191.92678 | G26: 53191.92678 | H26: 0 | I26: 0 | J26: Existing
A27: Cost of Capital | C27: AL 4813-G/7046-E | D27: ='Authorized Rev Req'!O34 -> 168344.3826 | E27: Distribution | F27: 168344.3826 | G27: =F27 -> 168344.3826 | H27: =G27 -> 168344.3826 | I27: 168344.3826 | J27: Existing
A28: Cost of Capital | C28: AL 4813-G/7046-E | D28: ='Authorized Rev Req'!O35 -> 31649.30943 | E28: PCIA | F28: 31649.30943 | G28: =F28 -> 31649.30943 | H28: 31649.30943 | I28: 31649.30943 | J28: Existing
A29: Cost of Capital | C29: AL 4813-G/7046-E | D29: ='Authorized Rev Req'!O36 -> 1090.344478 | E29: Generation | F29: =D29 -> 1090.344478 | G29: 1090.344478 | H29: 1090.344478 | I29: 1090.344478 | J29: Existing
A30: Cost of Capital | C30: AL 4813-G/7046-E | D30: ='Authorized Rev Req'!O37 -> 1553.656516 | E30: NSGC | F30: =D30 -> 1553.656516 | G30: 1553.656516 | H30: 1553.656516 | I30: 1553.656516 | J30: Existing
A31: Wildfire Fund Charge | C31: D.21-12-006, D.23-11-090 | D31: ='Authorized Rev Req'!O45 -> 393053.029 | E31: DWR BC | F31: =D31 -> 393053.029 | G31: =F31 -> 393053.029 | H31: 393053.029 | I31: =H31 -> 393053.029 | J31: Existing
A32: DWR Franchise Fees | C32: ='Authorized Rev Req'!H46 -> CPUC Code 6350-6354 | D32: ='Authorized Rev Req'!O46 -> 2821.728 | E32: Generation | F32: =D32 -> 2821.728 | G32: 2821.728 | H32: 2821.728 | I32: =H32 -> 2821.728 | J32: Existing
A34: Wildfire Mitigation Balancing Account (WMBA) | C34: ='Authorized Rev Req'!H54 -> n/a | D34: ='Authorized Rev Req'!O54 -> 0 | E34: Distribution (Wildfire) | F34: 0 | G34: 0 | H34: 0 | I34: 0 | J34: Existing
A35: Vegetation Management Balancing Account (VMBA) | C35: ='Authorized Rev Req'!H52 -> n/a | D35: ='Authorized Rev Req'!O52 -> 0 | E35: Distribution | F35: 0 | G35: 0 | H35: 0 | I35: 0 | J35: Existing
A36: Vegetation Management Balancing Account (VMBA) (Distribution - Wildfire) | C36: ='Authorized Rev Req'!H53 -> n/a | D36: ='Authorized Rev Req'!O53 -> 0 | E36: Distribution (Wildfire) | F36: 0 | G36: 0 | H36: 0 | I36: 0 | J36: Existing
A37: AB 1054 Securitization - FO 1 | C37: ='Authorized Rev Req'!H57 -> D.21-06-030, AL 7106-E | D37: ='Authorized Rev Req'!O57 -> 65887.47887 | E37: WHC | F37: =D37 -> 65887.47887 | G37: =F37 -> 65887.47887 | H37: =G37 -> 65887.47887 | I37: =H37 -> 65887.47887 | J37: Existing
A38: AB 1054 Securitization - FO 1 | C38: ='Authorized Rev Req'!H58 -> D.21-06-030, AL 6390-E | D38: ='Authorized Rev Req'!O58 -> -277.6121614 | E38: Distribution (Wildfire) | F38: =D38 -> -277.6121614 | G38: =F38 -> -277.6121614 | H38: -277.6121614 | I38: =H38 -> -277.6121614 | J38: Existing
A39: AB 1054 Securitization - FO 2 | C39: ='Authorized Rev Req'!H59 -> D.22-08-004, AL 7126-E | D39: ='Authorized Rev Req'!O59 -> 55096.69204 | E39: WHC | F39: =D39 -> 55096.69204 | G39: 55096.69204 | H39: 55096.69204 | I39: 55096.69204 | J39: Existing
A40: AB 1054 Securitization - FO 2 | C40: ='Authorized Rev Req'!H60 -> D.22-08-004, AL 6769-E | D40: ='Authorized Rev Req'!O60 -> -13674.58297 | E40: Distribution (Wildfire) | F40: =D40 -> -13674.58297 | G40: -13674.58297 | H40: -13674.58297 | I40: -13674.58297 | J40: Existing
A41: AB 1054 Securitization - FO 3 | C41: D.24-02-011, D.21-05-015 | D41: 0 | E41: WHC | F41: 52948.15762 | G41: 104492.8106 | H41: 104492.8106 | I41: 104492.8106 | J41: New
A42: AB 1054 Securitization - FO 3 | C42: D.24-02-011, D.21-05-015 | D42: 0 | E42: Distribution (Wildfire) | F42: -75922.84883 | G42: -554.7446776 | H42: -1269.239182 | I42: -1899.023225 | J42: New
A43: Emergency Reliability OIR | C43: ='Authorized Rev Req'!H63 -> D.21-03-056, D.21-12-015 | D43: ='Authorized Rev Req'!O63 -> 1324.73095 | E43: Distribution | F43: =D43 -> 1324.73095 | G43: 0 | H43: 0 | I43: 0 | J43: Existing
A44: Section 851 Application to Sell The SF General Office Complex | C44: ='Authorized Rev Req'!H64 -> D.21-08-027 | D44: ='Authorized Rev Req'!O64 -> -38657.65875 | E44: Distribution | F44: =D44 -> -38657.65875 | G44: =F44 -> -38657.65875 | H44: =G44 -> -38657.65875 | I44: 0 | J44: Existing
A45: Section 851 Application to Sell The SF General Office Complex | C45: ='Authorized Rev Req'!H65 -> D.21-08-027 | D45: ='Authorized Rev Req'!O65 -> -6566.064593 | E45: PCIA | F45: =D45 -> -6566.064593 | G45: -22823.38706 | H45: =G45 -> -22823.38706 | I45: 0 | J45: Existing
A46: 2020 WMCE | C46: ='Authorized Rev Req'!H33 -> D.23-02-017 | D46: ='Authorized Rev Req'!O33 -> 319987.2119 | E46: Distribution (Wildfire) | F46: =D46 -> 319987.2119 | G46: 0 | H46: 0 | I46: 0 | J46: New
A47: 2020 WMCE | C47: D.23-02-017 | D47: 0 | E47: PCIA | F47: 0 | G47: =1520 -> 1520 | H47: 0 | I47: 0 | J47: New
A48: Residential Uncollectibles Balancing Account | C48: AL 7066-E | D48: ='Authorized Rev Req'!O67 -> 41793.58471 | E48: PCIA | F48: =D48 -> 41793.58471 | G48: 0 | H48: 0 | I48: 0 | J48: Existing
A49: Risk Transfer Balancing Account | C49: D.20-12-005, AL 7066-E | D49: 0 | E49: Distribution | F49: =D49 -> 0 | G49: 0 | H49: 0 | I49: 0 | J49: Existing
A50: Risk Transfer Balancing Account | C50: D.20-12-005, AL 7066-E | D50: ='Authorized Rev Req'!O66 -> 76163.62436 | E50: PCIA | F50: =D50 -> 76163.62436 | G50: 0 | H50: 0 | I50: 0 | J50: Existing
A51: 2022 WMCE IRR | C51: D.23-06-004 | D51: ='Authorized Rev Req'!O71 -> 342430.0109 | E51: ='Authorized Rev Req'!P69 -> Distribution | F51: 0 | G51: 0 | H51: 0 | I51: 0 | J51: New
A52: 2022 WMCE IRR | C52: D.23-06-004 | D52: ='Authorized Rev Req'!O70 -> 761676.9891 | E52: ='Authorized Rev Req'!P70 -> Distribution (Wildfire) | F52: 0 | G52: 0 | H52: 0 | I52: 0 | J52: New
A53: 2021 WMCE | C53: D.23-08-027 | D53: ='Authorized Rev Req'!O73 -> 15954.28372 | E53: ='Authorized Rev Req'!P71 -> Distribution | F53: =D53 -> 15954.28372 | G53: 0 | H53: 0 | I53: 0 | J53: New
A54: 2021 WMCE | C54: D.23-08-027 | D54: ='Authorized Rev Req'!O72 -> 347680.9452 | E54: Distribution (Wildfire) | F54: =D54 -> 347680.9452 | G54: 0 | H54: 0 | I54: 0 | J54: New
A55: 2021 WMCE | C55: D.23-08-027 | D55: 0 | E55: PCIA | F55: 0 | G55: 8914.601849 | H55: 0 | I55: 0 | J55: New
A65: Public Policy Proceedings
A66: AB 32: Cap & Trade/GHG (ERRA Forecast) | C66: D.23-12-022 | D66: ='Authorized Rev Req'!O78 -> -689321.0839 | E66: GHG Revenue | F66: =D66 -> -689321.0839 | G66: =F66 -> -689321.0839 | H66: -689321.0839 | I66: =H66 -> -689321.0839 | J66: Existing
A67: Tree Mortality (ERRA Forecast) | C67: D.23-12-022 | D67: ='Authorized Rev Req'!O108 -> 23165.27158 | E67: Public Purpose Program | F67: 23165.27158 | G67: 23165.27158 | H67: 23165.27158 | I67: =H67 -> 23165.27158 | J67: Existing
A68: SGIP | C68: ='Authorized Rev Req'!H79 -> D.20-01-021, AL 5857-E | D68: ='Authorized Rev Req'!O79 -> 59877.17638 | E68: Public Purpose Program | F68: 59877.17638 | G68: 0 | H68: 0 | I68: 0 | J68: Existing
A69: CPUC Fee | C69: Res. M-4870 | D69: ='Authorized Rev Req'!O81 -> 79240.989 | E69: Distribution | F69: 79240.989 | G69: 79240.989 | H69: 79240.989 | I69: 79240.989 | J69: Existing
A70: Energy Efficiency/PPPRAM | C70: ='Authorized Rev Req'!H101 -> D.23-06-055/ AL 7047-E | D70: ='Authorized Rev Req'!O101 -> 120736.8739 | E70: Public Purpose Program | F70: 120736.8739 | G70: =F70 -> 120736.8739 | H70: 120736.8739 | I70: 120736.8739 | J70: Existing
A71: Energy Efficiency/PEERAM | C71: ='Authorized Rev Req'!H102 -> D.23-06-055/ AL 7047-E | D71: ='Authorized Rev Req'!O102 -> 101774.1433 | E71: Public Purpose Program | F71: 36499.97272 | G71: 78257.08844 | H71: 70907.13243 | I71: 70907.13243 | J71: Existing
A72: Demand Response | C72: D.23-12-005 | D72: ='Authorized Rev Req'!O86 -> 197658.9589 | E72: Distribution | F72: 197658.9589 | G72: 197658.9589 | H72: 197658.9589 | I72: 197658.9589 | J72: Existing
I73: 0
A74: Alternative Fuel Vehicle - SB 350 Application (aka Transportation Electrification) | C74: ='Authorized Rev Req'!H83 -> D.18-05-040, D.19-11-017, D.19-09-006, D.20-12-029, D.22-08-024 | D74: ='Authorized Rev Req'!O83 -> 47917.91 | E74: Distribution | F74: =D74 -> 47917.91 | G74: 25510 | H74: 24700 | I74: 23900 | J74: Existing
I75: 0
I76: 0
I77: 0
I78: 0
A79: ESA (Energy Savings Assistance) | C79: ='Authorized Rev Req'!H99 -> D.21-06-015 | D79: ='Authorized Rev Req'!O99 -> 91031.31 | E79: Public Purpose Program | F79: 93120 | G79: 92820 | H79: 92710 | I79: 92710 | J79: Existing
A80: ESA Unspent Funds | C80: ='Authorized Rev Req'!H100 -> D.21-06-015 | D80: ='Authorized Rev Req'!O100 -> -26000 | E80: Public Purpose Program | F80: =D80 -> -26000 | G80: 0 | H80: 0 | I80: 0 | J80: New
A81: CARE Administration | C81: ='Authorized Rev Req'!H95 -> D.21-06-015 | D81: ='Authorized Rev Req'!O95 -> 11256.48 | E81: Public Purpose Program | F81: 11256.48 | G81: 11555.36 | H81: 11830.16 | I81: 11830.16 | J81: Existing
A82: EPIC (Electric Program Investment Charge) | C82: ='Authorized Rev Req'!H97 -> D.20-08-042 | D82: ='Authorized Rev Req'!O97 -> 93732.73395 | E82: Public Purpose Program | F82: 93732.73395 | G82: =F82 -> 93732.73395 | H82: 74990 | I82: 74990 | J82: Existing
A83: BioMat | C83: D.23-12-022 | D83: ='Authorized Rev Req'!O113 -> 14061.23071 | E83: Public Purpose Program | F83: 14061.23071 | G83: =F83 -> 14061.23071 | H83: 14061.23071 | I83: =H83 -> 14061.23071 | J83: Existing
A84: Non-Vintaged PCIA | C84: D.23-12-022 | D84: ='Authorized Rev Req'!O115 -> -475.8328155 | E84: Public Purpose Program | F84: -475.8328155 | G84: -475.8328155 | H84: -475.8328155 | I84: =H84 -> -475.8328155 | J84: Existing
A85: DAC-GT | C85: D.23-12-022 | D85: ='Authorized Rev Req'!O117 -> 13908.018 | E85: Public Purpose Program | F85: 13908.018 | G85: =F85 -> 13908.018 | H85: =G85 -> 13908.018 | I85: =H85 -> 13908.018 | J85: Existing
A92: Balancing Accounts
A93: Generation | C93: AL 6505-E | D93: =SUMIFS('Authorized Rev Req'!$O:$O,'Authorized Rev Req'!$P:$P,E93,'Authorized Rev Req'!$Q:$Q,"Y") -> 0 | E93: Generation | F93: =D93 -> 0 | J93: Existing
A94: Distribution | C94: AL 6505-E / AL 7066-E | D94: =SUMIFS('Authorized Rev Req'!$O:$O,'Authorized Rev Req'!$P:$P,E94,'Authorized Rev Req'!$Q:$Q,"Y") -> 948815.226 | E94: Distribution | F94: =D94 -> 948815.226 | J94: Existing
A95: Distribution (Wildfire) | C95: AL 6505-E / AL 7066-E | D95: =SUMIFS('Authorized Rev Req'!$O:$O,'Authorized Rev Req'!$P:$P,E95,'Authorized Rev Req'!$Q:$Q,"Y") -> 47364.17889 | E95: Distribution (Wildfire) | F95: =D95 -> 47364.17889 | J95: Existing
A96: NSGC | C96: AL 6505-E | D96: =SUMIFS('Authorized Rev Req'!$O:$O,'Authorized Rev Req'!$P:$P,E96,'Authorized Rev Req'!$Q:$Q,"Y") -> 64270.12386 | E96: NSGC | F96: =D96 -> 64270.12386 | J96: Existing
A97: Public Purpose Program | C97: AL 6505-E / AL 7066-E | D97: =SUMIFS('Authorized Rev Req'!$O:$O,'Authorized Rev Req'!$P:$P,E97,'Authorized Rev Req'!$Q:$Q,"Y") -> 160372.9201 | E97: Public Purpose Program | F97: =D97 -> 160372.9201 | J97: Existing
A98: NDC | C98: AL 6505-E / AL 7066-E | D98: =SUMIFS('Authorized Rev Req'!$O:$O,'Authorized Rev Req'!$P:$P,E98,'Authorized Rev Req'!$Q:$Q,"Y") -> -220833.7078 | E98: NDC | F98: =D98 -> -220833.7078 | J98: Existing
A99: ECRA | C99: AL 6505-E / AL 7066-E | D99: =SUMIFS('Authorized Rev Req'!$O:$O,'Authorized Rev Req'!$P:$P,E99,'Authorized Rev Req'!$Q:$Q,"Y") -> -2005.964495 | E99: ECRA | F99: -2005.964495 | J99: Existing
A100: CTC | C100: AL 6505-E | D100: =SUMIFS('Authorized Rev Req'!$O:$O,'Authorized Rev Req'!$P:$P,E100,'Authorized Rev Req'!$Q:$Q,"Y") -> 60966.13068 | E100: CTC | F100: 60966.13068 | J100: Existing
A101: PCIA | C101: AL 6505-E | D101: =SUMIFS('Authorized Rev Req'!$O:$O,'Authorized Rev Req'!$P:$P,E101,'Authorized Rev Req'!$Q:$Q,"Y") -> 12388.54328 | E101: PCIA | F101: 12388.54328 | J101: Existing
A103: Non-CPUC Jurisdictional Proceedings
A104: TO - Formula Rate | C104: ='Authorized Rev Req'!H125 -> ER24-96-000 | D104: ='Authorized Rev Req'!O125 -> 2788799.641 | E104: Transmission | F104: =D104 -> 2788799.641 | G104: =F104 -> 2788799.641 | H104: 2788799.641 | I104: =H104 -> 2788799.641 | J104: Existing
A105: Transmission Balancing Accounts | C105: =CONCATENATE('Authorized Rev Req'!H126," / ",'Authorized Rev Req'!H127,"") -> ER24-599-000 / ER23-2968-000 | D105: =SUM('Authorized Rev Req'!O126:O129) -> -117919.3316 | E105: FERC BAs | F105: =D105 -> -117919.3316 | G105: -117919.3316 | H105: -117919.3316 | I105: =H105 -> -117919.3316 | J105: Existing
A108: Total Approved, Implemented Since Jan 1 or To Be Implemented | D108: =SUM(D10:D107) -> 20734135.47 | F108: =SUM(F10:F105) -> 19228318.75 | G108: =SUM(G10:G105) -> 17377639.93 | H108: =SUM(H10:H105) -> 16127652.06 | I108: =SUM(I10:I105) -> 16186006.79
D109: =D108-B5 -> 0
A111: Pending Application(s), Not Yet Approved | Q111: Authorized + Pending
A112: Filing Description | B112: Proceeding/Filing | C112: Basis of Revenue Requirement Forecast: Application Amended Application, Ammended Testimony, Proposed Settlement Agreement, Proposed Decision | D112: 2024 Proposed Revenue Requirement ($000) | E112: Proposed Revenue Recovery Mechanism | J112: Existing or New Item (if existing, use delta from prior for rate impact) | K112: Change in Projected Authorized Revenue Requirement ($000) for Rate Impact - Breakout by Year (if cell is shaded grey, rate impact is not presently determinable) | R112: =K113 -> 2024 | S112: =L113 -> 2025 | T112: 2026 | U112: 2027
A113: Safety Affordability Reliability Proceedings | F113: =F9 -> 2024 | G113: =F113+1 -> 2025 | H113: =G113+1 -> 2026 | I113: 2027 | K113: =F9 -> 2024 | L113: =K113+1 -> 2025 | M113: =L113+1 -> 2026 | N113: 2027 | Q113: Generation | R113: =SUM(R10,SUMIFS(K$114:K$132,$E$114:$E$132,$Q113,$O$114:$O$132,"y")) -> 4424925.344 | S113: =SUM(S10,SUMIFS(L$114:L$132,$E$114:$E$132,$Q113,$O$114:$O$132,"y")) -> 4424925.344 | T113: =SUM(T10,SUMIFS(M$114:M$132,$E$114:$E$132,$Q113,$O$114:$O$132,"y")) -> 4424925.344 | U113: =SUM(U10,SUMIFS(N$114:N$132,$E$114:$E$132,$Q113,$O$114:$O$132,"y")) -> 4424925.344
A114: 2022 WMCE | B114: A.22-12-009 | C114: Application, Table 13-5 | D114: =F114 -> 176101.4645 | E114: Distribution (Wildfire) | F114: 176101.4645 | G114: 15161.48388 | H114: 0 | I114: 0 | J114: New | K114: =F114 -> 176101.4645 | L114: =G114 -> 15161.48388 | M114: 0 | N114: =I114 -> 0 | O114: =VLOOKUP(A114,Summary!$B$8:$E$26,3,FALSE) -> Y | Q114: NSGC | R114: 444350.2979 | S114: 380080.1741 | T114: 380080.1741 | U114: 380080.1741
A115: 2022 WMCE | B115: A.22-12-009 | C115: Application, Table 13-5 | D115: 0 | E115: PCIA | F115: 0 | G115: 4431.587471 | H115: 0 | I115: 0 | J115: New | K115: =F115 -> 0 | L115: 4431.587471 | M115: 0 | N115: =I115 -> 0 | O115: =VLOOKUP(A115,Summary!$B$8:$E$26,3,FALSE) -> Y | Q115: Distribution | R115: 9286773.247 | S115: 8631269.431 | T115: 8125235.449 | U115: 8161396.582
A116: Wildfire Gas and Safety Costs | B116: A.23-06-008 | C116: Application, Table 1 & IRR PD for TY 2024 | D116: 433390.9763 | E116: Distribution (Wildfire) | F116: 433390.9763 | G116: 150044.3684 | H116: 402.3171417 | I116: 0 | J116: New | K116: 433390.9763 | L116: 150044.3684 | M116: 402.3171417 | N116: 0 | O116: =VLOOKUP(A116,Summary!$B$8:$E$26,3,FALSE) -> Y | Q116: GHG Revenue | R116: -689321.0839 | S116: -689321.0839 | T116: -689321.0839 | U116: -689321.0839
A117: Wildfire Gas and Safety Costs | B117: A.23-06-008 | C117: Application, Table 1 | D117: 0 | E117: PCIA | F117: 0 | G117: 35383.18875 | H117: 0 | I117: 0 | J117: New | K117: 0 | L117: 35383.18875 | M117: 0 | N117: 0 | O117: =VLOOKUP(A117,Summary!$B$8:$E$26,3,FALSE) -> Y | Q117: CTC | R117: 75596.53371 | S117: 14630.40303 | T117: 14630.40303 | U117: 14630.40303
A118: 2023 WMCE | B118: A.23-12-001 | C118: Supplemental Motion for Interim Rates, page 7. PG&E Prepared Testimony, page 14-2. | D118: 719374.8707 | E118: Distribution (Wildfire) | F118: =539531153/9*12/1000 -> 719374.8707 | G118: 1001578.936 | H118: 68083.80061 | I118: 0 | J118: New | K118: 719374.8707 | L118: 1001578.936 | M118: 68083.80061 | N118: 0 | O118: =VLOOKUP(A118,Summary!$B$8:$E$26,3,FALSE) -> Y | Q118: NDC | R118: -209072.9218 | S118: 11760.78598 | T118: 0 | U118: 0
A119: 2023 WMCE | B119: A.23-12-001 | C119: Motion for Interim Rates, page 2 | D119: 0 | E119: PCIA | F119: 0 | G119: 7404.488592 | H119: 25.12543253 | I119: 0 | J119: New | K119: 0 | L119: 7404.488592 | M119: 25.12543253 | N119: 0 | O119: =VLOOKUP(A119,Summary!$B$8:$E$26,3,FALSE) -> Y | Q119: Public Purpose Program | R119: 600254.8445 | S119: 447760.7437 | T119: 421832.8538 | U119: 421832.8538
A120: 2021 WMCE (VMBA) | B120: A.21-09-008 | C120: Application, Table 13-1 | D120: 295130 | E120: Distribution (Wildfire) | F120: 295130 | G120: =F120 -> 295130 | H120: 0 | I120: 0 | J120: New | K120: 295130 | L120: 295130 | M120: 0 | N120: 0 | O120: =VLOOKUP(A120,Summary!$B$8:$E$26,3,FALSE) -> Y | Q120: DWR BC | R120: 393053.029 | S120: 393053.029 | T120: 393053.029 | U120: 393053.029
A121: 2021 WMCE (VMBA) | B121: A.21-09-008 | C121: Application, Table 13-1 | D121: 635 | E121: PCIA | F121: 635 | G121: 635 | H121: 0 | I121: 0 | J121: New | K121: 635 | L121: 635 | M121: 0 | N121: 0 | O121: =VLOOKUP(A121,Summary!$B$8:$E$26,3,FALSE) -> Y | Q121: ECRA | R121: -2005.964495 | S121: 0 | T121: 0 | U121: 0
Q122: Transmission | R122: 2788799.641 | S122: 2788799.641 | T122: 2788799.641 | U122: 2788799.641
Q123: FERC BAs | R123: -124519.3316 | S123: -117919.3316 | T123: -117919.3316 | U123: -117919.3316
Q124: PCIA | R124: 616811.9563 | S124: 111866.4813 | T124: -641513.3756 | U124: -618715.114
A125: Public Policy Proceedings | Q125: WHC | R125: 173932.3285 | S125: 225476.9815 | T125: 225476.9815 | U125: 225476.9815
Q126: Distribution (Wildfire) | R126: 3066773.136 | S126: 2265026.381 | T126: 870883.2158 | U126: 801767.314
Q127: Total | R127: =SUM(R113:R126) -> 20846351.06 | S127: =SUM(S113:S126) -> 18887408.98 | T127: =SUM(T113:T126) -> 16196163.3 | U127: =SUM(U113:U126) -> 16186006.79
A131: Non-CPUC Jurisdictional Proceedings
A132: FERC TO21 TY24 Refund | B132: AL 7151-E | C132: AL 7151-E | D132: -6600 | E132: FERC BAs | F132: =D132 -> -6600 | G132: 0 | H132: 0 | I132: 0 | J132: New | K132: =F132 -> -6600 | L132: =G132 -> 0 | M132: =H132 -> 0 | N132: =M132 -> 0 | O132: =VLOOKUP(A132,Summary!$B$8:$E$26,3,FALSE) -> Y
A136: Total Pending, Filed but not Approved | D136: =SUM(D114:D135) -> 1618032.311 | F136: =SUM(F114:F135) -> 1618032.311 | G136: =SUM(G114:G135) -> 1509769.054 | H136: =SUM(H114:H135) -> 68511.24319 | I136: =SUM(I114:I135) -> 0 | K136: =SUM(K114:K135) -> 1618032.311 | L136: =SUM(L114:L135) -> 1509769.054 | M136: =SUM(M114:M135) -> 68511.24319 | N136: =SUM(N114:N135) -> 0
A140: 2021 RF&U | B140: 0.010869
A141: 2022 RF&U | B141: 0.010811
A142: 2024 RF&U | B142: 0.011245

Sheet SAR and RAR (hidden)
C2: Revenue Change ($000)
C3: Authorized | D3: w/ Pending
B4: Generation | C4: =INDEX('Incremental Rev Req'!$Q$9:$U$24,MATCH(B4,'Incremental Rev Req'!$Q$9:$Q$24,0),MATCH(Summary!$D$3,'Incremental Rev Req'!$Q$9:$U$9,0)) -> 4424925.344 | D4: =INDEX('Incremental Rev Req'!$Q$112:$U$127,MATCH(B4,'Incremental Rev Req'!$Q$112:$Q$127,0),MATCH(Summary!$D$3,'Incremental Rev Req'!$Q$112:$U$112,0)) -> 4424925.344 | G4: Allocation
B5: NSGC | C5: =INDEX('Incremental Rev Req'!$Q$9:$U$24,MATCH(B5,'Incremental Rev Req'!$Q$9:$Q$24,0),MATCH(Summary!$D$3,'Incremental Rev Req'!$Q$9:$U$9,0)) -> 444350.2979 | D5: =INDEX('Incremental Rev Req'!$Q$112:$U$127,MATCH(B5,'Incremental Rev Req'!$Q$112:$Q$127,0),MATCH(Summary!$D$3,'Incremental Rev Req'!$Q$112:$U$112,0)) -> 444350.2979 | G5: Generation | H5: Distribution | I5: NDC | J5: PPPC | K5: NSGC | L5: Transmission | M5: CTC | N5: ECRA | O5: FERC BAs | P5: GHG Rev | Q5: DWRBC | R5: WHC | S5: PCIA | T5: Distribution (Wildfire)
B6: Distribution | C6: =INDEX('Incremental Rev Req'!$Q$9:$U$24,MATCH(B6,'Incremental Rev Req'!$Q$9:$Q$24,0),MATCH(Summary!$D$3,'Incremental Rev Req'!$Q$9:$U$9,0)) -> 9286773.247 | D6: =INDEX('Incremental Rev Req'!$Q$112:$U$127,MATCH(B6,'Incremental Rev Req'!$Q$112:$Q$127,0),MATCH(Summary!$D$3,'Incremental Rev Req'!$Q$112:$U$112,0)) -> 9286773.247 | F6: Residential | G6: =VLOOKUP(Summary!$D$3,$F$35:$T$38,G$33,FALSE) -> 0.4196355755 | H6: =VLOOKUP(Summary!$D$3,$F$35:$T$38,H$33,FALSE) -> 0.4124864534 | I6: =VLOOKUP(Summary!$D$3,$F$35:$T$38,I$33,FALSE) -> 0.3437458405 | J6: =VLOOKUP(Summary!$D$3,$F$35:$T$38,J$33,FALSE) -> 0.3274444937 | K6: =VLOOKUP(Summary!$D$3,$F$35:$T$38,K$33,FALSE) -> 0.4726899375 | L6: =VLOOKUP(Summary!$D$3,$F$35:$T$38,L$33,FALSE) -> 0.4677839446 | M6: =VLOOKUP(Summary!$D$3,$F$35:$T$38,M$33,FALSE) -> 0.3697107556 | N6: =VLOOKUP(Summary!$D$3,$F$35:$T$38,N$33,FALSE) -> 0.3512795981 | O6: =VLOOKUP(Summary!$D$3,$F$35:$T$38,O$33,FALSE) -> 0.3477778154 | P6: =VLOOKUP(Summary!$D$3,$F$35:$T$38,P$33,FALSE) -> 0.8631862685 | Q6: =VLOOKUP(Summary!$D$3,$F$35:$T$38,Q$33,FALSE) -> 0.2663107175 | R6: =VLOOKUP(Summary!$D$3,$F$35:$T$38,R$33,FALSE) -> 0.3339427026 | S6: =VLOOKUP(Summary!$D$3,$F$35:$T$38,S$33,FALSE) -> 0.3819272913 | T6: =VLOOKUP(Summary!$D$3,$F$35:$T$38,T$33,FALSE) -> 0.4154888557
B7: GHG Revenue | C7: =INDEX('Incremental Rev Req'!$Q$9:$U$24,MATCH(B7,'Incremental Rev Req'!$Q$9:$Q$24,0),MATCH(Summary!$D$3,'Incremental Rev Req'!$Q$9:$U$9,0)) -> -689321.0839 | D7: =INDEX('Incremental Rev Req'!$Q$112:$U$127,MATCH(B7,'Incremental Rev Req'!$Q$112:$Q$127,0),MATCH(Summary!$D$3,'Incremental Rev Req'!$Q$112:$U$112,0)) -> -689321.0839
B8: CTC | C8: =INDEX('Incremental Rev Req'!$Q$9:$U$24,MATCH(B8,'Incremental Rev Req'!$Q$9:$Q$24,0),MATCH(Summary!$D$3,'Incremental Rev Req'!$Q$9:$U$9,0)) -> 75596.53371 | D8: =INDEX('Incremental Rev Req'!$Q$112:$U$127,MATCH(B8,'Incremental Rev Req'!$Q$112:$Q$127,0),MATCH(Summary!$D$3,'Incremental Rev Req'!$Q$112:$U$112,0)) -> 75596.53371 | G8: Revenue Change ($000) - System
B9: NDC | C9: =INDEX('Incremental Rev Req'!$Q$9:$U$24,MATCH(B9,'Incremental Rev Req'!$Q$9:$Q$24,0),MATCH(Summary!$D$3,'Incremental Rev Req'!$Q$9:$U$9,0)) -> -209072.9218 | D9: =INDEX('Incremental Rev Req'!$Q$112:$U$127,MATCH(B9,'Incremental Rev Req'!$Q$112:$Q$127,0),MATCH(Summary!$D$3,'Incremental Rev Req'!$Q$112:$U$112,0)) -> -209072.9218 | F9: Authorized | G9: Generation | H9: Distribution | I9: NDC | J9: Public Purpose Program | K9: NSGC | L9: Transmission | M9: CTC | N9: ECRA | O9: FERC BAs | P9: GHG Revenue | Q9: DWR BC | R9: WHC | S9: PCIA | T9: Distribution (Wildfire) | U9: Total
B10: Public Purpose Program | C10: =INDEX('Incremental Rev Req'!$Q$9:$U$24,MATCH(B10,'Incremental Rev Req'!$Q$9:$Q$24,0),MATCH(Summary!$D$3,'Incremental Rev Req'!$Q$9:$U$9,0)) -> 600254.8445 | D10: =INDEX('Incremental Rev Req'!$Q$112:$U$127,MATCH(B10,'Incremental Rev Req'!$Q$112:$Q$127,0),MATCH(Summary!$D$3,'Incremental Rev Req'!$Q$112:$U$112,0)) -> 600254.8445 | F10: Residential | G10: =G6*G11 -> 1856856.093 | H10: 3830668.161 | I10: -71867.94722 | J10: 196550.1436 | K10: 210039.9146 | L10: 1304555.697 | M10: 27948.8516 | N10: -704.6544016 | O10: -41009.72756 | P10: -595012.4942 | Q10: 104674.2342 | R10: =R6*R11 -> 58083.43185 | S10: =S6*S11 -> 235334.7959 | T10: =T6*T11 -> 599457.2763 | U10: =SUM(G10:T10) -> 7715573.776
B11: DWR BC | C11: =INDEX('Incremental Rev Req'!$Q$9:$U$24,MATCH(B11,'Incremental Rev Req'!$Q$9:$Q$24,0),MATCH(Summary!$D$3,'Incremental Rev Req'!$Q$9:$U$9,0)) -> 393053.029 | D11: =INDEX('Incremental Rev Req'!$Q$112:$U$127,MATCH(B11,'Incremental Rev Req'!$Q$112:$Q$127,0),MATCH(Summary!$D$3,'Incremental Rev Req'!$Q$112:$U$112,0)) -> 393053.029 | F11: Total System | G11: =VLOOKUP(G9,$B$4:$D$17,2,FALSE) -> 4424925.344 | H11: 9286773.247 | I11: -209072.9218 | J11: 600254.8445 | K11: 444350.2979 | L11: 2788799.641 | M11: 75596.53371 | N11: =VLOOKUP(N9,$B$4:$D$16,2,FALSE) -> -2005.964495 | O11: -117919.3316 | P11: =VLOOKUP(P9,$B$4:$D$17,2,FALSE) -> -689321.0839 | Q11: =VLOOKUP(Q9,$B$4:$D$17,2,FALSE) -> 393053.029 | R11: =VLOOKUP(R9,$B$4:$D$17,2,FALSE) -> 173932.3285 | S11: =VLOOKUP(S9,$B$4:$D$17,2,FALSE) -> 616176.9563 | T11: =VLOOKUP(T9,$B$4:$D$17,2,FALSE) -> 1442775.824 | U11: =SUM(G11:T11) -> 19228318.75
B12: ECRA | C12: =INDEX('Incremental Rev Req'!$Q$9:$U$24,MATCH(B12,'Incremental Rev Req'!$Q$9:$Q$24,0),MATCH(Summary!$D$3,'Incremental Rev Req'!$Q$9:$U$9,0)) -> -2005.964495 | D12: =INDEX('Incremental Rev Req'!$Q$112:$U$127,MATCH(B12,'Incremental Rev Req'!$Q$112:$Q$127,0),MATCH(Summary!$D$3,'Incremental Rev Req'!$Q$112:$U$112,0)) -> -2005.964495 | F12: w/Pending
B13: Transmission | C13: =INDEX('Incremental Rev Req'!$Q$9:$U$24,MATCH(B13,'Incremental Rev Req'!$Q$9:$Q$24,0),MATCH(Summary!$D$3,'Incremental Rev Req'!$Q$9:$U$9,0)) -> 2788799.641 | D13: =INDEX('Incremental Rev Req'!$Q$112:$U$127,MATCH(B13,'Incremental Rev Req'!$Q$112:$Q$127,0),MATCH(Summary!$D$3,'Incremental Rev Req'!$Q$112:$U$112,0)) -> 2788799.641 | F13: Residential | G13: =G6*G14 -> 1856856.093 | H13: =H6*H14 -> 3830668.161 | I13: -71867.94722 | J13: 196550.1436 | K13: 210039.9146 | L13: 1304555.697 | M13: =M6*M14 -> 27948.8516 | N13: -704.6544016 | O13: -43305.06114 | P13: -595012.4942 | Q13: 104674.2342 | R13: =R6*R14 -> 58083.43185 | S13: =S6*S14 -> 235577.3197 | T13: =T6*T14 -> 1274210.061 | U13: =SUM(G13:T13) -> 8388273.751
B14: FERC BAs | C14: =INDEX('Incremental Rev Req'!$Q$9:$U$24,MATCH(B14,'Incremental Rev Req'!$Q$9:$Q$24,0),MATCH(Summary!$D$3,'Incremental Rev Req'!$Q$9:$U$9,0)) -> -117919.3316 | D14: =INDEX('Incremental Rev Req'!$Q$112:$U$127,MATCH(B14,'Incremental Rev Req'!$Q$112:$Q$127,0),MATCH(Summary!$D$3,'Incremental Rev Req'!$Q$112:$U$112,0)) -> -124519.3316 | F14: Total System | G14: =VLOOKUP(G9,$B$4:$D$16,3,FALSE) -> 4424925.344 | H14: =VLOOKUP(H9,$B$4:$D$16,3,FALSE) -> 9286773.247 | I14: -209072.9218 | J14: 600254.8445 | K14: 444350.2979 | L14: 2788799.641 | M14: 75596.53371 | N14: -2005.964495 | O14: -124519.3316 | P14: -689321.0839 | Q14: 393053.029 | R14: 173932.3285 | S14: 616811.9563 | T14: =VLOOKUP(T9,$B$4:$D$17,3,FALSE) -> 3066773.136 | U14: =SUM(G14:T14) -> 20846351.06
B15: PCIA | C15: =INDEX('Incremental Rev Req'!$Q$9:$U$24,MATCH(B15,'Incremental Rev Req'!$Q$9:$Q$24,0),MATCH(Summary!$D$3,'Incremental Rev Req'!$Q$9:$U$9,0)) -> 616176.9563 | D15: =INDEX('Incremental Rev Req'!$Q$112:$U$127,MATCH(B15,'Incremental Rev Req'!$Q$112:$Q$127,0),MATCH(Summary!$D$3,'Incremental Rev Req'!$Q$112:$U$112,0)) -> 616811.9563 | AB15: Authorized | AC15: w/Pending
B16: WHC | C16: =INDEX('Incremental Rev Req'!$Q$9:$U$24,MATCH(B16,'Incremental Rev Req'!$Q$9:$Q$24,0),MATCH(Summary!$D$3,'Incremental Rev Req'!$Q$9:$U$9,0)) -> 173932.3285 | D16: =INDEX('Incremental Rev Req'!$Q$112:$U$127,MATCH(B16,'Incremental Rev Req'!$Q$112:$Q$127,0),MATCH(Summary!$D$3,'Incremental Rev Req'!$Q$112:$U$112,0)) -> 173932.3285 | U16: Authorized | W16: w/Pending | AA16: % of CARE Sales | AB16: =((VLOOKUP(Summary!$D$3,N51:O54,2,FALSE))-(VLOOKUP(Summary!$D$3,F51:G54,2,FALSE)))/(VLOOKUP(Summary!$D$3,N51:O54,2,FALSE)) -> 0.2945356527 | AC16: =AB16 -> 0.2945356527
B17: Distribution (Wildfire) | C17: =INDEX('Incremental Rev Req'!$Q$9:$U$24,MATCH(B17,'Incremental Rev Req'!$Q$9:$Q$24,0),MATCH(Summary!$D$3,'Incremental Rev Req'!$Q$9:$U$9,0)) -> 1442775.824 | D17: =INDEX('Incremental Rev Req'!$Q$112:$U$127,MATCH(B17,'Incremental Rev Req'!$Q$112:$Q$127,0),MATCH(Summary!$D$3,'Incremental Rev Req'!$Q$112:$U$112,0)) -> 3066773.136 | G17: Revenue Split - Bundled | U17: Bundled Revenue Change | W17: Bundled Revenue Change | AA17: CARE Line Item Discount | AB17: 0.2933034269 | AC17: =AB17 -> 0.2933034269
B18: Total | C18: =SUM(C4:C17) -> 19228318.75 | D18: =SUM(D4:D17) -> 20846351.06 | G18: Generation | H18: Distribution | I18: NDC | J18: PPPC | K18: NSGC | L18: Transmission | M18: CTC | N18: ECRA | O18: FERC BAs | P18: GHG Rev | Q18: DWRBC | R18: WHC | S18: PCIA | T18: Distribution (Wildfire) | U18: Total | V18: CARE Adj | W18: Total | X18: CARE Adj | AA18: CARE Discount | AB18: =SUM(H10:O10,S10:T10,G10/H19)*AB16*AB17 -> 922480.737 | AC18: =SUM(H13:O13,S13:T13,G13/H19)*AB16*AB17 -> 980594.1552
F19: Residential | G19: =VLOOKUP(Summary!$D$3,$F$41:$Q$44,G$33,FALSE) -> 1 | H19: =VLOOKUP(Summary!$D$3,$F$41:$T$44,H$33,FALSE) -> 0.4232312814 | I19: =VLOOKUP(Summary!$D$3,$F$41:$T$44,I$33,FALSE) -> 0.4232312814 | J19: =VLOOKUP(Summary!$D$3,$F$41:$T$44,J$33,FALSE) -> 0.4232312814 | K19: =VLOOKUP(Summary!$D$3,$F$41:$T$44,K$33,FALSE) -> 0.4232312814 | L19: =VLOOKUP(Summary!$D$3,$F$41:$T$44,L$33,FALSE) -> 0.4232312814 | M19: =VLOOKUP(Summary!$D$3,$F$41:$T$44,M$33,FALSE) -> 0.4232312814 | N19: =VLOOKUP(Summary!$D$3,$F$41:$T$44,N$33,FALSE) -> 0.4232312814 | O19: =VLOOKUP(Summary!$D$3,$F$41:$T$44,O$33,FALSE) -> 0.4232312814 | P19: =VLOOKUP(Summary!$D$3,$F$41:$T$44,P$33,FALSE) -> 0.4232312814 | Q19: =VLOOKUP(Summary!$D$3,$F$41:$T$44,Q$33,FALSE) -> 0.4232312814 | R19: =VLOOKUP(Summary!$D$3,$F$41:$T$44,R$33,FALSE) -> 0.4232312814 | S19: =VLOOKUP(Summary!$D$3,$F$41:$T$44,S$33,FALSE) -> 0.4232312814 | T19: =VLOOKUP(Summary!$D$3,$F$41:$T$44,T$33,FALSE) -> 0.4232312814 | U19: =SUMPRODUCT(G10:T10,G19:T19) -> 4336448.685 | V19: =U19-(($AB$18-$AB$21)*H19) -> 4055018.459 | W19: =SUMPRODUCT(G13:T13,G19:T19) -> 4621156.358 | X19: =W19-(($AC$18-$AC$21)*H19) -> 4321996.902 | AA19: non-CARE Residential Sales | AB19: =VLOOKUP(Summary!$D$3,$F$51:$G$54,2,FALSE) -> 19517886.53 | AC19: =AB19 -> 19517886.53
F20: Total System | G20: =VLOOKUP(Summary!$D$3,$F$45:$T$48,G$33,FALSE) -> 1 | H20: =VLOOKUP(Summary!$D$3,$F$45:$T$48,H$33,FALSE) -> 0.374635273 | I20: =VLOOKUP(Summary!$D$3,$F$45:$T$48,I$33,FALSE) -> 0.374635273 | J20: =VLOOKUP(Summary!$D$3,$F$45:$T$48,J$33,FALSE) -> 0.374635273 | K20: =VLOOKUP(Summary!$D$3,$F$45:$T$48,K$33,FALSE) -> 0.374635273 | L20: =VLOOKUP(Summary!$D$3,$F$45:$T$48,L$33,FALSE) -> 0.374635273 | M20: =VLOOKUP(Summary!$D$3,$F$45:$T$48,M$33,FALSE) -> 0.374635273 | N20: =VLOOKUP(Summary!$D$3,$F$45:$T$48,N$33,FALSE) -> 0.374635273 | O20: =VLOOKUP(Summary!$D$3,$F$45:$T$48,O$33,FALSE) -> 0.374635273 | P20: =VLOOKUP(Summary!$D$3,$F$45:$T$48,P$33,FALSE) -> 0.374635273 | Q20: =VLOOKUP(Summary!$D$3,$F$45:$T$48,Q$33,FALSE) -> 0.374635273 | R20: =VLOOKUP(Summary!$D$3,$F$45:$T$48,R$33,FALSE) -> 0.374635273 | S20: =VLOOKUP(Summary!$D$3,$F$45:$T$48,S$33,FALSE) -> 0.374635273 | T20: =VLOOKUP(Summary!$D$3,$F$45:$T$48,T$33,FALSE) -> 0.374635273 | U20: =SUMPRODUCT(G11:T11,G20:T20) -> 9970798.672 | V20: =U20 -> 9970798.672 | W20: =SUMPRODUCT(G14:T14,G20:T20) -> 10576970.65 | X20: =W20 -> 10576970.65 | AA20: non-exempt Sales | AB20: =VLOOKUP(Summary!$D$3,$F$55:$G$58,2,FALSE) -> 69915155.68 | AC20: =AB20 -> 69915155.68
AA21: Res CARE Surcharge | AB21: =AB18*AB19/AB20 -> 257524.6265 | AC21: =AC18*AC19/AC20 -> 273747.8772
F22: ="Notes: Allocation and bundled/unbundled split based on "&Summary!L4&" sales forecast" -> Notes: Allocation and bundled/unbundled split based on 2024 sales forecast
AA25: 2024 | AI25: 2024
F26: Bundled | P26: System (Bundled and Unbundled) | AB26: 500000000 | AJ26: 500000000
F27: =Summary!D3&" Sales" -> 2024 Sales | G27: =TEXT(Summary!L3,"mm/d/yyyy")&" Avg Rates" -> 03/1/2024 Avg Rates | H27: Proposed Avg Rates (Authorized) | I27: Proposed Avg Rates (w/Pending) | J27: % Change (Authorized) | K27: % Change (w/Pending) | P27: =F27 -> 2024 Sales | Q27: =G27 -> 03/1/2024 Avg Rates | R27: Proposed Avg Rates (Authorized) | S27: Proposed Avg Rates (w/Pending) | T27: % Change (Authorized) | U27: % Change (w/Pending) | AA27: Distribution (Wildfire) Allocation | AB27: =(SUMIF('Authorized Rev Req'!P:P, "Distribution (Wildfire)", 'Authorized Rev Req'!I:I)+SUMIF('Authorized Rev Req'!P:P, "WHC", 'Authorized Rev Req'!I:I))*1000 -> 1056700232 | AI27: Distribution (Wildfire) Allocation | AJ27: =('Incremental Rev Req'!S126+'Incremental Rev Req'!S125)*1000 -> 2490503363
E28: Residential | F28: =VLOOKUP(Summary!$D$3,$J$51:$K$54,2,FALSE) -> 11709422.54 | G28: 37.88846517 | H28: =V19/F28*100 -> 34.63038802 | I28: =X19/F28*100 -> 36.91041884 | J28: =H28/G28-1 -> -0.08599126781 | K28: =I28/G28-1 -> -0.02581382823 | O28: Residential | P28: =VLOOKUP(Summary!$D$3,$N$51:$O$54,2,FALSE) -> 27666722.78 | Q28: 29.75450935 | R28: =U10/P28*100 -> 27.88755949 | S28: =U13/P28*100 -> 30.31900025 | T28: =R28/Q28-1 -> -0.06274510648 | U28: =S28/Q28-1 -> 0.01897160852
E29: Total System | F29: =VLOOKUP(Summary!$D$3,$J$55:$K$58,2,FALSE) -> 29392636.88 | G29: 36.61409129 | H29: =V20/F29*100 -> 33.92277703 | I29: =X20/F29*100 -> 35.98510297 | J29: =H29/G29-1 -> -0.07350487672 | K29: =I29/G29-1 -> -0.01717885924 | O29: Total System | P29: =VLOOKUP(Summary!$D$3,$N$55:$O$58,2,FALSE) -> 78456672.41 | Q29: 26.42580918 | R29: =U11/P29*100 -> 24.50820071 | S29: =U14/P29*100 -> 26.57052666 | T29: =R29/Q29-1 -> -0.07256574259 | U29: =S29/Q29-1 -> 0.005476368895 | AB29: Distribution | AC29: EPT | AE29: First 500M | AF29: After 500M | AJ29: Distribution | AK29: EPT | AM29: First 500M | AN29: After 500M
AA30: Res | AB30: 0.4946350247 | AC30: 0.3811737117 | AE30: =AVERAGE(AB30:AC30) -> 0.4379043682 | AF30: =(0.125*AB30)+(0.875*AC30) -> 0.3953563758 | AI30: Res | AJ30: =AB30 -> 0.4946350247 | AK30: =AC30 -> 0.3811737117 | AM30: =AVERAGE(AJ30:AK30) -> 0.4379043682 | AN30: =(0.125*AJ30)+(0.875*AK30) -> 0.3953563758
AA31: B-1 | AB31: 0.1168026855 | AC31: 0.09616942227 | AI31: B-1 | AJ31: =AB31 -> 0.1168026855 | AK31: =AC31 -> 0.09616942227
AA32: B-6/A-15 | AB32: 0.02939347021 | AC32: 0.0243447547 | AI32: B-6/A-15 | AJ32: 0.02939347021 | AK32: 0.0243447547
G33: 2 | H33: 3 | I33: 4 | J33: 5 | K33: 6 | L33: 7 | M33: 8 | N33: 9 | O33: 10 | P33: 11 | Q33: 12 | R33: 13 | S33: 14 | T33: 15 | AA33: A-10 | AB33: 0.09360944358 | AC33: 0.1098897624 | AI33: A-10 | AJ33: 0.09360944358 | AK33: 0.1098897624
F34: Residential Allocator | G34: Generation | H34: Distribution | I34: NDC | J34: PPPC | K34: NSGC | L34: Transmission | M34: CTC | N34: ECRA | O34: FERC BAs | P34: GHG Rev | Q34: DWRBC | R34: WHC | S34: PCIA | T34: Distribution (Wildfire) | AA34: E-19 | AB34: 0.1285076878 | AC34: 0.1694539718 | AI34: E-19 | AJ34: 0.1285076878 | AK34: 0.1694539718
F35: 2024 | G35: 0.4196355755 | H35: 0.4124864534 | I35: 0.3437458405 | J35: 0.3274444937 | K35: 0.4726899375 | L35: 0.4677839446 | M35: 0.3697107556 | N35: 0.3512795981 | O35: 0.3477778154 | P35: 0.8631862685 | Q35: 0.2663107175 | R35: 0.3339427026 | S35: 0.3819272913 | T35: =((AB26*AE30)+((AB27-AB26)*(AF30)))/AB27 -> 0.4154888557 | AA35: Streetlights | AB35: 0.005017791101 | AC35: 0.004386826426 | AI35: Streetlights | AJ35: 0.005017791101 | AK35: 0.004386826426
F36: =F35+1 -> 2025 | G36: =G35 -> 0.4196355755 | H36: =H35 -> 0.4124864534 | I36: 0.3437458405 | J36: 0.3274444937 | K36: 0.4726899375 | L36: 0.4677839446 | M36: 0.3697107556 | N36: 0.3512795981 | O36: 0.3477778154 | P36: 0.8631862685 | Q36: 0.2663107175 | R36: 0.3339427026 | S36: 0.3819272913 | T36: 0.4154888557 | AA36: Standby | AB36: 0.002558753066 | AC36: 0.004403395311 | AI36: Standby | AJ36: 0.002558753066 | AK36: 0.004403395311
F37: =F36+1 -> 2026 | G37: =G36 -> 0.4196355755 | H37: =H36 -> 0.4124864534 | I37: =I36 -> 0.3437458405 | J37: 0.3274444937 | K37: 0.4726899375 | L37: 0.4677839446 | M37: 0.3697107556 | N37: 0.3512795981 | O37: 0.3477778154 | P37: 0.8631862685 | Q37: 0.2663107175 | R37: =R36 -> 0.3339427026 | S37: 0.3819272913 | T37: =T36 -> 0.4154888557 | AA37: AG | AB37: 0.07829354117 | AC37: 0.07365271789 | AI37: AG | AJ37: 0.07829354117 | AK37: 0.07365271789
F38: 2027 | G38: =G36 -> 0.4196355755 | H38: =H37 -> 0.4124864534 | I38: =I36 -> 0.3437458405 | J38: 0.3274444937 | K38: 0.4726899375 | L38: 0.4677839446 | M38: 0.3697107556 | N38: 0.3512795981 | O38: 0.3477778154 | P38: 0.8631862685 | Q38: 0.2663107175 | R38: =R36 -> 0.3339427026 | S38: 0.3819272913 | T38: 0.4154888557 | AA38: E-20P | AB38: 0.03669006625 | AC38: 0.06639780327 | AI38: E-20P | AJ38: 0.03669006625 | AK38: 0.06639780327
AA39: E-20S | AB39: 0.0137126474 | AC39: 0.02091981408 | AI39: E-20S | AJ39: 0.0137126474 | AK39: 0.02091981408
F40: Revenue Split - Bundled | AA40: E-20T | AB40: 0.0007788893378 | AC40: 0.04920782019 | AI40: E-20T | AJ40: 0.0007788893378 | AK40: 0.04920782019
E41: Residential | F41: =F35 -> 2024 | G41: 1 | H41: =$K51/$O51 -> 0.4232312814 | I41: 0.4232312814 | J41: 0.4232312814 | K41: 0.4232312814 | L41: 0.4232312814 | M41: 0.4232312814 | N41: 0.4232312814 | O41: 0.4232312814 | P41: 0.4232312814 | Q41: 0.4232312814 | R41: =$K51/$O51 -> 0.4232312814 | S41: 0.4232312814 | T41: 0.4232312814
E42: Residential | F42: =F36 -> 2025 | G42: 1 | H42: =$K52/$O52 -> 0.4232312814 | I42: 0.4232312814 | J42: 0.4232312814 | K42: 0.4232312814 | L42: 0.4232312814 | M42: 0.4232312814 | N42: 0.4232312814 | O42: 0.4232312814 | P42: 0.4232312814 | Q42: =$K52/$O52 -> 0.4232312814 | R42: =$K52/$O52 -> 0.4232312814 | S42: 0.4232312814 | T42: =$K52/$O52 -> 0.4232312814
E43: Residential | F43: 2026 | G43: =G42 -> 1 | H43: =H42 -> 0.4232312814 | I43: =I42 -> 0.4232312814 | J43: =J42 -> 0.4232312814 | K43: =K42 -> 0.4232312814 | L43: =L42 -> 0.4232312814 | M43: =M42 -> 0.4232312814 | N43: =N42 -> 0.4232312814 | O43: =O42 -> 0.4232312814 | P43: =P42 -> 0.4232312814 | Q43: =Q42 -> 0.4232312814 | R43: =R42 -> 0.4232312814 | S43: 0.4232312814 | T43: =$K53/$O53 -> 0.4232312814
E44: Residential | F44: 2027 | G44: =G42 -> 1 | H44: =H42 -> 0.4232312814 | I44: 0.4232312814 | J44: 0.4232312814 | K44: 0.4232312814 | L44: 0.4232312814 | M44: 0.4232312814 | N44: 0.4232312814 | O44: 0.4232312814 | P44: 0.4232312814 | Q44: 0.4232312814 | R44: =R42 -> 0.4232312814 | S44: 0.4232312814 | T44: =$K54/$O54 -> 0.4232312814
E45: Total System | F45: =F41 -> 2024 | G45: 1 | H45: =$K55/$O55 -> 0.374635273 | I45: 0.374635273 | J45: 0.374635273 | K45: 0.374635273 | L45: 0.374635273 | M45: 0.374635273 | N45: 0.374635273 | O45: 0.374635273 | P45: 0.374635273 | Q45: 0.374635273 | R45: =$K55/$O55 -> 0.374635273 | S45: 0.374635273 | T45: 0.374635273
E46: Total System | F46: =F42 -> 2025 | G46: 1 | H46: 0.374635273 | I46: 0.374635273 | J46: 0.374635273 | K46: 0.374635273 | L46: 0.374635273 | M46: 0.374635273 | N46: 0.374635273 | O46: 0.374635273 | P46: 0.374635273 | Q46: 0.374635273 | R46: =$K56/$O56 -> 0.374635273 | S46: 0.374635273 | T46: 0.374635273
E47: Total System | F47: =F43 -> 2026 | G47: =G46 -> 1 | H47: =H46 -> 0.374635273 | I47: =I46 -> 0.374635273 | J47: =J46 -> 0.374635273 | K47: =K46 -> 0.374635273 | L47: =L46 -> 0.374635273 | M47: =M46 -> 0.374635273 | N47: =N46 -> 0.374635273 | O47: =O46 -> 0.374635273 | P47: =P46 -> 0.374635273 | Q47: =Q46 -> 0.374635273 | R47: =R46 -> 0.374635273 | S47: 0.374635273 | T47: =$K57/$O57 -> 0.374635273
E48: Total System | F48: =F44 -> 2027 | G48: =G46 -> 1 | H48: =H46 -> 0.374635273 | I48: 0.374635273 | J48: 0.374635273 | K48: 0.374635273 | L48: 0.374635273 | M48: 0.374635273 | N48: 0.374635273 | O48: 0.374635273 | P48: 0.374635273 | Q48: 0.374635273 | R48: =R46 -> 0.374635273 | S48: 0.374635273 | T48: =$K58/$O58 -> 0.374635273
F50: Non-CARE Sales | J50: Bundled Sales | N50: System Sales
E51: Residential | F51: =F41 -> 2024 | G51: 19517886.53 | I51: Residential | J51: =F51 -> 2024 | K51: 11709422.54 | M51: Residential | N51: =F51 -> 2024 | O51: 27666722.78
E52: Residential | F52: 2025 | G52: =G51 -> 19517886.53 | I52: Residential | J52: 2025 | K52: =K51 -> 11709422.54 | M52: Residential | N52: 2025 | O52: =O51 -> 27666722.78
E53: Residential | F53: 2026 | G53: =G52 -> 19517886.53 | I53: Residential | J53: 2026 | K53: =K52 -> 11709422.54 | M53: Residential | N53: 2026 | O53: =O52 -> 27666722.78
E54: Residential | F54: 2027 | G54: =G53 -> 19517886.53 | I54: Residential | J54: 2027 | K54: =K53 -> 11709422.54 | M54: Residential | N54: 2027 | O54: =$O$53 -> 27666722.78
E55: Total System | F55: 2024 | G55: 69915155.68 | I55: Total System | J55: 2024 | K55: 29392636.88 | M55: Total System | N55: 2024 | O55: 78456672.41
E56: Total System | F56: 2025 | G56: =G55 -> 69915155.68 | I56: Total System | J56: 2025 | K56: =K55 -> 29392636.88 | M56: Total System | N56: 2025 | O56: =O55 -> 78456672.41
E57: Total System | F57: 2026 | G57: =G56 -> 69915155.68 | I57: Total System | J57: 2026 | K57: =K56 -> 29392636.88 | M57: Total System | N57: 2026 | O57: =O56 -> 78456672.41
E58: Total System | F58: 2027 | G58: =G57 -> 69915155.68 | I58: Total System | J58: 2027 | K58: =K57 -> 29392636.88 | M58: Total System | N58: 2027 | O58: =O57 -> 78456672.41
E60: Notes:
E62: 2024 Forecast: Adopted in D.23-12-022
E63: 2025 Forecast: Set equal to the 2024
E64: 2026 Forecast: Set equal to the 2024
E65: 2027 Forecast: Set equal to the 2024

Sheet Res Bill Impact (hidden)
E3: Schedule E-1 | P3: Schedule EL-1
E4: =Summary!D3 -> 2024 | F4: =Summary!L3 -> 2024-03-01 | G4: =Summary!L3 -> 2024-03-01 | H4: Proposed | I4: Proposed | J4: Proposed | K4: Proposed | P4: =E4 -> 2024 | Q4: =Summary!L3 -> 2024-03-01 | R4: =Summary!L3 -> 2024-03-01 | S4: Proposed | T4: Proposed | U4: Proposed | V4: Proposed
E5: Sales Forecast | F5: Rates | G5: Revenue | H5: Authorized Rates | I5: Authorized Revenue | J5: w/Pending Rates | K5: w/Pending Revenue | P5: Sales Forecast | Q5: Rates | R5: Revenue | S5: Authorized Rates | T5: Authorized Revenue | U5: w/Pending Rates | V5: w/Pending Revenue
D7: Baseline - Summer | E7: =HLOOKUP($E$4,$Y$38:$AB$42,2,FALSE) -> 1534680927 | F7: 0.4210107155 | G7: =F7*E7 -> 646117115.3 | H7: =(Y9/SUM(SUM(E7:E8),F9/F7*SUM(E9:E10),F11/F7*SUM(E11:E12),SUM(P7:P8)*(1+(Q7/F7-1)),SUM(P9:P10)*(1+(Q9/F9-1))*F9/F7,SUM(P11:P12)*(1+(Q11/F11-1))*F11/F7)) -> 0.3886129432 | I7: =E7*H7 -> 596396872 | J7: =(Y10/SUM(SUM(E7:E8),F9/F7*SUM(E9:E10),F11/F7*SUM(E11:E12),SUM(P7:P8)*(1+(Q7/F7-1)),SUM(P9:P10)*(1+(Q9/F9-1))*F9/F7,SUM(P11:P12)*(1+(Q11/F11-1))*F11/F7)) -> 0.4127027922 | K7: =E7*J7 -> 633367103.8 | O7: Baseline - Summer | P7: =HLOOKUP($E$4,$Y$49:$AB$53,2,FALSE) -> 1302723574 | Q7: 0.2737200951 | R7: =Q7*P7 -> 356581620.6 | S7: =H7*(1+(Q7/F7-1)) -> 0.2526566851 | T7: =P7*S7 -> 329141819.8 | U7: =J7*(1+(Q7/F7-1)) -> 0.2683186992 | V7: =P7*U7 -> 349545094.8 | X7: Bundled Residential Rev Req
D8: - Winter | E8: =HLOOKUP($E$4,$Y$38:$AB$42,3,FALSE) -> 2163342895 | F8: 0.4210107155 | G8: 910790540 | H8: =H7 -> 0.3886129432 | I8: =E8*H8 -> 840703049.4 | J8: =J7 -> 0.4127027922 | K8: 892817653.1 | O8: - Winter | P8: =HLOOKUP($E$4,$Y$49:$AB$53,3,FALSE) -> 1671858632 | Q8: 0.2737200951 | R8: =Q8*P8 -> 457621303.6 | S8: =H8*(1+(Q8/F8-1)) -> 0.2526566851 | T8: =P8*S8 -> 422406259.8 | U8: 0.2683186992 | V8: 448590933.2 | X8: Current | Y8: =SUM(G7:G12)+SUM(R7:R12) -> 4665898290
D9: 101% - 400% of Baseline - Summer | E9: =HLOOKUP($E$4,$Y$38:$AB$42,4,FALSE) -> 1444163839 | F9: 0.5270787295 | G9: 761188041.5 | H9: =F9/F$7*H$7 -> 0.4865187721 | I9: 702612817.7 | J9: =F9/F$7*J$7 -> 0.5166777362 | K9: 746167303 | O9: 101% - 400% of Baseline - Summer | P9: =HLOOKUP($E$4,$Y$49:$AB$53,4,FALSE) -> 1052520222 | Q9: 0.3426802089 | R9: 360677849.6 | S9: 0.3163101547 | T9: 332922834.3 | U9: 0.3359180036 | V9: 353560491.8 | X9: Proposed (Authorized) | Y9: =('SAR and RAR'!V19-('SAR and RAR'!P10*'SAR and RAR'!P19))*1000 -> 4306846359 | Z9: =Y9/Y8-1 -> -0.07695236994
D10: - Winter | E10: =HLOOKUP($E$4,$Y$38:$AB$42,5,FALSE) -> 1640323344 | F10: 0.5270787295 | G10: 864579544.2 | H10: =H9 -> 0.4865187721 | I10: 798048099.3 | J10: =J9 -> 0.5166777362 | K10: 847518552 | O10: - Winter | P10: =HLOOKUP($E$4,$Y$49:$AB$53,5,FALSE) -> 899795983.8 | Q10: 0.3426802089 | R10: 308342275.7 | S10: 0.3163101547 | T10: 284614606.9 | U10: 0.3359180036 | V10: 302257670.6 | X10: Proposed (w/Pending) | Y10: =('SAR and RAR'!X19-('SAR and RAR'!P13*'SAR and RAR'!P19))*1000 -> 4573824802 | Z10: =Y10/Y8-1 -> -0.01973328232
D11: 401% of Baseline - Summer | E11: =HLOOKUP($E$4,$Y$38:$AB$44,6,FALSE) -> 0 | F11: 0.5270787295 | G11: 0 | H11: =F11/F$7*H$7 -> 0.4865187721 | I11: 0 | J11: =F11/F$7*J$7 -> 0.5166777362 | K11: 0 | O11: 401% of Baseline - Summer | P11: =HLOOKUP($E$4,$Y$49:$AB$55,6,FALSE) -> 0 | Q11: 0.3426802089 | R11: 0 | S11: 0.3163101547 | T11: 0 | U11: 0.3359180036 | V11: 0
D12: - Winter | E12: =HLOOKUP($E$4,$Y$38:$AB$44,7,FALSE) -> 0 | F12: 0.5270787295 | G12: 0 | H12: =H11 -> 0.4865187721 | I12: 0 | J12: =J11 -> 0.5166777362 | K12: 0 | O12: - Winter | P12: =HLOOKUP($E$4,$Y$49:$AB$55,7,FALSE) -> 0 | Q12: 0.3426802089 | R12: 0 | S12: 0.3163101547 | T12: 0 | U12: 0.3359180036 | V12: 0
P19: 2023 Recorded Average Monthly Usage (kWh) - Bundled/Basic/non-medical/non-FERA | X19: 2023 Recorded Average Monthly Usage (kWh) - Bundled/All Electric/non-medical/non-FERA
B20: SCHEDULE E-1 RATES ($/kWh) | E20: Proposed | F20: Proposed | H20: MONTHLY BASELINE QUANTITIES -BASIC (kWh) | L20: MONTHLY BASELINE QUANTITIES -ALL-ELECTRIC (kWh) | P20: Climate Zone | Q20: Summer | R20: Winter | S20: Summer | T20: Winter | U20: Sample Population Weight | X20: Climate Zone | Y20: Summer | Z20: Winter | AA20: Summer | AB20: Winter | AC20: Sample Population Weight
B21: Rates | C21: 2024-01-01 | D21: =Summary!L3 -> 2024-03-01 | E21: Authorized | F21: w/Pending | H21: Climate Zone | I21: Summer 2023 | J21: Winter 2023 | L21: Climate Zone | M21: Summer 2023 | N21: Winter 2023 | Q21: Non-CARE | S21: CARE | U21: Non-CARE | V21: CARE | Y21: Non-CARE | AA21: CARE | AC21: Non-CARE | AD21: CARE
B22: Tier 1 | C22: 0.42009 | D22: =F7 -> 0.4210107155 | E22: =H7 -> 0.3886129432 | F22: =J7 -> 0.4127027922 | H22: P - Hot | I22: =13.5*$R$33 -> 410.90625 | J22: =11*$R$33 -> 334.8125 | L22: P - Hot | M22: =15.2*$R$33 -> 462.65 | N22: =26*$R$33 -> 791.375 | P22: P - Hot | Q22: 515.75 | R22: 438 | S22: 555.75 | T22: 522 | U22: 0.04962349349 | V22: 0.02696833647 | X22: P - Hot | Y22: 603.25 | Z22: 622.25 | AA22: 662.25 | AB22: 778.625 | AC22: 0.2176560094 | AD22: 0.2082056568
B23: Tier 2 | C23: 0.52566 | D23: =F9 -> 0.5270787295 | E23: =H9 -> 0.4865187721 | F23: =J9 -> 0.5166777362 | H23: Q - Warm | I23: =9.8*$R$33 -> 298.2875 | J23: =11*$R$33 -> 334.8125 | L23: Q - Warm | M23: =8.5*$R$33 -> 258.71875 | N23: =26*$R$33 -> 791.375 | P23: Q - Warm | Q23: 391 | R23: 463.25 | S23: 378.25 | T23: 484.5 | U23: 0.0002951672071 | V23: 9.34075787e-05 | X23: Q - Warm | Y23: 506.75 | Z23: 641.125 | AA23: 504.5 | AB23: 698.375 | AC23: 0.001402434553 | AD23: 0.0005826883013
H24: R - Hot | I24: =17.7*$R$33 -> 538.74375 | J24: =10.4*$R$33 -> 316.55 | L24: R - Hot | M24: =19.9*$R$33 -> 605.70625 | N24: =26.7*$R$33 -> 812.68125 | P24: R - Hot | Q24: 755.5 | R24: 425.875 | S24: 813.75 | T24: 453 | U24: 0.2834304554 | V24: 0.3761012847 | X24: R - Hot | Y24: 758 | Z24: 587.25 | AA24: 831.5 | AB24: 671.125 | AC24: 0.2492025372 | AD24: 0.3246042331
H25: S - Hot | I25: =15*$R$33 -> 456.5625 | J25: =10.2*$R$33 -> 310.4625 | L25: S - Hot | M25: =17.8*$R$33 -> 541.7875 | N25: =23.7*$R$33 -> 721.36875 | P25: S - Hot | Q25: 631 | R25: 416.125 | S25: 676.5 | T25: 444.375 | U25: 0.363231375 | V25: 0.3087773627 | X25: S - Hot | Y25: 657 | Z25: 569 | AA25: 674.5 | AB25: 605.875 | AC25: 0.2447789103 | AD25: 0.2485619458
B26: SCHEDULE EL-1 ($/kWh) | E26: Proposed | F26: Proposed | H26: T - Cool | I26: =6.5*$R$33 -> 197.84375 | J26: =7.5*$R$33 -> 228.28125 | L26: T - Cool | M26: =7.1*$R$33 -> 216.10625 | N26: =12.9*$R$33 -> 392.64375 | P26: T - Cool | Q26: 244.5 | R26: 293.625 | S26: 257 | T26: 310.875 | U26: 0.04795066212 | V26: 0.01989300501 | X26: T - Cool | Y26: 232 | Z26: 314.5 | AA26: 247 | AB26: 337.375 | AC26: 0.03956148713 | AD26: 0.02584325099
B27: Rates | C27: =C21 -> 2024-01-01 | D27: =D21 -> 2024-03-01 | E27: Authorized | F27: w/Pending | H27: V - Cool | I27: =7.1*$R$33 -> 216.10625 | J27: =8.1*$R$33 -> 246.54375 | L27: V - Cool | M27: =10.4*$R$33 -> 316.55 | N27: =19.1*$R$33 -> 581.35625 | P27: V - Cool | Q27: 270.75 | R27: 333.625 | S27: 284 | T27: 355.25 | U27: 0.001594858574 | V27: 0.0009270526608 | X27: V - Cool | Y27: 370.75 | Z27: 495.125 | AA27: 404.25 | AB27: 570 | AC27: 0.001800249322 | AD27: 0.001073142022
B28: Tier 1 | C28: 0.27312 | D28: =Q7 -> 0.2737200951 | E28: =S7 -> 0.2526566851 | F28: =U7 -> 0.2683186992 | H28: W - Hot | I28: =19.2*$R$33 -> 584.4 | J28: =9.8*$R$33 -> 298.2875 | L28: W - Hot | M28: =22.4*$R$33 -> 681.8 | N28: =19*$R$33 -> 578.3125 | P28: W - Hot | Q28: 808.75 | R28: 385.75 | S28: 875 | T28: 423.25 | U28: 0.130063399 | V28: 0.2350968091 | X28: W - Hot | Y28: 830.25 | Z28: 473.75 | AA28: 892.5 | AB28: 508.5 | AC28: 0.0648328078 | AD28: 0.1240965037
B29: Tier 2 | C29: 0.34175 | D29: =Q9 -> 0.3426802089 | E29: =S9 -> 0.3163101547 | F29: =U9 -> 0.3359180036 | H29: X - Warm | I29: =9.8*$R$33 -> 298.2875 | J29: =9.7*$R$33 -> 295.24375 | L29: X - Warm | M29: =8.5*$R$33 -> 258.71875 | N29: =14.6*$R$33 -> 444.3875 | P29: X - Warm | Q29: 406.5 | R29: 388.625 | S29: 379.75 | T29: 381.375 | U29: 0.1041273454 | V29: 0.02848018144 | X29: X - Warm | Y29: 316.25 | Z29: 367.625 | AA29: 319.75 | AB29: 394.5 | AC29: 0.06214434993 | AD29: 0.03583240245
H30: Y - Warm | I30: =10.5*$R$33 -> 319.59375 | J30: =11.1*$R$33 -> 337.85625 | L30: Y - Warm | M30: =12*$R$33 -> 365.25 | N30: =24*$R$33 -> 730.5 | P30: Y - Warm | Q30: 356.25 | R30: 354 | S30: 481.5 | T30: 538.375 | U30: 0.01814594161 | V30: 0.003625337754 | X30: Y - Warm | Y30: 377.5 | Z30: 416.5 | AA30: 564.5 | AB30: 725.375 | AC30: 0.106307289 | AD30: 0.030740468
H31: Z - Cool | I31: =5.9*$R$33 -> 179.58125 | J31: =7.8*$R$33 -> 237.4125 | L31: Z - Cool | M31: =6.7*$R$33 -> 203.93125 | N31: =15.7*$R$33 -> 477.86875 | P31: Z - Cool | Q31: 214.25 | R31: 225 | S31: 293.5 | T31: 344.375 | U31: 0.001537302054 | V31: 3.722256896e-05 | X31: Z - Cool | Y31: 210 | Z31: 203.625 | AA31: 375.5 | AB31: 441.625 | AC31: 0.01231392535 | AD31: 0.0004597088608
Q33: Daily to Monthly Conversion Factor | R33: =365.25/12 -> 30.4375
C35: Basic NON-CARE | M35: All Electric NON-CARE
C36: =$C$27 -> 2024-01-01 | E36: =$D$27 -> 2024-03-01 | G36: =$E$21 -> Authorized | I36: =$F$21 -> w/Pending | M36: =$C$27 -> 2024-01-01 | O36: =$D$27 -> 2024-03-01 | Q36: =$E$21 -> Authorized | S36: =$F$21 -> w/Pending
C37: Summer | D37: Winter | E37: Summer | F37: Winter | G37: Summer | H37: Winter | I37: Summer | J37: Winter | M37: Summer | N37: Winter | O37: Summer | P37: Winter | Q37: Summer | R37: Winter | S37: Summer | T37: Winter
B38: P - Hot | C38: =IF(I22<Q22,$C$22*I22+$C$23*(Q22-I22),$C$22*Q22) -> 227.7297722 | D38: =IF(J22<R22,$C$22*J22+$C$23*(R22-J22),$C$22*R22) -> 194.8929244 | E38: =IF(I22<Q22,$D$22*I22+$D$23*(Q22-I22),$D$22*Q22) -> 228.2568449 | F38: =IF(J22<R22,$D$22*J22+$D$23*(R22-J22),$D$22*R22) -> 195.3475866 | G38: =IF(I22<Q22,$E$22*I22+$E$23*(Q22-I22),$E$22*Q22) -> 210.6919397 | H38: =IF(J22<R22,$E$22*J22+$E$23*(R22-J22),$E$22*R22) -> 180.3151268 | I38: =IF(I22<Q22, $F$22*I22+$F$23*(Q22-I22), $F$22*Q22) -> 223.7525881 | J38: =IF(J22<R22, $F$22*J22+$F$23*(R22-J22), $F$22*R22) -> 191.4927375 | L38: P - Hot | M38: =IF(M22<Y22,$C$22*M22+$C$23*(Y22-M22),$C$22*Y22) -> 268.2624345 | N38: =IF(N22<Z22,$C$22*N22+$C$23*(Z22-N22),$C$22*Z22) -> 261.4010025 | O38: =IF(M22<Y22,$D$22*M22+$D$23*(Y22-M22),$D$22*Y22) -> 268.8878769 | P38: =IF(N22<Z22,$D$22*N22+$D$23*(Z22-N22),$D$22*Z22) -> 261.9739177 | Q38: =IF(M22<Y22,$E$22*M22+$E$23*(Y22-M22),$E$22*Y22) -> 248.1963175 | R38: =IF(N22<Z22,$E$22*N22+$E$23*(Z22-N22),$E$22*Z22) -> 241.8144039 | S38: =IF(M22<Y22,$F$22*M22+$F$23*(Y22-M22),$F$22*Y22) -> 263.5818365 | T38: =IF(N22<Z22,$F$22*N22+$F$23*(Z22-N22),$F$22*Z22) -> 256.8043125 | W38: Non-CARE Tiered Sales | Y38: 2024 | Z38: =Y38+1 -> 2025 | AA38: =Z38+1 -> 2026 | AB38: =AA38+1 -> 2027
B39: Q - Warm | C39: =IF(I23<Q23,C$22*I23+C$23*(Q23-I23),C$22*Q23) -> 174.0428486 | D39: =IF(J23<R23,$C$22*J23+$C$23*(R23-J23),$C$22*R23) -> 208.1658394 | E39: 174.4490205 | F39: 208.6563245 | G39: 161.024755 | H39: 192.5997258 | I39: 171.0065687 | J39: 204.5388504 | L39: Q - Warm | M39: 239.0652666 | N39: 269.3302013 | O39: 239.6553622 | P39: 269.920495 | Q39: 221.2133141 | R39: 249.1494732 | S39: 234.9261753 | T39: 264.5940777 | W39: Tier 1 | X39: Summer | Y39: 1534680927 | Z39: 1534680927 | AA39: 1534680927 | AB39: 1534680927
B40: R - Hot | C40: =IF(I24<Q24,C$22*I24+C$23*(Q24-I24),C$22*Q24) -> 340.2609523 | D40: 190.447269 | E40: 341.0645005 | F40: 190.8938241 | G40: 314.8187789 | H40: 176.2040919 | I40: 334.3341785 | J40: 187.1268624 | L40: R - Hot | M40: 334.5058712 | N40: 246.6978525 | O40: 335.279618 | P40: 247.2385427 | Q40: 309.4790568 | R40: 228.2129509 | S40: 328.6634506 | T40: 242.3597147 | W40: Tier 1 | X40: Winter | Y40: 2163342895 | Z40: 2163342895 | AA40: 2163342895 | AB40: 2163342895
B41: S - Hot | C41: 283.4921569 | D41: 185.9647414 | E41: 284.1600007 | F41: 186.4004955 | G41: 262.2932152 | H41: 172.0565356 | I41: 278.5525912 | J41: 182.7222019 | L41: S - Hot | M41: 288.1621136 | N41: 239.03121 | O41: 288.8244012 | P41: 239.5550971 | Q41: 266.598679 | R41: 221.1207647 | S41: 283.1249477 | T41: 234.8278888 | W41: Tier 2 | X41: Summer | Y41: 1444163839 | Z41: 1444163839 | AA41: 1444163839 | AB41: 1444163839
B42: T - Cool | C42: 107.6375053 | D42: 130.2472659 | E42: 107.8858557 | F42: 130.5501531 | G42: 99.58378344 | H42: 120.5040095 | I42: 105.7569137 | J42: 127.9739701 | L42: T - Cool | M42: 99.13878319 | N42: 132.118305 | O42: 99.3603045 | P42: 132.40787 | Q42: 91.71429359 | R42: 122.2187706 | S42: 97.39959956 | T42: 129.7950281 | W42: Tier 2 | X42: Winter | Y42: 1640323344 | Z42: 1640323344 | AA42: 1640323344 | AB42: 1640323344
B43: V - Cool | C43: 119.5081082 | D43: 149.3456938 | E43: 119.7846053 | F43: 149.6962352 | G43: 110.566896 | H43: 138.1767551 | I43: 117.4208618 | J43: 146.7422371 | L43: V - Cool | M43: 161.4702615 | N43: 207.9970613 | O43: 161.8386091 | P43: 208.4529305 | Q43: 149.3847446 | R43: 192.4119835 | S43: 158.6450022 | T43: 204.33947
B44: W - Hot | C44: 363.432417 | D44: 171.2831336 | E44: 364.2887751 | F44: 171.6818572 | G44: 336.2558905 | H44: 158.4705314 | I44: 357.1001619 | J44: 168.2940106 | L44: W - Hot | M44: 364.451589 | N44: 199.0176375 | O44: 365.2899432 | P44: 199.4538265 | Q44: 337.1800164 | R44: 184.1053818 | S44: 358.0815737 | T44: 195.5179478
B45: X - Warm | C45: 182.1905786 | D45: 173.1157348 | E45: 182.6187408 | F45: 173.5200531 | G45: 168.5657959 | H45: 160.1672737 | I45: 179.0150737 | J45: 170.0959329 | L45: X - Warm | M45: 138.9270366 | N45: 154.4355863 | O45: 139.2468642 | P45: 154.7740643 | Q45: 128.531488 | R45: 142.8638332 | S45: 136.4990665 | T45: 151.719864
B46: Y - Warm | C46: 153.5268628 | D46: 150.4161557 | E46: 153.873123 | F46: 150.7501288 | G46: 142.0322216 | H46: 139.1495491 | I46: 150.8367013 | J46: 147.7753339 | L46: Y - Warm | M46: 159.8772075 | N46: 174.967485 | O46: 160.2308783 | P46: 175.350963 | Q46: 147.9007325 | R46: 161.8572908 | S46: 157.0689971 | T46: 171.890713
B47: Z - Cool | C47: =IF(I31<Q31,C$22*I31+C$23*(Q31-I31),C31*Q31) -> 93.66426244 | D47: 94.52025 | E47: 93.87879126 | F47: 94.72741099 | G47: 86.65459579 | H47: 87.43791222 | I47: 92.02625457 | J47: 92.85812825 | L47: Z - Cool | M47: 88.85957794 | N47: 85.54082625 | O47: 89.05595052 | P47: 85.72830695 | Q47: 82.20288407 | R47: 79.13131056 | S47: 87.2985843 | T47: 84.03660606
B48: ALL | C48: =SUMPRODUCT(C38:C47,$U$22:$U$31) -> 285.287726 | D48: =SUMPRODUCT(D38:D47,$U$22:$U$31) -> 180.9216217 | E48: =SUMPRODUCT(E38:E47,$U$22:$U$31) -> 285.9592597 | F48: =SUMPRODUCT(F38:F47,$U$22:$U$31) -> 181.3445967 | G48: =SUMPRODUCT(G38:G47,$U$22:$U$31) -> 263.954017 | H48: 167.3897002 | I48: 280.3163449 | J48: 177.7660726 | L48: ALL | M48: =SUMPRODUCT(M38:M47,$AC$22:$AC$31) -> 267.1849617 | N48: =SUMPRODUCT(N38:N47,$AC$22:$AC$31) -> 225.0158238 | O48: =SUMPRODUCT(O38:O47,$AC$22:$AC$31) -> 267.8005253 | P48: =SUMPRODUCT(P38:P47,$AC$22:$AC$31) -> 225.5089933 | Q48: =SUMPRODUCT(Q38:Q47,$AC$22:$AC$31) -> 247.1926402 | R48: 208.1555418 | S48: 262.5159419 | T48: 221.0589606
W49: CARE Tiered Sales | Y49: =Y38 -> 2024 | Z49: =Z38 -> 2025 | AA49: =AA38 -> 2026 | AB49: =AB38 -> 2027
W50: Tier 1 | X50: Summer | Y50: 1302723574 | Z50: 1302723574 | AA50: 1302723574 | AB50: 1302723574
C51: Basic CARE | M51: All Electric CARE | W51: Tier 1 | X51: Winter | Y51: 1671858632 | Z51: 1671858632 | AA51: 1671858632 | AB51: 1671858632
C52: =$C$27 -> 2024-01-01 | E52: =$D$27 -> 2024-03-01 | G52: =$E$21 -> Authorized | I52: =$F$21 -> w/Pending | M52: =$C$27 -> 2024-01-01 | O52: =$D$27 -> 2024-03-01 | Q52: =$E$21 -> Authorized | S52: =$F$21 -> w/Pending | W52: Tier 2 | X52: Summer | Y52: 1052520222 | Z52: 1052520222 | AA52: 1052520222 | AB52: 1052520222
C53: Summer | D53: Winter | E53: Summer | F53: Winter | G53: Summer | H53: Winter | I53: Summer | J53: Winter | M53: Summer | N53: Winter | O53: Summer | P53: Winter | Q53: Summer | R53: Winter | S53: Summer | T53: Winter | W53: Tier 2 | X53: Winter | Y53: 899795983.8 | Z53: 899795983.8 | AA53: 899795983.8 | AB53: 899795983.8
B54: P - Hot | C54: =IF(I22<S22,$C$28*I22+$C$29*(S22-I22),$C$28*S22) -> 161.7270666 | D54: =IF(J22<T22,$C$28*J22+$C$29*(T22-J22),$C$28*T22) -> 155.4153181 | E54: =IF(I22<S22,$D$28*I22+$D$29*(S22-I22),$D$28*S22) -> 162.1083843 | F54: =IF(J22<T22,$D$28*J22+$D$29*(T22-J22),$D$28*T22) -> 155.7903609 | G54: =IF(I22<S22,$E$28*I22+$E$29*(S22-I22),$E$28*S22) -> 149.63376 | H54: =IF(J22<T22,$E$28*J22+$E$29*(T22-J22),$E$28*T22) -> 143.8019235 | I54: =IF(I22<S22,$F$28*I22+$F$29*(S22-I22),$F$28*S22) -> 158.9094538 | J54: =IF(J22<T22,$F$28*J22+$F$29*(T22-J22),$F$28*T22) -> 152.7161058 | L54: P - Hot | M54: =IF(M22<AA22,$C$28*M22+$C$29*(AA22-M22),$C$28*AA22) -> 194.572268 | N54: =IF(N22<AB22,$C$28*N22+$C$29*(AB22-N22),$C$28*AB22) -> 212.65806 | O54: =IF(M22<AA22,$D$28*M22+$D$29*(AA22-M22),$D$28*AA22) -> 195.0355717 | P54: =IF(N22<AB22,$D$28*N22+$D$29*(AB22-N22),$D$28*AB22) -> 213.125309 | Q54: =IF(M22<AA22,$E$28*M22+$E$29*(AA22-M22),$E$28*AA22) -> 180.0271222 | R54: =IF(N22<AB22,$E$28*N22+$E$29*(AB22-N22),$E$28*AB22) -> 196.7248114 | S54: =IF(M22<AA22,$F$28*M22+$F$29*(AA22-M22),$F$28*AA22) -> 191.1868797 | T54: =IF(N22<AB22,$F$28*N22+$F$29*(AB22-N22),$F$28*AB22) -> 208.9196471
B55: Q - Warm | C55: 108.7954664 | D55: 142.5996931 | E55: 109.0488491 | F55: 142.9398531 | G55: 100.6572817 | H55: 131.9402927 | I55: 106.8969573 | J55: 140.1191806 | L55: Q - Warm | M55: 154.6570072 | N55: 190.74018 | O55: 155.040891 | P55: 191.1592714 | Q55: 143.110127 | R55: 176.4491124 | S55: 151.9814253 | T55: 187.3870715
B56: R - Hot | C56: 241.1250789 | D56: 133.0879235 | E56: 241.7041897 | F56: 133.4048106 | G56: 223.1044795 | H56: 123.1389943 | I56: 236.9345727 | J56: 130.7722958 | L56: R - Hot | M56: 242.5955051 | N56: 183.29766 | O56: 243.1690218 | P56: 183.7003988 | Q56: 224.4565892 | R56: 169.5642178 | S56: 238.3704988 | T56: 180.075387
B57: S - Hot | C57: 199.8599906 | D57: 130.5581149 | E57: 200.3385594 | F57: 130.8689885 | G57: 184.9220324 | H57: 120.7983097 | I57: 196.385222 | J57: 128.2865138 | L57: S - Hot | M57: 193.3274989 | N57: 165.47658 | O57: 193.7760732 | P57: 165.8401626 | Q57: 178.8645452 | R57: 153.0783691 | S57: 189.9522353 | T57: 162.5675919
B58: T - Cool | C58: 74.25173344 | D58: 90.57458906 | E58: 74.42548617 | F58: 90.78840896 | G58: 68.69826863 | H58: 83.80202573 | I58: 72.95682704 | J58: 88.99685566 | L58: T - Cool | M58: 69.58087806 | N58: 92.14386 | O58: 69.7393 | P58: 92.34631708 | Q58: 64.37269559 | R58: 85.24004912 | S58: 68.36311471 | T58: 90.52402113
B59: V - Cool | C59: 82.22562806 | D59: 104.4863899 | E59: 82.41846773 | F59: 104.7354592 | G59: 76.07617131 | H59: 96.67581735 | I59: 80.79208084 | J59: 102.6686848 | L59: V - Cool | M59: 116.427611 | N59: 155.6784 | O59: 116.6991504 | P59: 156.0204542 | Q59: 107.7188742 | R59: 144.0143105 | S59: 114.3962931 | T59: 152.9416585
B60: W - Hot | C60: 258.923878 | D60: 124.1742164 | E60: 259.5448923 | F60: 124.4694585 | G60: 239.5722977 | H60: 114.8912387 | I60: 254.4232196 | J60: 122.0132675 | L60: W - Hot | M60: 258.219941 | N60: 138.88152 | O60: 258.8250808 | P60: 139.1866683 | Q60: 238.9078775 | R60: 128.4759244 | S60: 253.7176125 | T60: 136.4400585
B61: X - Warm | C61: 109.3080914 | D61: 110.0723277 | E61: 109.5628694 | F61: 110.3296221 | G61: 101.1317469 | H61: 101.8394962 | I61: 107.4008343 | J61: 108.1524565 | L61: X - Warm | M61: 91.51869469 | N61: 107.74584 | O61: 91.73072235 | P61: 107.9825775 | Q61: 84.67182587 | R61: 99.67306226 | S61: 89.92057411 | T61: 105.8517268
B62: Y - Warm | C62: 142.6189059 | D62: 160.8025818 | E62: 142.9612992 | F62: 161.191852 | G62: 131.9600884 | H62: 148.787757 | I62: 140.1402035 | J62: 158.0110077 | L62: Y - Warm | M62: 167.8507675 | N62: 198.11442 | O62: 168.2552964 | P62: 198.549714 | Q62: 155.3076525 | R62: 183.2708429 | S62: 164.9350671 | T62: 194.6316764
B63: Z - Cool | C63: 87.97896381 | D63: 101.3965364 | E63: 88.19269788 | F63: 101.6385039 | G63: 81.40606076 | H63: 93.81718017 | I63: 86.45236647 | J63: 99.63284263 | L63: Z - Cool | M63: 114.3313233 | N63: 120.61662 | O63: 114.6132962 | P63: 120.881637 | Q63: 105.7935315 | R63: 111.5795085 | S63: 112.3515997 | T63: 118.4962455
B64: ALL | C64: =SUMPRODUCT(C54:C63,$V$22:$V$31) -> 222.8302909 | D64: =SUMPRODUCT(D54:D63,$V$22:$V$31) -> 129.3857868 | E64: 223.3643127 | F64: 129.6937482 | G64: 206.1758995 | H64: 119.7135069 | I64: 218.9566016 | J64: 127.1344649 | L64: ALL | M64: =SUMPRODUCT(M54:M63,$AD$22:$AD$31) -> 209.8615871 | N64: =SUMPRODUCT(N54:N63,$AD$22:$AD$31) -> 174.807574 | O64: 210.3555815 | P64: 175.1916585 | Q64: 194.168221 | R64: 161.7102452 | S64: 206.2045754 | T64: 171.7345521
C67: Basic Essential Usage NON-CARE | M67: All-Electric Essential Usage NON-CARE
C68: =$C$27 -> 2024-01-01 | E68: =$D$27 -> 2024-03-01 | G68: =$E$21 -> Authorized | I68: =$F$21 -> w/Pending | M68: =$C$27 -> 2024-01-01 | O68: =$D$27 -> 2024-03-01 | Q68: =$E$21 -> Authorized | S68: =$F$21 -> w/Pending
C69: Summer | D69: Winter | E69: Summer | F69: Winter | G69: Summer | H69: Winter | I69: Summer | J69: Winter | M69: Summer | N69: Winter | O69: Summer | P69: Winter | Q69: Summer | R69: Winter | S69: Summer | T69: Winter
B70: P - Hot | C70: =C$22*I22 -> 172.6176066 | D70: =C$22*J22 -> 140.6513831 | E70: =D$22*I22 -> 172.9959343 | F70: =D$22*J22 -> 140.9596502 | G70: =E$22*I22 -> 159.6834872 | H70: =E$22*J22 -> 130.112471 | I70: =F$22*I22 -> 169.5821567 | J70: =F$22*J22 -> 138.1780536 | L70: P - Hot | M70: =C$22*M22 -> 194.3546385 | N70: =C$22*N22 -> 332.4487237 | O70: =D$22*M22 -> 194.7806075 | P70: =D$22*N22 -> 333.177355 | Q70: =E$22*M22 -> 179.7917782 | R70: =E$22*N22 -> 307.5385679 | S70: =F$22*M22 -> 190.9369468 | T70: =F$22*N22 -> 326.6026722
B71: Q - Warm | C71: 125.3075959 | D71: 140.6513831 | E71: 125.5822338 | F71: 140.9596502 | G71: 115.9183833 | H71: 130.112471 | I71: 123.1040841 | J71: 138.1780536 | L71: Q - Warm | M71: 108.6851597 | N71: 332.4487237 | O71: 108.9233661 | P71: 333.177355 | Q71: 100.5414549 | R71: 307.5385679 | S71: 106.7739505 | T71: 326.6026722
B72: R - Hot | C72: 226.3208619 | D72: 132.9794895 | E72: 226.8168917 | F72: 133.270942 | G72: 209.3627943 | H72: 123.0154272 | I72: 222.3410499 | J72: 130.6410689 | L72: R - Hot | M72: 254.4511386 | N72: 341.3992663 | O72: 255.0088217 | P72: 342.1475146 | Q72: 235.3852885 | R72: 315.8184524 | S72: 249.9766606 | T72: 335.3958211
B73: S - Hot | C73: 191.7973406 | D73: 130.4221916 | E73: 192.2177048 | F73: 130.7080393 | G73: 177.4260969 | H73: 120.6497459 | I73: 188.4246186 | J73: 128.1287406 | L73: S - Hot | M73: 227.5995109 | N73: 303.0397982 | O73: 228.098343 | P73: 303.7039736 | Q73: 210.545635 | R73: 280.3332331 | S73: 223.597214 | T73: 297.7108973
B74: T - Cool | C74: 83.11218094 | D74: 95.89867031 | E74: 83.29433875 | F74: 96.1088524 | G74: 76.88464198 | H74: 88.71304844 | I74: 81.65066805 | J74: 94.21230928 | L74: T - Cool | M74: 90.78407456 | N74: 164.9457129 | O74: 90.98304694 | P74: 165.3072261 | Q74: 83.98168585 | R74: 152.5864433 | S74: 89.18765279 | T74: 162.045172
B75: V - Cool | C75: 90.78407456 | D75: 103.5705639 | E75: 90.98304694 | F75: 103.7975606 | G75: 83.98168585 | H75: 95.81009231 | I75: 89.18765279 | J75: 101.749294 | L75: V - Cool | M75: 132.9794895 | N75: 244.2219471 | O75: 133.270942 | P75: 244.7572108 | Q75: 123.0154272 | R75: 225.9225634 | S75: 130.6410689 | T75: 239.9273476
B76: W - Hot | C76: 245.500596 | D76: 125.3075959 | E76: 246.0386621 | F76: 125.5822338 | G76: 227.105404 | H76: 115.9183833 | I76: 241.1835118 | J76: 123.1040841 | L76: W - Hot | M76: 286.417362 | N76: 242.9432981 | O76: 287.0451058 | P76: 243.4757594 | Q76: 264.9563047 | R76: 224.7397227 | S76: 281.3807637 | T76: 238.6711835
B77: X - Warm | C77: 125.3075959 | D77: 124.0289469 | E77: 125.5822338 | F77: 124.3007824 | G77: 115.9183833 | H77: 114.7355426 | I77: 123.1040841 | J77: 121.84792 | L77: X - Warm | M77: 108.6851597 | N77: 186.6827449 | O77: 108.9233661 | P77: 187.0918993 | Q77: 100.5414549 | R77: 172.6947343 | S77: 106.7739505 | T77: 183.3999621
B78: Y - Warm | C78: 134.2581384 | D78: 141.9300321 | E78: 134.5523934 | F78: 142.2411016 | G78: 124.1982678 | H78: 131.2953117 | I78: 131.897233 | J78: 139.4342177 | L78: Y - Warm | M78: 153.4378725 | N78: 306.875745 | O78: 153.7741638 | P78: 307.5483277 | Q78: 141.9408775 | R78: 283.881755 | S78: 150.7396949 | T78: 301.4793897
B79: Z - Cool | C79: 75.44028731 | D79: 99.73461712 | E79: 75.60563056 | F79: 99.9532065 | G79: 69.7875981 | H79: 92.26157037 | I79: 74.1136833 | J79: 97.98080166 | L79: Z - Cool | M79: 85.66947881 | N79: 200.7478832 | O79: 85.85724148 | P79: 201.1878644 | Q79: 79.25032327 | R79: 185.7059814 | S79: 84.16299629 | T79: 197.2177674
B80: ALL | C80: =SUMPRODUCT(C70:C79,$U$22:$U$31) -> 194.0767881 | D80: =SUMPRODUCT(D70:D79,$U$22:$U$31) -> 128.7900962 | E80: =SUMPRODUCT(E70:E79,$U$22:$U$31) -> 194.5021482 | F80: =SUMPRODUCT(F70:F79,$U$22:$U$31) -> 129.0723668 | G80: =SUMPRODUCT(G70:G79,$U$22:$U$31) -> 179.5347469 | H80: 119.1399423 | I80: 190.6639824 | J80: 126.5253453 | L80: ALL | M80: =SUMPRODUCT(M70:M79,$AC$22:$AC$31) -> 208.0971599 | N80: =SUMPRODUCT(N70:N79,$AC$22:$AC$31) -> 301.4932701 | O80: =SUMPRODUCT(O70:O79,$AC$22:$AC$31) -> 208.5532485 | P80: =SUMPRODUCT(P70:P79,$AC$22:$AC$31) -> 302.154056 | Q80: =SUMPRODUCT(Q70:Q79,$AC$22:$AC$31) -> 192.5045818 | R80: 278.9025853 | S80: 204.4378084 | T80: 296.1915647
C83: Basic Essential Usage CARE | M83: All-Electric Essential Usage CARE
C84: =$C$27 -> 2024-01-01 | E84: =$D$27 -> 2024-03-01 | G84: =$E$21 -> Authorized | I84: =$F$21 -> w/Pending | M84: =$C$27 -> 2024-01-01 | O84: =$D$27 -> 2024-03-01 | Q84: =$E$21 -> Authorized | S84: =$F$21 -> w/Pending
C85: Summer | D85: Winter | E85: Summer | F85: Winter | G85: Summer | H85: Winter | I85: Summer | J85: Winter | M85: Summer | N85: Winter | O85: Summer | P85: Winter | Q85: Summer | R85: Winter | S85: Summer | T85: Winter
B86: P - Hot | C86: =C$28*I22 -> 112.226715 | D86: =C$28*J22 -> 91.44399 | E86: =D$28*I22 -> 112.4732978 | F86: =D$28*J22 -> 91.64490933 | G86: =E$28*I22 -> 103.818211 | H86: =E$28*J22 -> 84.59261637 | I86: =F$28*I22 -> 110.2538305 | J86: =F$28*J22 -> 89.83645446 | L86: P - Hot | M86: =C$28*M22 -> 126.358968 | N86: =C$28*N22 -> 216.14034 | O86: =D$28*M22 -> 126.636602 | P86: =D$28*N22 -> 216.6152402 | Q86: =E$28*M22 -> 116.8916153 | R86: =E$28*N22 -> 199.9461841 | S86: =F$28*M22 -> 124.1376462 | T86: =F$28*N22 -> 212.3407105
B87: Q - Warm | C87: 81.468282 | D87: 91.44399 | E87: 81.64728286 | F87: 91.64490933 | G87: 75.36433094 | H87: 84.59261637 | I87: 80.03611398 | J87: 89.83645446 | L87: Q - Warm | M87: 70.661265 | N87: 216.14034 | O87: 70.81652085 | P87: 216.6152402 | Q87: 65.36702174 | R87: 199.9461841 | S87: 69.41907845 | T87: 212.3407105
B88: R - Hot | C88: 147.141693 | D88: 86.456136 | E88: 147.4649905 | F88: 86.6460961 | G88: 136.11721 | H88: 79.97847366 | I88: 144.5550222 | J88: 84.93628422 | L88: R - Hot | M88: 165.430491 | N88: 221.959503 | O88: 165.7939723 | P88: 222.447189 | Q88: 153.0357332 | R88: 205.3293506 | S88: 162.5223131 | T88: 218.0575758
B89: S - Hot | C89: 124.69635 | D89: 84.793518 | E89: 124.9703309 | F89: 84.97982502 | G89: 115.3535678 | H89: 78.44042608 | I89: 122.5042561 | J89: 83.30289414 | L89: S - Hot | M89: 147.973002 | N89: 197.020233 | O89: 148.298126 | P89: 197.4531228 | Q89: 136.8862338 | R89: 182.2586371 | S89: 145.3717172 | T89: 193.5567246
B90: T - Cool | C90: 54.035085 | D90: 62.348175 | E90: 54.15381006 | F90: 62.48516545 | G90: 49.98654603 | H90: 57.67678389 | I90: 53.08517764 | J90: 61.25212804 | L90: T - Cool | M90: 59.022939 | N90: 107.238861 | O90: 59.1526233 | P90: 107.4744846 | Q90: 54.60068875 | R90: 99.20406828 | S90: 57.98534788 | T90: 105.3536602
B91: V - Cool | C91: 59.022939 | D91: 67.336029 | E91: 59.1526233 | F91: 67.48397869 | G91: 54.60068875 | H91: 62.2909266 | I91: 57.98534788 | J91: 66.15229829 | L91: V - Cool | M91: 86.456136 | N91: 158.780019 | O91: 86.6460961 | P91: 159.128888 | Q91: 79.97847366 | R91: 146.883543 | S91: 84.93628422 | T91: 155.9887528
B92: W - Hot | C92: 159.611328 | D92: 81.468282 | E92: 159.9620236 | F92: 81.64728286 | G92: 147.6525667 | H92: 75.36433094 | I92: 156.8054478 | J92: 80.03611398 | L92: W - Hot | M92: 186.213216 | N92: 157.94871 | O92: 186.6223608 | P92: 158.2957525 | Q92: 172.2613279 | R92: 146.1145192 | S92: 182.9396891 | T92: 155.1720577
B93: X - Warm | C93: 81.468282 | D93: 80.636973 | E93: 81.64728286 | F93: 80.81414732 | G93: 75.36433094 | H93: 74.59530716 | I93: 80.03611398 | J93: 79.21941894 | L93: X - Warm | M93: 70.661265 | N93: 121.371114 | O93: 70.81652085 | P93: 121.6377888 | Q93: 65.36702174 | R93: 112.2774726 | S93: 69.41907845 | T93: 119.2374759
B94: Y - Warm | C94: 87.287445 | D94: 92.275299 | E94: 87.47923164 | F94: 92.47804487 | G94: 80.74749744 | H94: 85.36164015 | I94: 85.75297926 | J94: 90.6531495 | L94: Y - Warm | M94: 99.75708 | N94: 199.51416 | O94: 99.97626473 | P94: 199.9525295 | Q94: 92.28285422 | R94: 184.5657084 | S94: 98.00340487 | T94: 196.0068097
B95: Z - Cool | C95: 49.047231 | D95: 64.842102 | E95: 49.15499682 | F95: 64.98457207 | G95: 45.37240332 | H95: 59.98385524 | I95: 48.18500739 | J95: 63.70221316 | L95: Z - Cool | M95: 55.697703 | N95: 130.515513 | O95: 55.82008114 | P95: 130.8022797 | Q95: 51.5245936 | R95: 120.7367343 | S95: 54.71856772 | T95: 128.2211214
B96: ALL | C96: =SUMPRODUCT(C86:C95,$V$22:$V$31) -> 138.1700225 | D96: =SUMPRODUCT(D86:D95,$V$22:$V$31) -> 84.26236462 | E96: 138.4736076 | F96: 84.44750459 | G96: 127.8177353 | H96: 77.94906898 | I96: 135.7410688 | J96: 82.78107814 | L96: ALL | M96: =SUMPRODUCT(M86:M95,$AD$22:$AD$31) -> 147.1804007 | N96: =SUMPRODUCT(N86:N95,$AD$22:$AD$31) -> 199.233164 | O96: 147.5037832 | P96: 199.6709161 | Q96: 136.1530175 | R96: 184.3057659 | S96: 144.5930494 | T96: 195.7307535
B99: 500 | C99: Basic Typical Non-CARE | L99: 500 | M99: All Electric Typical Non-CARE
C100: =$C$27 -> 2024-01-01 | E100: =$D$27 -> 2024-03-01 | G100: =$E$21 -> Authorized | I100: =$F$21 -> w/Pending | M100: =$C$27 -> 2024-01-01 | O100: =$D$27 -> 2024-03-01 | Q100: =$E$21 -> Authorized | S100: =$F$21 -> w/Pending
C101: Summer | D101: Winter | E101: Summer | F101: Winter | G101: Summer | H101: Winter | I101: Summer | J101: Winter | M101: Summer | N101: Winter | O101: Summer | P101: Winter | Q101: Summer | R101: Winter | S101: Summer | T101: Winter
B102: P - Hot | C102: =$C$22*MIN(I22,$B$99)+IF($B$99-I22>0,$C$23*($B$99-I22)) -> 219.4506272 | D102: 227.4838444 | E102: =$D$22*MIN(I22,$B$99)+IF($B$99-I22>0,$D$23*($B$99-I22)) -> 219.9553549 | F102: 228.0264678 | G102: =$E$22*MIN(I22,$B$99)+IF($B$99-I22>0,$E$23*($B$99-I22)) -> 203.029269 | H102: 210.4792907 | I102: =$F$22*MIN(I22,$B$99)+IF($B$99-I22>0,$F$23*($B$99-I22)) -> 215.6149138 | J102: 223.5267572 | L102: P - Hot | M102: =$C$22*MIN(S22,$B$99)+IF($B$99-S22>0,$C$23*($B$99-S22)) -> 210.045 | N102: =$C$22*MIN(T22,$B$99)+IF($B$99-T22>0,$C$23*($B$99-T22)) -> 210.045 | O102: =$D$22*MIN(S22,$B$99)+IF($B$99-S22>0,$D$23*($B$99-S22)) -> 210.5053578 | P102: 210.5053578 | Q102: =$E$22*MIN(S22,$B$99)+IF($B$99-S22>0,$E$23*($B$99-S22)) -> 194.3064716 | R102: 194.3064716 | S102: =$F$22*MIN(S22,$B$99)+IF($B$99-S22>0,$F$23*($B$99-S22)) -> 206.3513961 | T102: 206.3513961
B103: Q - Warm | C103: 231.3397886 | D103: 227.4838444 | E103: 231.900602 | F103: 228.0264678 | G103: 214.0553011 | H103: 210.4792907 | I103: 227.324442 | J103: 223.5267572 | L103: Q - Warm | M103: =$C$22*MIN(S23,$B$99)+IF($B$99-S23>0,$C$23*($B$99-S23)) -> 222.8981475 | N103: 211.681335 | O103: 223.4191385 | P103: 212.149412 | Q103: 206.2265063 | R103: 195.8240119 | S103: 219.0103455 | T103: 207.9630077
B104: R - Hot | C104: 210.045 | D104: 229.4118165 | E104: 210.5053578 | F104: 229.9635349 | G104: 194.3064716 | H104: 212.2672959 | I104: 206.3513961 | J104: 225.4255996 | L104: R - Hot | M104: 210.045 | N104: 215.00679 | O104: 210.5053578 | P104: 215.4905544 | Q104: 194.3064716 | R104: 198.9080456 | S104: 206.3513961 | T104: 211.2382185
B105: S - Hot | C105: 214.6306969 | D105: 230.0544739 | E105: 215.1126871 | F105: 230.609224 | G105: 198.559256 | H105: 212.8632976 | I105: 210.8678077 | J105: 226.058547 | L105: S - Hot | M105: 210.045 | N105: 215.9173312 | O105: 210.5053578 | P105: 216.405391 | Q105: 194.3064716 | R105: 199.7524833 | S105: 206.3513961 | T105: 212.1350024
B106: T - Cool | C106: 241.9436353 | D106: 238.7303484 | E106: 242.5544711 | F106: 239.3260259 | G106: 223.8893297 | H106: 220.9093211 | I106: 237.7680753 | J106: 234.6033379 | L106: T - Cool | M106: 235.69851 | N106: 230.0109263 | O106: 236.2798852 | P106: 230.5654709 | Q106: 218.097588 | R106: 212.8229115 | S106: 231.6173075 | T106: 226.0156574
B107: V - Cool | C107: 240.0156632 | D107: 236.8023763 | E107: 240.617404 | F107: 237.3889588 | G107: 222.1013245 | H107: 219.1213159 | I107: 235.8692328 | J107: 232.7044955 | L107: V - Cool | M107: 232.84812 | N107: 225.3262575 | O107: 233.4160488 | P107: 225.8587028 | Q107: 215.4541306 | R107: 208.4783403 | S107: 228.809984 | T107: 221.4017692
B108: W - Hot | C108: 210.045 | D108: 231.3397886 | E108: 210.5053578 | F108: 231.900602 | G108: 194.3064716 | H108: 214.0553011 | I108: 206.3513961 | J108: 227.324442 | L108: W - Hot | M108: 210.045 | N108: 218.1474975 | O108: 210.5053578 | P108: 218.6460778 | Q108: 194.3064716 | R108: 201.820744 | S108: 206.3513961 | T108: 214.3314731
B109: X - Warm | C109: 231.3397886 | D109: 231.6611173 | E109: 231.900602 | F109: 232.2234466 | G109: 214.0553011 | H109: 214.353302 | I109: 227.324442 | J109: 227.6409157 | L109: X - Warm | M109: 222.7397925 | N109: 222.5682412 | O109: 223.2600364 | P109: 223.0876759 | Q109: 206.0796475 | R109: 205.9205506 | S109: 218.8543831 | T109: 218.6854238
B110: Y - Warm | C110: 229.0904878 | D110: 227.1625157 | E110: 229.6406904 | F110: 227.7036233 | G110: 211.969295 | H110: 210.1812898 | I110: 225.1091258 | J110: 223.2102834 | L110: Y - Warm | M110: 211.998045 | N110: 210.045 | O110: 212.467616 | P110: 210.5053578 | Q110: 196.1177294 | R110: 194.3064716 | S110: 208.2749326 | T110: 206.3513961
B111: Z - Cool | C111: 243.8716074 | D111: 237.7663624 | E111: 244.4915382 | F111: 238.3574924 | G111: 225.6773349 | H111: 220.0153185 | I111: 239.6669177 | J111: 233.6539167 | L111: Z - Cool | M111: 231.845205 | N111: 226.4743313 | O111: 232.4084027 | P111: 227.0121924 | Q111: 214.5240253 | R111: 209.5430662 | S111: 227.822222 | T111: 222.5324968
B112: ALL | C112: =SUMPRODUCT(C102:C111,$U$22:$U$31) -> 216.3760241 | D112: 230.4646248 | E112: 216.8662477 | F112: 231.0213097 | G112: 200.177876 | H112: 213.2436725 | I112: 212.5867648 | J112: 226.462501 | L112: ALL | M112: =SUMPRODUCT(M102:M111,$AC$22:$AC$31) -> 212.3839466 | N112: =SUMPRODUCT(N102:N111,$AC$22:$AC$31) -> 215.0444661 | O112: =SUMPRODUCT(O102:O111,$AC$22:$AC$31) -> 212.8553381 | P112: =SUMPRODUCT(P102:P111,$AC$22:$AC$31) -> 215.5284082 | Q112: =SUMPRODUCT(Q102:Q111,$AC$22:$AC$31) -> 196.4756154 | R112: 198.9429864 | S112: 208.6550036 | T112: 211.2753253
B114: 500 | C114: Basic Typical CARE | L114: 500 | M114: All Electric Typical CARE
C115: =$C$27 -> 2024-01-01 | E115: =$D$27 -> 2024-03-01 | G115: =$E$21 -> Authorized | I115: =$F$21 -> w/Pending | M115: =$C$27 -> 2024-01-01 | O115: =$D$27 -> 2024-03-01 | Q115: =$E$21 -> Authorized | S115: =$F$21 -> w/Pending
C116: Summer | D116: Winter | E116: Summer | F116: Winter | G116: Summer | H116: Winter | I116: Summer | J116: Winter | M116: Summer | N116: Winter | O116: Summer | P116: Winter | Q116: Summer | R116: Winter | S116: Summer | T116: Winter
B117: P - Hot | C117: =$C$28*MIN(I22,$B$114)+IF($B$114-I22>0,$C$29*($B$114-I22)) -> 142.6745041 | D117: 147.8968181 | E117: =$D$28*MIN(I22,$B$114)+IF($B$114-I22>0,$D$29*($B$114-I22)) -> 143.0039627 | F117: 148.2513963 | G117: =$E$28*MIN(I22,$B$114)+IF($B$114-I22>0,$E$29*($B$114-I22)) -> 131.9994688 | H117: 136.8431001 | I117: =$F$28*MIN(I22,$B$114)+IF($B$114-I22>0,$F$29*($B$114-I22)) -> 140.1820251 | J117: 145.3259097 | L117: P - Hot | M117: =$C$28*MIN(S22,$B$114)+IF($B$114-S22>0,$C$29*($B$114-S22)) -> 136.56 | N117: 136.56 | O117: =$D$28*MIN(S22,$B$114)+IF($B$114-S22>0,$D$29*($B$114-S22)) -> 136.8600475 | P117: 136.8600475 | Q117: =$E$28*MIN(S22,$B$114)+IF($B$114-S22>0,$E$29*($B$114-S22)) -> 126.3283425 | R117: 126.3283425 | S117: =$F$28*MIN(S22,$B$114)+IF($B$114-S22>0,$F$29*($B$114-S22)) -> 134.1593496 | T117: 134.1593496
B118: Q - Warm | C118: 150.4035289 | D118: 147.8968181 | E118: 150.7701645 | F118: 148.2513963 | G118: 139.168043 | H118: 136.8431001 | I118: 147.7949743 | J118: 145.3259097 | L118: Q - Warm | M118: 144.9157025 | N118: 137.623765 | O118: 145.2559414 | P118: 137.9289293 | Q118: 134.0781525 | R118: 127.3149713 | S118: 142.3895649 | T118: 135.2071388
B119: R - Hot | C119: 136.56 | D119: 149.1501735 | E119: 136.8600475 | F119: 149.5107804 | G119: 126.3283425 | H119: 138.0055715 | I119: 134.1593496 | J119: 146.560442 | L119: R - Hot | M119: 136.56 | N119: 139.78561 | O119: 136.8600475 | P119: 140.1011729 | Q119: 126.3283425 | R119: 129.3200556 | S119: 134.1593496 | T119: 137.3365169
B120: S - Hot | C120: 139.5411156 | D120: 149.5679586 | E120: 139.8555025 | F120: 149.9305751 | G120: 129.0932901 | H120: 138.393062 | I120: 137.0956944 | J120: 146.9719528 | L120: S - Hot | M120: 136.56 | N120: 140.3775437 | O120: 136.8600475 | P120: 140.6959539 | Q120: 126.3283425 | R120: 129.8690668 | S120: 134.1593496 | T120: 137.9195609
B121: T - Cool | C121: 157.2969834 | D121: 155.2080578 | E121: 157.6967769 | F121: 155.5978035 | G121: 145.5616362 | H121: 143.6241837 | I121: 154.5849019 | J121: 152.5273481 | L121: T - Cool | M121: 153.23709 | N121: 149.5396487 | O121: 153.6173552 | P121: 149.9021291 | Q121: 141.7961357 | R121: 138.366805 | S121: 150.5859806 | T121: 146.944068
B122: V - Cool | C122: 156.0436281 | D122: 153.9547024 | E122: 156.4373929 | F122: 154.3384194 | G122: 144.3991647 | H122: 142.4617123 | I122: 153.3503696 | J122: 151.2928158 | L122: V - Cool | M122: 151.38408 | N122: 146.4941925 | O122: 151.7554321 | P122: 146.842024 | Q122: 140.077492 | R122: 135.5421823 | S122: 148.7607993 | T122: 143.9443489
B123: W - Hot | C123: 136.56 | D123: 150.4035289 | E123: 136.8600475 | F123: 150.7701645 | G123: 126.3283425 | H123: 139.168043 | I123: 134.1593496 | J123: 147.7949743 | L123: W - Hot | M123: 136.56 | N123: 141.8273525 | O123: 136.8600475 | P123: 142.1527363 | Q123: 126.3283425 | R123: 131.2137463 | S123: 134.1593496 | T123: 139.3475962
B124: X - Warm | C124: 150.4035289 | D124: 150.6124214 | E124: 150.7701645 | F124: 150.9800619 | G124: 139.168043 | H124: 139.3617883 | I124: 147.7949743 | J124: 148.0007297 | L124: X - Warm | M124: 144.8127575 | N124: 144.7012337 | O124: 145.1525012 | P124: 145.040441 | Q124: 133.9826723 | R124: 133.8792354 | S124: 142.2881659 | T124: 142.1783171
B125: Y - Warm | C125: 148.9412809 | D125: 147.6879256 | E125: 149.3008831 | F125: 148.041499 | G125: 137.8118263 | H125: 136.6493548 | I125: 146.3546866 | J125: 145.1201543 | L125: Y - Warm | M125: 137.829655 | N125: 136.56 | O125: 138.1358096 | P125: 136.8600475 | Q125: 127.5059317 | R125: 126.3283425 | S125: 135.4099367 | T125: 134.1593496
B126: Z - Cool | C126: 158.5503388 | D126: 154.5813801 | E126: 158.956161 | F126: 154.9681114 | G126: 146.7241077 | H126: 143.042948 | I126: 155.8194342 | J126: 151.9100819 | L126: Z - Cool | M126: 150.732095 | N126: 147.2405437 | O126: 151.1003111 | P126: 147.5919653 | Q126: 139.472784 | R126: 136.2344137 | S126: 148.118606 | T126: 144.6794913
B127: ALL | C127: =SUMPRODUCT(C117:C126,$V$22:$V$31) -> 138.5172465 | D127: =SUMPRODUCT(D117:D126,$V$22:$V$31) -> 149.7014276 | E127: 138.8267084 | F127: 150.0646861 | G127: 128.1436642 | H127: 138.5168529 | I127: 136.0872018 | J127: 147.1034173 | L127: ALL | M127: =SUMPRODUCT(M117:M126,$AD$22:$AD$31) -> 137.3530283 | N127: =SUMPRODUCT(N117:N126,$AD$22:$AD$31) -> 139.8529497 | O127: 137.6568903 | P127: 140.1688365 | Q127: 127.0638664 | R127: 129.3825123 | S127: 134.9404681 | T127: 137.4028452

Sheet SAR and AR (B-1) (hidden)
C2: Revenue Change ($000)
C3: Authorized | D3: w/ Pending
B4: Generation | C4: =INDEX('Incremental Rev Req'!$Q$9:$U$24,MATCH(B4,'Incremental Rev Req'!$Q$9:$Q$24,0),MATCH(Summary!$D$3,'Incremental Rev Req'!$Q$9:$U$9,0)) -> 4424925.344 | D4: =INDEX('Incremental Rev Req'!$Q$112:$U$127,MATCH(B4,'Incremental Rev Req'!$Q$112:$Q$127,0),MATCH(Summary!$D$3,'Incremental Rev Req'!$Q$112:$U$112,0)) -> 4424925.344 | G4: Allocation
B5: NSGC | C5: =INDEX('Incremental Rev Req'!$Q$9:$U$24,MATCH(B5,'Incremental Rev Req'!$Q$9:$Q$24,0),MATCH(Summary!$D$3,'Incremental Rev Req'!$Q$9:$U$9,0)) -> 444350.2979 | D5: =INDEX('Incremental Rev Req'!$Q$112:$U$127,MATCH(B5,'Incremental Rev Req'!$Q$112:$Q$127,0),MATCH(Summary!$D$3,'Incremental Rev Req'!$Q$112:$U$112,0)) -> 444350.2979 | G5: Generation | H5: Distribution | I5: NDC | J5: PPPC | K5: NSGC | L5: Transmission | M5: CTC | N5: ECRA | O5: FERC BAs | P5: GHG Rev | Q5: DWRBC | R5: WHC | S5: PCIA | T5: Distribution (Wildfire)
B6: Distribution | C6: =INDEX('Incremental Rev Req'!$Q$9:$U$24,MATCH(B6,'Incremental Rev Req'!$Q$9:$Q$24,0),MATCH(Summary!$D$3,'Incremental Rev Req'!$Q$9:$U$9,0)) -> 9286773.247 | D6: =INDEX('Incremental Rev Req'!$Q$112:$U$127,MATCH(B6,'Incremental Rev Req'!$Q$112:$Q$127,0),MATCH(Summary!$D$3,'Incremental Rev Req'!$Q$112:$U$112,0)) -> 9286773.247 | F6: B-1 | G6: =VLOOKUP(Summary!$D$3,$F$35:$T$38,G$33,FALSE) -> 0.08003843517 | H6: =VLOOKUP(Summary!$D$3,$F$35:$T$38,H$33,FALSE) -> 0.1168026855 | I6: =VLOOKUP(Summary!$D$3,$F$35:$T$38,I$33,FALSE) -> 0.0797727216 | J6: =VLOOKUP(Summary!$D$3,$F$35:$T$38,J$33,FALSE) -> 0.08979660681 | K6: =VLOOKUP(Summary!$D$3,$F$35:$T$38,K$33,FALSE) -> 0.07724977447 | L6: =VLOOKUP(Summary!$D$3,$F$35:$T$38,L$33,FALSE) -> 0.07584760601 | M6: =VLOOKUP(Summary!$D$3,$F$35:$T$38,M$33,FALSE) -> 0.08219843279 | N6: =VLOOKUP(Summary!$D$3,$F$35:$T$38,N$33,FALSE) -> 0.0815194307 | O6: =VLOOKUP(Summary!$D$3,$F$35:$T$38,O$33,FALSE) -> 0.08253270963 | P6: =VLOOKUP(Summary!$D$3,$F$35:$T$38,P$33,FALSE) -> 0.05903240428 | Q6: =VLOOKUP(Summary!$D$3,$F$35:$T$38,Q$33,FALSE) -> 0.091733663 | R6: =VLOOKUP(Summary!$D$3,$F$35:$T$38,R$33,FALSE) -> 0.1137553595 | S6: =VLOOKUP(Summary!$D$3,$F$35:$T$38,S$33,FALSE) -> 0.09044753236 | T6: =VLOOKUP(Summary!$D$3,$F$35:$T$38,T$33,FALSE) -> 0.1003263649
B7: GHG Revenue | C7: =INDEX('Incremental Rev Req'!$Q$9:$U$24,MATCH(B7,'Incremental Rev Req'!$Q$9:$Q$24,0),MATCH(Summary!$D$3,'Incremental Rev Req'!$Q$9:$U$9,0)) -> -689321.0839 | D7: =INDEX('Incremental Rev Req'!$Q$112:$U$127,MATCH(B7,'Incremental Rev Req'!$Q$112:$Q$127,0),MATCH(Summary!$D$3,'Incremental Rev Req'!$Q$112:$U$112,0)) -> -689321.0839
B8: CTC | C8: =INDEX('Incremental Rev Req'!$Q$9:$U$24,MATCH(B8,'Incremental Rev Req'!$Q$9:$Q$24,0),MATCH(Summary!$D$3,'Incremental Rev Req'!$Q$9:$U$9,0)) -> 75596.53371 | D8: =INDEX('Incremental Rev Req'!$Q$112:$U$127,MATCH(B8,'Incremental Rev Req'!$Q$112:$Q$127,0),MATCH(Summary!$D$3,'Incremental Rev Req'!$Q$112:$U$112,0)) -> 75596.53371 | G8: Revenue Change ($000) - System
B9: NDC | C9: =INDEX('Incremental Rev Req'!$Q$9:$U$24,MATCH(B9,'Incremental Rev Req'!$Q$9:$Q$24,0),MATCH(Summary!$D$3,'Incremental Rev Req'!$Q$9:$U$9,0)) -> -209072.9218 | D9: =INDEX('Incremental Rev Req'!$Q$112:$U$127,MATCH(B9,'Incremental Rev Req'!$Q$112:$Q$127,0),MATCH(Summary!$D$3,'Incremental Rev Req'!$Q$112:$U$112,0)) -> -209072.9218 | F9: Authorized | G9: Generation | H9: Distribution | I9: NDC | J9: Public Purpose Program | K9: NSGC | L9: Transmission | M9: CTC | N9: ECRA | O9: FERC BAs | P9: GHG Revenue | Q9: DWR BC | R9: WHC | S9: PCIA | T9: Distribution (Wildfire) | U9: Total
B10: Public Purpose Program | C10: =INDEX('Incremental Rev Req'!$Q$9:$U$24,MATCH(B10,'Incremental Rev Req'!$Q$9:$Q$24,0),MATCH(Summary!$D$3,'Incremental Rev Req'!$Q$9:$U$9,0)) -> 600254.8445 | D10: =INDEX('Incremental Rev Req'!$Q$112:$U$127,MATCH(B10,'Incremental Rev Req'!$Q$112:$Q$127,0),MATCH(Summary!$D$3,'Incremental Rev Req'!$Q$112:$U$112,0)) -> 600254.8445 | F10: B-1 | G10: =G6*G11 -> 354164.1003 | H10: 1084720.055 | I10: -16678.31598 | J10: 53900.84825 | K10: 34325.9603 | L10: 211523.7764 | M10: 6213.916595 | N10: -163.5250836 | O10: -9732.201958 | P10: -40692.2809 | Q10: 36056.19411 | R10: 19785.73457 | S10: 55731.68519 | T10: 144748.4538 | U10: =SUM(G10:T10) -> 1933904.4
B11: DWR BC | C11: =INDEX('Incremental Rev Req'!$Q$9:$U$24,MATCH(B11,'Incremental Rev Req'!$Q$9:$Q$24,0),MATCH(Summary!$D$3,'Incremental Rev Req'!$Q$9:$U$9,0)) -> 393053.029 | D11: =INDEX('Incremental Rev Req'!$Q$112:$U$127,MATCH(B11,'Incremental Rev Req'!$Q$112:$Q$127,0),MATCH(Summary!$D$3,'Incremental Rev Req'!$Q$112:$U$112,0)) -> 393053.029 | F11: Total System | G11: =VLOOKUP(G9,$B$4:$D$17,2,FALSE) -> 4424925.344 | H11: 9286773.247 | I11: -209072.9218 | J11: 600254.8445 | K11: 444350.2979 | L11: 2788799.641 | M11: 75596.53371 | N11: =VLOOKUP(N9,$B$4:$D$16,2,FALSE) -> -2005.964495 | O11: =VLOOKUP(O9,$B$4:$D$16,2,FALSE) -> -117919.3316 | P11: =VLOOKUP(P9,$B$4:$D$17,2,FALSE) -> -689321.0839 | Q11: =VLOOKUP(Q9,$B$4:$D$17,2,FALSE) -> 393053.029 | R11: =VLOOKUP(R9,$B$4:$D$17,2,FALSE) -> 173932.3285 | S11: =VLOOKUP(S9,$B$4:$D$17,2,FALSE) -> 616176.9563 | T11: =VLOOKUP(T9,$B$4:$D$17,2,FALSE) -> 1442775.824 | U11: =SUM(G11:T11) -> 19228318.75
B12: ECRA | C12: =INDEX('Incremental Rev Req'!$Q$9:$U$24,MATCH(B12,'Incremental Rev Req'!$Q$9:$Q$24,0),MATCH(Summary!$D$3,'Incremental Rev Req'!$Q$9:$U$9,0)) -> -2005.964495 | D12: =INDEX('Incremental Rev Req'!$Q$112:$U$127,MATCH(B12,'Incremental Rev Req'!$Q$112:$Q$127,0),MATCH(Summary!$D$3,'Incremental Rev Req'!$Q$112:$U$112,0)) -> -2005.964495 | F12: w/Pending
B13: Transmission | C13: =INDEX('Incremental Rev Req'!$Q$9:$U$24,MATCH(B13,'Incremental Rev Req'!$Q$9:$Q$24,0),MATCH(Summary!$D$3,'Incremental Rev Req'!$Q$9:$U$9,0)) -> 2788799.641 | D13: =INDEX('Incremental Rev Req'!$Q$112:$U$127,MATCH(B13,'Incremental Rev Req'!$Q$112:$Q$127,0),MATCH(Summary!$D$3,'Incremental Rev Req'!$Q$112:$U$112,0)) -> 2788799.641 | F13: B-1 | G13: =G6*G14 -> 354164.1003 | H13: 1084720.055 | I13: -16678.31598 | J13: 53900.84825 | K13: 34325.9603 | L13: 211523.7764 | M13: 6213.916595 | N13: -163.5250836 | O13: -10276.91784 | P13: -40692.2809 | Q13: 36056.19411 | R13: 19785.73457 | S13: 55789.11937 | T13: 307678.2006 | U13: =SUM(G13:T13) -> 2096346.865
B14: FERC BAs | C14: =INDEX('Incremental Rev Req'!$Q$9:$U$24,MATCH(B14,'Incremental Rev Req'!$Q$9:$Q$24,0),MATCH(Summary!$D$3,'Incremental Rev Req'!$Q$9:$U$9,0)) -> -117919.3316 | D14: =INDEX('Incremental Rev Req'!$Q$112:$U$127,MATCH(B14,'Incremental Rev Req'!$Q$112:$Q$127,0),MATCH(Summary!$D$3,'Incremental Rev Req'!$Q$112:$U$112,0)) -> -124519.3316 | F14: Total System | G14: =VLOOKUP(G9,$B$4:$D$16,3,FALSE) -> 4424925.344 | H14: 9286773.247 | I14: -209072.9218 | J14: 600254.8445 | K14: 444350.2979 | L14: 2788799.641 | M14: 75596.53371 | N14: -2005.964495 | O14: -124519.3316 | P14: -689321.0839 | Q14: 393053.029 | R14: 173932.3285 | S14: 616811.9563 | T14: =VLOOKUP(T9,$B$4:$D$17,3,FALSE) -> 3066773.136 | U14: =SUM(G14:T14) -> 20846351.06
B15: PCIA | C15: =INDEX('Incremental Rev Req'!$Q$9:$U$24,MATCH(B15,'Incremental Rev Req'!$Q$9:$Q$24,0),MATCH(Summary!$D$3,'Incremental Rev Req'!$Q$9:$U$9,0)) -> 616176.9563 | D15: =INDEX('Incremental Rev Req'!$Q$112:$U$127,MATCH(B15,'Incremental Rev Req'!$Q$112:$Q$127,0),MATCH(Summary!$D$3,'Incremental Rev Req'!$Q$112:$U$112,0)) -> 616811.9563 | AB15: Authorized | AC15: w/Pending
B16: WHC | C16: =INDEX('Incremental Rev Req'!$Q$9:$U$24,MATCH(B16,'Incremental Rev Req'!$Q$9:$Q$24,0),MATCH(Summary!$D$3,'Incremental Rev Req'!$Q$9:$U$9,0)) -> 173932.3285 | D16: =INDEX('Incremental Rev Req'!$Q$112:$U$127,MATCH(B16,'Incremental Rev Req'!$Q$112:$Q$127,0),MATCH(Summary!$D$3,'Incremental Rev Req'!$Q$112:$U$112,0)) -> 173932.3285 | U16: Authorized | W16: w/Pending
B17: Distribution (Wildfire) | C17: =INDEX('Incremental Rev Req'!$Q$9:$U$24,MATCH(B17,'Incremental Rev Req'!$Q$9:$Q$24,0),MATCH(Summary!$D$3,'Incremental Rev Req'!$Q$9:$U$9,0)) -> 1442775.824 | D17: =INDEX('Incremental Rev Req'!$Q$112:$U$127,MATCH(B17,'Incremental Rev Req'!$Q$112:$Q$127,0),MATCH(Summary!$D$3,'Incremental Rev Req'!$Q$112:$U$112,0)) -> 3066773.136 | G17: Revenue Split - Bundled | U17: Bundled Revenue Change | W17: Bundled Revenue Change
B18: Total | C18: =SUM(C4:C17) -> 19228318.75 | D18: =SUM(D4:D17) -> 20846351.06 | G18: Generation | H18: Distribution | I18: NDC | J18: PPPC | K18: NSGC | L18: Transmission | M18: CTC | N18: ECRA | O18: FERC BAs | P18: GHG Rev | Q18: DWRBC | R18: WHC | S18: PCIA | T18: Distribution (Wildfire) | U18: Total | V18: CARE Adj | W18: Total | X18: CARE Adj | AA18: CARE Discount | AB18: ='SAR and RAR'!AB18 -> 922480.737 | AC18: ='SAR and RAR'!AC18 -> 980594.1552
F19: B-1 | G19: =VLOOKUP(Summary!$D$3,$F$41:$Q$44,G$33,FALSE) -> 1 | H19: =VLOOKUP(Summary!$D$3,$F$41:$T$44,H$33,FALSE) -> 0.3636898573 | I19: =VLOOKUP(Summary!$D$3,$F$41:$T$44,I$33,FALSE) -> 0.3636898573 | J19: =VLOOKUP(Summary!$D$3,$F$41:$T$44,J$33,FALSE) -> 0.3636898573 | K19: =VLOOKUP(Summary!$D$3,$F$41:$T$44,K$33,FALSE) -> 0.3636898573 | L19: =VLOOKUP(Summary!$D$3,$F$41:$T$44,L$33,FALSE) -> 0.3636898573 | M19: =VLOOKUP(Summary!$D$3,$F$41:$T$44,M$33,FALSE) -> 0.3636898573 | N19: =VLOOKUP(Summary!$D$3,$F$41:$T$44,N$33,FALSE) -> 0.3636898573 | O19: =VLOOKUP(Summary!$D$3,$F$41:$T$44,O$33,FALSE) -> 0.3636898573 | P19: =VLOOKUP(Summary!$D$3,$F$41:$T$44,P$33,FALSE) -> 0.3636898573 | Q19: =VLOOKUP(Summary!$D$3,$F$41:$T$44,Q$33,FALSE) -> 0.3636898573 | R19: =VLOOKUP(Summary!$D$3,$F$41:$T$44,R$33,FALSE) -> 0.3636898573 | S19: =VLOOKUP(Summary!$D$3,$F$41:$T$44,S$33,FALSE) -> 0.3636898573 | T19: =VLOOKUP(Summary!$D$3,$F$41:$T$44,T$33,FALSE) -> 0.3636898573 | U19: =SUMPRODUCT(G10:T10,G19:T19) -> 928699.6245 | V19: =U19+AB21*H19 -> 959480.6933 | W19: =SUMPRODUCT(G13:T13,G19:T19) -> 987778.3015 | X19: =W19+AC21*H19 -> 1020498.482 | AA19: B-1 Sales | AB19: =VLOOKUP(Summary!$D$3,$F$51:$O$54,10,FALSE) -> 6414554.933 | AC19: =AB19 -> 6414554.933
F20: Total System | G20: =VLOOKUP(Summary!$D$3,$F$45:$T$48,G$33,FALSE) -> 1 | H20: =VLOOKUP(Summary!$D$3,$F$45:$T$48,H$33,FALSE) -> 0.374635273 | I20: =VLOOKUP(Summary!$D$3,$F$45:$T$48,I$33,FALSE) -> 0.374635273 | J20: =VLOOKUP(Summary!$D$3,$F$45:$T$48,J$33,FALSE) -> 0.374635273 | K20: =VLOOKUP(Summary!$D$3,$F$45:$T$48,K$33,FALSE) -> 0.374635273 | L20: =VLOOKUP(Summary!$D$3,$F$45:$T$48,L$33,FALSE) -> 0.374635273 | M20: =VLOOKUP(Summary!$D$3,$F$45:$T$48,M$33,FALSE) -> 0.374635273 | N20: =VLOOKUP(Summary!$D$3,$F$45:$T$48,N$33,FALSE) -> 0.374635273 | O20: =VLOOKUP(Summary!$D$3,$F$45:$T$48,O$33,FALSE) -> 0.374635273 | P20: =VLOOKUP(Summary!$D$3,$F$45:$T$48,P$33,FALSE) -> 0.374635273 | Q20: =VLOOKUP(Summary!$D$3,$F$45:$T$48,Q$33,FALSE) -> 0.374635273 | R20: =VLOOKUP(Summary!$D$3,$F$45:$T$48,R$33,FALSE) -> 0.374635273 | S20: =VLOOKUP(Summary!$D$3,$F$45:$T$48,S$33,FALSE) -> 0.374635273 | T20: =VLOOKUP(Summary!$D$3,$F$45:$T$48,T$33,FALSE) -> 0.374635273 | U20: =SUMPRODUCT(G11:T11,G20:T20) -> 9970798.672 | V20: =U20 -> 9970798.672 | W20: =SUMPRODUCT(G14:T14,G20:T20) -> 10576970.65 | X20: =W20 -> 10576970.65 | AA20: non-exempt Sales | AB20: =VLOOKUP(Summary!$D$3,$F$55:$O$58,2,FALSE) -> 69915155.68 | AC20: =AB20 -> 69915155.68
AA21: B-1 CARE Surcharge | AB21: =AB18*AB19/AB20 -> 84635.48861 | AC21: =AC18*AC19/AC20 -> 89967.26124
F22: ="Notes: Allocation and bundled/unbundled split based on "&Summary!L4&" sales forecast" -> Notes: Allocation and bundled/unbundled split based on 2024 sales forecast
G23: =G10*G19 -> 354164.1003 | H23: =H10*H19 -> 394501.6819 | I23: -6065.73436 | J23: 19603.19181 | K23: 12484.0036 | L23: 76929.05206 | M23: 2259.93844 | N23: -59.47241433 | O23: -3539.503141 | P23: =P10*P19 -> -14799.36983 | Q23: 13113.27209 | R23: 7195.87098 | S23: 20269.04863 | T23: 52643.5445
AA25: 2024 | AI25: 2024
F26: Bundled | P26: System (Bundled and Unbundled) | AB26: 500000000 | AJ26: 500000000
F27: =Summary!D3&" Sales" -> 2024 Sales | G27: =TEXT(Summary!L3,"mm/d/yyyy")&" Avg Rates" -> 03/1/2024 Avg Rates | H27: Proposed Avg Rates (Authorized) | I27: Proposed Avg Rates (w/Pending) | J27: % Change (Authorized) | K27: % Change (w/Pending) | P27: =F27 -> 2024 Sales | Q27: =G27 -> 03/1/2024 Avg Rates | R27: Proposed Avg Rates (Authorized) | S27: Proposed Avg Rates (w/Pending) | T27: % Change (Authorized) | U27: % Change (w/Pending) | AA27: Distribution (Wildfire) Allocation | AB27: =(SUMIF('Authorized Rev Req'!P:P, "Distribution (Wildfire)", 'Authorized Rev Req'!M:M)+SUMIF('Authorized Rev Req'!P:P, "WHC", 'Authorized Rev Req'!M:M))*1000 -> 2452005536 | AI27: Distribution (Wildfire) Allocation | AJ27: =('Incremental Rev Req'!S126+'Incremental Rev Req'!S125)*1000 -> 2490503363
E28: B-1 | F28: =VLOOKUP(Summary!$D$3,$J$51:$K$54,2,FALSE) -> 2332908.568 | G28: 44.28059623 | H28: =V19/F28*100 -> 41.12808819 | I28: =X19/F28*100 -> 43.74361241 | J28: =H28/G28-1 -> -0.07119389327 | K28: =I28/G28-1 -> -0.01212684267 | O28: B-1 | P28: =VLOOKUP(Summary!$D$3,$N$51:$O$54,2,FALSE) -> 6414554.933 | Q28: 34.10205516 | R28: =(U10+AB21)/P28*100 -> 31.4681207 | S28: =(U13+AC21)/P28*100 -> 34.08364492 | T28: =R28/Q28-1 -> -0.07723682481 | U28: =S28/Q28-1 -> -0.0005398572602
E29: Total System | F29: =VLOOKUP(Summary!$D$3,$J$55:$K$58,2,FALSE) -> 29392636.88 | G29: 36.61409129 | H29: =V20/F29*100 -> 33.92277703 | I29: =X20/F29*100 -> 35.98510297 | J29: =H29/G29-1 -> -0.07350487672 | K29: =I29/G29-1 -> -0.01717885924 | O29: Total System | P29: =VLOOKUP(Summary!$D$3,$N$55:$O$58,2,FALSE) -> 78456672.41 | Q29: 26.42580918 | R29: =(U11+AB22)/P29*100 -> 24.50820071 | S29: =(U14+AC22)/P29*100 -> 26.57052666 | T29: =R29/Q29-1 -> -0.07256574259 | U29: =S29/Q29-1 -> 0.005476368895 | AB29: Distribution | AC29: EPT | AE29: First 500M | AF29: After 500M | AJ29: Distribution | AK29: EPT | AM29: First 500M | AN29: After 500M
AA30: Res | AB30: ='SAR and RAR'!AB30 -> 0.4946350247 | AC30: ='SAR and RAR'!AC30 -> 0.3811737117 | AE30: =AVERAGE(AB31:AC31) -> 0.1064860539 | AF30: =(0.125*AB31)+(0.875*AC31) -> 0.09874858017 | AI30: Res | AJ30: ='SAR and RAR'!AJ30 -> 0.4946350247 | AK30: ='SAR and RAR'!AK30 -> 0.3811737117 | AM30: =AVERAGE(AJ31:AK31) -> 0.1064860539 | AN30: =(0.125*AJ31)+(0.875*AK31) -> 0.09874858017
AA31: B-1 | AB31: ='SAR and RAR'!AB31 -> 0.1168026855 | AC31: ='SAR and RAR'!AC31 -> 0.09616942227 | AI31: B-1 | AJ31: ='SAR and RAR'!AJ31 -> 0.1168026855 | AK31: ='SAR and RAR'!AK31 -> 0.09616942227
AA32: B-6/A-15 | AB32: ='SAR and RAR'!AB32 -> 0.02939347021 | AC32: ='SAR and RAR'!AC32 -> 0.0243447547 | AI32: B-6/A-15 | AJ32: ='SAR and RAR'!AJ32 -> 0.02939347021 | AK32: ='SAR and RAR'!AK32 -> 0.0243447547
G33: 2 | H33: 3 | I33: 4 | J33: 5 | K33: 6 | L33: 7 | M33: 8 | N33: 9 | O33: 10 | P33: 11 | Q33: 12 | R33: 13 | S33: 14 | T33: 15 | AA33: A-10 | AB33: ='SAR and RAR'!AB33 -> 0.09360944358 | AC33: ='SAR and RAR'!AC33 -> 0.1098897624 | AI33: A-10 | AJ33: ='SAR and RAR'!AJ33 -> 0.09360944358 | AK33: ='SAR and RAR'!AK33 -> 0.1098897624
F34: B-1 Allocator | G34: Generation | H34: Distribution | I34: NDC | J34: PPPC | K34: NSGC | L34: Transmission | M34: CTC | N34: ECRA | O34: FERC BAs | P34: GHG Rev | Q34: DWRBC | R34: WHC | S34: PCIA | T34: Distribution (Wildfire) | AA34: E-19 | AB34: ='SAR and RAR'!AB34 -> 0.1285076878 | AC34: ='SAR and RAR'!AC34 -> 0.1694539718 | AI34: E-19 | AJ34: ='SAR and RAR'!AJ34 -> 0.1285076878 | AK34: ='SAR and RAR'!AK34 -> 0.1694539718
F35: 2024 | G35: 0.08003843517 | H35: 0.1168026855 | I35: 0.0797727216 | J35: 0.08979660681 | K35: 0.07724977447 | L35: 0.07584760601 | M35: 0.08219843279 | N35: 0.0815194307 | O35: 0.08253270963 | P35: 0.05903240428 | Q35: 0.091733663 | R35: 0.1137553595 | S35: 0.09044753236 | T35: =((AB26*AE30)+((AB27-AB26)*(AF30)))/AB27 -> 0.1003263649 | AA35: Streetlights | AB35: ='SAR and RAR'!AB35 -> 0.005017791101 | AC35: ='SAR and RAR'!AC35 -> 0.004386826426 | AI35: Streetlights | AJ35: ='SAR and RAR'!AJ35 -> 0.005017791101 | AK35: ='SAR and RAR'!AK35 -> 0.004386826426
F36: =F35+1 -> 2025 | G36: =G35 -> 0.08003843517 | H36: =H35 -> 0.1168026855 | I36: 0.0797727216 | J36: 0.08979660681 | K36: 0.07724977447 | L36: 0.07584760601 | M36: 0.08219843279 | N36: 0.0815194307 | O36: 0.08253270963 | P36: 0.05903240428 | Q36: 0.091733663 | R36: 0.1137553595 | S36: 0.09044753236 | T36: 0.1003263649 | AA36: Standby | AB36: ='SAR and RAR'!AB36 -> 0.002558753066 | AC36: ='SAR and RAR'!AC36 -> 0.004403395311 | AI36: Standby | AJ36: ='SAR and RAR'!AJ36 -> 0.002558753066 | AK36: ='SAR and RAR'!AK36 -> 0.004403395311
F37: =F36+1 -> 2026 | G37: =G36 -> 0.08003843517 | H37: 0.1168026855 | I37: 0.0797727216 | J37: 0.08979660681 | K37: 0.07724977447 | L37: 0.07584760601 | M37: 0.08219843279 | N37: 0.0815194307 | O37: 0.08253270963 | P37: 0.05903240428 | Q37: 0.091733663 | R37: 0.1137553595 | S37: 0.09044753236 | T37: 0.1003263649 | AA37: AG | AB37: ='SAR and RAR'!AB37 -> 0.07829354117 | AC37: ='SAR and RAR'!AC37 -> 0.07365271789 | AI37: AG | AJ37: ='SAR and RAR'!AJ37 -> 0.07829354117 | AK37: ='SAR and RAR'!AK37 -> 0.07365271789
F38: 2027 | G38: =G37 -> 0.08003843517 | H38: 0.1168026855 | I38: 0.0797727216 | J38: 0.08979660681 | K38: 0.07724977447 | L38: 0.07584760601 | M38: 0.08219843279 | N38: 0.0815194307 | O38: 0.08253270963 | P38: 0.05903240428 | Q38: 0.091733663 | R38: 0.1137553595 | S38: 0.09044753236 | T38: 0.1003263649 | AA38: E-20P | AB38: ='SAR and RAR'!AB38 -> 0.03669006625 | AC38: ='SAR and RAR'!AC38 -> 0.06639780327 | AI38: E-20P | AJ38: ='SAR and RAR'!AJ38 -> 0.03669006625 | AK38: ='SAR and RAR'!AK38 -> 0.06639780327
AA39: E-20S | AB39: ='SAR and RAR'!AB39 -> 0.0137126474 | AC39: ='SAR and RAR'!AC39 -> 0.02091981408 | AI39: E-20S | AJ39: ='SAR and RAR'!AJ39 -> 0.0137126474 | AK39: ='SAR and RAR'!AK39 -> 0.02091981408
F40: Revenue Split - Bundled | AA40: E-20T | AB40: ='SAR and RAR'!AB40 -> 0.0007788893378 | AC40: ='SAR and RAR'!AC40 -> 0.04920782019 | AI40: E-20T | AJ40: ='SAR and RAR'!AJ40 -> 0.0007788893378 | AK40: ='SAR and RAR'!AK40 -> 0.04920782019
E41: B-1 | F41: =F35 -> 2024 | G41: 1 | H41: =$K51/$O51 -> 0.3636898573 | I41: 0.3636898573 | J41: 0.3636898573 | K41: 0.3636898573 | L41: 0.3636898573 | M41: 0.3636898573 | N41: 0.3636898573 | O41: 0.3636898573 | P41: 0.3636898573 | Q41: 0.3636898573 | R41: 0.3636898573 | S41: 0.3636898573 | T41: 0.3636898573
E42: B-1 | F42: =F36 -> 2025 | G42: 1 | H42: =$K52/$O52 -> 0.3636898573 | I42: 0.3636898573 | J42: 0.3636898573 | K42: 0.3636898573 | L42: 0.3636898573 | M42: 0.3636898573 | N42: 0.3636898573 | O42: 0.3636898573 | P42: 0.3636898573 | Q42: 0.3636898573 | R42: 0.3636898573 | S42: 0.3636898573 | T42: 0.3636898573
E43: B-1 | F43: 2026 | G43: =G42 -> 1 | H43: 0.3636898573 | I43: 0.3636898573 | J43: 0.3636898573 | K43: 0.3636898573 | L43: 0.3636898573 | M43: 0.3636898573 | N43: 0.3636898573 | O43: 0.3636898573 | P43: 0.3636898573 | Q43: 0.3636898573 | R43: 0.3636898573 | S43: =$K53/$O53 -> 0.3636898573 | T43: 0.3636898573
E44: B-1 | F44: 2027 | G44: =G42 -> 1 | H44: 0.3636898573 | I44: 0.3636898573 | J44: 0.3636898573 | K44: 0.3636898573 | L44: 0.3636898573 | M44: 0.3636898573 | N44: 0.3636898573 | O44: 0.3636898573 | P44: 0.3636898573 | Q44: 0.3636898573 | R44: 0.3636898573 | S44: 0.3636898573 | T44: 0.3636898573
E45: Total System | F45: =F41 -> 2024 | G45: 1 | H45: =$K55/$O55 -> 0.374635273 | I45: 0.374635273 | J45: 0.374635273 | K45: 0.374635273 | L45: 0.374635273 | M45: 0.374635273 | N45: 0.374635273 | O45: 0.374635273 | P45: 0.374635273 | Q45: 0.374635273 | R45: 0.374635273 | S45: 0.374635273 | T45: 0.374635273
E46: Total System | F46: =F42 -> 2025 | G46: 1 | H46: =$K56/$O56 -> 0.374635273 | I46: 0.374635273 | J46: 0.374635273 | K46: 0.374635273 | L46: 0.374635273 | M46: 0.374635273 | N46: 0.374635273 | O46: 0.374635273 | P46: 0.374635273 | Q46: 0.374635273 | R46: 0.374635273 | S46: 0.374635273 | T46: 0.374635273
E47: Total System | F47: =F43 -> 2026 | G47: =G46 -> 1 | H47: 0.374635273 | I47: 0.374635273 | J47: 0.374635273 | K47: 0.374635273 | L47: 0.374635273 | M47: 0.374635273 | N47: 0.374635273 | O47: 0.374635273 | P47: 0.374635273 | Q47: 0.374635273 | R47: 0.374635273 | S47: 0.374635273 | T47: 0.374635273
E48: Total System | F48: =F44 -> 2027 | G48: =G46 -> 1 | H48: 0.374635273 | I48: 0.374635273 | J48: 0.374635273 | K48: 0.374635273 | L48: 0.374635273 | M48: 0.374635273 | N48: 0.374635273 | O48: 0.374635273 | P48: 0.374635273 | Q48: 0.374635273 | R48: 0.374635273 | S48: =S47 -> 0.374635273 | T48: =$K58/$O58 -> 0.374635273
F50: Non-CARE Sales | J50: Bundled Sales | N50: System Sales
E51: B-1 | F51: =F41 -> 2024 | G51: 6401208.307 | I51: B-1 | J51: =F51 -> 2024 | K51: 2332908.568 | M51: B-1 | N51: =F51 -> 2024 | O51: 6414554.933
E52: B-1 | F52: 2025 | G52: 6401208.307 | I52: B-1 | J52: 2025 | K52: =K51 -> 2332908.568 | M52: B-1 | N52: 2025 | O52: =O51 -> 6414554.933
E53: B-1 | F53: 2026 | G53: =$G$52 -> 6401208.307 | I53: B-1 | J53: 2026 | K53: =K52 -> 2332908.568 | M53: B-1 | N53: 2026 | O53: =O52 -> 6414554.933
E54: B-1 | F54: 2027 | G54: =$G$52 -> 6401208.307 | I54: B-1 | J54: 2027 | K54: =K53 -> 2332908.568 | M54: B-1 | N54: 2027 | O54: =O53 -> 6414554.933
E55: Total System | F55: 2024 | G55: ='SAR and RAR'!G55 -> 69915155.68 | I55: Total System | J55: 2024 | K55: ='SAR and RAR'!K55 -> 29392636.88 | M55: Total System | N55: 2024 | O55: ='SAR and RAR'!O55 -> 78456672.41
E56: Total System | F56: 2025 | G56: ='SAR and RAR'!G56 -> 69915155.68 | I56: Total System | J56: 2025 | K56: ='SAR and RAR'!K56 -> 29392636.88 | M56: Total System | N56: 2025 | O56: ='SAR and RAR'!O56 -> 78456672.41
E57: Total System | F57: 2026 | G57: ='SAR and RAR'!G57 -> 69915155.68 | I57: Total System | J57: 2026 | K57: ='SAR and RAR'!K57 -> 29392636.88 | M57: Total System | N57: 2026 | O57: ='SAR and RAR'!O57 -> 78456672.41
E58: Total System | F58: 2027 | G58: ='SAR and RAR'!G58 -> 69915155.68 | I58: Total System | J58: 2027 | K58: ='SAR and RAR'!K58 -> 29392636.88 | M58: Total System | N58: 2027 | O58: ='SAR and RAR'!O58 -> 78456672.41
E60: Notes:
E62: ='SAR and RAR'!E62 -> 2024 Forecast: Adopted in D.23-12-022
E63: ='SAR and RAR'!E63 -> 2025 Forecast: Set equal to the 2024
E64: ='SAR and RAR'!E64 -> 2026 Forecast: Set equal to the 2024
E65: ='SAR and RAR'!E65 -> 2027 Forecast: Set equal to the 2024

Sheet Bill Impact (B-1) (hidden)
E3: Schedule B-1
E4: =Summary!D3 -> 2024 | F4: =Summary!L3 -> 2024-03-01 | G4: =Summary!L3 -> 2024-03-01 | H4: Proposed | I4: Proposed | J4: Proposed | K4: Proposed
E5: Sales Forecast | F5: Rates | G5: Revenue | H5: Authorized Rates | I5: Authorized Revenue | J5: w/Pending Rates | K5: w/Pending Revenue
D7: Peak Summer | E7: =HLOOKUP($E$4,$Y$33:$AB$41,2,FALSE) -> 226712.6167 | F7: 0.51125 | G7: =F7*E7 -> 115906.8253 | H7: =F7+(I$15-SUM($G$7:$G$14))/SUM($E$7:$E$12) -> 0.481322957 | I7: =H7*E7 -> 109121.9871 | J7: =F7+(K$15-SUM($G$7:$G$14))/SUM($E$7:$E$12) -> 0.5075364297 | K7: =J7*E7 -> 115064.9121
D8: Part-Peak Summer | E8: =HLOOKUP($E$4,$Y$33:$AB$41,3,FALSE) -> 162948.6981 | F8: 0.46202 | G8: 75285.55748 | H8: 0.432092957 | I8: 70408.98478 | J8: 0.4583064297 | K8: 74680.43603
D9: Off-Peak Summer | E9: =HLOOKUP($E$4,$Y$33:$AB$41,4,FALSE) -> 522831.3751 | F9: 0.44121 | G9: 230678.431 | H9: 0.411282957 | I9: 215031.634 | J9: 0.4374964297 | K9: 228736.8599
D10: Part-Peak Winter | E10: =HLOOKUP($E$4,$Y$33:$AB$41,5,FALSE) -> 322300.8931 | F10: 0.43582 | G10: 140465.1753 | H10: 0.405892957 | I10: 130819.6626 | J10: 0.4321064297 | K10: 139268.2882
D11: Off-Peak Winter | E11: =HLOOKUP($E$4,$Y$33:$AB$41,6,FALSE) -> 957339.4835 | F11: 0.4197 | G11: 401795.3812 | H11: 0.389772957 | I11: 373145.0414 | J11: 0.4159864297 | K11: 398240.2338
D12: Super Off-Peak Winter | E12: =HLOOKUP($E$4,$Y$33:$AB$41,7,FALSE) -> 135593.1847 | F12: 0.40328 | G12: 54682.01953 | H12: 0.373352957 | I12: 50624.11646 | J12: 0.3995664297 | K12: 54178.48471
D14: Customers (Single-phase) | E14: =HLOOKUP($E$4,$Y$33:$AB$41,9,FALSE) -> 1033.640782 | F14: 0.32854 | G14: =F14*E14*365/12 -> 10329.26709 | H14: =F14 -> 0.32854 | I14: =H14*E14*365/12 -> 10329.26709 | J14: =H14 -> 0.32854 | K14: =J14*E14*365/12 -> 10329.26709
D15: Total Revenues | G15: =SUM(G7:G14) -> 1029142.657 | I15: ='SAR and AR (B-1)'!V19 -> 959480.6933 | K15: ='SAR and AR (B-1)'!X19 -> 1020498.482
P19: 2023 Recorded Data
B20: SCHEDULE B-1 ($/kWh) | E20: Proposed | F20: Proposed | P20: NAICS | Q20: Summer | T20: Winter
B21: Rates | C21: 2024-01-01 | D21: =Summary!L3 -> 2024-03-01 | E21: Authorized | F21: w/Pending | P21: kWh | Q21: Peak | R21: Part-Peak | S21: Off-Peak | T21: Peak | U21: Off-Peak | V21: Super Off-Peak | W21: Total
B22: Peak Summer | C22: 0.51009 | D22: =F7 -> 0.51125 | E22: =H7 -> 0.481322957 | F22: =J7 -> 0.5075364297 | P22: NAICS 531 | Q22: 240.6217419 | R22: 196.4275246 | S22: 610.4070422 | T22: 213.4427764 | U22: 679.1543724 | V22: 79.55166669 | W22: =SUM(Q22:V22) -> 2019.605124
B23: Part-Peak Summer | C23: 0.46086 | D23: 0.46202 | E23: 0.432092957 | F23: 0.4583064297 | P23: NAICS 621 | Q23: 305.4424614 | R23: 270.2007963 | S23: 790.0026358 | T23: 219.5586319 | U23: 758.5301209 | V23: 130.2442779 | W23: =SUM(Q23:V23) -> 2473.978924
B24: Off-Peak Summer | C24: 0.44005 | D24: 0.44121 | E24: 0.411282957 | F24: 0.4374964297 | P24: NAICS 722 | Q24: 980.9712657 | R24: 662.608539 | S24: 1842.636032 | T24: 753.6542377 | U24: 1744.189729 | V24: 274.8605149 | W24: 6258.920318
B25: Part-Peak Winter | C25: 0.43467 | D25: 0.43582 | E25: 0.405892957 | F25: 0.4321064297
B26: Off-Peak Winter | C26: 0.41855 | D26: 0.4197 | E26: 0.389772957 | F26: 0.4159864297
B27: Super Off-Peak Winter | C27: 0.40214 | D27: 0.40328 | E27: 0.373352957 | F27: 0.3995664297
B28: Customers (Single-phase) | C28: 0.32854 | D28: =F14 -> 0.32854 | E28: =H14 -> 0.32854 | F28: =J14 -> 0.32854
C30: B-1
C31: =C21 -> 2024-01-01 | E31: =D21 -> 2024-03-01 | G31: =$E$21 -> Authorized | I31: =$F$21 -> w/Pending
C32: Summer | D32: Winter | E32: Summer | F32: Winter | G32: Summer | H32: Winter | I32: Summer | J32: Winter
B33: NAICS 531 | C33: =SUM(SUM($C$22*$Q22,$C$23*$R22,$C$24*$S22),($C$28*365.25/12)) -> 491.8738884 | D33: =SUM(SUM($C$25*$T22,$C$26*$U22,$C$27*$V22),($C$28*365.25/12)) -> 419.0280777 | E33: =SUM(SUM($D$22*$Q22,$D$23*$R22,$D$24*$S22),($D$28*365.25/12)) -> 493.0889378 | F33: =SUM(SUM($D$25*$T22,$D$26*$U22,$D$27*$V22),($D$28*365.25/12)) -> 420.1452533 | G33: =SUM(SUM($E$22*$Q22,$E$23*$R22,$E$24*$S22),($E$28*365.25/12)) -> 461.7416678 | H33: =SUM(SUM($E$25*$T22,$E$26*$U22,$E$27*$V22),($E$28*365.25/12)) -> 391.0517139 | I33: =SUM(SUM($F$22*$Q22,$F$23*$R22,$F$24*$S22),($F$28*365.25/12)) -> 489.1991351 | J33: =SUM(SUM($F$25*$T22,$F$26*$U22,$F$27*$V22),($F$28*365.25/12)) -> 416.5351103 | W33: Non-CARE Sales | X33: B-1 | Y33: ='Res Bill Impact'!Y38 -> 2024 | Z33: =Y33+1 -> 2025 | AA33: =Z33+1 -> 2026 | AB33: 2027
B34: NAICS 621 | C34: =SUM(SUM($C$22*$Q23,$C$23*$R23,$C$24*$S23),($C$28*365.25/12)) -> 637.9684803 | D34: =SUM(SUM($C$25*$T23,$C$26*$U23,$C$27*$V23),($C$28*365.25/12)) -> 475.2947028 | E34: =SUM(SUM($D$22*$Q23,$D$23*$R23,$D$24*$S23),($D$28*365.25/12)) -> 639.5526295 | F34: =SUM(SUM($D$25*$T23,$D$26*$U23,$D$27*$V23),($D$28*365.25/12)) -> 476.5679833 | G34: =SUM(SUM($E$22*$Q23,$E$23*$R23,$E$24*$S23),($E$28*365.25/12)) -> 598.6828861 | H34: =SUM(SUM($E$25*$T23,$E$26*$U23,$E$27*$V23),($E$28*365.25/12)) -> 443.3988531 | I34: =SUM(SUM($F$22*$Q23,$F$23*$R23,$F$24*$S23),($F$28*365.25/12)) -> 634.4812075 | J34: =SUM(SUM($F$25*$T23,$F$26*$U23,$F$27*$V23),($F$28*365.25/12)) -> 472.4521107 | V34: Summer | W34: Peak | X34: Peak | Y34: 226712.6167 | Z34: =Y34 -> 226712.6167 | AA34: =$Z34 -> 226712.6167 | AB34: =$Z34 -> 226712.6167
B35: NAICS 722 | C35: =SUM(SUM($C$22*$Q24,$C$23*$R24,$C$24*$S24),($C$28*365.25/12)) -> 1626.605326 | D35: =SUM(SUM($C$25*$T24,$C$26*$U24,$C$27*$V24),($C$28*365.25/12)) -> 1178.153842 | E35: =SUM(SUM($D$22*$Q24,$D$23*$R24,$D$24*$S24),($D$28*365.25/12)) -> 1630.649337 | F35: =SUM(SUM($D$25*$T24,$D$26*$U24,$D$27*$V24),($D$28*365.25/12)) -> 1181.339704 | G35: =SUM(SUM($E$22*$Q24,$E$23*$R24,$E$24*$S24),($E$28*365.25/12)) -> 1526.317206 | H35: =SUM(SUM($E$25*$T24,$E$26*$U24,$E$27*$V24),($E$28*365.25/12)) -> 1098.360858 | I35: =SUM(SUM($F$22*$Q24,$F$23*$R24,$F$24*$S24),($F$28*365.25/12)) -> 1617.703029 | J35: =SUM(SUM($F$25*$T24,$F$26*$U24,$F$27*$V24),($F$28*365.25/12)) -> 1171.043071 | V35: Summer | W35: Part Peak | X35: Part Peak | Y35: 162948.6981 | Z35: =Y35 -> 162948.6981 | AA35: =$Z35 -> 162948.6981 | AB35: 162948.6981
V36: Summer | W36: Off Peak | X36: Off Peak | Y36: 522831.3751 | Z36: 522831.3751 | AA36: 522831.3751 | AB36: 522831.3751
V37: Winter | W37: Peak | X37: Part Peak | Y37: 322300.8931 | Z37: 322300.8931 | AA37: 322300.8931 | AB37: 322300.8931
V38: Winter | W38: Off Peak | X38: Off Peak | Y38: 957339.4835 | Z38: 957339.4835 | AA38: 957339.4835 | AB38: 957339.4835
V39: Winter | W39: Super Off Peak | X39: Super Off | Y39: 135593.1847 | Z39: 135593.1847 | AA39: 135593.1847 | AB39: 135593.1847
V41: Customer | W41: Single-Phase | Y41: 1033.640782 | Z41: 1033.640782 | AA41: =$Z41 -> 1033.640782 | AB41: =$Z41 -> 1033.640782
